Workbook

Sheet Contents
B1: =SheetHeader -> REGULATORY REPORTING STATEMENT
B2: =dms_TradingName -> Victorian DNSP Reset
B3: =CONCATENATE(FRCP_y1," to ",FRCP_y5) -> 2016 to 2020
B4: CONTENTS
E7: 1. Business details | L7: 2. Expenditure | S7: 3. Economic benchmarking
E27: 4. Alternative control services | L27: 5. Network information | S27: 6. Service & quality
E34: 7. Other templates

Sheet Instructions
B1: =SheetHeader -> REGULATORY REPORTING STATEMENT
B2: =dms_TradingName -> Victorian DNSP Reset
B3: =CONCATENATE(FRCP_y1," to ",FRCP_y5) -> 2016 to 2020
B4: INSTRUCTIONS
B6: INSTRUCTIONS FOR USE
B7: =CONCATENATE(dms_TradingName, " must fill out and submit the regulatory templates in this spreadsheet as part of its regulatory proposal.") -> Victorian DNSP Reset must fill out and submit the regulatory templates in this spreadsheet as part of its regulatory proposal.
B8: Please ensure that tab 1.0 Business and other details is complete before populating data cells.

Sheet 1.0 Business & other details
B1: =(LOOKUP(dms_Model,J15:J22,K15:K31)) -> REGULATORY REPORTING STATEMENT | J1: Data is in this column used for data validation and database purposes.
B2: =dms_TradingName -> Victorian DNSP Reset
B3: =CONCATENATE(FRCP_y1," to ",FRCP_y5) -> 2016 to 2020 | C3: =CONCATENATE(LEFT(FRCP_y1,4),"-",LEFT(FRCP_y5,2),RIGHT(FRCP_y5,2)) -> 2016-2020
B4: 1.0 BUSINESS & OTHER DETAILS
B7: Instructions
B8: Complete the following business details regulatory template before entering data or values in any other regulatory template. This regulatory template is linked to other cells within the spreadsheet and automatically generates column headings.
B10: TABLE 1.2.1 - SUBMISSION PARTICULARS INPUT SHEETS
B12: Entity details
B14: Trading name | C14: Victorian DNSP Reset
B15: ACN / ABN | C15: =INDEX(dms_ABN_List,MATCH(dms_TradingName,dms_TradingName_List)) -> 33333333333 | J15: CA | K15: CATEGORY ANALYSIS
J16: CAM/Service change Backcast | K16: REGULATORY REPORTING STATEMENT
J17: CPI | K17: CPI
B18: Business address | C18: Address 1 | E18: 321 Ferntree Gully Road | J18: EB | K18: ECONOMIC BENCHMARKING
D19: Address 2 | J19: PTRM | K19: POST TAX REVENUE MODEL
C20: Suburb | E20: Mount Waverley | J20: Reset | K20: REGULATORY REPORTING STATEMENT
D21: State | E21: Vic | G21: 3149 | J21: RFM | K21: ROLL FORWARD MODEL
J22: WACC | K22: WEIGHTED AVERAGE COST OF CAPITAL
B23: Postal address | C23: Address 1 | E23: 321 Ferntree Gully Road
D24: Address 2
C25: Suburb | E25: Mount Waverley
D26: State | E26: Vic | F26: p/code | G26: 3149
J27: ActewAGL Distribution | K27: 76670568688
J28: Ausgrid | K28: 67505337385
B29: Contact name/s | C29: Matthew Serpell | F29: Robert McMillan | J29: AusNet (D) | K29: 91064651118
B30: Contact phone/s | C30: (03) 8544 9000 | F30: (03) 8544 9000 | J30: AusNet (T) | K30: 78079798173
B31: Contact email address/s | C31: matthew.serpell@jemena.com.au | F31: robert.mcmillan@jemena.com.au | J31: Citipower | K31: 76064651056
J32: Electranet | K32: 41094482416
B33: Regulatory control period details | J33: Endeavour Energy | K33: 59253130878
J34: Energex | K34: 40078849055
B35: Forthcoming regulatory control period | C35: =CONCATENATE(IF(dms_RPT="Calendar",G38+1,(LEFT(G38,4)+1&"-"&IF(MID(G38,6,2)<"09","0"&RIGHT(G38,1)+1,RIGHT(G38,2)+1)))) -> 2016 | D35: =CONCATENATE(IF(dms_RPT="Calendar",C35+1,(LEFT(C35,4)+1&"-"&IF(MID(C35,6,2)<"09","0"&RIGHT(C35,1)+1,RIGHT(C35,2)+1)))) -> 2017 | E35: =CONCATENATE(IF(dms_RPT="Calendar",D35+1,(LEFT(D35,4)+1&"-"&IF(MID(D35,6,2)<"09","0"&RIGHT(D35,1)+1,RIGHT(D35,2)+1)))) -> 2018 | F35: =CONCATENATE(IF(dms_RPT="Calendar",E35+1,(LEFT(E35,4)+1&"-"&IF(MID(E35,6,2)<"09","0"&RIGHT(E35,1)+1,RIGHT(E35,2)+1)))) -> 2019 | G35: =CONCATENATE(IF(dms_RPT="Calendar",F35+1,(LEFT(F35,4)+1&"-"&IF(MID(F35,6,2)<"09","0"&RIGHT(F35,1)+1,RIGHT(F35,2)+1)))) -> 2020 | J35: Ergon Energy | K35: 50087646062
J36: Essential Energy | K36: 37428185226
J37: Jemena Electricity | K37: 82064651083
B38: Current regulatory control period | C38: 2011 | D38: =CONCATENATE(IF(dms_RPT="Calendar",C38+1,(LEFT(C38,4)+1&"-"&IF(MID(C38,6,2)<"09","0"&RIGHT(C38,1)+1,RIGHT(C38,2)+1)))) -> 2012 | E38: =CONCATENATE(IF(dms_RPT="Calendar",D38+1,(LEFT(D38,4)+1&"-"&IF(MID(D38,6,2)<"09","0"&RIGHT(D38,1)+1,RIGHT(D38,2)+1)))) -> 2013 | F38: =CONCATENATE(IF(dms_RPT="Calendar",E38+1,(LEFT(E38,4)+1&"-"&IF(MID(E38,6,2)<"09","0"&RIGHT(E38,1)+1,RIGHT(E38,2)+1)))) -> 2014 | G38: =CONCATENATE(IF(dms_RPT="Calendar",F38+1,(LEFT(F38,4)+1&"-"&IF(MID(F38,6,2)<"09","0"&RIGHT(F38,1)+1,RIGHT(F38,2)+1)))) -> 2015 | J38: Powercor Australia | K38: 89064651109
J39: Powerlink | K39: 82078849233
J40: Qld,SA &ACT Gas Reset | K40: 22222222222
B41: Previous regulatory control period | C41: =CONCATENATE(IF(dms_RPT="Calendar",D41-1,(LEFT(D41,4)-1&"-"&IF(MID(D41,3,1)="0","0"&RIGHT(D41,2)-1,RIGHT(D41,2)-1)))) -> 2006 | D41: =CONCATENATE(IF(dms_RPT="Calendar",E41-1,(LEFT(E41,4)-1&"-"&IF(MID(E41,3,1)="0","0"&RIGHT(E41,2)-1,RIGHT(E41,2)-1)))) -> 2007 | E41: =CONCATENATE(IF(dms_RPT="Calendar",F41-1,(LEFT(F41,4)-1&"-"&IF(MID(F41,3,1)="0","0"&RIGHT(F41,2)-1,RIGHT(F41,2)-1)))) -> 2008 | F41: =CONCATENATE(IF(dms_RPT="Calendar",G41-1,(LEFT(G41,4)-1&"-"&IF(MID(G41,3,1)="0","0"&RIGHT(G41,2)-1,RIGHT(G41,2)-1)))) -> 2009 | G41: =CONCATENATE(IF(dms_RPT="Calendar",C38-1,(LEFT(C38,4)-1&"-"&IF(MID(C38,3,1)="0","0"&RIGHT(C38,2)-1,RIGHT(C38,2)-1)))) -> 2010 | J41: SA Power Networks | K41: 13332330749
J42: TasNetworks (D) | K42: 24167357299
J43: TasNetworks (T) | K43: 24167357299
B44: Sector | C44: Electricity | J44: TransGrid | K44: 19622755774
B45: Segment | C45: Distribution | J45: United Energy | K45: 70064651029
B46: Source | C46: Regulatory proposal | J46: Victorian DNSP Backcasting | K46: 33333333666
B47: Regulatory Year Ending | C47: =CONCATENATE(LEFT(G38, 2) &IF(G38>"2009-10",,"") &RIGHT(G38,2)) -> 2015 | J47: Victorian DNSP Reset | K47: 33333333333
B48: Reporting Period Type | C48: =IF(LEN(CRCP_y1)>4,"Financial","Calendar") -> Calendar
B49: Model or RIN Type | C49: Reset
B50: Security Classification | C50: Confidential
B51: Data quality (Actual, estimate, public, consolidated) | C51: Consolidated
B52: RIN response - version no. | C52: 1
B53: Amended RIN submission - amendment reason
B54: Template - version no. | C54: 1
B55: $ real (the last month before the FRCP_y1) | C55: =CONCATENATE(IF(C48="Financial","June ","December "),(IF(C48="Financial",LEFT(G38,2),LEFT(G38,2))&(RIGHT(G38,2)))) -> December 2015
B56: Previous $ real - End Year 5 | C56: =CONCATENATE(IF(C48="Financial","June ","December "),(IF(C48="Financial",LEFT(G41,2),LEFT(G38,2))&(RIGHT(G41,2)))) -> December 2010
B57: Previous $ real - Beginning Year 1 | C57: =CONCATENATE(IF(C48="Financial","July ","January "),(LEFT(C41,4))) -> January 2006
B58: EBSS - First application of scheme in forthcoming period? | C58: No

Sheet 2.1 Expenditure summary
C1: =SheetHeader -> REGULATORY REPORTING STATEMENT
C2: =dms_TradingName -> Victorian DNSP Reset
C3: =FRCP_span -> 2016 to 2020
C4: 2.1 EXPENDITURE SUMMARY & RECONCILIATION
C8: TABLE 2.1.1 - STANDARD CONTROL SERVICES CAPEX
D10: =CONCATENATE("Forecast ($0's, real ", dms_DollarReal, ")") -> Forecast ($0's, real December 2015)
D11: =CRCP_y5 -> 2015 | E11: =FRCP -> 2016 | F11: 2017 | G11: 2018 | H11: 2019 | I11: 2020
A12: ED_EXP211_00001 | C12: Replacement expenditure | D12: 32413621.17 | E12: 36417975.22 | F12: 40850052.34 | G12: 39285646.76 | H12: 52990489.93 | I12: 53997729.53
A13: ED_EXP211_00002 | C13: Connections | D13: 31985593.1 | E13: 32787413.37 | F13: 34605391.95 | G13: 37186693.18 | H13: 32664514.27 | I13: 33730631.39
A14: ED_EXP211_00003 | C14: Augmentation Expenditure | D14: 30611084.65 | E14: 18504734.33 | F14: 48284512.96 | G14: 40533925.97 | H14: 22954435.06 | I14: 10353635.24
A15: ED_EXP211_00004 | C15: Non-network | D15: 28310770.86 | E15: 38477040.56 | F15: 27006545.94 | G15: 26352306.9 | H15: 24370950.93 | I15: 20991133.6
A16: ED_EXP211_00005 | C16: Capitalised network overheads | D16: 18769183.82 | E16: 19200784.58 | F16: 19707091.05 | G16: 20229722.04 | H16: 20742005.79 | I16: 21262845.34
A17: ED_EXP211_00006 | C17: Capitalised corporate overheads | D17: 12559400.29 | E17: 12848205.96 | F17: 13187000.96 | G17: 13536719.52 | H17: 13879514.22 | I17: 14228034.03
C18: TOTAL GROSS CAPEX (includes capcons) | D18: =SUM(D12:D17) -> 154649653.9 | E18: 158236154 | F18: 183640595.2 | G18: 177125014.4 | H18: 167601910.2 | I18: 154564009.1
A19: ED_EXP211_00024 | C19: capcons | D19: 15694084.4 | E19: 26447825.45 | F19: 25576157.83 | G19: 27340116.29 | H19: 25697004.05 | I19: 27589010.01
C21: TABLE 2.1.2 - STANDARD CONTROL SERVICES OPEX BY CATEGORY
D23: =CONCATENATE("Forecast ($0's, real ", dms_DollarReal, ")") -> Forecast ($0's, real December 2015)
D24: =CRCP_y5 -> 2015
A25: ED_EXP212_00001 | C25: Vegetation management | D25: 4081774.506
A26: ED_EXP212_00002 | C26: Maintenance | D26: 7554554.34
A27: ED_EXP212_00003 | C27: Emergency response | D27: 3755095.524
A28: ED_EXP212_00004 | C28: Non-network | D28: 10210274.25
A29: ED_EXP212_00005 | C29: Network overheads | D29: 31808194.07
A30: ED_EXP212_00006 | C30: Corporate overheads | D30: 20314052.52
C31: TOTAL OPEX | D31: =SUM(D25:D30) -> 77723945.22
C33: TABLE 2.1.3 - ALTERNATIVE CONTROL SERVICES CAPEX
D35: =CONCATENATE("Forecast ($0's, real ", dms_DollarReal, ")") -> Forecast ($0's, real December 2015)
D36: =CRCP_y5 -> 2015 | E36: =FRCP -> 2016 | F36: 2017 | G36: 2018 | H36: 2019 | I36: 2020
A37: ED_EXP213_00001 | C37: Connections | D37: 11787503.46 | E37: 5769605.523 | F37: 5726108.313 | G37: 5719099.803 | H37: 5691980.644 | I37: 5934670.616
A38: ED_EXP213_00002 | C38: Metering | D38: 0 | E38: 2412254.093 | F38: 2535672.99 | G38: 2802375.834 | H38: 2937289.304 | I38: 4599281.995
A39: ED_EXP213_00003 | C39: Public lighting | D39: 432489.1762 | E39: 451710.1583 | F39: 470864.5437 | G39: 489516.2705 | H39: 511453.5719 | I39: 522182.8378
A40: ED_EXP213_00004 | C40: Fee and quoted | D40: 0 | E40: 0 | F40: 0 | G40: 0 | H40: 0 | I40: 0
C41: TOTAL CAPEX | D41: =SUM(D37:D40) -> 12219992.63 | E41: 8633569.774 | F41: 8732645.847 | G41: 9010991.907 | H41: 9140723.52 | I41: 11056135.45
C43: TABLE 2.1.4 - ALTERNATIVE CONTROL SERVICES OPEX
D45: =CONCATENATE("Forecast ($0's, real ", dms_DollarReal, ")") -> Forecast ($0's, real December 2015)
D46: =CRCP_y5 -> 2015 | E46: =FRCP -> 2016 | F46: 2017 | G46: 2018 | H46: 2019 | I46: 2020
A47: ED_EXP214_00001 | C47: Connections | D47: 0 | E47: 0 | F47: 0 | G47: 0 | H47: 0 | I47: 0
A48: ED_EXP214_00002 | C48: Metering | D48: 639894.744 | E48: 656265.7583 | F48: 676105.2609 | G48: 697987.6427 | H48: 722712.4358 | I48: 746470.2877
A49: ED_EXP214_00003 | C49: Public lighting | D49: 4551216.145 | E49: 4668042.733 | F49: 4805277.783 | G49: 4939570.687 | H49: 5083654.771 | I49: 5238336.741
A50: ED_EXP214_00004 | C50: Fee and quoted | D50: 6929677.999 | E50: 7107558.066 | F50: 7316512.041 | G50: 7520986.307 | H50: 7740368.616 | I50: 7975887.259
C51: TOTAL OPEX | D51: =SUM(D47:D50) -> 12120788.89 | E51: 12431866.56 | F51: 12797895.09 | G51: 13158544.64 | H51: 13546735.82 | I51: 13960694.29
C53: TABLE 2.1.5 - DUAL FUNCTION ASSETS CAPEX
D55: =CONCATENATE("Forecast ($0's, real ", dms_DollarReal, ")") -> Forecast ($0's, real December 2015)
D56: =CRCP_y5 -> 2015 | E56: =FRCP -> 2016 | F56: 2017 | G56: 2018 | H56: 2019 | I56: 2020
A57: ED_EXP215_00001 | C57: Replacement expenditure | D57: 0 | E57: 0 | F57: 0 | G57: 0 | H57: 0 | I57: 0
A58: ED_EXP215_00002 | C58: Connections | D58: 0 | E58: 0 | F58: 0 | G58: 0 | H58: 0 | I58: 0
A59: ED_EXP215_00003 | C59: Augmentation Expenditure | D59: 0 | E59: 0 | F59: 0 | G59: 0 | H59: 0 | I59: 0
A60: ED_EXP215_00004 | C60: Non-network | D60: 0 | E60: 0 | F60: 0 | G60: 0 | H60: 0 | I60: 0
A61: ED_EXP215_00005 | C61: Capitalised network overheads | D61: 0 | E61: 0 | F61: 0 | G61: 0 | H61: 0 | I61: 0
A62: ED_EXP215_00006 | C62: Capitalised corporate overheads | D62: 0 | E62: 0 | F62: 0 | G62: 0 | H62: 0 | I62: 0
C63: TOTAL GROSS CAPEX (includes capcons) | D63: =SUM(D57:D62) -> 0 | E63: 0 | F63: 0 | G63: 0 | H63: 0 | I63: 0
A64: ED_EXP215_00023 | C64: capcons | D64: 0 | E64: 0 | F64: 0 | G64: 0 | H64: 0 | I64: 0
C66: TABLE 2.1.6 - DUAL FUNCTION ASSETS OPEX BY CATEGORY
D68: Forecast ($0's real June 2015)
D70: =CRCP_y5 -> 2015
A71: ED_EXP216_00001 | C71: Vegetation management
A72: ED_EXP216_00002 | C72: Maintenance
A73: ED_EXP216_00003 | C73: Emergency response
A74: ED_EXP216_00004 | C74: Non-network
A75: ED_EXP216_00005 | C75: network overheads
A76: ED_EXP216_00006 | C76: corporate overheads
A77: ED_EXP216_00006
A78: ED_EXP216_00006
A79: ED_EXP216_00006
A80: ED_EXP216_00006
A81: ED_EXP216_00006
A82: ED_EXP216_00006
A83: ED_EXP216_00006
A84: ED_EXP216_00006
A85: ED_EXP216_00006
A86: ED_EXP216_00006
A87: ED_EXP216_00006
A88: ED_EXP216_00006
A89: ED_EXP216_00006
A90: ED_EXP216_00006
A91: ED_EXP216_00006
A92: ED_EXP216_00007 | C92: balancing item
C93: TOTAL OPEX | D93: =SUM(D71:D92) -> 0

Sheet 2.2 Repex
C1: =SheetHeader -> REGULATORY REPORTING STATEMENT
C2: =dms_TradingName -> Victorian DNSP Reset
C3: =FRCP_span -> 2016 to 2020
C4: 2.2 REPEX
C6: TABLE 2.2.1 - REPLACEMENT EXPENDITURE, VOLUMES AND ASSET FAILURES BY ASSET CATEGORY
E9: =CONCATENATE("EXPENDITURE ($0's, real ", dms_DollarReal,")") -> EXPENDITURE ($0's, real December 2015) | K9: ASSET REPLACEMENTS (0's) | Q9: ASSET FAILURES (0's)
C10: ASSET GROUP | D10: ASSET CATEGORY | E10: =CRCP_y5 -> 2015 | F10: =FRCP -> 2016 | G10: 2017 | H10: 2018 | I10: 2019 | J10: 2020 | K10: =CRCP_y5 -> 2015 | L10: =FRCP -> 2016 | M10: 2017 | N10: 2018 | O10: 2019 | P10: 2020 | Q10: =CRCP_y5 -> 2015 | R10: =FRCP -> 2016 | S10: 2017 | T10: 2018 | U10: 2019 | V10: 2020
A11: ED_REP221_00001 | C11: POLES BY: Highest operating voltage; Material type; Staking (if wood) | D11: Staking of a wooden pole | K11: 2769.711155 | L11: 246 | M11: 627 | N11: 971 | O11: 1217 | P11: 1119 | Q11: 0 | R11: 0 | S11: 0 | T11: 0 | U11: 0 | V11: 0
A12: ED_REP221_00002 | D12: ˂ = 1 kV; Wood | K12: 226.0490621 | L12: 71.61212121 | M12: 161.2003463 | N12: 233.4701299 | O12: 305.0822511 | P12: 304.4245887 | Q12: 0 | R12: 0 | S12: 0 | T12: 0 | U12: 0 | V12: 0
A13: ED_REP221_00003 | D13: > 1 kV & < = 11 kV; Wood | K13: 14.14562167 | L13: 7.49919571 | M13: 11.24879357 | N13: 11.24879357 | O13: 18.74798928 | P13: 26.24718499 | Q13: 1 | R13: 0 | S13: 0 | T13: 1 | U13: 0 | V13: 0
A14: ED_REP221_00004 | D14: ˃ 11 kV & < = 22 kV; Wood | K14: 75.70527153 | L14: 40.13458445 | M14: 60.20187668 | N14: 60.20187668 | O14: 100.3364611 | P14: 140.4710456 | Q14: 1 | R14: 1 | S14: 1 | T14: 1 | U14: 1 | V14: 1
A15: ED_REP221_00005 | D15: > 22 kV & < = 66 kV; Wood | K15: 15.40084948 | L15: 9.1 | M15: 13.65 | N15: 13.65 | O15: 22.75 | P15: 31.85 | Q15: 0 | R15: 0 | S15: 0 | T15: 0 | U15: 0 | V15: 0
A16: ED_REP221_00006 | D16: > 66 kV & < = 132 kV; Wood | K16: 0 | L16: 0 | M16: 0 | N16: 0 | O16: 0 | P16: 0 | Q16: 0 | R16: 0 | S16: 0 | T16: 0 | U16: 0 | V16: 0
A17: ED_REP221_00007 | D17: > 132 kV; Wood | K17: 0 | L17: 0 | M17: 0 | N17: 0 | O17: 0 | P17: 0 | Q17: 0 | R17: 0 | S17: 0 | T17: 0 | U17: 0 | V17: 0
A18: ED_REP221_00008 | D18: ˂ = 1 kV; Concrete | K18: 9.256973431 | L18: 6.787878788 | M18: 15.27965368 | N18: 22.12987013 | O18: 28.91774892 | P18: 28.85541126 | Q18: 0 | R18: 0 | S18: 0 | T18: 0 | U18: 0 | V18: 0
A19: ED_REP221_00009 | D19: > 1 kV & < = 11 kV; Concrete | K19: 3.405427439 | L19: 1.80536193 | M19: 2.708042895 | N19: 2.708042895 | O19: 4.513404826 | P19: 6.318766756 | Q19: 0 | R19: 0 | S19: 0 | T19: 0 | U19: 0 | V19: 0
A20: ED_REP221_00010 | D20: ˃ 11 kV & < = 22 kV; Concrete | K20: 4.453251266 | L20: 2.360857909 | M20: 3.541286863 | N20: 3.541286863 | O20: 5.902144772 | P20: 8.263002681 | Q20: 0 | R20: 0 | S20: 0 | T20: 0 | U20: 0 | V20: 0
A21: ED_REP221_00011 | D21: > 22 kV & < = 66 kV; Concrete | K21: 1.184641968 | L21: 0.7 | M21: 1.05 | N21: 1.05 | O21: 1.75 | P21: 2.45 | Q21: 0 | R21: 0 | S21: 0 | T21: 0 | U21: 0 | V21: 0
A22: ED_REP221_00012 | D22: > 66 kV & < = 132 kV; Concrete | K22: 0 | L22: 0 | M22: 0 | N22: 0 | O22: 0 | P22: 0 | Q22: 0 | R22: 0 | S22: 0 | T22: 0 | U22: 0 | V22: 0
A23: ED_REP221_00013 | D23: > 132 kV; Concrete | K23: 0 | L23: 0 | M23: 0 | N23: 0 | O23: 0 | P23: 0 | Q23: 0 | R23: 0 | S23: 0 | T23: 0 | U23: 0 | V23: 0
A24: ED_REP221_00014 | D24: ˂ = 1 kV; Steel | K24: 0 | L24: 0 | M24: 0 | N24: 0 | O24: 0 | P24: 0 | Q24: 0 | R24: 0 | S24: 0 | T24: 0 | U24: 0 | V24: 0
A25: ED_REP221_00015 | D25: > 1 kV & < = 11 kV; Steel | K25: 0 | L25: 0 | M25: 0 | N25: 0 | O25: 0 | P25: 0 | Q25: 0 | R25: 0 | S25: 0 | T25: 0 | U25: 0 | V25: 0
A26: ED_REP221_00016 | D26: ˃ 11 kV & < = 22 kV; Steel | K26: 0 | L26: 0 | M26: 0 | N26: 0 | O26: 0 | P26: 0 | Q26: 0 | R26: 0 | S26: 0 | T26: 0 | U26: 0 | V26: 0
A27: ED_REP221_00017 | D27: > 22 kV & < = 66 kV; Steel | K27: 0 | L27: 0 | M27: 0 | N27: 0 | O27: 0 | P27: 0 | Q27: 0 | R27: 0 | S27: 0 | T27: 0 | U27: 0 | V27: 0
A28: ED_REP221_00018 | D28: > 66 kV & < = 132 kV; Steel | K28: 0 | L28: 0 | M28: 0 | N28: 0 | O28: 0 | P28: 0 | Q28: 0 | R28: 0 | S28: 0 | T28: 0 | U28: 0 | V28: 0
A29: ED_REP221_00019 | D29: > 132 kV; Steel | K29: 0 | L29: 0 | M29: 0 | N29: 0 | O29: 0 | P29: 0 | Q29: 0 | R29: 0 | S29: 0 | T29: 0 | U29: 0 | V29: 0
A30: ED_REP221_00020 | D30: Other | K30: 0 | L30: 0 | M30: 0 | N30: 0 | O30: 0 | P30: 0 | Q30: 0 | R30: 0 | S30: 0 | T30: 0 | U30: 0 | V30: 0
A31: ED_REP221_00033 | C31: POLE TOP STRUCTURES BY: Highest operating voltage | D31: ˂ = 1 kV | K31: 447.8948553 | L31: 1000 | M31: 1000 | N31: 1000 | O31: 1000 | P31: 1000 | Q31: 8 | R31: 8 | S31: 7 | T31: 6 | U31: 6 | V31: 8
A32: ED_REP221_00034 | D32: > 1 kV & < = 11 kV | K32: 151.6711891 | L32: 51.65519164 | M32: 51.65519164 | N32: 51.65519164 | O32: 51.65519164 | P32: 51.65519164 | Q32: 6 | R32: 5 | S32: 5 | T32: 5 | U32: 6 | V32: 6
A33: ED_REP221_00035 | D33: ˃ 11 kV & < = 22 kV | K33: 1419.795643 | L33: 483.5448084 | M33: 483.5448084 | N33: 483.5448084 | O33: 483.5448084 | P33: 483.5448084 | Q33: 8 | R33: 8 | S33: 7 | T33: 7 | U33: 7 | V33: 7
A34: ED_REP221_00036 | D34: > 22 kV & < = 66 kV | K34: 23.90584596 | L34: 94 | M34: 94 | N34: 94 | O34: 94 | P34: 94 | Q34: 2 | R34: 2 | S34: 2 | T34: 2 | U34: 3 | V34: 3
A35: ED_REP221_00037 | D35: > 66 kV & < = 132 kV | K35: 0 | L35: 0 | M35: 0 | N35: 0 | O35: 0 | P35: 0 | Q35: 0 | R35: 0 | S35: 0 | T35: 0 | U35: 0 | V35: 0
A36: ED_REP221_00038 | D36: > 132 kV | K36: 0 | L36: 0 | M36: 0 | N36: 0 | O36: 0 | P36: 0 | Q36: 0 | R36: 0 | S36: 0 | T36: 0 | U36: 0 | V36: 0
A37: ED_REP221_00039 | D37: Other | K37: 0 | L37: 0 | M37: 0 | N37: 0 | O37: 0 | P37: 0 | Q37: 0 | R37: 0 | S37: 0 | T37: 0 | U37: 0 | V37: 0
A38: ED_REP221_00040 | C38: OVERHEAD CONDUCTORS BY: Highest operating voltage; Number of phases (at HV) | D38: ˂ = 1 kV | K38: 6.814634282 | L38: 12.96842 | M38: 12.96842 | N38: 12.96842 | O38: 12.96842 | P38: 12.96842 | Q38: 4 | R38: 4 | S38: 4 | T38: 4 | U38: 4 | V38: 4
A39: ED_REP221_00041 | D39: > 1 kV & < = 11 kV | K39: 0.001624743446 | L39: 0.0008705366464 | M39: 0.001123121585 | N39: 0.001133480753 | O39: 0.001144078895 | P39: 0.001166533712 | Q39: 0 | R39: 0 | S39: 0 | T39: 0 | U39: 0 | V39: 0
A40: ED_REP221_00042 | D40: ˃ 11 kV & < = 22 kV ; SWER | K40: 0 | L40: 0 | M40: 0 | N40: 0 | O40: 0 | P40: 0 | Q40: 0 | R40: 0 | S40: 0 | T40: 0 | U40: 0 | V40: 0
A41: ED_REP221_00043 | D41: ˃ 11 kV & < = 22 kV ; Single-Phase | K41: 1.474487172 | L41: 0.8498408047 | M41: 0.8498408047 | N41: 0.8498408047 | O41: 0.8498408047 | P41: 0.8498408047 | Q41: 0 | R41: 0 | S41: 0 | T41: 0 | U41: 0 | V41: 0
A42: ED_REP221_00044 | D42: ˃ 11 kV & < = 22 kV ; Multiple-Phase | K42: 7.198966782 | L42: 4.149222752 | M42: 4.149222752 | N42: 4.149222752 | O42: 4.149222752 | P42: 4.149222752 | Q42: 3 | R42: 3 | S42: 3 | T42: 3 | U42: 3 | V42: 2
A43: ED_REP221_00045 | D43: > 22 kV & < = 66 kV | K43: 0 | L43: 0 | M43: 0 | N43: 0 | O43: 0 | P43: 0 | Q43: 0 | R43: 0 | S43: 0 | T43: 0 | U43: 0 | V43: 0
A44: ED_REP221_00046 | D44: > 66 kV & < = 132 kV | K44: 0 | L44: 0 | M44: 0 | N44: 0 | O44: 0 | P44: 0 | Q44: 0 | R44: 0 | S44: 0 | T44: 0 | U44: 0 | V44: 0
A45: ED_REP221_00047 | D45: > 132 kV | K45: 0 | L45: 0 | M45: 0 | N45: 0 | O45: 0 | P45: 0 | Q45: 0 | R45: 0 | S45: 0 | T45: 0 | U45: 0 | V45: 0
A46: ED_REP221_00048 | D46: Other | K46: 33.99118788 | L46: 130.1141981 | M46: 460.70425 | N46: 132.7909984 | O46: 133.7433555 | P46: 136.5910015 | Q46: 0 | R46: 0 | S46: 0 | T46: 0 | U46: 0 | V46: 0
A47: ED_REP221_00049 | C47: UNDERGROUND CABLES BY: Highest operating voltage | D47: ˂ = 1 kV | K47: 0.03550082747 | L47: 0.3579941281 | M47: 0.3579941281 | N47: 0.3579941281 | O47: 0.3579941281 | P47: 0.3579941281 | Q47: 12 | R47: 12 | S47: 12 | T47: 12 | U47: 12 | V47: 10
A48: ED_REP221_00050 | D48: > 1 kV & < = 11 kV | K48: 0.006103557055 | L48: 0.2341887276 | M48: 0.2341887276 | N48: 0.2341887276 | O48: 0.2341887276 | P48: 0.2341887276 | Q48: 2 | R48: 2 | S48: 2 | T48: 3 | U48: 3 | V48: 2
A49: ED_REP221_00051 | D49: > 11 kV & < = 22 kV | K49: 0.01179509202 | L49: 0.4525684887 | M49: 0.4525684887 | N49: 0.4525684887 | O49: 0.4525684887 | P49: 0.4525684887 | Q49: 12 | R49: 12 | S49: 10 | T49: 10 | U49: 10 | V49: 10
A50: ED_REP221_00052 | D50: > 22 kV & < = 33 kV | K50: 0 | L50: 0 | M50: 0 | N50: 0 | O50: 0 | P50: 0 | Q50: 0 | R50: 0 | S50: 0 | T50: 0 | U50: 0 | V50: 0
A51: ED_REP221_00053 | D51: > 33 kV & < = 66 kV | K51: 0 | L51: 0 | M51: 0 | N51: 0 | O51: 0 | P51: 0 | Q51: 0 | R51: 0 | S51: 0 | T51: 0 | U51: 0 | V51: 0
A52: ED_REP221_00054 | D52: > 66 kV & < = 132 kV | K52: 0 | L52: 0 | M52: 0 | N52: 0 | O52: 0 | P52: 0 | Q52: 0 | R52: 0 | S52: 0 | T52: 0 | U52: 0 | V52: 0
A53: ED_REP221_00055 | D53: > 132 kV | K53: 0 | L53: 0 | M53: 0 | N53: 0 | O53: 0 | P53: 0 | Q53: 0 | R53: 0 | S53: 0 | T53: 0 | U53: 0 | V53: 0
A54: ED_REP221_00056 | D54: Other | K54: 23.60135988 | L54: 35.98018882 | M54: 40.11516852 | N54: 40.18442798 | O54: 48.4319678 | P54: 57.24043969 | Q54: 14 | R54: 14 | S54: 14 | T54: 15 | U54: 15 | V54: 12
A55: ED_REP221_00057 | C55: SERVICE LINES BY: Connection voltage; Customer type; Connection complexity | D55: ˂ = 11 kV ; Residential ; Simple Type | K55: 6701.392764 | L55: 3081.184048 | M55: 4270.63109 | N55: 4322.646529 | O55: 6648.969408 | P55: 8976.40382 | Q55: 355 | R55: 355 | S55: 355 | T55: 355 | U55: 355 | V55: 355
A56: ED_REP221_00058 | D56: ˂ = 11 kV ; Commercial & Industrial ; Simple Type | K56: 357.7064921 | L56: 163.8712168 | M56: 227.361441 | N56: 230.1379176 | O56: 354.3122237 | P56: 478.5458612 | Q56: 19 | R56: 19 | S56: 19 | T56: 19 | U56: 19 | V56: 19
A57: ED_REP221_00059 | D57: ˂ = 11 kV ; Residential ; Complex Type | K57: 0 | L57: 0 | M57: 0 | N57: 0 | O57: 0 | P57: 0 | Q57: 0 | R57: 0 | S57: 0 | T57: 0 | U57: 0 | V57: 0
A58: ED_REP221_00060 | D58: ˂ = 11 kV ; Commercial & Industrial ; Complex Type | K58: 0 | L58: 0 | M58: 0 | N58: 0 | O58: 0 | P58: 0 | Q58: 0 | R58: 0 | S58: 0 | T58: 0 | U58: 0 | V58: 0
A59: ED_REP221_00061 | D59: ˂ = 11 kV ; Subdivision ; Complex Type | K59: 0 | L59: 0 | M59: 0 | N59: 0 | O59: 0 | P59: 0 | Q59: 0 | R59: 0 | S59: 0 | T59: 0 | U59: 0 | V59: 0
A60: ED_REP221_00062 | D60: > 11 kV & < = 22 kV ; Commercial & Industrial | K60: 0 | L60: 0 | M60: 0 | N60: 0 | O60: 0 | P60: 0 | Q60: 0 | R60: 0 | S60: 0 | T60: 0 | U60: 0 | V60: 0
A61: ED_REP221_00063 | D61: > 11 kV & < = 22 kV ; Subdivision | K61: 0 | L61: 0 | M61: 0 | N61: 0 | O61: 0 | P61: 0 | Q61: 0 | R61: 0 | S61: 0 | T61: 0 | U61: 0 | V61: 0
A62: ED_REP221_00064 | D62: > 22 kV & < = 33 kV ; Commercial & Industrial | K62: 0 | L62: 0 | M62: 0 | N62: 0 | O62: 0 | P62: 0 | Q62: 0 | R62: 0 | S62: 0 | T62: 0 | U62: 0 | V62: 0
A63: ED_REP221_00065 | D63: > 22 kV & < = 33 kV ; Subdivision | K63: 0 | L63: 0 | M63: 0 | N63: 0 | O63: 0 | P63: 0 | Q63: 0 | R63: 0 | S63: 0 | T63: 0 | U63: 0 | V63: 0
A64: ED_REP221_00066 | D64: > 33 kV & < = 66 kV ; Commercial & Industrial | K64: 0 | L64: 0 | M64: 0 | N64: 0 | O64: 0 | P64: 0 | Q64: 0 | R64: 0 | S64: 0 | T64: 0 | U64: 0 | V64: 0
A65: ED_REP221_00067 | D65: > 33 kV & < = 66 kV ; Subdivision | K65: 0 | L65: 0 | M65: 0 | N65: 0 | O65: 0 | P65: 0 | Q65: 0 | R65: 0 | S65: 0 | T65: 0 | U65: 0 | V65: 0
A66: ED_REP221_00068 | D66: > 66 kV & < = 132 kV ; Commercial & Industrial | K66: 0 | L66: 0 | M66: 0 | N66: 0 | O66: 0 | P66: 0 | Q66: 0 | R66: 0 | S66: 0 | T66: 0 | U66: 0 | V66: 0
A67: ED_REP221_00069 | D67: > 66 kV & < = 132 kV ; Subdivision | K67: 0 | L67: 0 | M67: 0 | N67: 0 | O67: 0 | P67: 0 | Q67: 0 | R67: 0 | S67: 0 | T67: 0 | U67: 0 | V67: 0
A68: ED_REP221_00070 | D68: > 132 kV ; Commercial & Industrial | K68: 0 | L68: 0 | M68: 0 | N68: 0 | O68: 0 | P68: 0 | Q68: 0 | R68: 0 | S68: 0 | T68: 0 | U68: 0 | V68: 0
A69: ED_REP221_00071 | D69: > 132 kV ; Subdivision | K69: 0 | L69: 0 | M69: 0 | N69: 0 | O69: 0 | P69: 0 | Q69: 0 | R69: 0 | S69: 0 | T69: 0 | U69: 0 | V69: 0
A70: ED_REP221_00072 | D70: Other | K70: 11.46058869 | L70: 26.48926591 | M70: 26.48926591 | N70: 26.48926591 | O70: 26.48926591 | P70: 26.48926591 | Q70: 18 | R70: 18 | S70: 18 | T70: 17 | U70: 17 | V70: 15
A71: ED_REP221_00073 | C71: TRANSFORMERS BY: Mounting type; Highest operating voltage; Ampere rating; Number of phases (at LV) | D71: Pole Mounted ; < = 22kV ; < = 60 kVA ; Single Phase | K71: 3.629855579 | L71: 12.05882353 | M71: 12.05882353 | N71: 12.05882353 | O71: 12.05882353 | P71: 12.05882353 | Q71: 1 | R71: 0 | S71: 1 | T71: 1 | U71: 0 | V71: 0
A72: ED_REP221_00074 | D72: Pole Mounted ; < = 22kV ; > 60 kVA and < = 600 kVA ; Single Phase | K72: 0 | L72: 0 | M72: 0 | N72: 0 | O72: 0 | P72: 0 | Q72: 0 | R72: 0 | S72: 0 | T72: 0 | U72: 0 | V72: 0
A73: ED_REP221_00075 | D73: Pole Mounted ; < = 22kV ; > 600 kVA ; Single Phase | K73: 0 | L73: 0 | M73: 0 | N73: 0 | O73: 0 | P73: 0 | Q73: 0 | R73: 0 | S73: 0 | T73: 0 | U73: 0 | V73: 0
A74: ED_REP221_00076 | D74: Pole Mounted ; < = 22kV ; < = 60 kVA ; Multiple Phase | K74: 0.2655947834 | L74: 1.043120859 | M74: 1.043120859 | N74: 1.043120859 | O74: 1.043120859 | P74: 1.043120859 | Q74: 1 | R74: 1 | S74: 1 | T74: 1 | U74: 0 | V74: 0
A75: ED_REP221_00077 | D75: Pole Mounted ; < = 22kV ; > 60 kVA and < = 600 kVA ; Multiple Phase | K75: 0.2655991887 | L75: 0.8823529412 | M75: 0.8823529412 | N75: 0.8823529412 | O75: 0.8823529412 | P75: 0.8823529412 | Q75: 1 | R75: 1 | S75: 1 | T75: 1 | U75: 0 | V75: 0
A76: ED_REP221_00078 | D76: Pole Mounted ; < = 22kV ; > 600 kVA ; Multiple Phase | K76: 8.145041787 | L76: 27.05882353 | M76: 27.05882353 | N76: 27.05882353 | O76: 27.05882353 | P76: 27.05882353 | Q76: 6 | R76: 6 | S76: 6 | T76: 6 | U76: 6 | V76: 5
A77: ED_REP221_00079 | D77: Kiosk Mounted ; < = 22kV ; < = 60 kVA ; Single Phase | K77: 0 | L77: 0 | M77: 0 | N77: 0 | O77: 0 | P77: 0 | Q77: 0 | R77: 0 | S77: 0 | T77: 0 | U77: 0 | V77: 0
A78: ED_REP221_00080 | D78: Kiosk Mounted ; < = 22kV ; > 60 kVA and < = 600 kVA ; Single Phase | K78: 0 | L78: 0 | M78: 0 | N78: 0 | O78: 0 | P78: 0 | Q78: 0 | R78: 0 | S78: 0 | T78: 0 | U78: 0 | V78: 0
A79: ED_REP221_00081 | D79: Kiosk Mounted ; < = 22kV ; > 600 kVA ; Single Phase | K79: 0 | L79: 0 | M79: 0 | N79: 0 | O79: 0 | P79: 0 | Q79: 0 | R79: 0 | S79: 0 | T79: 0 | U79: 0 | V79: 0
A80: ED_REP221_00082 | D80: Kiosk Mounted ; < = 22kV ; < = 60 kVA ; Multiple Phase | K80: 0 | L80: 0 | M80: 0 | N80: 0 | O80: 0 | P80: 0 | Q80: 0 | R80: 0 | S80: 0 | T80: 0 | U80: 0 | V80: 0
A81: ED_REP221_00083 | D81: Kiosk Mounted ; < = 22kV ; > 60 kVA and < = 600 kVA ; Multiple Phase | K81: 18.13741611 | L81: 18.74308881 | M81: 18.74308881 | N81: 18.74308881 | O81: 18.74308881 | P81: 18.74308881 | Q81: 0 | R81: 0 | S81: 0 | T81: 0 | U81: 0 | V81: 0
A82: ED_REP221_00084 | D82: Kiosk Mounted ; < = 22kV ; > 600 kVA ; Multiple Phase | K82: 2.473284015 | L82: 2.555875747 | M82: 2.555875747 | N82: 2.555875747 | O82: 2.555875747 | P82: 2.555875747 | Q82: 3 | R82: 3 | S82: 3 | T82: 3 | U82: 2 | V82: 2
A83: ED_REP221_00085 | D83: Ground Outdoor / Indoor Chamber Mounted; ˂ 22 kV ; < = 60 kVA ; Single Phase | K83: 0 | L83: 0 | M83: 0 | N83: 0 | O83: 0 | P83: 0 | Q83: 0 | R83: 0 | S83: 0 | T83: 0 | U83: 0 | V83: 0
A84: ED_REP221_00086 | D84: Ground Outdoor / Indoor Chamber Mounted; ˂ 22 kV ; > 60 kVA and < = 600 kVA ; Single Phase | K84: 0 | L84: 0 | M84: 0 | N84: 0 | O84: 0 | P84: 0 | Q84: 0 | R84: 0 | S84: 0 | T84: 0 | U84: 0 | V84: 0
A85: ED_REP221_00087 | D85: Ground Outdoor / Indoor Chamber Mounted; ˂ 22 kV ; > 600 kVA ; Single Phase | K85: 0 | L85: 0 | M85: 0 | N85: 0 | O85: 0 | P85: 0 | Q85: 0 | R85: 0 | S85: 0 | T85: 0 | U85: 0 | V85: 0
A86: ED_REP221_00088 | D86: Ground Outdoor / Indoor Chamber Mounted; ˂ 22 kV ; < = 60 kVA ; Multiple Phase | K86: 0 | L86: 0 | M86: 0 | N86: 0 | O86: 0 | P86: 0 | Q86: 0 | R86: 0 | S86: 0 | T86: 0 | U86: 0 | V86: 0
A87: ED_REP221_00089 | D87: Ground Outdoor / Indoor Chamber Mounted; ˂ 22 kV ; > 60 kVA and < = 600 kVA ; Multiple Phase | K87: 0 | L87: 0 | M87: 0 | N87: 0 | O87: 0 | P87: 0 | Q87: 0 | R87: 0 | S87: 0 | T87: 0 | U87: 0 | V87: 0
A88: ED_REP221_00090 | D88: Ground Outdoor / Indoor Chamber Mounted; ˂ 22 kV ; > 600 kVA ; Multiple Phase | K88: 0 | L88: 0 | M88: 8.184615385 | N88: 0 | O88: 0 | P88: 0 | Q88: 0 | R88: 0 | S88: 0 | T88: 0 | U88: 0 | V88: 0
A89: ED_REP221_00091 | D89: Ground Outdoor / Indoor Chamber Mounted; > = 22 kV & < = 33 kV ; < = 15 MVA | K89: 0 | L89: 8.184615385 | M89: 8.184615385 | N89: 8.184615385 | O89: 8.184615385 | P89: 8.184615385 | Q89: 0 | R89: 0 | S89: 0 | T89: 0 | U89: 0 | V89: 0
A90: ED_REP221_00092 | D90: Ground Outdoor / Indoor Chamber Mounted; > = 22 kV & < = 33 kV ; > 15 MVA and < = 40 MVA | K90: 0 | L90: 1 | M90: 3 | N90: 2 | O90: 0 | P90: 0 | Q90: 0 | R90: 0 | S90: 0 | T90: 0 | U90: 0 | V90: 0
A91: ED_REP221_00093 | D91: Ground Outdoor / Indoor Chamber Mounted; > = 22 kV & < = 33 kV ; > 40 MVA | K91: 0 | L91: 0 | M91: 0 | N91: 0 | O91: 0 | P91: 0 | Q91: 0 | R91: 0 | S91: 0 | T91: 0 | U91: 0 | V91: 0
A92: ED_REP221_00094 | D92: Ground Outdoor / Indoor Chamber Mounted; > 33 kV & < = 66 kV ; < = 15 MVA | K92: 0 | L92: 0 | M92: 0 | N92: 0 | O92: 0 | P92: 0 | Q92: 0 | R92: 0 | S92: 0 | T92: 0 | U92: 0 | V92: 0
A93: ED_REP221_00095 | D93: Ground Outdoor / Indoor Chamber Mounted; > 33 kV & < = 66 kV ; > 15 MVA and < = 40 MVA | K93: 0 | L93: 0 | M93: 0 | N93: 1 | O93: 2 | P93: 1 | Q93: 0 | R93: 0 | S93: 0 | T93: 0 | U93: 0 | V93: 0
A94: ED_REP221_00096 | D94: Ground Outdoor / Indoor Chamber Mounted; > 33 kV & < = 66 kV ; > 40 MVA | K94: 0 | L94: 0 | M94: 0 | N94: 0 | O94: 0 | P94: 0 | Q94: 0 | R94: 0 | S94: 0 | T94: 0 | U94: 0 | V94: 0
A95: ED_REP221_00097 | D95: Ground Outdoor / Indoor Chamber Mounted; > 66 kV & < = 132 kV ; < = 100 MVA | K95: 0 | L95: 0 | M95: 0 | N95: 0 | O95: 0 | P95: 0 | Q95: 0 | R95: 0 | S95: 0 | T95: 0 | U95: 0 | V95: 0
A96: ED_REP221_00098 | D96: Ground Outdoor / Indoor Chamber Mounted; > 66 kV & < = 132 kV ; > 100 MVA | K96: 0 | L96: 0 | M96: 0 | N96: 0 | O96: 0 | P96: 0 | Q96: 0 | R96: 0 | S96: 0 | T96: 0 | U96: 0 | V96: 0
A97: ED_REP221_00099 | D97: Ground Outdoor / Indoor Chamber Mounted; > 132 kV ; < = 100 MVA | K97: 0 | L97: 0 | M97: 0 | N97: 0 | O97: 0 | P97: 0 | Q97: 0 | R97: 0 | S97: 0 | T97: 0 | U97: 0 | V97: 0
A98: ED_REP221_00100 | D98: Ground Outdoor / Indoor Chamber Mounted; > 132 kV ; > 100 MVA | K98: 0 | L98: 0 | M98: 0 | N98: 0 | O98: 0 | P98: 0 | Q98: 0 | R98: 0 | S98: 0 | T98: 0 | U98: 0 | V98: 0
A99: ED_REP221_00101 | D99: Other | K99: 0 | L99: 0 | M99: 0 | N99: 0 | O99: 0 | P99: 0 | Q99: 0 | R99: 0 | S99: 0 | T99: 0 | U99: 0 | V99: 0
A100: ED_REP221_00102 | C100: SWITCHGEAR BY: Highest operating voltage; Switch function | D100: ˂ = 11 kV ; Fuse | K100: 29.24307714 | L100: 37 | M100: 37 | N100: 37 | O100: 37 | P100: 37 | Q100: 1 | R100: 1 | S100: 1 | T100: 1 | U100: 1 | V100: 0
A101: ED_REP221_00103 | D101: ˂ = 11 kV ; Switch | K101: 53.8709215 | L101: 53.76 | M101: 53.76 | N101: 53.76 | O101: 53.76 | P101: 53.76 | Q101: 100 | R101: 100 | S101: 100 | T101: 92 | U101: 90 | V101: 90
A102: ED_REP221_00104 | D102: ˂ = 11 kV ; Circuit Breaker | K102: 0 | L102: 0 | M102: 0 | N102: 0 | O102: 0 | P102: 0 | Q102: 1 | R102: 0 | S102: 0 | T102: 0 | U102: 0 | V102: 0
A103: ED_REP221_00107 | D103: > 11 kV & < = 22 kV ; Switch | K103: 224.3029236 | L103: 45.49795496 | M103: 45.58837063 | N103: 45.73074898 | O103: 45.97951695 | P103: 46.15303516 | Q103: 17 | R103: 17 | S103: 17 | T103: 17 | U103: 17 | V103: 16
A104: ED_REP221_00108 | D104: > 11 kV & < = 22 kV ; Circuit Breaker | K104: 2 | L104: 0 | M104: 0 | N104: 0 | O104: 12 | P104: 18 | Q104: 0 | R104: 0 | S104: 0 | T104: 0 | U104: 0 | V104: 0
A105: ED_REP221_00111 | D105: > 22 kV & < = 33 kV ; Switch | K105: 0 | L105: 0 | M105: 0 | N105: 0 | O105: 0 | P105: 0 | Q105: 0 | R105: 2 | S105: 0 | T105: 0 | U105: 0 | V105: 0
A106: ED_REP221_00112 | D106: > 22 kV & < = 33 kV ; Circuit Breaker | K106: 0 | L106: 0 | M106: 0 | N106: 0 | O106: 0 | P106: 0 | Q106: 0 | R106: 0 | S106: 0 | T106: 0 | U106: 0 | V106: 0
A107: ED_REP221_00115 | D107: > 33 kV & < = 66 kV ; Switch | K107: 0 | L107: 0 | M107: 0 | N107: 0 | O107: 0 | P107: 0 | Q107: 0 | R107: 0 | S107: 0 | T107: 0 | U107: 0 | V107: 0
A108: ED_REP221_00116 | D108: > 33 kV & < = 66 kV ; Circuit Breaker | K108: 4 | L108: 0 | M108: 0 | N108: 0 | O108: 1 | P108: 4 | Q108: 0 | R108: 0 | S108: 0 | T108: 0 | U108: 0 | V108: 0
A109: ED_REP221_00118 | D109: > 66 kV & < = 132 kV ; Switch | K109: 0 | L109: 0 | M109: 0 | N109: 0 | O109: 0 | P109: 0 | Q109: 0 | R109: 0 | S109: 0 | T109: 0 | U109: 0 | V109: 0
A110: ED_REP221_00119 | D110: > 66 kV & < = 132 kV ; Circuit Breaker | K110: 0 | L110: 0 | M110: 0 | N110: 0 | O110: 0 | P110: 0 | Q110: 0 | R110: 0 | S110: 0 | T110: 0 | U110: 0 | V110: 0
A111: ED_REP221_00120 | D111: > 132 kV ; Switch | K111: 0 | L111: 0 | M111: 0 | N111: 0 | O111: 0 | P111: 0 | Q111: 0 | R111: 0 | S111: 0 | T111: 0 | U111: 0 | V111: 0
A112: ED_REP221_00121 | D112: > 132 kV ; Circuit Breaker | K112: 0 | L112: 0 | M112: 0 | N112: 0 | O112: 0 | P112: 0 | Q112: 0 | R112: 0 | S112: 0 | T112: 0 | U112: 0 | V112: 0
A113: ED_REP221_00122 | D113: Other | K113: 0 | L113: 0 | M113: 0 | N113: 0 | O113: 0 | P113: 0 | Q113: 0 | R113: 0 | S113: 0 | T113: 0 | U113: 0 | V113: 0
A114: ED_REP221_00123 | C114: PUBLIC LIGHTING BY: Asset type ; Lighting obligation | D114: Luminaires | K114: 830 | L114: 841 | M114: 848 | N114: 856 | O114: 864 | P114: 872 | Q114: 830 | R114: 841 | S114: 848 | T114: 856 | U114: 864 | V114: 872
A115: ED_REP221_00125 | D115: Brackets | K115: 6 | L115: 6 | M115: 6 | N115: 6 | O115: 6 | P115: 6 | Q115: 6 | R115: 6 | S115: 6 | T115: 6 | U115: 6 | V115: 6
A116: ED_REP221_00127 | D116: Lamps | K116: 0 | L116: 0 | M116: 0 | N116: 0 | O116: 0 | P116: 0 | Q116: 0 | R116: 0 | S116: 0 | T116: 0 | U116: 0 | V116: 0
A117: ED_REP221_00129 | D117: Poles / Columns | K117: 0 | L117: 0 | M117: 0 | N117: 0 | O117: 0 | P117: 0 | Q117: 0 | R117: 0 | S117: 0 | T117: 0 | U117: 0 | V117: 0
A118: ED_REP221_00131 | D118: Other | K118: 0 | L118: 0 | M118: 0 | N118: 0 | O118: 0 | P118: 0 | Q118: 0 | R118: 0 | S118: 0 | T118: 0 | U118: 0 | V118: 0
A119: ED_REP221_00132 | C119: SCADA, NETWORK CONTROL AND PROTECTION SYSTEMS BY: Function | D119: Field Devices | K119: 70 | L119: 61 | M119: 48 | N119: 0 | O119: 57 | P119: 61 | Q119: 22 | R119: 22 | S119: 22 | T119: 21 | U119: 21 | V119: 21
A120: ED_REP221_00133 | D120: Local Network Wiring Assets | K120: 0 | L120: 0 | M120: 0 | N120: 0 | O120: 0 | P120: 0 | Q120: 0 | R120: 0 | S120: 0 | T120: 0 | U120: 0 | V120: 0
A121: ED_REP221_00134 | D121: Communications Network Assets | K121: 0 | L121: 0 | M121: 0 | N121: 0 | O121: 0 | P121: 0 | Q121: 2 | R121: 1 | S121: 1 | T121: 1 | U121: 1 | V121: 1
A122: ED_REP221_00135 | D122: Master Station Assets | K122: 0 | L122: 4 | M122: 5 | N122: 3 | O122: 5 | P122: 5 | Q122: 0 | R122: 0 | S122: 0 | T122: 0 | U122: 0 | V122: 0
A123: ED_REP221_00136 | D123: Communications Site Infrastructure | K123: 0 | L123: 0 | M123: 0 | N123: 0 | O123: 0 | P123: 0 | Q123: 0 | R123: 0 | S123: 0 | T123: 0 | U123: 0 | V123: 0
A124: ED_REP221_00137 | D124: Communications Linear Assets | K124: 0 | L124: 0 | M124: 0 | N124: 0 | O124: 0 | P124: 0 | Q124: 0 | R124: 0 | S124: 0 | T124: 0 | U124: 0 | V124: 0
A125: ED_REP221_00138 | D125: AFLC | K125: 0 | L125: 0 | M125: 0 | N125: 0 | O125: 0 | P125: 0 | Q125: 0 | R125: 0 | S125: 0 | T125: 0 | U125: 0 | V125: 0
A126: ED_REP221_00139 | D126: Other | K126: 182 | L126: 155 | M126: 378 | N126: 235 | O126: 202 | P126: 208 | Q126: 0 | R126: 0 | S126: 0 | T126: 0 | U126: 0 | V126: 0
A127: ED_REP221_00140 | C127: OTHER BY: enter DNSP defined asset group here | D127: Capacitor Banks | K127: 0 | L127: 0 | M127: 0 | N127: 0 | O127: 0 | P127: 1 | Q127: 0 | R127: 0 | S127: 1 | T127: 0 | U127: 0 | V127: 0
A128: ED_REP221_00141 | D128: Earths | K128: 0 | L128: 1 | M128: 0 | N128: 0 | O128: 1 | P128: 1 | Q128: 0 | R128: 0 | S128: 0 | T128: 0 | U128: 0 | V128: 0
A129: ED_REP221_00142 | D129: ZSS Property | K129: 1 | L129: 1 | M129: 0 | N129: 0 | O129: 0 | P129: 0 | Q129: 0 | R129: 0 | S129: 0 | T129: 0 | U129: 0 | V129: 0
A130: ED_REP221_00143 | D130: Surge Diverters | K130: 94.27575077 | L130: 51.74543749 | M130: 352.2275625 | N130: 53.05142951 | O130: 53.85262673 | P130: 54.78199697 | Q130: 0 | R130: 1 | S130: 0 | T130: 0 | U130: 0 | V130: 0
A131: ED_REP221_00144 | D131: CT / VT | K131: 0 | L131: 0 | M131: 0 | N131: 0 | O131: 0 | P131: 0 | Q131: 0 | R131: 0 | S131: 0 | T131: 0 | U131: 0 | V131: 0
A132: ED_REP221_00145 | D132: NER | K132: 0 | L132: 0 | M132: 0 | N132: 0 | O132: 0 | P132: 0 | Q132: 0 | R132: 0 | S132: 0 | T132: 0 | U132: 0 | V132: 0
A133: ED_REP221_00146 | D133: DC Batteries and Banks | K133: 1 | L133: 5.383925224 | M133: 16.67503483 | N133: 6.674715357 | O133: 9.189827427 | P133: 0 | Q133: 1 | R133: 1 | S133: 1 | T133: 2 | U133: 2 | V133: 2
A134: ED_REP221_00147 | D134: PQ Meters | K134: 0 | L134: 5 | M134: 0 | N134: 6 | O134: 0 | P134: 0 | Q134: 1 | R134: 0 | S134: 0 | T134: 1 | U134: 0 | V134: 0
A135: ED_REP221_00148 | D135: Special Capital Works | K135: 0 | L135: 0 | M135: 0 | N135: 0 | O135: 0 | P135: 0 | Q135: 0 | R135: 0 | S135: 0 | T135: 0 | U135: 0 | V135: 0
A136: ED_REP221_00149 | D136: Animal Proofing | K136: 26.85321641 | L136: 101.2796577 | M136: 114.8690666 | N136: 116.734167 | O136: 118.9711872 | P136: 121.1354565 | Q136: 0 | R136: 0 | S136: 0 | T136: 0 | U136: 0 | V136: 0
A137: ED_REP221_00150 | D137: HV Insulators > 11kV & <= 22kV | K137: 17 | L137: 80 | M137: 80 | N137: 80 | O137: 80 | P137: 80 | Q137: 0 | R137: 0 | S137: 0 | T137: 0 | U137: 0 | V137: 0
A138: ED_REP221_00151 | D138: ST Insulators > 22kV & <= 66kV | K138: 0 | L138: 120.1602863 | M138: 120.1602863 | N138: 120.1602863 | O138: 120.1602863 | P138: 120.1602863 | Q138: 0 | R138: 0 | S138: 0 | T138: 0 | U138: 0 | V138: 0
A139: ED_REP221_00152 | D139: LV Spreaders | K139: 30.44065389 | L139: 123 | M139: 123 | N139: 123 | O139: 123 | P139: 123 | Q139: 0 | R139: 0 | S139: 0 | T139: 0 | U139: 0 | V139: 0
A140: ED_REP221_00153 | D140: Overhead Service Disconnect Device | K140: 148.5282012 | L140: 21 | M140: 21 | N140: 21 | O140: 21 | P140: 21 | Q140: 0 | R140: 0 | S140: 0 | T140: 0 | U140: 0 | V140: 0
A141: ED_REP221_00154
A142: ED_REP221_00155
A143: ED_REP221_00156
A144: ED_REP221_00157
A145: ED_REP221_00158
A146: ED_REP221_00159
A147: ED_REP221_00160
A148: ED_REP221_00161
A149: ED_REP221_00162
A150: ED_REP221_00163
A151: ED_REP221_00164
A152: ED_REP221_00165
A153: ED_REP221_00166
A154: ED_REP221_00167
A155: ED_REP221_00168
A156: ED_REP221_00169
A157: ED_REP221_00170
A158: ED_REP221_00171
A159: ED_REP221_00172
A160: ED_REP221_00173
A161: ED_REP221_00174
A162: ED_REP221_00175
A163: ED_REP221_00176
A164: ED_REP221_00177
A165: ED_REP221_00178
A166: ED_REP221_00179
A167: ED_REP221_00180

Sheet 2.3 Augex
C1: =SheetHeader -> REGULATORY REPORTING STATEMENT | G1: Worksheet navigation
C2: =dms_TradingName -> Victorian DNSP Reset
C3: =FRCP_span -> 2016 to 2020
C4: 2.3 AUGEX PROJECT DATA
C7: TABLE 2.3.1 - AUGEX ASSET DATA - SUBTRANSMISSION SUBSTATIONS, SWITCHING STATIONS AND ZONE SUBSTATIONS
C8: NOTE: DNSP must provide expenditure information on an 'as incurred' basis.
A9: AUG231 | C9: AUG231_1 | D9: AUG231_2 | E9: AUG231_3 | F9: AUG231_4 | G9: AUG231_5 | H9: AUG231_6 | I9: ED_AUG231_00001 | J9: ED_AUG231_00002 | K9: ED_AUG231_00003 | L9: ED_AUG231_00004 | M9: ED_AUG231_00005 | N9: ED_AUG231_00006 | O9: ED_AUG231_00007 | P9: ED_AUG231_00008 | Q9: ED_AUG231_00009 | R9: ED_AUG231_00010 | S9: ED_AUG231_00011 | T9: ED_AUG231_00012 | U9: ED_AUG231_00013 | V9: ED_AUG231_00014 | W9: ED_AUG231_00015 | X9: ED_AUG231_00016 | Y9: ED_AUG231_00017 | Z9: ED_AUG231_00018 | AA9: ED_AUG231_00019 | AB9: ED_AUG231_00020 | AC9: ED_AUG231_00021 | AD9: ED_AUG231_00022 | AE9: ED_AUG231_00023
C10: PROJECT DESCRIPTION AND CHANGES | M10: PLANT AND EQUIPMENT EXPENDITURE AND VOLUME | W10: OTHER EXPENDITURE | Y10: TOTAL DIRECT EXPENDITURE ($0's) | Z10: YEARS INCURRED | AA10: ALL RELATED PARTY CONTRACTS | AC10: ALL NON RELATED PARTYCONTRACTS | AD10: LAND AND EASEMENTS
C11: SUBSTATION ID | D11: SUBSTATION TYPE | E11: PROJECT ID | F11: PROJECT TYPE | G11: PROJECT TRIGGER | H11: VOLTAGE (KV) | I11: SUBSTATION RATING NORMAL CYCLIC (MVA) | K11: SUBSTATION RATING N-1 EMERGENCY (MVA) | M11: TRANSFORMERS | P11: SWITCHGEAR | R11: CAPACITORS | T11: OTHER PLANT ITEM | U11: INSTALLATION (LABOUR) | W11: CIVIL WORKS | X11: OTHER DIRECT | AA11: RELATED PARTY MARGINS | AB11: TOTAL | AD11: LAND PURCHASE | AE11: EASEMENTS
I12: PRE | J12: POST | K12: PRE | L12: POST | M12: UNITS ADDED | N12: MVA ADDED | O12: =CONCATENATE("EXPENDITURE ($0's, real ", dms_DollarReal,")") -> EXPENDITURE ($0's, real December 2015) | P12: UNITS ADDED | Q12: =CONCATENATE("EXPENDITURE ($0's, real ", dms_DollarReal,")") -> EXPENDITURE ($0's, real December 2015) | R12: MVAR ADDED | S12: =CONCATENATE("EXPENDITURE ($0's, real ", dms_DollarReal,")") -> EXPENDITURE ($0's, real December 2015) | T12: =CONCATENATE("EXPENDITURE ($0's, real ", dms_DollarReal,")") -> EXPENDITURE ($0's, real December 2015) | U12: VOLUME | V12: =CONCATENATE("EXPENDITURE ($0's, real ", dms_DollarReal,")") -> EXPENDITURE ($0's, real December 2015) | W12: =CONCATENATE("EXPENDITURE ($0's, real ", dms_DollarReal,")") -> EXPENDITURE ($0's, real December 2015) | AA12: =CONCATENATE("EXPENDITURE ($0's, real ", dms_DollarReal,")") -> EXPENDITURE ($0's, real December 2015) | AD12: =CONCATENATE("EXPENDITURE ($0's, real ", dms_DollarReal,")") -> EXPENDITURE ($0's, real December 2015)
A13: AUG231_1 | C13: EPN | D13: Zone Substation | E13: BAA-DZA-000023 EP Conversion Stage 3 ZSS | F13: Substation upgrade - voltage | G13: Other | H13: 66/22 | I13: 22.5 | J13: 55.5 | K13: 28.5 | L13: 28.5 | M13: 1 | N13: 33 | P13: 16 | R13: 8 | T13: 1292431.437 | U13: 20762 | W13: 2068890.955 | X13: 1133601.042 | Y13: =SUM(O13,Q13,S13,T13,V13,W13,X13) -> 4494923.434 | Z13: 12-16 | AB13: 0 | AC13: 2262404.739 | AD13: 0 | AE13: 0
A14: AUG231_2 | C14: BMS | D14: Zone Substation | E14: BAA-DZA-000158 Establish zone s/s Broadmeadows South (BMS) | F14: New substation establishment | G14: Demand Growth | H14: 66/22 | I14: 0 | J14: 66 | K14: 0 | L14: 47.63139721 | M14: 2 | N14: 66 | P14: 24 | R14: 6 | T14: 1623201.835 | U14: 4458.82781 | W14: 1990022.265 | X14: 6487324.068 | Y14: 10100548.17 | Z14: 12-15 | AB14: 0 | AC14: 9687070.041 | AD14: 0 | AE14: 0
A15: AUG231_3 | C15: CBN | D15: Zone Substation | E15: BAA-DZA-000013 Establish zone s/s Craigieburn (CBN) with two transformers | F15: New substation establishment | G15: Demand Growth | H15: 66/22 | I15: 0 | J15: 66 | K15: 0 | L15: 47.63139721 | M15: 2 | N15: 66 | P15: 24 | R15: 8 | T15: 1233280.393 | U15: 24696.71753 | W15: 2412242.075 | X15: 491526.5566 | Y15: 4137049.024 | Z15: 12-19 | AB15: 0 | AC15: 2691768.631 | AD15: 1359050 | AE15: 0
A16: AUG231_4 | C16: TMA | D16: Zone Substation | E16: BAA-DZA-000126 Establish zone s/s Tullamarine (TMA) | F16: New substation establishment | G16: Demand Growth | H16: 66/22 | I16: 0 | J16: 66 | K16: 0 | L16: 47.63139721 | M16: 2 | N16: 66 | P16: 24 | R16: 6 | T16: 1576714.003 | U16: 4856.603237 | W16: 1648541.782 | X16: 6230702.901 | Y16: 9455958.687 | Z16: 12-15 | AB16: 0 | AC16: 9279229.4 | AD16: 0 | AE16: 0
A17: AUG231_5 | C17: FT | D17: Zone Substation | E17: BAA-DZA-000102 FT Zone Substation Capacity | F17: Substation upgrade - capacity | G17: Demand Growth | H17: 66/11 | I17: 47.8 | J17: 60 | K17: 23.9 | L17: 34.8 | M17: 0 | N17: 0 | P17: 23 | R17: 16 | T17: 1211745.285 | U17: 29445.6386 | W17: 1243721.157 | X17: 560941.7985 | Y17: 3016408.24 | Z17: 12-17 | AB17: 0 | AC17: 1804662.955 | AD17: 0 | AE17: 0
A18: AUG231_6 | C18: PTN | D18: Zone Substation | E18: BAA-DZA-000010 P Conversion Stage 6 (PTN) | F18: Substation upgrade - voltage | G18: Other | H18: 66/22 | I18: 40 | J18: 66 | K18: 20.3 | L18: 47.63139721 | M18: 2 | N18: 26 | P18: 13 | R18: 8 | T18: 2506372.46 | U18: 26537.986 | W18: 2074637.458 | X18: 2144400.328 | Y18: 6725410.245 | Z18: 17-18 | AB18: 0 | AC18: 4219037.785 | AD18: 0 | AE18: 0
A19: AUG231_7 | C19: SBY | D19: Zone Substation | E19: BAA-DZA-000118 Redevelopment Zone Substation - SBY | F19: Substation upgrade - capacity | G19: Demand Growth | H19: 66/22 | I19: 32 | J19: 65 | K19: 32.3 | L19: 39.4 | M19: 1 | N19: 33 | P19: 32 | R19: 0 | T19: 1253340.962 | U19: 33166.44544 | W19: 1784030.13 | X19: 1550728.247 | Y19: 4588099.339 | Z19: 12-18 | AB19: 0 | AC19: 2810146.959 | AD19: 3363080.889 | AE19: 0
A20: AUG231_8 | Y20: 0
A21: AUG231_9 | Y21: 0
A22: AUG231_10 | Y22: 0
A23: AUG231_11 | Y23: 0
A24: AUG231_12 | Y24: 0
A25: AUG231_13 | Y25: 0
A26: AUG231_14 | Y26: 0
A27: AUG231_15 | Y27: 0
A28: AUG231_16 | Y28: 0
A29: AUG231_17 | Y29: 0
A30: AUG231_18 | Y30: 0
A31: AUG231_19 | Y31: 0
A32: AUG231_20 | Y32: 0
A33: AUG231_21 | Y33: 0
A34: AUG231_22 | Y34: 0
A35: AUG231_23 | Y35: 0
A36: AUG231_24 | Y36: 0
A37: AUG231_25 | Y37: 0
A38: AUG231_26 | Y38: 0
A39: AUG231_27 | Y39: 0
A40: AUG231_28 | Y40: 0
A41: AUG231_29 | Y41: 0
A42: AUG231_30 | Y42: 0
A43: AUG231_31 | Y43: 0
A44: AUG231_32 | Y44: 0
A45: AUG231_33 | Y45: =SUM(O45,Q45,S45,T45,V45,W45,X45) -> 0
A46: AUG231_34 | Y46: 0
A47: AUG231_35 | Y47: 0
A48: AUG231_36 | Y48: 0
A49: AUG231_37 | Y49: 0
A50: AUG231_38 | Y50: 0
A51: AUG231_39 | Y51: 0
A52: AUG231_40 | Y52: 0
A53: AUG231_41 | Y53: 0
A54: AUG231_42 | Y54: 0
A55: AUG231_43 | Y55: 0
A56: AUG231_44 | Y56: 0
A57: AUG231_45 | Y57: 0
A58: AUG231_46 | Y58: 0
A59: AUG231_47 | Y59: 0
A60: AUG231_48 | Y60: 0
A61: AUG231_49 | Y61: 0
A62: AUG231_50 | Y62: 0
A63: AUG231_51 | Y63: 0
A64: AUG231_52 | Y64: 0
A65: AUG231_53 | E65: Non material projects - [actual]
A66: AUG231_54 | E66: Non material projects - [forecast] | Y66: 15690411.32 | Z66: 12-20 | AD66: 1770042.573 | AE66: 0
A68: AUG232 | C68: AUG232_1 | D68: AUG232_2 | E68: AUG232_3 | F68: AUG232_4 | G68: AUG232_5 | H68: AUG232_6 | I68: ED_AUG232_00001 | J68: ED_AUG232_00002 | K68: ED_AUG232_00003 | L68: ED_AUG232_00004 | M68: ED_AUG232_00005 | N68: ED_AUG232_00006 | O68: ED_AUG232_00007 | P68: ED_AUG232_00008 | Q68: ED_AUG232_00009 | R68: ED_AUG232_00010 | S68: ED_AUG232_00011 | T68: ED_AUG232_00012 | U68: ED_AUG232_00013 | V68: ED_AUG232_00014 | W68: ED_AUG232_00015 | X68: ED_AUG232_00016 | Y68: ED_AUG232_00017 | Z68: ED_AUG232_00018 | AA68: ED_AUG232_00019 | AB68: ED_AUG232_00020 | AC68: ED_AUG232_00021
C69: TABLE 2.3.2 - AUGEX ASSET DATA - SUBTRANSMISSION LINES
C70: NOTE: DNSP must provide expenditure information on an 'as incurred' basis.
C71: PROJECT DESCRIPTION AND CHANGES | I71: PLANT AND EQUIPMENT EXPENDITURE AND VOLUME | U71: OTHER EXPENDITURE | W71: TOTAL DIRECT EXPENDITURE ($0's) | X71: YEARS INCURRED | Y71: ALL RELATED PARTY CONTRACTS | AA71: ALL NON RELATED PARTY CONTRACTS | AB71: LAND AND EASEMENTS
C72: LINE ID | D72: PROJECT ID | E72: PROJECT TYPE | F72: PROJECT TRIGGER | G72: VOLTAGE (KV) | H72: ROUTE LINE LENGTH ADDED | I72: POLES/TOWERS (INCLUDING STRUCTURES, AND CIVIL WORKS) | L72: OVERHEAD LINES | O72: UNDERGROUND CABLES | R72: OTHER PLANT ITEM | S72: INSTALLATION (LABOUR) | U72: CIVIL WORKS | V72: OTHER DIRECT | Y72: RELATED PARTY MARGINS | Z72: TOTAL | AB72: LAND PURCHASE | AC72: EASEMENTS
H73: KM ADDED | I73: POLES/TOWERS ADDED | J73: POLES/TOWERS UPGRADED | K73: =CONCATENATE("EXPENDITURE ($0's, real ", dms_DollarReal,")") -> EXPENDITURE ($0's, real December 2015) | L73: CIRCUIT KM ADDED | M73: CIRCUIT KM UPGRADED | N73: =CONCATENATE("EXPENDITURE ($0's, real ", dms_DollarReal,")") -> EXPENDITURE ($0's, real December 2015) | O73: CIRCUIT KM ADDED | P73: CIRCUIT KM UPGRADED | Q73: =CONCATENATE("EXPENDITURE ($0's, real ", dms_DollarReal,")") -> EXPENDITURE ($0's, real December 2015) | R73: =CONCATENATE("EXPENDITURE ($0's, real ", dms_DollarReal,")") -> EXPENDITURE ($0's, real December 2015) | S73: VOLUME | T73: =CONCATENATE("EXPENDITURE ($0's, real ", dms_DollarReal,")") -> EXPENDITURE ($0's, real December 2015) | U73: EXPENDITURE ($0's, real December 2015) | Y73: EXPENDITURE ($0's, real December 2015) | AB73: EXPENDITURE ($0's, real December 2015)
A74: AUG232_1 | C74: KTS-MLN-SBY # 2 | D74: New KTS-SBY #2 66 Line & Asset transfer part-of KTS-MLN-SBY #2 66kV Line from Powercor | E74: Other - specify | F74: Other | G74: 66 | H74: 33.5 | I74: 200 | J74: 0 | L74: 15.7 | M74: 0 | O74: 0 | P74: 0 | R74: 0 | S74: 17731.69387 | U74: 0 | V74: 2668872.299 | W74: =SUM(K74,N74,Q74,R74,T74,U74,V74) -> 2668872.299 | X74: 16-17 | Z74: 0 | AA74: 352968.2812 | AB74: 0 | AC74: 0
A75: AUG232_2 | C75: KTS-MAT-AW-PV-KTS 66kV loop | D75: Rearrange KTS-MAT-AW-PV-KTS 66kV loop (split loop) | E75: Line rebuild over existing route - dual circuit | F75: Demand growth | G75: 66 | H75: 2.6 | I75: 0 | J75: 226 | L75: 10.2 | M75: 0 | O75: 2.6 | P75: 0 | R75: 568614.5903 | S75: 23109.91426 | U75: 1616500.001 | V75: 366559.8149 | W75: 2551674.406 | X75: 17-18 | Z75: 0 | AA75: 1983059.815 | AB75: 0 | AC75: 0
A76: AUG232_3 | W76: 0
A77: AUG232_4 | W77: 0
A78: AUG232_5 | W78: 0
A79: AUG232_6 | W79: 0
A80: AUG232_7 | W80: 0
A81: AUG232_8 | W81: 0
A82: AUG232_9 | W82: 0
A83: AUG232_10 | W83: 0
A84: AUG232_11 | W84: 0
A85: AUG232_12 | W85: 0
A86: AUG232_13 | W86: 0
A87: AUG232_14 | W87: 0
A88: AUG232_15 | W88: 0
A89: AUG232_16 | W89: 0
A90: AUG232_17 | W90: 0
A91: AUG232_18 | W91: 0
A92: AUG232_19 | W92: 0
A93: AUG232_20 | W93: 0
A94: AUG232_21 | W94: 0
A95: AUG232_22 | W95: 0
A96: AUG232_23 | W96: 0
A97: AUG232_24 | W97: 0
A98: AUG232_25 | W98: 0
A99: AUG232_26 | W99: 0
A100: AUG232_27 | W100: 0
A101: AUG232_28 | W101: 0
A102: AUG232_29 | W102: 0
A103: AUG232_30 | W103: 0
A104: AUG232_31 | W104: 0
A105: AUG232_32 | W105: 0
A106: AUG232_33 | W106: =SUM(K106,N106,Q106,R106,T106,U106,V106) -> 0
A107: AUG232_34 | W107: 0
A108: AUG232_35 | W108: 0
A109: AUG232_36 | W109: 0
A110: AUG232_37 | W110: 0
A111: AUG232_38 | W111: 0
A112: AUG232_39 | W112: 0
A113: AUG232_40 | W113: 0
A114: AUG232_41 | W114: 0
A115: AUG232_42 | W115: 0
A116: AUG232_43 | W116: 0
A117: AUG232_44 | W117: 0
A118: AUG232_45 | W118: 0
A119: AUG232_46 | W119: 0
A120: AUG232_47 | W120: 0
A121: AUG232_48 | W121: 0
A122: AUG232_49 | W122: 0
A123: AUG232_50 | W123: 0
A124: AUG232_51 | W124: 0
A125: AUG232_52 | W125: 0
A126: AUG232_53 | W126: 0
A127: AUG232_54 | W127: 0
A128: AUG232_55 | D128: Non material projects - [actual]
A129: AUG232_56 | D129: Non material projects - [forecast] | W129: 5382283.066 | X129: 12-19
C132: TABLE 2.3.3 - AUGEX DATA - HV/LV FEEDERS AND DISTRIBUTION SUBSTATIONS
C133: NOTE: DNSP must provide expenditure information on an 'as incurred' basis.
C134: Table 2.3.3.1 - Descriptor metrics
C137: PROJECT TYPE | D137: Unit of Measure | E137: UNITS ADDED (0's) | L137: UNITS UPGRADED (0's)
A138: AUG2331 | E138: =CRCP_y5 -> 2015 | F138: =FRCP -> 2016 | G138: 2017 | H138: 2018 | I138: 2019 | J138: 2020 | L138: =CRCP_y5 -> 2015 | M138: =FRCP -> 2016 | N138: 2017 | O138: 2018 | P138: 2019 | Q138: 2020
C139: HV Feeder Augmentations - Overhead Lines | D139: Circuit Line Length in KM | E139: 3.117 | F139: 1.46 | G139: 0 | H139: 0.2 | I139: 2.18 | J139: 0 | K139: ED_AUG2333_00001 | L139: 3.697 | M139: 3.018 | N139: 33.13 | O139: 8.13 | P139: 0.135 | Q139: 1.6
A140: ED_AUG2331_00002 | C140: HV Feeder Augmentations - Underground Cables | D140: Circuit Line Length in KM | E140: 4.045 | F140: 4.19 | G140: 8.69 | H140: 0.35 | I140: 3.12 | J140: 1.771 | K140: ED_AUG2333_00002 | L140: 0.05 | M140: 0 | N140: 0 | O140: 0.65 | P140: 0 | Q140: 0
A141: ED_AUG2331_00003 | C141: LV Feeder Augmentations - Overhead Lines | D141: Circuit Line Length in KM | E141: 0.1565297173 | F141: 0.1522299296 | G141: 0.1517278968 | H141: 0.1529566859 | I141: 0.1543286913 | J141: 0.1573450342 | K141: ED_AUG2333_00003 | L141: 0.2197933221 | M141: 0.2137557169 | N141: 0.2130507808 | O141: 0.2147762016 | P141: 0.2167027217 | Q141: 0.2209381604
A142: ED_AUG2331_00004 | C142: LV Feeder Augmentations - Underground Cables | D142: Circuit Line Length in KM | E142: 0 | F142: 0 | G142: 0 | H142: 0 | I142: 0 | J142: 0 | K142: ED_AUG2333_00004 | L142: 0 | M142: 0 | N142: 0 | O142: 0 | P142: 0 | Q142: 0
A143: ED_AUG2331_00005 | C143: Distribution Substation Augmentations - Pole Mounted | D143: Number | E143: 15 | F143: 15 | G143: 13 | H143: 13 | I143: 14 | J143: 13 | K143: ED_AUG2333_00005 | L143: 15 | M143: 14 | N143: 14 | O143: 13 | P143: 13 | Q143: 13
A144: ED_AUG2331_00006 | C144: Distribution Substation Augmentations - Ground Mounted | D144: Number | E144: 1 | F144: 0 | G144: 1 | H144: 0 | I144: 1 | J144: 1 | K144: ED_AUG2333_00006 | L144: 2 | M144: 2 | N144: 2 | O144: 2 | P144: 2 | Q144: 2
A145: ED_AUG2331_00007 | C145: Distribution Substation Augmentations - Indoor | D145: Number | E145: 0 | F145: 0 | G145: 0 | H145: 0 | I145: 0 | J145: 0 | K145: ED_AUG2333_00007 | L145: 0 | M145: 1 | N145: 0 | O145: 0 | P145: 1 | Q145: 0
C147: Table 2.3.3.2 - Cost metrics
C150: PROJECT TYPE | E150: =CONCATENATE("TOTAL DIRECT EXPENDITURE ($0's, real ", dms_DollarReal,")") -> TOTAL DIRECT EXPENDITURE ($0's, real December 2015)
A151: AUG2332 | E151: =CRCP_y5 -> 2015 | F151: =FRCP -> 2016 | G151: 2017 | H151: 2018 | I151: 2019 | J151: 2020
A152: ED_AUG2332_00001 | C152: HV Feeder Augmentations - Overhead Lines | E152: 1236681.912 | F152: 961217.9242 | G152: 3550387.313 | H152: 1367412.021 | I152: 390837.02 | J152: 394196.614
A153: ED_AUG2332_00002 | C153: HV Feeder Augmentations - Underground Cables | E153: 3701447.368 | F153: 2758107.969 | G153: 6264457.971 | H153: 1105742.153 | I153: 2021545.276 | J153: 1351057.481
A154: ED_AUG2332_00003 | C154: HV Feeder Non-Material Projects | E154: 0 | F154: 291902.7905 | G154: 289357.1843 | H154: 459726.5896 | I154: 503541.7504 | J154: 182678.4335
A155: ED_AUG2332_00004 | C155: LV Feeder Augmentations - Overhead Lines | E155: 124108.2762 | F155: 120699.0882 | G155: 120301.0396 | H155: 121275.314 | I155: 122363.1409 | J155: 124754.7194
A156: ED_AUG2332_00005 | C156: LV Feeder Augmentations - Underground Cables | E156: 0 | F156: 0 | G156: 0 | H156: 0 | I156: 0 | J156: 0
A157: ED_AUG2332_00006 | C157: LV Feeder Non-Material Projects | E157: 62188.3841 | F157: 60480.10241 | G157: 60280.64759 | H157: 60768.83863 | I157: 61313.92876 | J157: 62512.30497
A158: ED_AUG2332_00007 | C158: Distribution Substation Augmentations - Pole Mounted | E158: 3286626.002 | F158: 3288598.919 | G158: 2988456.441 | H158: 2987723.003 | I158: 2966198.47 | J158: 3055831.389
A159: ED_AUG2332_00008 | C159: Distribution Substation Augmentations - Ground Mounted | E159: 301696.5155 | F159: 301877.6199 | G159: 274325.9788 | H159: 274258.6527 | I159: 272282.8037 | J159: 280510.6761
A160: ED_AUG2332_00009 | C160: Distribution Substation Augmentations - Indoor | E160: 40179.67651 | F160: 40203.79583 | G160: 36534.49252 | H160: 36525.52608 | I160: 36262.38425 | J160: 37358.16506
C165: TABLE 2.3.4 - AUGEX DATA - TOTAL AUGMENTATION EXPENDITURE
E166: =CONCATENATE("TOTAL DIRECT EXPENDITURE ($0's, real ", dms_DollarReal,")") -> TOTAL DIRECT EXPENDITURE ($0's, real December 2015)
A167: AUG234 | E167: =CRCP_y5 -> 2015 | F167: =FRCP -> 2016 | G167: 2017 | H167: 2018 | I167: 2019 | J167: 2020
A168: ED_AUG234_00001 | C168: Subtransmission Substations, Switching Stations, Zone Substations | E168: 19735132.36 | F168: 4623361.284 | G168: 17348258.88 | H168: 27572156.47 | I168: 7746143.94 | J168: 3678466.847
A169: ED_AUG234_00002 | C169: Subtransmission Lines | E169: 409230.7692 | F169: 24711.79737 | G169: 8525168.079 | H169: 4371741.323 | I169: 2109921.461 | J169: 0
A170: ED_AUG234_00003 | C170: HV Feeders | E170: 4938129.28 | F170: 4011228.683 | G170: 10104202.47 | H170: 2932880.764 | I170: 2915924.046 | J170: 1927932.528
A171: ED_AUG234_00004 | C171: HV Feeders - Land Purchases and Easements | E171: 0 | F171: 0 | G171: 0 | H171: 0 | I171: 0 | J171: 0
A172: ED_AUG234_00005 | C172: Distribution Substations | E172: 3628502.194 | F172: 3630680.335 | G172: 3299316.912 | H172: 3298507.181 | I172: 3274743.658 | J172: 3373700.23
A173: ED_AUG234_00006 | C173: Distribution Substations - Land Purchases and Easements | E173: 0 | F173: 0 | G173: 0 | H173: 0 | I173: 0 | J173: 0
A174: ED_AUG234_00007 | C174: LV Feeders | E174: 186296.6603 | F174: 181179.1906 | G174: 180581.6872 | H174: 182044.1526 | I174: 183677.0696 | J174: 187267.0244
A175: ED_AUG234_00008 | C175: LV Feeders - Land Purchases and Easements | E175: 0 | F175: 0 | G175: 0 | H175: 0 | I175: 0 | J175: 0
A176: ED_AUG234_00009 | C176: Other Assets | E176: 1713793.388 | F176: 6033573.038 | G176: 8826984.934 | H176: 2176596.083 | I176: 6724024.885 | J176: 1186268.607
A181: PROJECT TYPE FOR TBL 2.3.2
A182: New line on new route - single circuit
A183: New line on new route - dual circuit
A184: New line on new route - other
A185: Line rebuild over existing route - single circuit
A186: Line rebuild over existing route - dual circuit
A187: Reconductor - Single circuit
A188: Reconductor - Dual circuit
A189: Reconductor - Other
A190: Line upgrade - raising/retensoring
A191: Line upgrade - voltage upgrade
A192: Line upgrade - capacity
A193: String spare circuit
A194: Other - specify

Sheet 2.4 Augex model
C1: =SheetHeader -> REGULATORY REPORTING STATEMENT | J1: Worksheet navigation
C2: =dms_TradingName -> Victorian DNSP Reset
C3: =FRCP_span -> 2016 to 2020
C4: 2.4 AUGEX MODEL
A6: ED_AUG241 | H6: ED_AUG241_00001 | I6: ED_AUG241_00002 | J6: ED_AUG241_00003 | K6: ED_AUG241_00004 | L6: ED_AUG241_00005 | M6: ED_AUG241_00006 | N6: ED_AUG241_00007 | O6: ED_AUG241_00008 | P6: ED_AUG241_00009 | Q6: ED_AUG241_00010 | R6: ED_AUG241_00011 | S6: ED_AUG241_00012
C7: TABLE 2.4.1 - AUGEX MODEL INPUTS - ASSET STATUS - SUBTRANSMISSION LINES
C9: Line ID | D9: Primary type of area supplied by line | E9: Line voltage | F9: Originating substation | G9: Terminating substation | H9: =CRCP_y4 -> 2014 | M9: =PRCP_y5 -> 2010 | R9: =CONCATENATE("Average per annum growth rate in annual line maximum demand (50% PoE) from ", CRCP_y4, " to ", FRCP_y5) -> Average per annum growth rate in annual line maximum demand (50% PoE) from 2014 to 2020 | S9: Network Segment ID
H10: =CONCATENATE(IF('1.0 Business & other details'!C48="Financial","Route line length as at 30 June ","Route line length as at 31 December ")) -> Route line length as at 31 December | I10: Maximum demand (weather corrected at 50% PoE) | K10: Line rating | M10: =CONCATENATE(IF('1.0 Business & other details'!H48="Financial","Route line length as at 30 June ","Route line length as at 31 December ")) -> Route line length as at 31 December | N10: Maximum demand (weather corrected at 50% PoE) | P10: Line rating
K11: Thermal | L11: N-1 emergency | P11: Thermal | Q11: N-1 emergency
D12: CBD, urban, long rural, or short rural | E12: kV | F12: name | G12: name | H12: km | I12: MVA | J12: MW | K12: MVA | L12: MVA | M12: km | N12: MVA | O12: MW | P12: MVA | Q12: MVA | R12: %
A13: AUG241_1 | C13: BLTS - MB 28 | D13: Urban | E13: 22 | F13: BLTS | G13: MB | H13: 0.7775359206 | K13: 14.67047034 | L13: 14.67047034 | M13: 0.7776 | P13: 14.67047034 | Q13: 14.67047034
A14: AUG241_2 | C14: BLTS - MB 29 | D14: Urban | E14: 22 | F14: BLTS | G14: MB | H14: 0.8165769816 | K14: 14.67047034 | L14: 14.67047034 | M14: 0.81661 | P14: 14.67047034 | Q14: 14.67047034
A15: AUG241_3 | C15: BTS - FF 181 | D15: Urban | E15: 22 | F15: BTS | G15: FF | H15: 6.03461761 | I15: 6.53724478 | J15: 6.347759424 | K15: 12.19363769 | L15: 12.19363769 | M15: 6.09 | N15: 6.685984834 | O15: 6.468416353 | P15: 12.19363769 | Q15: 12.19363769 | R15: 0.03206105627 | S15: 1
A16: AUG241_4 | C16: BTS - FF 184 | D16: Urban | E16: 22 | F16: BTS | G16: FF | H16: 4.140892393 | I16: 7.674156916 | J16: 7.48467156 | K16: 13.33679122 | L16: 13.33679122 | M16: 4.318 | N16: 8.151049034 | O16: 7.762099624 | P16: 13.33679122 | Q16: 13.33679122 | R16: 0.03254434436 | S16: 1
A17: AUG241_5 | C17: BTS - FF 188 | D17: Urban | E17: 22 | F17: BTS | G17: FF | H17: 4.14319261 | I17: 7.768899594 | J17: 7.579414238 | K17: 13.10816051 | L17: 13.10816051 | M17: 4.341 | N17: 8.245870487 | O17: 7.861613722 | P17: 13.10816051 | Q17: 13.10816051 | R17: 0.03227337086 | S17: 1
A18: AUG241_6 | C18: BTS - NS 176 | D18: Urban | E18: 22 | F18: BTS | G18: NS | H18: 6.553664575 | I18: 11.27437868 | J18: 10.23220922 | K18: 15.24204711 | L18: 15.24204711 | M18: 6.632 | N18: 11.25961449 | O18: 10.05092387 | P18: 15.24204711 | Q18: 15.24204711 | R18: -0.01655232254 | S18: 1
A19: AUG241_7 | C19: BTS - NS 190 | D19: Urban | E19: 22 | F19: BTS | G19: NS | H19: 6.333744366 | I19: 10.89540797 | J19: 10.13746654 | K19: 15.24204711 | L19: 15.24204711 | M19: 6.315 | N19: 11.6278295 | O19: 10.15043797 | P19: 15.24204711 | Q19: 15.24204711 | R19: -0.0158409669 | S19: 1
A20: AUG241_8 | C20: BTS - NS 193 | D20: Urban | E20: 22 | F20: BTS | G20: NS | H20: 6.47770514 | I20: 11.46386403 | J20: 10.42169458 | K20: 15.24204711 | L20: 15.24204711 | M20: 6.52 | N20: 11.81245335 | O20: 10.24995207 | P20: 15.24204711 | Q20: 15.24204711 | R20: -0.01610130292 | S20: 1
A21: AUG241_9 | C21: BLTS - FW #1 | D21: Urban | E21: 66 | F21: BLTS | G21: FW | H21: 2.515899642 | I21: 19.8012197 | J21: 19.04327827 | K21: 86.30809174 | L21: 86.30809174 | M21: 2.51591 | N21: 17.97682995 | O21: 17.21593891 | P21: 86.30809174 | Q21: 86.30809174 | R21: -0.01668307409 | S21: 1
A22: AUG241_10 | C22: BLTS - FW #2 | D22: Urban | E22: 66 | F22: BLTS | G22: FW | H22: 2.48217527 | I22: 26.05423644 | J22: 24.91732431 | K22: 65.73132815 | L22: 65.73132815 | M22: 2.482175 | N22: 23.72905262 | O22: 22.58970019 | P22: 65.73132815 | Q22: 65.73132815 | R22: -0.01566030437 | S22: 1
A23: AUG241_11 | C23: BLTS - NT | D23: Urban | E23: 66 | F23: BLTS | G23: NT | H23: 4.521247078 | I23: 39.69718207 | J23: 38.84449797 | K23: 100.5975109 | L23: 100.5975109 | M23: 4.52127 | N23: 37.77474406 | O23: 36.12361748 | P23: 100.5975109 | Q23: 100.5975109 | R23: -0.02264410543 | S23: 1
A24: AUG241_12 | C24: BLTS - YVE | D24: Urban | E24: 66 | F24: BLTS | G24: YVE | H24: 4.54178627 | I24: 37.99181387 | J24: 36.19170299 | K24: 94.31016647 | L24: 94.31016647 | M24: 4.54273 | N24: 47.10550036 | O24: 43.88571711 | P24: 94.31016647 | Q24: 94.31016647 | R24: -0.01833159218 | S24: 1
A25: AUG241_13 | C25: NT-YVE | D25: Urban | E25: 66 | F25: NT | G25: YVE | H25: 2.193586719 | I25: 7.105700848 | J25: 1.042169458 | K25: 98.31120384 | L25: 98.31120384 | M25: 2.193633333 | N25: 6.727329658 | O25: 3.283965226 | P25: 91.45228264 | Q25: 91.45228264 | R25: -0.004884031908 | S25: 1
A26: AUG241_14 | C26: BLTS - TH #1 | D26: Urban | E26: 66 | F26: BLTS | G26: TH | H26: 3.30639161 | I26: 13.45346027 | J26: 12.97974688 | K26: 100.5975109 | L26: 100.5975109 | M26: 3.30639 | N26: 17.36228712 | O26: 15.72322744 | P26: 100.5975109 | Q26: 100.5975109 | R26: -0.01217654157 | S26: 1
A27: AUG241_15 | C27: BLTS - TH #2 | D27: Urban | E27: 66 | F27: BLTS | G27: TH | H27: 2.840832611 | I27: 13.45346027 | J27: 12.97974688 | K27: 100.5975109 | L27: 100.5975109 | M27: 2.84079 | N27: 17.36228712 | O27: 15.72322744 | P27: 100.5975109 | Q27: 100.5975109 | R27: -0.01217654157 | S27: 1
A28: AUG241_16 | C28: KTS - AW | D28: Urban | E28: 66 | F28: KTS | G28: AW | H28: 4.8675984 | I28: 88.01594784 | J28: 82.71035787 | K28: 100.5975109 | L28: 100.5975109 | M28: 4.8676 | N28: 89.66170505 | O28: 83.19378572 | P28: 100.5975109 | Q28: 100.5975109 | R28: 0.02404123651 | S28: 1
A29: AUG241_17 | C29: KTS - PV | D29: Urban | E29: 66 | F29: KTS | G29: PV | H29: 11.3228971 | I29: 37.13912977 | J29: 36.00221763 | K29: 100.5975109 | L29: 100.5975109 | M29: 11.53049967 | N29: 38.20771178 | O29: 36.42215977 | P29: 100.5975109 | Q29: 100.5975109 | R29: 0.01286626889 | S29: 1
A30: AUG241_18 | C30: KTS - MAT | D30: Urban | E30: 66 | F30: KTS | G30: MAT | H30: 7.29559444 | I30: 45.57122811 | J30: 43.20266116 | K30: 100.5975109 | L30: 100.5975109 | M30: 7.48176 | N30: 47.39264222 | O30: 44.38328759 | P30: 100.5975109 | Q30: 100.5975109 | R30: 0.04161056277 | S30: 1
A31: AUG241_19 | C31: AW-PV | D31: Urban | E31: 66 | F31: AW | G31: PV | H31: 4.93216383 | I31: 3.031765695 | J31: 0.4737133899 | K31: 90.30912911 | L31: 90.30912911 | M31: 4.93217 | N31: 1.024560344 | O31: 0.8956268797 | P31: 90.30912911 | Q31: 90.30912911 | R31: 0.1920759778 | S31: 1
A32: AUG241_20 | C32: AW-MAT | D32: Urban | E32: 66 | F32: AW | G32: MAT | H32: 5.837858713 | I32: 20.46441844 | J32: 18.66430756 | K32: 100.5975109 | L32: 100.5975109 | M32: 5.837858713 | N32: 21.8976244 | O32: 19.70379135 | P32: 100.5975109 | Q32: 100.5975109 | R32: -0.04835705986 | S32: 1
A33: AUG241_21 | C33: KTS - ES | D33: Urban | E33: 66 | F33: KTS | G33: ES | H33: 5.485447554 | I33: 51.72950217 | J33: 47.37133899 | K33: 88.02282204 | L33: 88.02282204 | M33: 5.539446 | N33: 53.81458893 | O33: 49.15996429 | P33: 88.02282204 | Q33: 88.02282204 | R33: -0.01000779048 | S33: 1
A34: AUG241_22 | C34: KTS - BY | D34: Urban | E34: 66 | F34: KTS | G34: BY | H34: 10.28821079 | I34: 32.87570926 | J34: 29.46497285 | K34: 72.59024935 | L34: 72.59024935 | M34: 10.28821 | N34: 28.88481329 | O34: 25.97317951 | P34: 72.59024935 | Q34: 72.59024935 | R34: -0.00921168431 | S34: 1
A35: AUG241_23 | C35: ES-BY | D35: Urban | E35: 66 | F35: ES | G35: BY | H35: 5.394119681 | I35: 9.095297086 | J35: 6.821472814 | K35: 90.30912911 | L35: 90.30912911 | M35: 5.3941188 | N35: 12.4245254 | O35: 10.15043797 | P35: 90.30912911 | Q35: 90.30912911 | R35: 8.615994047e-05 | S35: 1
A36: AUG241_24 | C36: KTS - SBY | D36: Urban | E36: 66 | F36: KTS | G36: SBY | H36: 26.4468754 | I36: 59.97211516 | J36: 59.02468838 | K36: 96.02489677 | L36: 96.02489677 | M36: 26.50496 | N36: 57.1666701 | O36: 56.62352162 | P36: 96.02489677 | Q36: 96.02489677 | R36: 0.0505037634 | S36: 1
A37: AUG241_25 | C37: KTS - SHM | D37: Urban | E37: 66 | F37: KTS | G37: SHM | H37: 13.67210442 | I37: 74.65723024 | J37: 71.62546455 | K37: 117.1732371 | L37: 117.1732371 | M37: 13.85508 | N37: 68.73204674 | O37: 64.98270583 | P37: 117.1732371 | Q37: 117.1732371 | R37: 0.04207186323 | S37: 1
A38: AUG241_26 | C38: SBY-SHM | D38: Urban | E38: 66 | F38: SBY | G38: SHM | H38: 11.79736963 | I38: 29.18074482 | J38: 27.85434732 | K38: 117.1732371 | L38: 117.1732371 | M38: 11.79737 | N38: 34.91867304 | O38: 32.74013816 | P38: 117.1732371 | Q38: 117.1732371 | R38: 0.06716150188 | S38: 1
A39: AUG241_27 | C39: SMTS - SSS | D39: Urban | E39: 66 | F39: SMTS | G39: SSS | H39: 18.40735883 | I39: 25.77000841 | J39: 24.15938288 | K39: 117.1732371 | L39: 117.1732371 | M39: 18.40736667 | N39: 32.46570229 | O39: 29.55568703 | P39: 117.1732371 | Q39: 117.1732371 | R39: 0.05631815573 | S39: 1
A40: AUG241_28 | C40: SMTS - ST | D40: Urban | E40: 66 | F40: SMTS | G40: ST | H40: 10.7932997 | I40: 40.83409421 | J40: 38.08655655 | K40: 117.1732371 | L40: 117.1732371 | M40: 10.7933 | N40: 52.29226751 | O40: 46.77162594 | P40: 117.1732371 | Q40: 117.1732371 | R40: 0.05623370532 | S40: 1
A41: AUG241_29 | C41: SSS-ST | D41: Urban | E41: 66 | F41: SSS | G41: ST | H41: 1.423515471 | I41: 25.29629502 | J41: 23.87515485 | K41: 142.8941916 | L41: 142.8941916 | M41: 1.4235145 | N41: 32.19415642 | O41: 29.25714474 | P41: 142.8941916 | Q41: 142.8941916 | R41: 0.0551027417 | S41: 1
A42: AUG241_30 | C42: TSTS - HB | D42: Urban | E42: 66 | F42: TSTS | G42: HB | H42: 10.58742464 | I42: 58.55097499 | J42: 57.60354821 | K42: 117.1732371 | L42: 117.1732371 | M42: 10.58736 | N42: 63.62508375 | O42: 56.02643703 | P42: 96.025 | Q42: 96.025 | R42: 0.00574932277 | S42: 1
A43: AUG241_31 | C43: TTS - BD #1 | D43: Urban | E43: 66 | F43: TTS | G43: BD | H43: 10.04237663 | I43: 51.06630343 | J43: 45.76071346 | K43: 89.73755234 | L43: 89.73755234 | M43: 10.042375 | N43: 55.94498129 | O43: 48.96093609 | P43: 89.73755234 | Q43: 89.73755234 | R43: 0.01090500515 | S43: 1
A44: AUG241_32 | C44: TTS - BD #2 | D44: Urban | E44: 66 | F44: TTS | G44: BD | H44: 8.245023666 | I44: 64.80399173 | J44: 56.46663607 | K44: 117.1732371 | L44: 117.1732371 | M44: 8.35802 | N44: 63.97649817 | O44: 54.23518327 | P44: 117.1732371 | Q44: 117.1732371 | R44: 0.01099899239 | S44: 1
A45: AUG241_33 | C45: TTS - COO | D45: Urban | E45: 66 | F45: TTS | G45: COO | H45: 11.28275532 | I45: 65.27770512 | J45: 59.59314445 | K45: 101.7406644 | L45: 101.7406644 | M45: 11.28279233 | N45: 61.20319272 | O45: 55.23032425 | P45: 101.7406644 | Q45: 101.7406644 | R45: 0.01218999218 | S45: 1
A46: AUG241_34 | C46: BD-VCO | D46: Urban | E46: 66 | F46: BD | G46: VCO | H46: 3.03265834 | I46: 5.589818001 | J46: 4.073935153 | K46: 89.73755234 | L46: 89.73755234 | M46: 3.03266 | N46: 9.409740728 | O46: 8.956268797 | P46: 89.73755234 | Q46: 89.73755234 | R46: 0.02807400466 | S46: 1
A47: AUG241_35 | C47: COO-VCO | D47: Urban | E47: 66 | F47: COO | G47: VCO | H47: 1.1004016 | I47: 24.72783895 | J47: 17.52739543 | K47: 90.30912911 | L47: 90.30912911 | M47: 1.1004 | N47: 30.5856543 | O47: 23.88338346 | P47: 90.30912911 | Q47: 90.30912911 | R47: 0.002492794213 | S47: 1
A48: AUG241_36 | C48: TTS - CN | D48: Urban | E48: 66 | F48: TTS | G48: CN | H48: 6.19295904 | I48: 70.77278045 | J48: 68.4042135 | K48: 117.1732371 | L48: 117.1732371 | M48: 6.41896 | N48: 66.77892769 | O48: 63.48999436 | P48: 101.7 | Q48: 101.7 | R48: 0.007686232336 | S48: 1
A49: AUG241_37 | C49: TTS - CS | D49: Urban | E49: 66 | F49: TTS | G49: CS | H49: 11.87612627 | I49: 42.44471973 | J49: 40.73935153 | K49: 117.1732371 | L49: 117.1732371 | M49: 11.876137 | N49: 37.64343546 | O49: 35.92458929 | P49: 101.7 | Q49: 101.7 | R49: 0.01202256351 | S49: 1
A50: AUG241_38 | C50: CN-CS | D50: Urban | E50: 66 | F50: CN | G50: CS | H50: 3.806322282 | I50: 10.42169458 | J50: 8.337355662 | K50: 80.02074731 | L50: 80.02074731 | M50: 3.806308667 | N50: 3.588031821 | O50: 1.990281955 | P50: 80.02074731 | Q50: 80.02074731 | R50: 0.04790872777 | S50: 1
A51: AUG241_39 | C51: TTS - EP | D51: Urban | E51: 66 | F51: TTS | G51: EP | H51: 10.05293907 | I51: 16.20099793 | J51: 16.10625526 | K51: 78.87759378 | L51: 78.87759378 | M51: 10.05293 | N51: 27.61135164 | O51: 25.47560902 | P51: 78.87759378 | Q51: 78.87759378 | R51: -0.003120742322 | S51: 1
A52: AUG241_40 | C52: TTS - P | D52: Urban | E52: 66 | F52: TTS | G52: P | H52: 5.030978323 | I52: 24.5383536 | J52: 24.5383536 | K52: 81.16390084 | L52: 81.16390084 | M52: 5.0309773 | N52: 43.76018591 | O52: 41.89543515 | P52: 81.16390084 | Q52: 81.16390084 | R52: -0.004383512149 | S52: 1
A53: AUG241_41 | C53: P-EP | D53: Urban | E53: 66 | F53: P | G53: EP | H53: 3.607769002 | I53: 13.64294563 | J53: 13.64294563 | K53: 65.15975138 | L53: 65.15975138 | M53: 3.606998 | N53: 17.37939002 | O53: 16.91739662 | P53: 65.15975138 | Q53: 65.15975138 | R53: -0.002990166736 | S53: 1
A54: AUG241_42 | C54: TTS - NH (NEI) | D54: Urban | E54: 66 | F54: TTS | G54: NH | H54: 10.68829371 | I54: 81.00498967 | J54: 79.5838495 | K54: 117.1732371 | L54: 117.1732371 | M54: 10.68829 | N54: 57.30085348 | O54: 52.44392951 | P54: 117.1732371 | Q54: 117.1732371 | R54: 0.007857936075 | S54: 1
A55: AUG241_43 | C55: WMTS - FE #1 | D55: Urban | E55: 66 | F55: WMTS | G55: FE | H55: 4.667647733 | I55: 17.52739543 | J55: 17.43265275 | K55: 84.59336144 | L55: 84.59336144 | M55: 4.667638 | N55: 15.92349952 | O55: 15.92225564 | P55: 84.59336144 | Q55: 84.59336144 | R55: 0.05008651068 | S55: 1
A56: AUG241_44 | C56: WMTS - FE #2 | D56: Urban | E56: 66 | F56: WMTS | G56: FE | H56: 6.354602043 | I56: 13.35871759 | J56: 13.16923224 | K56: 83.45020791 | L56: 83.45020791 | M56: 6.354557 | N56: 12.15539347 | O56: 12.14071992 | P56: 83.45020791 | Q56: 83.45020791 | R56: 0.04998084691 | S56: 1
A57: AUG241_45 | C57: WMTS - FT #1 | D57: Urban | E57: 66 | F57: WMTS | G57: FT | H57: 1.576659374 | I57: 16.769454 | J57: 16.769454 | K57: 52.01348575 | L57: 52.01348575 | M57: 1.57666 | N57: 15.4294996 | O57: 15.32517105 | P57: 52.01348575 | Q57: 52.01348575 | R57: 0.0090415673 | S57: 1
A58: AUG241_46 | C58: WMTS - FT #2 | D58: Urban | E58: 66 | F58: WMTS | G58: FT | H58: 1.30233966 | I58: 16.769454 | J58: 16.769454 | K58: 65.15975138 | L58: 65.15975138 | M58: 1.30234 | N58: 15.4294996 | O58: 15.32517105 | P58: 28.57883832 | Q58: 28.57883832 | R58: 0.009989471634 | S58: 1
A59: AUG241_47
A60: AUG241_48
A61: AUG241_49
A62: AUG241_50
A63: AUG241_51
A64: AUG241_52
A65: AUG241_53
A66: AUG241_54
A67: AUG241_55
A68: AUG241_56
A69: AUG241_57
A70: AUG241_58
A71: AUG241_59
A72: AUG241_60
A73: AUG241_61
A74: AUG241_62
A75: AUG241_63
A76: AUG241_64
A77: AUG241_65
A78: AUG241_66
A79: AUG241_67
A80: AUG241_68
A81: AUG241_69
A82: AUG241_70
A83: AUG241_71
A84: AUG241_72
A85: AUG241_73
A86: AUG241_74
A87: AUG241_75
A88: AUG241_76
A89: AUG241_77
A90: AUG241_78
A91: AUG241_79
A92: AUG241_80
A93: AUG241_81
A94: AUG241_82
A95: AUG241_83
A96: AUG241_84
A97: AUG241_85
A98: AUG241_86
A99: AUG241_87
A100: AUG241_88
A101: AUG241_89
A102: AUG241_90
A103: AUG241_91
A104: AUG241_92
A105: AUG241_93
A106: AUG241_94
A107: AUG241_95
A108: AUG241_96
A109: AUG241_97
A110: AUG241_98
A111: AUG241_99
A112: AUG241_100
A113: AUG241_101
A114: AUG241_102
A115: AUG241_103
A116: AUG241_104
A117: AUG241_105
A118: AUG241_106
A119: AUG241_107
A120: AUG241_108
A121: AUG241_109
A122: AUG241_110
A123: AUG241_111
A124: AUG241_112
A125: AUG241_113
A126: AUG241_114
A127: AUG241_115
A128: AUG241_116
A129: AUG241_117
A130: AUG241_118
A131: AUG241_119
A132: AUG241_120
A133: AUG241_121
A134: AUG241_122
A135: AUG241_123
A136: AUG241_124
A137: AUG241_125
A138: AUG241_126
A139: AUG241_127
A140: AUG241_128
A141: AUG241_129
A142: AUG241_130
A143: AUG241_131
A144: AUG241_132
A145: AUG241_133
A146: AUG241_134
A147: AUG241_135
A148: AUG241_136
A149: AUG241_137
A150: AUG241_138
A151: AUG241_139
A152: AUG241_140
A153: AUG241_141
A154: AUG241_142
A155: AUG241_143
A156: AUG241_144
A157: AUG241_145
A158: AUG241_146
A159: AUG241_147
A160: AUG241_148
A161: AUG241_149
A162: AUG241_150
A163: AUG241_151
A164: AUG241_152
A165: AUG241_153
A166: AUG241_154
A167: AUG241_155
A168: AUG241_156
A169: AUG241_157
A170: AUG241_158
A171: AUG241_159
A172: AUG241_160
A173: AUG241_161
A174: AUG241_162
A175: AUG241_163
A176: AUG241_164
A177: AUG241_165
A178: AUG241_166
A179: AUG241_167
A180: AUG241_168
A181: AUG241_169
A182: AUG241_170
A183: AUG241_171
A184: AUG241_172
A185: AUG241_173
A186: AUG241_174
A187: AUG241_175
A188: AUG241_176
A189: AUG241_177
A190: AUG241_178
A191: AUG241_179
A192: AUG241_180
A193: AUG241_181
A194: AUG241_182
A195: AUG241_183
A196: AUG241_184
A197: AUG241_185
A198: AUG241_186
A199: AUG241_187
A200: AUG241_188
A201: AUG241_189
A202: AUG241_190
... 7642 more rows

Sheet 2.5 Connections
C1: =SheetHeader -> REGULATORY REPORTING STATEMENT
C2: =dms_TradingName -> Victorian DNSP Reset
C3: =FRCP_span -> 2016 to 2020
C4: 2.5 CONNECTIONS
C9: 2.5.1 DESCRIPTOR METRICS
C12: CONNECTION SUBCATEGORY | D12: DESCRIPTOR METRIC | E12: Unit of Measure | F12: =CONCATENATE("VOLUMES and EXPENDITURE (0's, real ", dms_DollarReal, ")") -> VOLUMES and EXPENDITURE (0's, real December 2015)
F13: =CRCP_y5 -> 2015 | G13: =FRCP -> 2016 | H13: 2017 | I13: 2018 | J13: 2019 | K13: 2020
A14: ED_CON251_00001 | C14: RESIDENTIAL | D14: Underground connections | E14: 0's
A15: ED_CON251_00002 | D15: Overhead connections | E15: 0's
A16: ED_CON251_00003 | D16: Distribution substations installed | E16: MVA added | F16: 0 | G16: 0 | H16: 0 | I16: 0 | J16: 0 | K16: 0
A17: ED_CON251_00004 | D17: Distribution substations installed | E17: 0's | F17: 0 | G17: 0 | H17: 0 | I17: 0 | J17: 0 | K17: 0
A18: ED_CON251_00005 | D18: Distribution substations installed | E18: total spend $0's | F18: 0 | G18: 0 | H18: 0 | I18: 0 | J18: 0 | K18: 0
A19: ED_CON251_00006 | D19: Augmentation HV | E19: net circuit KM added | F19: 0 | G19: 0 | H19: 0 | I19: 0 | J19: 0 | K19: 0
A20: ED_CON251_00007 | D20: Augmentation HV | E20: total spend $0's | F20: 0 | G20: 0 | H20: 0 | I20: 0 | J20: 0 | K20: 0
A21: ED_CON251_00008 | D21: Augmentation LV | E21: net circuit KM added | F21: 94.99792941 | G21: 93.89787688 | H21: 90.2410481 | I21: 89.0591083 | J21: 90.29732479 | K21: 91.56028981
A22: ED_CON251_00009 | D22: Augmentation LV | E22: total spend $0's
A23: ED_CON251_00010 | D23: Mean days to connect residential customer with LV single phase connection | E23: 0's
A24: ED_CON251_00011 | D24: Volume of GSL breaches for residential customers | E24: 0's
A25: ED_CON251_00012 | D25: Volume of customer complaints relating to connection services | E25: 0's
A26: ED_CON251_00013 | D26: GSL payments | E26: $0's
A27: ED_CON251_00014 | C27: COMMERCIAL/INDUSTRIAL | D27: Underground connections | E27: 0's
A28: ED_CON251_00015 | D28: Overhead connections | E28: 0's
A29: ED_CON251_00016 | D29: Distribution substations installed | E29: MVA added | F29: 60.2586032 | G29: 63.07580038 | H29: 63.03794749 | I29: 63.42434285 | J29: 64.06608165 | K29: 64.40663332
A30: ED_CON251_00017 | D30: Distribution substations installed | E30: 0's
A31: ED_CON251_00018 | D31: Distribution substations installed | E31: total spend $0's
A32: ED_CON251_00019 | D32: Augmentation HV | E32: net circuit KM added | F32: 21.00615334 | G32: 21.98822847 | H32: 21.97503295 | I32: 22.1097304 | J32: 22.33344059 | K32: 22.45215693
A33: ED_CON251_00020 | D33: Augmentation HV | E33: total spend $0's
A34: ED_CON251_00021 | D34: Augmentation LV | E34: net circuit KM added | F34: 6.272898364 | G34: 6.566167551 | H34: 6.562227079 | I34: 6.602450694 | J34: 6.669255466 | K34: 6.704706769
A35: ED_CON251_00022 | D35: Augmentation LV | E35: total spend $0's
A36: ED_CON251_00023 | C36: SUBDIVISION | D36: Underground connections | E36: 0's
A37: ED_CON251_00024 | D37: Overhead connections | E37: 0's | F37: 0 | G37: 0 | H37: 0 | I37: 0 | J37: 0 | K37: 0
A38: ED_CON251_00025 | D38: Distribution substations installed | E38: MVA added | F38: 2.928175632 | G38: 2.87303697 | H38: 2.742911092 | I38: 2.71674603 | J38: 2.760709011 | K38: 2.805550952
A39: ED_CON251_00026 | D39: Distribution substations installed | E39: 0's
A40: ED_CON251_00027 | D40: Distribution substations installed | E40: total spend $0's | F40: 505306.413 | G40: 498275.4499 | H40: 479369.4959 | I40: 474891.5086 | J40: 480164.7877 | K40: 501556.0514
A41: ED_CON251_00028 | D41: Augmentation HV | E41: net circuit KM added | F41: 5.752187056 | G41: 5.643871183 | H41: 5.388248405 | I41: 5.336849052 | J41: 5.423211116 | K41: 5.511299832
A42: ED_CON251_00029 | D42: Augmentation HV | E42: total spend $0's
A43: ED_CON251_00030 | D43: Augmentation LV | E43: net circuit KM added | F43: 15.91368064 | G43: 15.61401997 | H43: 14.90682822 | I43: 14.76462963 | J43: 15.00355411 | K43: 15.24725545
A44: ED_CON251_00031 | D44: Augmentation LV | E44: total spend $0's
A45: ED_CON251_00032 | D45: Cost per lot | E45: $0's
A46: ED_CON251_00033 | C46: EMBEDDED GENERATION | D46: Underground connections | E46: 0's
A47: ED_CON251_00034 | D47: Overhead connections | E47: 0's
A48: ED_CON251_00035 | D48: Distribution substations installed | E48: MVA added | F48: 0 | G48: 0 | H48: 0 | I48: 0 | J48: 0 | K48: 0
A49: ED_CON251_00036 | D49: Distribution substations installed | E49: 0's | F49: 0 | G49: 0 | H49: 0 | I49: 0 | J49: 0 | K49: 0
A50: ED_CON251_00037 | D50: Distribution substations installed | E50: total spend $0's | F50: 0 | G50: 0 | H50: 0 | I50: 0 | J50: 0 | K50: 0
A51: ED_CON251_00038 | D51: Augmentation HV | E51: net circuit KM added | F51: 0 | G51: 0 | H51: 0 | I51: 0 | J51: 0 | K51: 0
A52: ED_CON251_00039 | D52: Augmentation HV | E52: total spend $0's | F52: 0 | G52: 0 | H52: 0 | I52: 0 | J52: 0 | K52: 0
A53: ED_CON251_00040 | D53: Augmentation LV | E53: net circuit KM added | F53: 0 | G53: 0 | H53: 0 | I53: 0 | J53: 0 | K53: 0
A54: ED_CON251_00041 | D54: Augmentation LV | E54: total spend $0's | F54: 0 | G54: 0 | H54: 0 | I54: 0 | J54: 0 | K54: 0
A62: NB: Codes also in hidden Column L | C62: 2.5.2 COST METRICS BY CONNECTION CLASSIFICATION
C65: CONNECTION SUBCATEGORY | D65: CONNECTION CLASSICIATION | F65: =CONCATENATE("EXPENDITURE ($'0s, real ", dms_DollarReal,")") -> EXPENDITURE ($'0s, real December 2015) | M65: VOLUMES (0's)
F66: =CRCP_y5 -> 2015 | G66: =FRCP -> 2016 | H66: 2017 | I66: 2018 | J66: 2019 | K66: 2020 | M66: =CRCP_y5 -> 2015 | N66: =FRCP -> 2016 | O66: 2017 | P66: 2018 | Q66: 2019 | R66: 2020
A67: ED_CON252_00001 | C67: RESIDENTIAL | D67: Simple connection LV | L67: ED_CON252_00001 | M67: 6149.417477 | N67: 6078.208743 | O67: 5841.49446 | P67: 5764.984989 | Q67: 5845.137369 | R67: 5926.891774
A68: ED_CON252_00002 | D68: Complex connection LV | F68: 0 | G68: 0 | H68: 0 | I68: 0 | J68: 0 | K68: 0 | L68: ED_CON252_00002 | M68: 0 | N68: 0 | O68: 0 | P68: 0 | Q68: 0 | R68: 0
A69: ED_CON252_00003 | D69: Complex connection HV | F69: 0 | G69: 0 | H69: 0 | I69: 0 | J69: 0 | K69: 0 | L69: ED_CON252_00003 | M69: 0 | N69: 0 | O69: 0 | P69: 0 | Q69: 0 | R69: 0
A70: ED_CON252_00004 | C70: COMMERCIAL/INDUSTRIAL | D70: Simple connection LV | L70: ED_CON252_00004 | M70: 994.7248962 | N70: 1041.230059 | O70: 1040.605199 | P70: 1046.983659 | Q70: 1057.577226 | R70: 1063.198917
A71: ED_CON252_00005 | D71: Complex connection HV (customer connected at LV, minor HV works) | L71: ED_CON252_00005 | M71: 789.8190187 | N71: 826.7444666 | O71: 826.2483229 | P71: 831.3128678 | Q71: 839.7242394 | R71: 844.1879039
A72: ED_CON252_00006 | D72: Complex connection HV (customer connected at LV, upstream asset works) | L72: ED_CON252_00006 | M72: 197.4547547 | N72: 206.6861167 | O72: 206.5620807 | P72: 207.8282169 | Q72: 209.9310599 | R72: 211.046976
A73: ED_CON252_00007 | D73: Complex connection HV (customer connected at HV) | L73: ED_CON252_00007 | M73: 48.43229832 | N73: 50.69659465 | O73: 50.66617074 | P73: 50.97673246 | Q73: 51.49252412 | R73: 51.76623939
A74: ED_CON252_00008 | D74: Complex connection sub-transmission | L74: ED_CON252_00008 | M74: 0 | N74: 0 | O74: 0 | P74: 1 | Q74: 0 | R74: 0
A75: ED_CON252_00009 | C75: SUBDIVISION | D75: Complex connection LV | L75: ED_CON252_00009 | M75: 1123.521385 | N75: 1102.365049 | O75: 1052.436621 | P75: 1042.397262 | Q75: 1059.265563 | R75: 1076.471116
A76: ED_CON252_00010 | D76: Complex connection HV (no upstream asset works) | L76: ED_CON252_00010 | M76: 283.8369814 | N76: 278.4922229 | O76: 265.8787253 | P76: 263.3424661 | Q76: 267.6039318 | R76: 271.9505977
A77: ED_CON252_00011 | D77: Complex connection HV (with upstream asset works) | F77: 0 | G77: 0 | H77: 0 | I77: 0 | J77: 0 | K77: 0 | L77: ED_CON252_00011 | M77: 0 | N77: 0 | O77: 0 | P77: 0 | Q77: 0 | R77: 0
A78: ED_CON252_00012 | C78: EMBEDDED GENERATION | D78: Simple connection LV | F78: 0 | G78: 0 | H78: 0 | I78: 0 | J78: 0 | K78: 0 | L78: ED_CON252_00012 | M78: 3382 | N78: 3382 | O78: 3382 | P78: 3382 | Q78: 3382 | R78: 3382
A79: ED_CON252_00013 | D79: Complex connection HV (small capacity) | F79: 0 | G79: 0 | H79: 0 | I79: 0 | J79: 0 | K79: 0 | L79: ED_CON252_00013 | M79: 0 | N79: 0 | O79: 0 | P79: 0 | Q79: 0 | R79: 0
A80: ED_CON252_00014 | D80: Complex connection HV (large capacity) | F80: 0 | G80: 0 | H80: 0 | I80: 0 | J80: 0 | K80: 0 | L80: ED_CON252_00014 | M80: 0 | N80: 0 | O80: 0 | P80: 0 | Q80: 0 | R80: 0

Sheet 2.6 Non-network
C1: =SheetHeader -> REGULATORY REPORTING STATEMENT
C2: =dms_TradingName -> Victorian DNSP Reset
C3: =FRCP_span -> 2016 to 2020
C4: 2.6 NON NETWORK EXPENDITURE
A9: NB: Codes also in hidden column N | C9: TABLE 2.6.1 NON-NETWORK EXPENDITURE | O9: TABLE 2.6.2 ANNUAL DESCRIPTOR METRICS - IT & COMMUNICATIONS EXPENDITURE
F11: =CONCATENATE("EXPENDITURE ($'0s, real ", dms_DollarReal,")") -> EXPENDITURE ($'0s, real December 2015) | O11: NON-NETWORK CATEGORY | P11: DESCRIPTOR METRIC | S11: VOLUMES (0's)
C12: SERVICE SUBCATEGORY | D12: ASSET CATEGORY | E12: ASSET REPORTING CATEGORY | F12: =CRCP_y5 -> 2015 | G12: =FRCP -> 2016 | H12: 2017 | I12: 2018 | J12: 2019 | K12: 2020 | N12: NON-NETWORK CATEGORY | S12: =CRCP_y5 -> 2015 | T12: =FRCP -> 2016 | U12: 2017 | V12: 2018 | W12: 2019 | X12: 2020
A13: ED_NON261_00001 | C13: IT & COMMUNICATIONS | D13: Client device expenditure | E13: Opex | O13: IT & COMMUNICATIONS | P13: Employee numbers | S13: 520 | T13: 520 | U13: 520 | V13: 520 | W13: 520 | X13: 520
A14: ED_NON261_00002 | E14: Capex | M14: ED_NON262_00001 | N14: IT & COMMUNICATIONS | P14: User numbers | S14: 520 | T14: 520 | U14: 520 | V14: 520 | W14: 520 | X14: 520
A15: ED_NON261_00003 | D15: Recurrent expenditure | E15: Opex | F15: 5269917.559 | G15: 11571835.46 | H15: 11902800.67 | I15: 12256625.61 | J15: 12636016.31 | K15: 13009888.87 | M15: ED_NON262_00002 | P15: Number of devices | S15: 1281 | T15: 1431 | U15: 1581 | V15: 1581 | W15: 1581 | X15: 1581
A16: ED_NON261_00004 | E16: Capex | F16: 3818382.755 | G16: 10582376.85 | H16: 17250854.2 | I16: 18711821.05 | J16: 13438257.51 | K16: 15796791.89 | M16: ED_NON262_00003
A17: ED_NON261_00005 | D17: Non-recurrent expenditure | E17: Opex | F17: 0 | G17: 0 | H17: 0 | I17: 0 | J17: 0 | K17: 0
A18: ED_NON261_00006 | E18: Capex
A19: ED_NON261_00007 | C19: MOTOR VEHICLES | D19: Car | E19: Opex
A20: ED_NON261_00008 | E20: Capex
A21: ED_NON261_00009 | D21: Light commercial vehicle | E21: Opex
A22: ED_NON261_00010 | E22: Capex
A23: ED_NON261_00011 | D23: Elevated work platform (LCV) | E23: Opex | O23: TABLE 2.6.3 ANNUAL DESCRIPTOR METRICS - MOTOR VEHICLES
A24: ED_NON261_00012 | E24: Capex
A25: ED_NON261_00013 | D25: Elevated work platform (HCV) | E25: Opex | N25: TABLE 2.6.3 ANNUAL DESCRIPTOR METRICS - MOTOR VEHICLES | O25: NON-NETWORK CATEGORY | P25: DESCRIPTOR METRIC | R25: Unit of Measure | S25: VOLUMES (0's or %)
A26: ED_NON261_00014 | E26: Capex | S26: =CRCP_y5 -> 2015 | T26: =FRCP -> 2016 | U26: 2017 | V26: 2018 | W26: 2019 | X26: 2020
A27: ED_NON261_00015 | D27: Heavy commercial vehicle | E27: Opex | N27: NON-NETWORK CATEGORY | O27: MOTOR VEHICLES | P27: CAR | Q27: Average kilometres travelled | R27: 0's | S27: 22210 | T27: 22210 | U27: 22210 | V27: 22210 | W27: 22210 | X27: 22210
A28: ED_NON261_00016 | E28: Capex | Q28: Number purchased | R28: 0's | S28: 0 | T28: 10 | U28: 12 | V28: 17 | W28: 3 | X28: 3
A29: ED_NON261_00017 | C29: BUILDINGS AND PROPERTY | D29: Total buildings and property expenditure | E29: Opex | F29: 4205617.99 | G29: 4302326.933 | H29: 4415775.213 | I29: 4532881.334 | J29: 4647668.944 | K29: 4764373.655 | M29: ED_NON263_00001 | N29: MOTOR VEHICLES | Q29: Number leased | R29: 0's | S29: 8 | T29: 6 | U29: 4 | V29: 1 | W29: 1 | X29: 1
A30: ED_NON261_00018 | E30: Capex | F30: 16429799.01 | G30: 12532692.31 | H30: 0 | I30: 0 | J30: 0 | K30: 0 | M30: ED_NON263_00002 | Q30: Number in fleet | R30: 0's | S30: 54 | T30: 54 | U30: 54 | V30: 54 | W30: 45 | X30: 45
A31: ED_NON261_00019 | C31: OTHER | D31: Other expenditure | E31: Opex | F31: 35159.35481 | G31: 34882.77267 | H31: 34558.34365 | I31: 34224.451 | J31: 33899.30566 | K31: 33567.39875 | M31: ED_NON263_00003 | Q31: Proportion of total fleet expenditure allocated as regulatory expenditure | R31: % | S31: 1 | T31: 1 | U31: 1 | V31: 1 | W31: 1 | X31: 1
A32: ED_NON261_00020 | E32: Capex | F32: 507425.6923 | G32: 705507.208 | H32: 770725.7122 | I32: 770725.7122 | J32: 770725.7122 | K32: 770725.7122 | M32: ED_NON263_00004 | P32: LIGHT COMMERCIAL VEHICLE | Q32: Average kilometres travelled | R32: 0's | S32: 24483 | T32: 24483 | U32: 24483 | V32: 24483 | W32: 24483 | X32: 24483
A33: ED_NON261_00021 | C33: OTHER - DNSP nominated | D33: Office furniture and equipment | E33: Opex | F33: 0 | G33: 0 | H33: 0 | I33: 0 | J33: 0 | K33: 0 | M33: ED_NON263_00005 | Q33: Number purchased | R33: 0's | S33: 13 | T33: 24 | U33: 35 | V33: 0 | W33: 20 | X33: 19
A34: ED_NON261_00022 | E34: Capex | F34: 0 | G34: 0 | H34: 0 | I34: 0 | J34: 0 | K34: 0 | M34: ED_NON263_00006 | Q34: Number leased | R34: 0's | S34: 9 | T34: 5 | U34: 2 | V34: 2 | W34: 2 | X34: 1
A35: ED_NON261_00023 | D35: Plant and equipment | E35: Opex | F35: 0 | G35: 0 | H35: 0 | I35: 0 | J35: 0 | K35: 0 | M35: ED_NON263_00007 | Q35: Number in fleet | R35: 0's | S35: 104 | T35: 104 | U35: 104 | V35: 104 | W35: 111 | X35: 111
A36: ED_NON261_00024 | E36: Capex | F36: 0 | G36: 0 | H36: 0 | I36: 0 | J36: 0 | K36: 0 | M36: ED_NON263_00008 | Q36: Proportion of total fleet expenditure allocated as regulatory expenditure | R36: % | S36: 1 | T36: 1 | U36: 1 | V36: 1 | W36: 1 | X36: 1
A37: ED_NON261_00025 | D37: Crane borer plant HCV | E37: Opex | F37: 0 | G37: 0 | H37: 0 | I37: 0 | J37: 0 | K37: 0 | M37: ED_NON263_00009 | P37: ELEVATED WORK PLATFORM (LCV) | Q37: Average kilometres travelled | R37: 0's | S37: 16855 | T37: 16855 | U37: 16855 | V37: 16855 | W37: 16855 | X37: 16855
A38: ED_NON261_00026 | E38: Capex | F38: 0 | G38: 0 | H38: 0 | I38: 0 | J38: 0 | K38: 0 | M38: ED_NON263_00010 | Q38: Number purchased | R38: 0's | S38: 1 | T38: 8 | U38: 3 | V38: 6 | W38: 7 | X38: 5
A39: ED_NON261_00027 | D39: Other fleet assets | E39: Opex | F39: 0 | G39: 0 | H39: 0 | I39: 0 | J39: 0 | K39: 0 | M39: ED_NON263_00011 | Q39: Number leased | R39: 0's | S39: 1 | T39: 1 | U39: 1 | V39: 1 | W39: 0 | X39: 0
A40: ED_NON261_00028 | E40: Capex | F40: 25576.92308 | G40: 51153.84615 | H40: 143230.7692 | I40: 148346.1538 | J40: 35807.69231 | K40: 216892.3077 | M40: ED_NON263_00012 | Q40: Number in fleet | R40: 0's | S40: 32 | T40: 32 | U40: 32 | V40: 32 | W40: 32 | X40: 32
A41: ED_NON261_00029 | D41: EWP Hired | E41: Opex | F41: 0 | G41: 0 | H41: 0 | I41: 0 | J41: 0 | K41: 0 | M41: ED_NON263_00013 | Q41: Proportion of total fleet expenditure allocated as regulatory expenditure | R41: % | S41: 1 | T41: 1 | U41: 1 | V41: 1 | W41: 1 | X41: 1
A42: ED_NON261_00030 | E42: Capex | F42: 0 | G42: 0 | H42: 0 | I42: 0 | J42: 0 | K42: 0 | M42: ED_NON263_00014 | P42: ELEVATED WORK PLATFORM (HCV) | Q42: Average kilometres travelled | R42: 0's | S42: 16855 | T42: 16855 | U42: 16855 | V42: 16855 | W42: 16855 | X42: 16855
A43: ED_NON261_00031 | D43: Car Hired | E43: Opex | F43: 0 | G43: 0 | H43: 0 | I43: 0 | J43: 0 | K43: 0 | M43: ED_NON263_00015 | Q43: Number purchased | R43: 0's | S43: 2 | T43: 2 | U43: 5 | V43: 3 | W43: 1 | X43: 7
A44: ED_NON261_00032 | E44: Capex | F44: 0 | G44: 0 | H44: 0 | I44: 0 | J44: 0 | K44: 0 | M44: ED_NON263_00016 | Q44: Number leased | R44: 0's | S44: 7 | T44: 7 | U44: 4 | V44: 4 | W44: 4 | X44: 3
A45: ED_NON261_00033 | D45: LCV Hired | E45: Opex | F45: 0 | G45: 0 | H45: 0 | I45: 0 | J45: 0 | K45: 0 | M45: ED_NON263_00017 | Q45: Number in fleet | R45: 0's | S45: 29 | T45: 29 | U45: 29 | V45: 29 | W45: 29 | X45: 29
A46: ED_NON261_00034 | E46: Capex | F46: 0 | G46: 0 | H46: 0 | I46: 0 | J46: 0 | K46: 0 | M46: ED_NON263_00018 | Q46: Proportion of total fleet expenditure allocated as regulatory expenditure | R46: % | S46: 1 | T46: 1 | U46: 1 | V46: 1 | W46: 1 | X46: 1
A47: ED_NON261_00035 | D47: Other Hire | E47: Opex | F47: 0 | G47: 0 | H47: 0 | I47: 0 | J47: 0 | K47: 0 | M47: ED_NON263_00019 | P47: HEAVY COMMERCIAL VEHICLE | Q47: Average kilometres travelled | R47: 0's | S47: 0 | T47: 0 | U47: 0 | V47: 0 | W47: 0 | X47: 0
A48: ED_NON261_00036 | E48: Capex | F48: 0 | G48: 0 | H48: 0 | I48: 0 | J48: 0 | K48: 0 | M48: ED_NON263_00020 | Q48: Number purchased | R48: 0's | S48: 0 | T48: 0 | U48: 0 | V48: 0 | W48: 0 | X48: 0
A49: ED_NON261_00037 | E49: Opex | F49: 0 | G49: 0 | H49: 0 | I49: 0 | J49: 0 | K49: 0 | M49: ED_NON263_00021 | Q49: Number leased | R49: 0's | S49: 0 | T49: 0 | U49: 0 | V49: 0 | W49: 0 | X49: 0
A50: ED_NON261_00038 | E50: Capex | F50: 0 | G50: 0 | H50: 0 | I50: 0 | J50: 0 | K50: 0 | M50: ED_NON263_00022 | Q50: Number in fleet | R50: 0's | S50: 0 | T50: 0 | U50: 0 | V50: 0 | W50: 0 | X50: 0
A51: ED_NON261_00039 | E51: Opex | F51: 0 | G51: 0 | H51: 0 | I51: 0 | J51: 0 | K51: 0 | M51: ED_NON263_00023 | Q51: Proportion of total fleet expenditure allocated as regulatory expenditure | R51: % | S51: 0 | T51: 0 | U51: 0 | V51: 0 | W51: 0 | X51: 0
A52: ED_NON261_00040 | E52: Capex | F52: 0 | G52: 0 | H52: 0 | I52: 0 | J52: 0 | K52: 0 | M52: ED_NON263_00024
A53: ED_NON261_00041 | E53: Opex | F53: 0 | G53: 0 | H53: 0 | I53: 0 | J53: 0 | K53: 0 | M53: ED_NON263_00025
A54: ED_NON261_00042 | E54: Capex | F54: 0 | G54: 0 | H54: 0 | I54: 0 | J54: 0 | K54: 0

Sheet 2.10 Overheads
C1: =SheetHeader -> REGULATORY REPORTING STATEMENT | E1: Worksheet navigation
C2: =dms_TradingName -> Victorian DNSP Reset
C3: =FRCP_span -> 2016 to 2020
C4: 2.10 OVERHEADS
C8: TABLE 2.10.1 - NETWORK OVERHEADS EXPENDITURE
E11: Expenditure categories currently reported under annual RIN | F11: =CONCATENATE("EXPENDITURE ($0's, real ", dms_DollarReal,")") -> EXPENDITURE ($0's, real December 2015)
A12: OVE2102 | F12: =CRCP_y5 -> 2015 | G12: =FRCP -> 2016 | H12: 2017 | I12: 2018 | J12: 2019 | K12: 2020
A13: ED_OVE2102_00001 | C13: NETWORK OVERHEADS | D13: Total Overhead Expenditure - Standard Control Services | E13: Network Management | F13: 5077948.342 | G13: 6428598.066 | H13: 5797546.176 | I13: 5726699.058 | J13: 5865295.944 | K13: 6006207.576
A14: ED_OVE2102_00002 | E14: Network Planning | F14: 4625640.31 | G14: 4732007.742 | H14: 4856786.297 | I14: 4985588.008 | J14: 5111839.654 | K14: 5240199.866
A15: ED_OVE2102_00003 | E15: Network Control and Operational Switching | F15: 5357494.556 | G15: 9418486.584 | H15: 9682050.299 | I15: 10789789.75 | J15: 10361556.06 | K15: 10548338.06
A16: ED_OVE2102_00004 | E16: Quality and Standard Functions | F16: 13261891.92 | G16: 13566851.51 | H16: 13924596.52 | I16: 14293876.07 | J16: 14655844.48 | K16: 15023858.24
A17: ED_OVE2102_00005 | E17: Project Governance and Related Functions | F17: 0 | G17: 0 | H17: 0 | I17: 0 | J17: 0 | K17: 0
A18: ED_OVE2102_00006 | E18: Other | F18: 19731981 | G18: 18559581.65 | H18: 17424566.55 | I18: 17872120.65 | J18: 21172646.49 | K18: 22593947.6
A19: ED_OVE2102_00007 | E19: Advertising/Marketing | F19: 952458.2493 | G19: 974360.1982 | H19: 1000053.152 | I19: 1026574.508 | J19: 1052570.784 | K19: 1079001.231
A20: ED_OVE2102_00008 | E20: Levies | F20: 1528257.402 | G20: 1563399.956 | H20: 1604625.33 | I20: 1647179.907 | J20: 1688891.973 | K20: 1731300.684
A21: ED_OVE2102_00009 | E21: GSL payments | F21: 70290.68794 | G21: 70290.68794 | H21: 70290.68794 | I21: 70290.68794 | J21: 70290.68794 | K21: 70290.68794
A22: ED_OVE2102_00010
A23: ED_OVE2102_00011
A24: ED_OVE2102_00012
A25: ED_OVE2102_00013
A26: ED_OVE2102_00014
A27: ED_OVE2102_00015
A28: ED_OVE2102_00016
A29: ED_OVE2102_00017
A30: ED_OVE2102_00018
A31: ED_OVE2102_00019
A32: ED_OVE2102_00020
A33: ED_OVE2102_00021
A34: ED_OVE2102_00022
A35: ED_OVE2102_00023
A36: ED_OVE2102_00024
A37: ED_OVE2102_00025
A38: ED_OVE2102_00026
A39: ED_OVE2102_00027
A40: ED_OVE2102_00028 | C40: NETWORK OVERHEADS | D40: Total Overhead Expenditure - Alternative Control Services | E40: Network Management | F40: 345610.5011 | G40: 354578.6647 | H40: 365130.3795 | I40: 375423.6366 | J40: 386459.1258 | K40: 398362.9942
A41: ED_OVE2102_00013 | E41: Network Planning | F41: 0 | G41: 0 | H41: 0 | I41: 0 | J41: 0 | K41: 0
A42: ED_OVE2102_00014 | E42: Network Control and Operational Switching | F42: 0 | G42: 0 | H42: 0 | I42: 0 | J42: 0 | K42: 0
A43: ED_OVE2102_00015 | E43: Quality and Standard Functions | F43: 0 | G43: 0 | H43: 0 | I43: 0 | J43: 0 | K43: 0
A44: ED_OVE2102_00016 | E44: Project Governance and Related Functions | F44: 0 | G44: 0 | H44: 0 | I44: 0 | J44: 0 | K44: 0
A45: ED_OVE2102_00017 | E45: Other | F45: 3226087.044 | G45: 3309948.626 | H45: 3408643.774 | I45: 3504872.441 | J45: 3608027.456 | K45: 3719386.189
A46: ED_OVE2102_00018 | E46: Smart Net - Customer Service | F46: 4911289.999 | G46: 5037359.435 | H46: 5185451.967 | I46: 5330369.584 | J46: 5485853.019 | K46: 5652772.803
A47: ED_OVE2102_00019
A48: ED_OVE2102_00020
A49: ED_OVE2102_00021
A50: ED_OVE2102_00022
A51: ED_OVE2102_00023
A52: ED_OVE2102_00024
A53: ED_OVE2102_00025
A54: ED_OVE2102_00026
A55: ED_OVE2102_00027
A56: ED_OVE2102_00028
A57: ED_OVE2102_00029
A58: ED_OVE2102_00030
A59: ED_OVE2102_00031
A60: ED_OVE2102_00032
A61: ED_OVE2102_00033
A62: ED_OVE2102_00034
A63: ED_OVE2102_00035
A64: ED_OVE2102_00036
A65: ED_OVE2102_00037
A66: ED_OVE2102_00038
A67: ED_OVE2102_00039 | C67: NETWORK OVERHEADS | D67: Total Overhead Expenditure - Negotiated Services | E67: Total | F67: 0 | G67: 0 | H67: 0 | I67: 0 | J67: 0 | K67: 0
A68: ED_OVE2102_00040 | C68: NETWORK OVERHEADS | D68: Total Overhead Expenditure - Unregulated Services | E68: Total | F68: -660323.3174 | G68: -668164.4418 | H68: -679047.8898 | I68: -689154.5796 | J68: -700224.3648 | K68: -713637.3516
A69: ED_OVE2102_00041 | C69: NETWORK OVERHEADS | D69: Capitalised Overheads - Standard Control Services | E69: Network Management | F69: 1907433.366 | G69: 1951295.14 | H69: 2002748.942 | I69: 2055861.736 | J69: 2107922.983 | K69: 2160853.72
A70: ED_OVE2102_00042 | E70: Network Planning | F70: 1737532.577 | G70: 1777487.451 | H70: 1824358.109 | I70: 1872739.988 | J70: 1920163.984 | K70: 1968380.023
A71: ED_OVE2102_00043 | E71: Network Control and Operational Switching | F71: 2012439.511 | G71: 2058715.92 | H71: 2113002.305 | I71: 2169039.013 | J71: 2223966.284 | K71: 2279810.912
A72: ED_OVE2102_00044 | E72: Quality and Standard Functions | F72: 4981573.945 | G72: 5096126.135 | H72: 5230506.146 | I72: 5369218.887 | J72: 5505185.342 | K72: 5643422.612
A73: ED_OVE2102_00045 | E73: Project Governance and Related Functions | F73: 0 | G73: 0 | H73: 0 | I73: 0 | J73: 0 | K73: 0
A74: ED_OVE2102_00046 | E74: Other | F74: 8130204.416 | G74: 8317159.931 | H74: 8536475.548 | I74: 8762862.419 | J74: 8984767.199 | K74: 9210378.076
A75: ED_OVE2102_00047
A76: ED_OVE2102_00048
A77: ED_OVE2102_00049
A78: ED_OVE2102_00050
A79: ED_OVE2102_00051
A80: ED_OVE2102_00052
A81: ED_OVE2102_00053
A82: ED_OVE2102_00054
A83: ED_OVE2102_00055
A84: ED_OVE2102_00056
A85: ED_OVE2102_00057
A86: ED_OVE2102_00058
A87: ED_OVE2102_00059
A88: ED_OVE2102_00060
A89: ED_OVE2102_00061
A90: ED_OVE2102_00062
A91: ED_OVE2102_00063
A92: ED_OVE2102_00064
A93: ED_OVE2102_00065
A94: ED_OVE2102_00066
A95: ED_OVE2102_00067
A96: ED_OVE2102_00068
A97: ED_OVE2102_00069
A98: ED_OVE2102_00070
C103: TABLE 2.10.2 - CORPORATE OVERHEADS EXPENDITURE
E104: Expenditure categories currently reported under annual RIN | F104: =CONCATENATE("EXPENDITURE ($0's, real ", dms_DollarReal,")") -> EXPENDITURE ($0's, real December 2015)
F105: =CRCP_y5 -> 2015 | G105: =FRCP -> 2016 | H105: 2017 | I105: 2018 | J105: 2019 | K105: 2020
C106: CORPORATE OVERHEADS | D106: Total Overhead Expenditure - Standard Control Services | E106: Office of the CEO | F106: 1275213.743 | G106: 2606675.893 | H106: 2680440.121 | I106: 2759366.874 | J106: 2843230.423 | K106: 2925756.7
A107: OVE2102 | E107: Legal and Secretariat | F107: 793009.5898 | G107: 811244.9881 | H107: 832636.7488 | I107: 854718.2305 | J107: 876362.5348 | K107: 898368.327
A108: ED_OVE2102_00001 | E108: Finance | F108: 9980544.308 | G108: 10210048.72 | H108: 10479278.02 | I108: 10757187.91 | J108: 11029595.63 | K108: 11306552.92
A109: ED_OVE2102_00002 | E109: Regulatory | F109: 1548046.045 | G109: 1583643.643 | H109: 1625402.823 | I109: 1668508.419 | J109: 1710760.593 | K109: 1753718.434
A110: ED_OVE2102_00003 | E110: Insurance | F110: 2502672.72 | G110: 2560222.129 | H110: 2627732.758 | I110: 2697420.089 | J110: 2765727.725 | K110: 2835176.186
A111: ED_OVE2102_00004 | E111: Non-network IT support | F111: 10889109.67 | G111: 11139506.71 | H111: 11433244.93 | I111: 11736453.97 | J111: 12033659.97 | K111: 12335829.68
A112: ED_OVE2102_00005 | E112: Human Resources | F112: 5884856.738 | G112: 6020180.078 | H112: 6178926.516 | I112: 6342791.314 | J112: 6503411.856 | K112: 6666714.968
A113: ED_OVE2102_00006
A114: ED_OVE2102_00007
A115: ED_OVE2102_00008
A116: ED_OVE2102_00009
A117: ED_OVE2102_00010
A118: ED_OVE2102_00011
A119: ED_OVE2102_00012
A120: ED_OVE2102_00013
A121: ED_OVE2102_00014
A122: ED_OVE2102_00015
A123: ED_OVE2102_00016
A124: ED_OVE2102_00017
A125: ED_OVE2102_00018
A126: ED_OVE2102_00019 | C126: CORPORATE OVERHEADS | D126: Total Overhead Expenditure - Alternative Control Services | E126: Office of the CEO | F126: 153997.249 | G126: 157950.2525 | H126: 162593.807 | I126: 167137.8095 | J126: 172013.1114 | K126: 177247.0087
A127: ED_OVE2102_00020 | E127: Legal and Secretariat | F127: 95765.35382 | G127: 98223.58458 | H127: 101111.2442 | I127: 103936.9961 | J127: 106968.771 | K127: 110223.5436
A128: ED_OVE2102_00021 | E128: Finance | F128: 1059808.736 | G128: 1087013.297 | H128: 1118970.229 | I128: 1150242.045 | J128: 1183793.862 | K128: 1219813.532
A129: ED_OVE2102_00022 | E129: Regulatory | F129: 26942.18691 | G129: 27633.77432 | H129: 28446.17528 | I129: 29241.15939 | J129: 30094.1051 | K129: 31009.78795
A130: ED_OVE2102_00023 | E130: Insurance | F130: 302227.5412 | G130: 309985.5143 | H130: 319098.7294 | I130: 328016.5687 | J130: 337584.5999 | K130: 347856.3933
A131: ED_OVE2102_00024 | E131: Non-network IT support | F131: 888640.2795 | G131: 911451.0642 | H131: 938246.6698 | I131: 964467.8115 | J131: 992600.7141 | K131: 1022802.89
A132: ED_OVE2102_00025 | E132: Human Resources | F132: 645268.4158 | G132: 661832.0121 | H132: 681289.1067 | I132: 700329.0659 | J132: 720757.212 | K132: 742687.9195
A133: ED_OVE2102_00026
A134: ED_OVE2102_00027
A135: ED_OVE2102_00028
A136: ED_OVE2102_00029
A137: ED_OVE2102_00030
A138: ED_OVE2102_00031
A139: ED_OVE2102_00032
A140: ED_OVE2102_00033
A141: ED_OVE2102_00034
A142: ED_OVE2102_00035
A143: ED_OVE2102_00036
A144: ED_OVE2102_00037
A145: ED_OVE2102_00038
A146: ED_OVE2102_00039 | C146: CORPORATE OVERHEADS | D146: Total Overhead Expenditure - Negotiated Services | E146: Total | F146: 0 | G146: 0 | H146: 0 | I146: 0 | J146: 0 | K146: 0
A147: ED_OVE2102_00040 | C147: CORPORATE OVERHEADS | D147: Total Overhead Expenditure - Unregulated Services | E147: Total | F147: 0 | G147: 0 | H147: 0 | I147: 0 | J147: 0 | K147: 0
A148: ED_OVE2102_00041 | C148: CORPORATE OVERHEADS | D148: Capitalised Overheads - Standard Control Services | E148: Non-network IT support | F148: 10889109.67 | G148: 11139506.71 | H148: 11433244.93 | I148: 11736453.97 | J148: 12033659.97 | K148: 12335829.68
A149: ED_OVE2102_00042 | E149: Human Resources | F149: 1670290.621 | G149: 1708699.254 | H149: 1753756.033 | I149: 1800265.548 | J149: 1845854.251 | K149: 1892204.344
A150: ED_OVE2102_00043
A151: ED_OVE2102_00044
A152: ED_OVE2102_00045
A153: ED_OVE2102_00046
A154: ED_OVE2102_00047
A155: ED_OVE2102_00048
A156: ED_OVE2102_00049
A157: ED_OVE2102_00050
A158: ED_OVE2102_00051
A159: ED_OVE2102_00052
A160: ED_OVE2102_00053
A161: ED_OVE2102_00054
A162: ED_OVE2102_00055
A163: ED_OVE2102_00056
A164: ED_OVE2102_00057
A165: ED_OVE2102_00058
A166: ED_OVE2102_00059
A167: ED_OVE2102_00060

Sheet 2.11 Labour
C1: =SheetHeader -> REGULATORY REPORTING STATEMENT
C2: =dms_TradingName -> Victorian DNSP Reset
C3: =FRCP_span -> 2016 to 2020
C4: 2.11 LABOUR
C6: TABLE 2.11.1 - COST METRICS PER ANNUM
F9: ASL (0's) | L9: =CONCATENATE("TOTAL LABOUR EXPENDITURE ($0's, real ", dms_DollarReal,")") -> TOTAL LABOUR EXPENDITURE ($0's, real December 2015) | R9: AVERAGE PRODUCTIVE WORK HOURS PER ASL (0's) | X9: STAND-DOWN OCCURENCES PER ASL (0's)
F11: =CRCP_y5 -> 2015 | G11: =FRCP -> 2016 | H11: 2017 | I11: 2018 | J11: 2019 | K11: 2020 | L11: =CRCP_y5 -> 2015 | M11: =FRCP -> 2016 | N11: 2017 | O11: 2018 | P11: 2019 | Q11: 2020 | R11: =CRCP_y5 -> 2015 | S11: =FRCP -> 2016 | T11: 2017 | U11: 2018 | V11: 2019 | W11: 2020 | X11: =CRCP_y5 -> 2015 | Y11: =FRCP -> 2016 | Z11: 2017 | AA11: 2018 | AB11: 2019 | AC11: 2020
A12: ED_LAB2111_00001 | C12: CORPORATE OVERHEADS INTERNAL LABOUR COSTS | D12: LABOUR CLASSIFICATION LEVEL | E12: Executive manager | F12: 1.965155557 | G12: 1.996794487 | H12: 2.028852149 | I12: 2.059297594 | J12: 2.089914868 | K12: 2.119842957 | R12: 218.3084903 | S12: 224.763244 | T12: 231.8965653 | U12: 239.4429838 | V12: 247.090477 | W12: 255.0489892 | X12: 0 | Y12: 0 | Z12: 0 | AA12: 0 | AB12: 0 | AC12: 0
A13: ED_LAB2111_00002 | E13: Employee (optional) | F13: 0 | G13: 0 | H13: 0 | I13: 0 | J13: 0 | K13: 0 | L13: 0 | M13: 0 | N13: 0 | O13: 0 | P13: 0 | Q13: 0 | R13: 0 | S13: 0 | T13: 0 | U13: 0 | V13: 0 | W13: 0 | X13: 0 | Y13: 0 | Z13: 0 | AA13: 0 | AB13: 0 | AC13: 0
A14: ED_LAB2111_00003 | E14: Labour hire (optional) | F14: 0 | G14: 0 | H14: 0 | I14: 0 | J14: 0 | K14: 0 | L14: 0 | M14: 0 | N14: 0 | O14: 0 | P14: 0 | Q14: 0 | R14: 0 | S14: 0 | T14: 0 | U14: 0 | V14: 0 | W14: 0 | X14: 0 | Y14: 0 | Z14: 0 | AA14: 0 | AB14: 0 | AC14: 0
A15: ED_LAB2111_00004 | E15: Senior manager | F15: 6.033113578 | G15: 6.130246477 | H15: 6.228664901 | I15: 6.322133751 | J15: 6.416130122 | K15: 6.508010664 | L15: 2779171.917 | M15: 2838832.195 | N15: 2902688.838 | O15: 2967233.348 | P15: 3031026.844 | Q15: 3095331.594 | R15: 127.6198497 | S15: 131.3932014 | T15: 135.5632334 | U15: 139.9747558 | V15: 144.4453649 | W15: 149.0977911 | X15: 0 | Y15: 0 | Z15: 0 | AA15: 0 | AB15: 0 | AC15: 0
A16: ED_LAB2111_00005 | E16: Employee (optional) | F16: 0 | G16: 0 | H16: 0 | I16: 0 | J16: 0 | K16: 0 | L16: 0 | M16: 0 | N16: 0 | O16: 0 | P16: 0 | Q16: 0 | R16: 0 | S16: 0 | T16: 0 | U16: 0 | V16: 0 | W16: 0 | X16: 0 | Y16: 0 | Z16: 0 | AA16: 0 | AB16: 0 | AC16: 0
A17: ED_LAB2111_00006 | E17: Labour hire (optional) | F17: 0 | G17: 0 | H17: 0 | I17: 0 | J17: 0 | K17: 0 | L17: 0 | M17: 0 | N17: 0 | O17: 0 | P17: 0 | Q17: 0 | R17: 0 | S17: 0 | T17: 0 | U17: 0 | V17: 0 | W17: 0 | X17: 0 | Y17: 0 | Z17: 0 | AA17: 0 | AB17: 0 | AC17: 0
A18: ED_LAB2111_00007 | E18: Manager | F18: 23.44567453 | G18: 23.82314899 | H18: 24.20561922 | I18: 24.56885459 | J18: 24.93413999 | K18: 25.29120294 | L18: 5906669.761 | M18: 6033467.803 | N18: 6169184.525 | O18: 6306363.195 | P18: 6441945.709 | Q18: 6578614.808 | R18: 79.26866789 | S18: 81.61241425 | T18: 84.20255117 | U18: 86.94268529 | V18: 89.71952 | W18: 92.60928698 | X18: 0 | Y18: 0 | Z18: 0 | AA18: 0 | AB18: 0 | AC18: 0
A19: ED_LAB2111_00008 | E19: Employee (optional) | F19: 0 | G19: 0 | H19: 0 | I19: 0 | J19: 0 | K19: 0 | L19: 0 | M19: 0 | N19: 0 | O19: 0 | P19: 0 | Q19: 0 | R19: 0 | S19: 0 | T19: 0 | U19: 0 | V19: 0 | W19: 0 | X19: 0 | Y19: 0 | Z19: 0 | AA19: 0 | AB19: 0 | AC19: 0
A20: ED_LAB2111_00009 | E20: Labour hire (optional) | F20: 0 | G20: 0 | H20: 0 | I20: 0 | J20: 0 | K20: 0 | L20: 0 | M20: 0 | N20: 0 | O20: 0 | P20: 0 | Q20: 0 | R20: 0 | S20: 0 | T20: 0 | U20: 0 | V20: 0 | W20: 0 | X20: 0 | Y20: 0 | Z20: 0 | AA20: 0 | AB20: 0 | AC20: 0
A21: ED_LAB2111_00010 | E21: Professional | F21: 48.5905502 | G21: 49.37285621 | H21: 50.16551581 | I21: 50.91831166 | J21: 51.67535614 | K21: 52.4153598 | L21: 8095975.218 | M21: 8269770.918 | N21: 8455791.003 | O21: 8643814.909 | P21: 8829651.042 | Q21: 9016976.505 | R21: 54.12615656 | S21: 55.72651122 | T21: 57.49510606 | U21: 59.36612183 | V21: 61.26219747 | W21: 63.23538542 | X21: 0 | Y21: 0 | Z21: 0 | AA21: 0 | AB21: 0 | AC21: 0
A22: ED_LAB2111_00011 | E22: Employee (optional) | F22: 0 | G22: 0 | H22: 0 | I22: 0 | J22: 0 | K22: 0 | L22: 0 | M22: 0 | N22: 0 | O22: 0 | P22: 0 | Q22: 0 | R22: 0 | S22: 0 | T22: 0 | U22: 0 | V22: 0 | W22: 0 | X22: 0 | Y22: 0 | Z22: 0 | AA22: 0 | AB22: 0 | AC22: 0
A23: ED_LAB2111_00012 | E23: Labour hire (optional) | F23: 0 | G23: 0 | H23: 0 | I23: 0 | J23: 0 | K23: 0 | L23: 0 | M23: 0 | N23: 0 | O23: 0 | P23: 0 | Q23: 0 | R23: 0 | S23: 0 | T23: 0 | U23: 0 | V23: 0 | W23: 0 | X23: 0 | Y23: 0 | Z23: 0 | AA23: 0 | AB23: 0 | AC23: 0
A24: ED_LAB2111_00013 | E24: Semi professional | F24: 24.24310472 | G24: 24.63341779 | H24: 25.02889653 | I24: 25.4044862 | J24: 25.78219562 | K24: 26.15140292 | L24: 2892662.932 | M24: 2954759.513 | N24: 3021223.822 | O24: 3088404.09 | P24: 3154802.674 | Q24: 3221733.391 | R24: 39.60213519 | S24: 40.77305635 | T24: 42.0670727 | U24: 43.43602672 | V24: 44.82331614 | W24: 46.26702581 | X24: 0 | Y24: 0 | Z24: 0 | AA24: 0 | AB24: 0 | AC24: 0
A25: ED_LAB2111_00014 | E25: Employee (optional) | F25: 0 | G25: 0 | H25: 0 | I25: 0 | J25: 0 | K25: 0 | L25: 0 | M25: 0 | N25: 0 | O25: 0 | P25: 0 | Q25: 0 | R25: 0 | S25: 0 | T25: 0 | U25: 0 | V25: 0 | W25: 0 | X25: 0 | Y25: 0 | Z25: 0 | AA25: 0 | AB25: 0 | AC25: 0
A26: ED_LAB2111_00015 | E26: Labour hire (optional) | F26: 0 | G26: 0 | H26: 0 | I26: 0 | J26: 0 | K26: 0 | L26: 0 | M26: 0 | N26: 0 | O26: 0 | P26: 0 | Q26: 0 | R26: 0 | S26: 0 | T26: 0 | U26: 0 | V26: 0 | W26: 0 | X26: 0 | Y26: 0 | Z26: 0 | AA26: 0 | AB26: 0 | AC26: 0
A27: ED_LAB2111_00016 | E27: Support staff | F27: 5.498943595 | G27: 5.587476378 | H27: 5.677180866 | I27: 5.762374013 | J27: 5.848047974 | K27: 5.931793442 | L27: 578454.1902 | M27: 590871.8234 | N27: 604162.8841 | O27: 617597.1169 | P27: 630875.0343 | Q27: 644259.3636 | R27: 28.48733963 | S27: 29.32962827 | T27: 30.26046402 | U27: 31.24520532 | V27: 32.24313597 | W27: 33.28165189 | X27: 0 | Y27: 0 | Z27: 0 | AA27: 0 | AB27: 0 | AC27: 0
A28: ED_LAB2111_00017 | E28: Employee (optional) | F28: 0 | G28: 0 | H28: 0 | I28: 0 | J28: 0 | K28: 0 | L28: 0 | M28: 0 | N28: 0 | O28: 0 | P28: 0 | Q28: 0 | R28: 0 | S28: 0 | T28: 0 | U28: 0 | V28: 0 | W28: 0 | X28: 0 | Y28: 0 | Z28: 0 | AA28: 0 | AB28: 0 | AC28: 0
A29: ED_LAB2111_00018 | E29: Labour hire (optional) | F29: 0 | G29: 0 | H29: 0 | I29: 0 | J29: 0 | K29: 0 | L29: 0 | M29: 0 | N29: 0 | O29: 0 | P29: 0 | Q29: 0 | R29: 0 | S29: 0 | T29: 0 | U29: 0 | V29: 0 | W29: 0 | X29: 0 | Y29: 0 | Z29: 0 | AA29: 0 | AB29: 0 | AC29: 0
A30: ED_LAB2111_00019 | E30: Intern, junior staff, apprentice | F30: 0 | G30: 0 | H30: 0 | I30: 0 | J30: 0 | K30: 0 | L30: 0 | M30: 0 | N30: 0 | O30: 0 | P30: 0 | Q30: 0 | R30: 0 | S30: 0 | T30: 0 | U30: 0 | V30: 0 | W30: 0 | X30: 0 | Y30: 0 | Z30: 0 | AA30: 0 | AB30: 0 | AC30: 0
A31: ED_LAB2111_00020 | E31: Employee (optional) | F31: 0 | G31: 0 | H31: 0 | I31: 0 | J31: 0 | K31: 0 | L31: 0 | M31: 0 | N31: 0 | O31: 0 | P31: 0 | Q31: 0 | R31: 0 | S31: 0 | T31: 0 | U31: 0 | V31: 0 | W31: 0 | X31: 0 | Y31: 0 | Z31: 0 | AA31: 0 | AB31: 0 | AC31: 0
A32: ED_LAB2111_00021 | E32: Labour hire (optional) | F32: 0 | G32: 0 | H32: 0 | I32: 0 | J32: 0 | K32: 0 | L32: 0 | M32: 0 | N32: 0 | O32: 0 | P32: 0 | Q32: 0 | R32: 0 | S32: 0 | T32: 0 | U32: 0 | V32: 0 | W32: 0 | X32: 0 | Y32: 0 | Z32: 0 | AA32: 0 | AB32: 0 | AC32: 0
A33: ED_LAB2111_00022 | C33: NETWORK OVERHEADS INTERNAL LABOUR COSTS | D33: LABOUR CLASSIFICATION LEVEL | E33: Executive manager | F33: 0.405853573 | G33: 0.4123878001 | H33: 0.4190085057 | I33: 0.4252962486 | J33: 0.4316194783 | K33: 0.4378003741 | R33: 187.0969262 | S33: 192.6288438 | T33: 198.7423142 | U33: 205.2098213 | V33: 211.7639524 | W33: 218.5846362 | X33: 0 | Y33: 0 | Z33: 0 | AA33: 0 | AB33: 0 | AC33: 0
A34: ED_LAB2111_00023 | E34: Employee (optional) | F34: 0 | G34: 0 | H34: 0 | I34: 0 | J34: 0 | K34: 0 | L34: 0 | M34: 0 | N34: 0 | O34: 0 | P34: 0 | Q34: 0 | R34: 0 | S34: 0 | T34: 0 | U34: 0 | V34: 0 | W34: 0 | X34: 0 | Y34: 0 | Z34: 0 | AA34: 0 | AB34: 0 | AC34: 0
A35: ED_LAB2111_00024 | E35: Labour hire (optional) | F35: 0 | G35: 0 | H35: 0 | I35: 0 | J35: 0 | K35: 0 | L35: 0 | M35: 0 | N35: 0 | O35: 0 | P35: 0 | Q35: 0 | R35: 0 | S35: 0 | T35: 0 | U35: 0 | V35: 0 | W35: 0 | X35: 0 | Y35: 0 | Z35: 0 | AA35: 0 | AB35: 0 | AC35: 0
A36: ED_LAB2111_00025 | E36: Senior manager | F36: 2.533984707 | G36: 2.574781764 | H36: 2.616118758 | I36: 2.655376868 | J36: 2.694856544 | K36: 2.733447544 | R36: 108.2763261 | S36: 111.4777455 | T36: 115.0157198 | U36: 118.7585814 | V36: 122.5515738 | W36: 126.4988251 | X36: 0 | Y36: 0 | Z36: 0 | AA36: 0 | AB36: 0 | AC36: 0
A37: ED_LAB2111_00026 | E37: Employee (optional) | F37: 0 | G37: 0 | H37: 0 | I37: 0 | J37: 0 | K37: 0 | L37: 0 | M37: 0 | N37: 0 | O37: 0 | P37: 0 | Q37: 0 | R37: 0 | S37: 0 | T37: 0 | U37: 0 | V37: 0 | W37: 0 | X37: 0 | Y37: 0 | Z37: 0 | AA37: 0 | AB37: 0 | AC37: 0
A38: ED_LAB2111_00027 | E38: Labour hire (optional) | F38: 0 | G38: 0 | H38: 0 | I38: 0 | J38: 0 | K38: 0 | L38: 0 | M38: 0 | N38: 0 | O38: 0 | P38: 0 | Q38: 0 | R38: 0 | S38: 0 | T38: 0 | U38: 0 | V38: 0 | W38: 0 | X38: 0 | Y38: 0 | Z38: 0 | AA38: 0 | AB38: 0 | AC38: 0
A39: ED_LAB2111_00028 | E39: Manager | F39: 21.5539053 | G39: 21.90092236 | H39: 22.25253208 | I39: 22.58645895 | J39: 22.92227045 | K39: 23.25052293 | L39: 5885127.054 | M39: 6011462.641 | N39: 6146684.378 | O39: 6283362.733 | P39: 6418450.752 | Q39: 6554621.394 | R39: 84.02237818 | S39: 86.50667807 | T39: 89.25214447 | U39: 92.15660333 | V39: 95.0999637 | W39: 98.16302885 | X39: 0 | Y39: 0 | Z39: 0 | AA39: 0 | AB39: 0 | AC39: 0
A40: ED_LAB2111_00029 | E40: Employee (optional) | F40: 0 | G40: 0 | H40: 0 | I40: 0 | J40: 0 | K40: 0 | L40: 0 | M40: 0 | N40: 0 | O40: 0 | P40: 0 | Q40: 0 | R40: 0 | S40: 0 | T40: 0 | U40: 0 | V40: 0 | W40: 0 | X40: 0 | Y40: 0 | Z40: 0 | AA40: 0 | AB40: 0 | AC40: 0
A41: ED_LAB2111_00030 | E41: Labour hire (optional) | F41: 0 | G41: 0 | H41: 0 | I41: 0 | J41: 0 | K41: 0 | L41: 0 | M41: 0 | N41: 0 | O41: 0 | P41: 0 | Q41: 0 | R41: 0 | S41: 0 | T41: 0 | U41: 0 | V41: 0 | W41: 0 | X41: 0 | Y41: 0 | Z41: 0 | AA41: 0 | AB41: 0 | AC41: 0
A42: ED_LAB2111_00031 | E42: Professional | F42: 86.19330509 | G42: 87.58101402 | H42: 88.98708887 | I42: 90.32245062 | J42: 91.6653489 | K42: 92.97801897 | L42: 14068088.96 | M42: 14370087.58 | N42: 14693328.08 | O42: 15020050.56 | P42: 15342971.41 | Q42: 15668480.22 | R42: 57.4520575 | S42: 59.15074948 | T42: 61.02801952 | U42: 63.01400398 | V42: 65.02658816 | W42: 67.12102299 | X42: 0 | Y42: 0 | Z42: 0 | AA42: 0 | AB42: 0 | AC42: 0
A43: ED_LAB2111_00032 | E43: Employee (optional) | F43: 0 | G43: 0 | H43: 0 | I43: 0 | J43: 0 | K43: 0 | L43: 0 | M43: 0 | N43: 0 | O43: 0 | P43: 0 | Q43: 0 | R43: 0 | S43: 0 | T43: 0 | U43: 0 | V43: 0 | W43: 0 | X43: 0 | Y43: 0 | Z43: 0 | AA43: 0 | AB43: 0 | AC43: 0
A44: ED_LAB2111_00033 | E44: Labour hire (optional) | F44: 0 | G44: 0 | H44: 0 | I44: 0 | J44: 0 | K44: 0 | L44: 0 | M44: 0 | N44: 0 | O44: 0 | P44: 0 | Q44: 0 | R44: 0 | S44: 0 | T44: 0 | U44: 0 | V44: 0 | W44: 0 | X44: 0 | Y44: 0 | Z44: 0 | AA44: 0 | AB44: 0 | AC44: 0
A45: ED_LAB2111_00034 | E45: Semi professional | F45: 109.7705797 | G45: 111.5378819 | H45: 113.3285737 | I45: 115.0292097 | J45: 116.7394437 | K45: 118.4111809 | L45: 17879671.57 | M45: 18263493.16 | N45: 18674311.86 | O45: 19089555.93 | P45: 19499968.38 | Q45: 19913669.96 | R45: 56.1028987 | S45: 57.76169994 | T45: 59.59488565 | U45: 61.53423282 | V45: 63.49955506 | W45: 65.54480583 | X45: 0 | Y45: 0 | Z45: 0 | AA45: 0 | AB45: 0 | AC45: 0
A46: ED_LAB2111_00035 | E46: Employee (optional) | F46: 0 | G46: 0 | H46: 0 | I46: 0 | J46: 0 | K46: 0 | L46: 0 | M46: 0 | N46: 0 | O46: 0 | P46: 0 | Q46: 0 | R46: 0 | S46: 0 | T46: 0 | U46: 0 | V46: 0 | W46: 0 | X46: 0 | Y46: 0 | Z46: 0 | AA46: 0 | AB46: 0 | AC46: 0
A47: ED_LAB2111_00036 | E47: Labour hire (optional) | F47: 0 | G47: 0 | H47: 0 | I47: 0 | J47: 0 | K47: 0 | L47: 0 | M47: 0 | N47: 0 | O47: 0 | P47: 0 | Q47: 0 | R47: 0 | S47: 0 | T47: 0 | U47: 0 | V47: 0 | W47: 0 | X47: 0 | Y47: 0 | Z47: 0 | AA47: 0 | AB47: 0 | AC47: 0
A48: ED_LAB2111_00037 | E48: Support staff | F48: 22.38305198 | G48: 22.74341827 | H48: 23.10855389 | I48: 23.45532643 | J48: 23.80405609 | K48: 24.14493596 | L48: 2609176.529 | M48: 2665187.528 | N48: 2725138.211 | O48: 2785734.686 | P48: 2845626.084 | Q48: 2905997.465 | R48: 52.40673696 | S48: 53.95625334 | T48: 55.66866542 | U48: 57.48024484 | V48: 59.31608806 | W48: 61.22659396 | X48: 0 | Y48: 0 | Z48: 0 | AA48: 0 | AB48: 0 | AC48: 0
A49: ED_LAB2111_00038 | E49: Employee (optional) | F49: 0 | G49: 0 | H49: 0 | I49: 0 | J49: 0 | K49: 0 | L49: 0 | M49: 0 | N49: 0 | O49: 0 | P49: 0 | Q49: 0 | R49: 0 | S49: 0 | T49: 0 | U49: 0 | V49: 0 | W49: 0 | X49: 0 | Y49: 0 | Z49: 0 | AA49: 0 | AB49: 0 | AC49: 0
A50: ED_LAB2111_00039 | E50: Labour hire (optional) | F50: 0 | G50: 0 | H50: 0 | I50: 0 | J50: 0 | K50: 0 | L50: 0 | M50: 0 | N50: 0 | O50: 0 | P50: 0 | Q50: 0 | R50: 0 | S50: 0 | T50: 0 | U50: 0 | V50: 0 | W50: 0 | X50: 0 | Y50: 0 | Z50: 0 | AA50: 0 | AB50: 0 | AC50: 0
A51: ED_LAB2111_00040 | E51: Intern, junior staff, apprentice | F51: 0.2442023024 | G51: 0.2481339502 | H51: 0.2521176321 | I51: 0.2559009702 | J51: 0.2597056607 | K51: 0.2634247089 | R51: 36.65086485 | S51: 37.73452544 | T51: 38.9321078 | U51: 40.19904324 | V51: 41.48294767 | W51: 42.81906775 | X51: 0 | Y51: 0 | Z51: 0 | AA51: 0 | AB51: 0 | AC51: 0
A52: ED_LAB2111_00041 | E52: Employee (optional) | F52: 0 | G52: 0 | H52: 0 | I52: 0 | J52: 0 | K52: 0 | L52: 0 | M52: 0 | N52: 0 | O52: 0 | P52: 0 | Q52: 0 | R52: 0 | S52: 0 | T52: 0 | U52: 0 | V52: 0 | W52: 0 | X52: 0 | Y52: 0 | Z52: 0 | AA52: 0 | AB52: 0 | AC52: 0
A53: ED_LAB2111_00042 | E53: Labour hire (optional) | F53: 0 | G53: 0 | H53: 0 | I53: 0 | J53: 0 | K53: 0 | L53: 0 | M53: 0 | N53: 0 | O53: 0 | P53: 0 | Q53: 0 | R53: 0 | S53: 0 | T53: 0 | U53: 0 | V53: 0 | W53: 0 | X53: 0 | Y53: 0 | Z53: 0 | AA53: 0 | AB53: 0 | AC53: 0
A54: ED_LAB2111_00043 | C54: TOTAL DIRECT NETWORK LABOUR INTERNAL LABOUR COSTS | D54: LABOUR CLASSIFICATION LEVEL | E54: Skilled electrical worker | F54: 152.0981348 | G54: 154.546909 | H54: 157.0280919 | I54: 159.3844934 | J54: 161.754194 | K54: 164.0705533 | L54: 25116708.87 | M54: 25655887.4 | N54: 26232990.49 | O54: 26816310.18 | P54: 27392842.58 | Q54: 27973995.43 | R54: 95.40728646 | S54: 98.22820533 | T54: 101.3456784 | U54: 104.6436871 | V54: 107.9858685 | W54: 111.4639744 | X54: 0 | Y54: 0 | Z54: 0 | AA54: 0 | AB54: 0 | AC54: 0
A55: ED_LAB2111_00044 | E55: Employee (optional) | F55: 0 | G55: 0 | H55: 0 | I55: 0 | J55: 0 | K55: 0 | L55: 0 | M55: 0 | N55: 0 | O55: 0 | P55: 0 | Q55: 0 | R55: 0 | S55: 0 | T55: 0 | U55: 0 | V55: 0 | W55: 0 | X55: 0 | Y55: 0 | Z55: 0 | AA55: 0 | AB55: 0 | AC55: 0
A56: ED_LAB2111_00045 | E56: Labour hire (optional) | F56: 0 | G56: 0 | H56: 0 | I56: 0 | J56: 0 | K56: 0 | L56: 0 | M56: 0 | N56: 0 | O56: 0 | P56: 0 | Q56: 0 | R56: 0 | S56: 0 | T56: 0 | U56: 0 | V56: 0 | W56: 0 | X56: 0 | Y56: 0 | Z56: 0 | AA56: 0 | AB56: 0 | AC56: 0
A57: ED_LAB2111_00046 | E57: Skilled non electical worker | F57: 0.08696862279 | G57: 0.08836881431 | H57: 0.08978753694 | I57: 0.09113491041 | J57: 0.0924898882 | K57: 0.09381436587 | R57: 52.66573129 | S57: 54.22290539 | T57: 55.94378021 | U57: 57.76431247 | V57: 59.60922843 | W57: 61.52917607 | X57: 0 | Y57: 0 | Z57: 0 | AA57: 0 | AB57: 0 | AC57: 0
A58: ED_LAB2111_00047 | E58: Employee (optional) | F58: 0 | G58: 0 | H58: 0 | I58: 0 | J58: 0 | K58: 0 | L58: 0 | M58: 0 | N58: 0 | O58: 0 | P58: 0 | Q58: 0 | R58: 0 | S58: 0 | T58: 0 | U58: 0 | V58: 0 | W58: 0 | X58: 0 | Y58: 0 | Z58: 0 | AA58: 0 | AB58: 0 | AC58: 0
A59: ED_LAB2111_00048 | E59: Labour hire (optional) | F59: 0 | G59: 0 | H59: 0 | I59: 0 | J59: 0 | K59: 0 | L59: 0 | M59: 0 | N59: 0 | O59: 0 | P59: 0 | Q59: 0 | R59: 0 | S59: 0 | T59: 0 | U59: 0 | V59: 0 | W59: 0 | X59: 0 | Y59: 0 | Z59: 0 | AA59: 0 | AB59: 0 | AC59: 0
A60: ED_LAB2111_00049 | E60: Apprentice | F60: 13.54380723 | G60: 13.56337647 | H60: 13.56277046 | I60: 13.54877698 | J60: 13.54692932 | K60: 13.53961995 | L60: 1036103.915 | M60: 1058345.881 | N60: 1082152.295 | O60: 1106215.153 | P60: 1129998.026 | Q60: 1153971.499 | R60: 62.0421362 | S60: 63.8765436 | T60: 65.90379638 | U60: 68.04844922 | V60: 70.22182695 | W60: 72.4835947 | X60: 0 | Y60: 0 | Z60: 0 | AA60: 0 | AB60: 0 | AC60: 0
A61: ED_LAB2111_00050 | E61: Employee (optional) | F61: 0 | G61: 0 | H61: 0 | I61: 0 | J61: 0 | K61: 0 | L61: 0 | M61: 0 | N61: 0 | O61: 0 | P61: 0 | Q61: 0 | R61: 0 | S61: 0 | T61: 0 | U61: 0 | V61: 0 | W61: 0 | X61: 0 | Y61: 0 | Z61: 0 | AA61: 0 | AB61: 0 | AC61: 0
A62: ED_LAB2111_00051 | E62: Labour hire (optional) | F62: 0 | G62: 0 | H62: 0 | I62: 0 | J62: 0 | K62: 0 | L62: 0 | M62: 0 | N62: 0 | O62: 0 | P62: 0 | Q62: 0 | R62: 0 | S62: 0 | T62: 0 | U62: 0 | V62: 0 | W62: 0 | X62: 0 | Y62: 0 | Z62: 0 | AA62: 0 | AB62: 0 | AC62: 0
A63: ED_LAB2111_00052 | E63: Unskilled worker | F63: 8.61258448 | G63: 8.751246763 | H63: 8.891744199 | I63: 9.02517586 | J63: 9.159360585 | K63: 9.290524853 | L63: 1012445.453 | M63: 1034179.545 | N63: 1057442.362 | O63: 1080955.767 | P63: 1104195.58 | Q63: 1127621.642 | R63: 87.53289165 | S63: 90.12098732 | T63: 92.98116121 | U63: 96.00697039 | V63: 99.07330641 | W63: 102.2643486 | X63: 0 | Y63: 0 | Z63: 0 | AA63: 0 | AB63: 0 | AC63: 0
A64: ED_LAB2111_00053 | E64: Employee (optional) | F64: 0 | G64: 0 | H64: 0 | I64: 0 | J64: 0 | K64: 0 | L64: 0 | M64: 0 | N64: 0 | O64: 0 | P64: 0 | Q64: 0 | R64: 0 | S64: 0 | T64: 0 | U64: 0 | V64: 0 | W64: 0 | X64: 0 | Y64: 0 | Z64: 0 | AA64: 0 | AB64: 0 | AC64: 0
A65: ED_LAB2111_00054 | E65: Labour hire (optional) | F65: 0 | G65: 0 | H65: 0 | I65: 0 | J65: 0 | K65: 0 | L65: 0 | M65: 0 | N65: 0 | O65: 0 | P65: 0 | Q65: 0 | R65: 0 | S65: 0 | T65: 0 | U65: 0 | V65: 0 | W65: 0 | X65: 0 | Y65: 0 | Z65: 0 | AA65: 0 | AB65: 0 | AC65: 0

Sheet 2.12 Input tables
C1: =SheetHeader -> REGULATORY REPORTING STATEMENT
C2: =dms_TradingName -> Victorian DNSP Reset
C3: =FRCP_span -> 2016 to 2020
C4: 2.12 INPUT TABLES
E7: =CONCATENATE("DIRECT MATERIAL EXPENDITURE ($0's, real ", dms_DollarReal,")") -> DIRECT MATERIAL EXPENDITURE ($0's, real December 2015) | K7: =CONCATENATE("DIRECT LABOUR EXPENDITURE ($0's, real ", dms_DollarReal,")") -> DIRECT LABOUR EXPENDITURE ($0's, real December 2015) | Q7: =CONCATENATE("CONTRACT EXPENDITURE ($0's, real ", dms_DollarReal,")") -> CONTRACT EXPENDITURE ($0's, real December 2015) | W7: =CONCATENATE("OTHER EXPENDITURE ($0's, real ", dms_DollarReal,")") -> OTHER EXPENDITURE ($0's, real December 2015) | AC7: =CONCATENATE("RELATED PARTY CONTRACT EXPENDITURE ($0's, real ", dms_DollarReal,")") -> RELATED PARTY CONTRACT EXPENDITURE ($0's, real December 2015) | AI7: =CONCATENATE("RELATED PARTY CONTRACT MARGIN EXPENDITURE ($0's, real ", dms_DollarReal,")") -> RELATED PARTY CONTRACT MARGIN EXPENDITURE ($0's, real December 2015)
E8: =CRCP_y5 -> 2015 | F8: =FRCP -> 2016 | G8: 2017 | H8: 2018 | I8: 2019 | J8: 2020 | K8: =CRCP_y5 -> 2015 | L8: =FRCP -> 2016 | M8: 2017 | N8: 2018 | O8: 2019 | P8: 2020 | Q8: =CRCP_y5 -> 2015 | R8: =FRCP -> 2016 | S8: 2017 | T8: 2018 | U8: 2019 | V8: 2020 | W8: =CRCP_y5 -> 2015 | X8: =FRCP -> 2016 | Y8: 2017 | Z8: 2018 | AA8: 2019 | AB8: 2020 | AC8: =CRCP_y5 -> 2015 | AD8: =FRCP -> 2016 | AE8: 2017 | AF8: 2018 | AG8: 2019 | AH8: 2020 | AI8: =CRCP_y5 -> 2015 | AJ8: =FRCP -> 2016 | AK8: 2017 | AL8: 2018 | AM8: 2019 | AN8: 2020
A9: ED_INP212_00001 | C9: VEGETATION MANAGEMENT | D9: Low Bushfire Risk Area - LBRA | Q9: 2125252.03 | R9: 2798677.295 | S9: 2807550.014 | T9: 2866728.005 | U9: 2924734.367 | V9: 2983709.511 | W9: 2107.678817 | X9: 2775.535686 | Y9: 2784.335039 | Z9: 2843.0237 | AA9: 2900.550421 | AB9: 2959.037913 | AC9: 0 | AD9: 0 | AE9: 0 | AF9: 0 | AG9: 0 | AH9: 0 | AI9: 0 | AJ9: 0 | AK9: 0 | AL9: 0 | AM9: 0 | AN9: 0
A10: ED_INP212_00002 | D10: Hazardous Bushfire Risk Area - HBRA | Q10: 569008.9105 | R10: 749309.8682 | S10: 751685.4246 | T10: 767529.5708 | U10: 783060.0286 | V10: 798849.8652 | W10: 436.9123575 | X10: 575.3560884 | Y10: 577.1801547 | Z10: 589.3460507 | AA10: 601.2710818 | AB10: 613.3952763 | AC10: 0 | AD10: 0 | AE10: 0 | AF10: 0 | AG10: 0 | AH10: 0 | AI10: 0 | AJ10: 0 | AK10: 0 | AL10: 0 | AM10: 0 | AN10: 0
A11: ED_INP212_00003
A12: ED_INP212_00004
A13: ED_INP212_00005
A14: ED_INP212_00006
A15: ED_INP212_00007
A16: ED_INP212_00008
A17: ED_INP212_00009
A18: ED_INP212_00010
A19: ED_INP212_00011
A20: ED_INP212_00012
A21: ED_INP212_00013
A22: ED_INP212_00014
A23: ED_INP212_00015
A24: ED_INP212_00016
A25: ED_INP212_00017
A26: ED_INP212_00018
A27: ED_INP212_00019
A28: ED_INP212_00020
A29: ED_INP212_00021
A30: ED_INP212_00022
A31: ED_INP212_00023 | C31: ROUTINE MAINTENANCE | D31: Pole top, overhead line & service line maintenance | AC31: 0 | AD31: 0 | AE31: 0 | AF31: 0 | AG31: 0 | AH31: 0 | AI31: 0 | AJ31: 0 | AK31: 0 | AL31: 0 | AM31: 0 | AN31: 0
A32: ED_INP212_00024 | D32: Pole inspection and treatment | AC32: 0 | AD32: 0 | AE32: 0 | AF32: 0 | AG32: 0 | AH32: 0 | AI32: 0 | AJ32: 0 | AK32: 0 | AL32: 0 | AM32: 0 | AN32: 0
A33: ED_INP212_00025 | D33: Overhead asset inspection | AC33: 0 | AD33: 0 | AE33: 0 | AF33: 0 | AG33: 0 | AH33: 0 | AI33: 0 | AJ33: 0 | AK33: 0 | AL33: 0 | AM33: 0 | AN33: 0
A34: ED_INP212_00026 | D34: Network underground cable maintenance | AC34: 0 | AD34: 0 | AE34: 0 | AF34: 0 | AG34: 0 | AH34: 0 | AI34: 0 | AJ34: 0 | AK34: 0 | AL34: 0 | AM34: 0 | AN34: 0
A35: ED_INP212_00027 | D35: Distribution substation equipment & property maintenance | AC35: 0 | AD35: 0 | AE35: 0 | AF35: 0 | AG35: 0 | AH35: 0 | AI35: 0 | AJ35: 0 | AK35: 0 | AL35: 0 | AM35: 0 | AN35: 0
A36: ED_INP212_00028 | D36: Zone substation equipment maintenance | AC36: 0 | AD36: 0 | AE36: 0 | AF36: 0 | AG36: 0 | AH36: 0 | AI36: 0 | AJ36: 0 | AK36: 0 | AL36: 0 | AM36: 0 | AN36: 0
A37: ED_INP212_00029 | D37: Zone substation property maintenance | AC37: 0 | AD37: 0 | AE37: 0 | AF37: 0 | AG37: 0 | AH37: 0 | AI37: 0 | AJ37: 0 | AK37: 0 | AL37: 0 | AM37: 0 | AN37: 0
A38: ED_INP212_00031 | D38: Scada & network control maintenance | AC38: 0 | AD38: 0 | AE38: 0 | AF38: 0 | AG38: 0 | AH38: 0 | AI38: 0 | AJ38: 0 | AK38: 0 | AL38: 0 | AM38: 0 | AN38: 0
A39: ED_INP212_00032 | D39: Protection systems maintenance | AC39: 0 | AD39: 0 | AE39: 0 | AF39: 0 | AG39: 0 | AH39: 0 | AI39: 0 | AJ39: 0 | AK39: 0 | AL39: 0 | AM39: 0 | AN39: 0
A40: ED_INP212_00033 | D40: Subtransmission asset maintenance - for DNSP with dual function assets | AC40: 0 | AD40: 0 | AE40: 0 | AF40: 0 | AG40: 0 | AH40: 0 | AI40: 0 | AJ40: 0 | AK40: 0 | AL40: 0 | AM40: 0 | AN40: 0
A41: ED_INP212_00035 | D41: Other | AC41: 0 | AD41: 0 | AE41: 0 | AF41: 0 | AG41: 0 | AH41: 0 | AI41: 0 | AJ41: 0 | AK41: 0 | AL41: 0 | AM41: 0 | AN41: 0
A42: ED_INP212_00036 | C42: NON-ROUTINE MAINTENANCE | D42: Pole top, overhead line & service line maintenance | AC42: 0 | AD42: 0 | AE42: 0 | AF42: 0 | AG42: 0 | AH42: 0 | AI42: 0 | AJ42: 0 | AK42: 0 | AL42: 0 | AM42: 0 | AN42: 0
A43: ED_INP212_00037 | D43: Pole inspection and treatment | AC43: 0 | AD43: 0 | AE43: 0 | AF43: 0 | AG43: 0 | AH43: 0 | AI43: 0 | AJ43: 0 | AK43: 0 | AL43: 0 | AM43: 0 | AN43: 0
A44: ED_INP212_00038 | D44: Overhead asset inspection | AC44: 0 | AD44: 0 | AE44: 0 | AF44: 0 | AG44: 0 | AH44: 0 | AI44: 0 | AJ44: 0 | AK44: 0 | AL44: 0 | AM44: 0 | AN44: 0
A45: ED_INP212_00039 | D45: Network underground cable maintenance | AC45: 0 | AD45: 0 | AE45: 0 | AF45: 0 | AG45: 0 | AH45: 0 | AI45: 0 | AJ45: 0 | AK45: 0 | AL45: 0 | AM45: 0 | AN45: 0
A46: ED_INP212_00040 | D46: Distribution substation equipment & property maintenance | AC46: 0 | AD46: 0 | AE46: 0 | AF46: 0 | AG46: 0 | AH46: 0 | AI46: 0 | AJ46: 0 | AK46: 0 | AL46: 0 | AM46: 0 | AN46: 0
A47: ED_INP212_00041 | D47: Zone substation equipment maintenance | AC47: 0 | AD47: 0 | AE47: 0 | AF47: 0 | AG47: 0 | AH47: 0 | AI47: 0 | AJ47: 0 | AK47: 0 | AL47: 0 | AM47: 0 | AN47: 0
A48: ED_INP212_00042 | D48: Zone substation property maintenance | AC48: 0 | AD48: 0 | AE48: 0 | AF48: 0 | AG48: 0 | AH48: 0 | AI48: 0 | AJ48: 0 | AK48: 0 | AL48: 0 | AM48: 0 | AN48: 0
A49: ED_INP212_00044 | D49: SCADA & network control maintenance | AC49: 0 | AD49: 0 | AE49: 0 | AF49: 0 | AG49: 0 | AH49: 0 | AI49: 0 | AJ49: 0 | AK49: 0 | AL49: 0 | AM49: 0 | AN49: 0
A50: ED_INP212_00045 | D50: Protection systems maintenance | AC50: 0 | AD50: 0 | AE50: 0 | AF50: 0 | AG50: 0 | AH50: 0 | AI50: 0 | AJ50: 0 | AK50: 0 | AL50: 0 | AM50: 0 | AN50: 0
A51: ED_INP212_00046 | D51: Subtransmission asset maintenance - for DNSP with dual function assets | AC51: 0 | AD51: 0 | AE51: 0 | AF51: 0 | AG51: 0 | AH51: 0 | AI51: 0 | AJ51: 0 | AK51: 0 | AL51: 0 | AM51: 0 | AN51: 0
A52: ED_INP212_00048 | D52: Other | AC52: 0 | AD52: 0 | AE52: 0 | AF52: 0 | AG52: 0 | AH52: 0 | AI52: 0 | AJ52: 0 | AK52: 0 | AL52: 0 | AM52: 0 | AN52: 0
A53: ED_INP212_00049 | C53: OVERHEADS | D53: Network overheads | AC53: 0 | AD53: 0 | AE53: 0 | AF53: 0 | AG53: 0 | AH53: 0 | AI53: 0 | AJ53: 0 | AK53: 0 | AL53: 0 | AM53: 0 | AN53: 0
A54: ED_INP212_00050 | D54: Corporate overheads | AC54: 0 | AD54: 0 | AE54: 0 | AF54: 0 | AG54: 0 | AH54: 0 | AI54: 0 | AJ54: 0 | AK54: 0 | AL54: 0 | AM54: 0 | AN54: 0
A55: ED_INP212_00051 | C55: AUGMENTATION | D55: Subtransmission substations, switching stations, zone substations | AC55: 0 | AD55: 0 | AE55: 0 | AF55: 0 | AG55: 0 | AH55: 0 | AI55: 0 | AJ55: 0 | AK55: 0 | AL55: 0 | AM55: 0 | AN55: 0
A56: ED_INP212_00052 | D56: Subtransmission lines | AC56: 0 | AD56: 0 | AE56: 0 | AF56: 0 | AG56: 0 | AH56: 0 | AI56: 0 | AJ56: 0 | AK56: 0 | AL56: 0 | AM56: 0 | AN56: 0
A57: ED_INP212_00053 | D57: HV feeders | AC57: 0 | AD57: 0 | AE57: 0 | AF57: 0 | AG57: 0 | AH57: 0 | AI57: 0 | AJ57: 0 | AK57: 0 | AL57: 0 | AM57: 0 | AN57: 0
A58: ED_INP212_00054 | D58: Distribution substations | AC58: 0 | AD58: 0 | AE58: 0 | AF58: 0 | AG58: 0 | AH58: 0 | AI58: 0 | AJ58: 0 | AK58: 0 | AL58: 0 | AM58: 0 | AN58: 0
A59: ED_INP212_00055 | D59: LV feeders | AC59: 0 | AD59: 0 | AE59: 0 | AF59: 0 | AG59: 0 | AH59: 0 | AI59: 0 | AJ59: 0 | AK59: 0 | AL59: 0 | AM59: 0 | AN59: 0
A60: ED_INP212_00056 | D60: Other assets | AC60: 0 | AD60: 0 | AE60: 0 | AF60: 0 | AG60: 0 | AH60: 0 | AI60: 0 | AJ60: 0 | AK60: 0 | AL60: 0 | AM60: 0 | AN60: 0
A61: ED_INP212_00057 | C61: CONNECTIONS | D61: Simple and complex customer connections | AC61: 0 | AD61: 0 | AE61: 0 | AF61: 0 | AG61: 0 | AH61: 0 | AI61: 0 | AJ61: 0 | AK61: 0 | AL61: 0 | AM61: 0 | AN61: 0
A62: ED_INP212_00058 | C62: EMERGENCY RESPONSE | D62: Major storms | AC62: 0 | AD62: 0 | AE62: 0 | AF62: 0 | AG62: 0 | AH62: 0 | AI62: 0 | AJ62: 0 | AK62: 0 | AL62: 0 | AM62: 0 | AN62: 0
A63: ED_INP212_00059 | D63: Major event days | AC63: 0 | AD63: 0 | AE63: 0 | AF63: 0 | AG63: 0 | AH63: 0 | AI63: 0 | AJ63: 0 | AK63: 0 | AL63: 0 | AM63: 0 | AN63: 0
A64: ED_INP212_00064 | C64: REPLACEMENT | D64: Poles | AC64: 0 | AD64: 0 | AE64: 0 | AF64: 0 | AG64: 0 | AH64: 0 | AI64: 0 | AJ64: 0 | AK64: 0 | AL64: 0 | AM64: 0 | AN64: 0
A65: ED_INP212_00065 | D65: Pole top structures | AC65: 0 | AD65: 0 | AE65: 0 | AF65: 0 | AG65: 0 | AH65: 0 | AI65: 0 | AJ65: 0 | AK65: 0 | AL65: 0 | AM65: 0 | AN65: 0
A66: ED_INP212_00066 | D66: Overhead conductors | AC66: 0 | AD66: 0 | AE66: 0 | AF66: 0 | AG66: 0 | AH66: 0 | AI66: 0 | AJ66: 0 | AK66: 0 | AL66: 0 | AM66: 0 | AN66: 0
A67: ED_INP212_00067 | D67: Underground cables | AC67: 0 | AD67: 0 | AE67: 0 | AF67: 0 | AG67: 0 | AH67: 0 | AI67: 0 | AJ67: 0 | AK67: 0 | AL67: 0 | AM67: 0 | AN67: 0
A68: ED_INP212_00068 | D68: Service lines | AC68: 0 | AD68: 0 | AE68: 0 | AF68: 0 | AG68: 0 | AH68: 0 | AI68: 0 | AJ68: 0 | AK68: 0 | AL68: 0 | AM68: 0 | AN68: 0
A69: ED_INP212_00069 | D69: Transformers | AC69: 0 | AD69: 0 | AE69: 0 | AF69: 0 | AG69: 0 | AH69: 0 | AI69: 0 | AJ69: 0 | AK69: 0 | AL69: 0 | AM69: 0 | AN69: 0
A70: ED_INP212_00070 | D70: Switchgear | AC70: 0 | AD70: 0 | AE70: 0 | AF70: 0 | AG70: 0 | AH70: 0 | AI70: 0 | AJ70: 0 | AK70: 0 | AL70: 0 | AM70: 0 | AN70: 0
A71: ED_INP212_00072 | D71: SCADA network control and protections systems | AC71: 0 | AD71: 0 | AE71: 0 | AF71: 0 | AG71: 0 | AH71: 0 | AI71: 0 | AJ71: 0 | AK71: 0 | AL71: 0 | AM71: 0 | AN71: 0
A72: ED_INP212_00073 | D72: Other | AC72: 0 | AD72: 0 | AE72: 0 | AF72: 0 | AG72: 0 | AH72: 0 | AI72: 0 | AJ72: 0 | AK72: 0 | AL72: 0 | AM72: 0 | AN72: 0
A73: ED_INP212_00074 | C73: NON-NETWORK EXPENDITURE | D73: IT and communications | AC73: 0 | AD73: 0 | AE73: 0 | AF73: 0 | AG73: 0 | AH73: 0 | AI73: 0 | AJ73: 0 | AK73: 0 | AL73: 0 | AM73: 0 | AN73: 0
A74: ED_INP212_00075 | D74: Motor vehicles | AC74: 0 | AD74: 0 | AE74: 0 | AF74: 0 | AG74: 0 | AH74: 0 | AI74: 0 | AJ74: 0 | AK74: 0 | AL74: 0 | AM74: 0 | AN74: 0
A75: ED_INP212_00076 | D75: Buildings and property | AC75: 0 | AD75: 0 | AE75: 0 | AF75: 0 | AG75: 0 | AH75: 0 | AI75: 0 | AJ75: 0 | AK75: 0 | AL75: 0 | AM75: 0 | AN75: 0
A76: ED_INP212_00077 | D76: Other | AC76: 0 | AD76: 0 | AE76: 0 | AF76: 0 | AG76: 0 | AH76: 0 | AI76: 0 | AJ76: 0 | AK76: 0 | AL76: 0 | AM76: 0 | AN76: 0

Sheet 2.13 Provisions
C1: =SheetHeader -> REGULATORY REPORTING STATEMENT
C2: =dms_TradingName -> Victorian DNSP Reset
C3: =FRCP_span -> 2016 to 2020
C4: 2.13 PROVISIONS
C6: Instructions
C7: In Table 2.13.1 provide, for each provision, the name and a brief description of the nature of the obligation in the spaces provided. Provision amounts must be inclusive of related party margins (RPMs) if the DNSP incurs RPMs. Provision amounts must only relate to standard control services. In Table 2.13.2 allocate, by provision, the total movements in provisions from Table 2.13.1 opex, as-incurred capex by asset class and other. 'Other' refers to movements in provisions that are recognised in equity, revenue, etc rather than as an expense. The total 'movement' (the sum of the movements allocated to opex, capex and other) is equal to the difference between the carrying amount at the end of the period and the carrying amount at the beginning of the period in Table 2.13.1. The DNSP must insert their Roll Forward Model asset classes in the as-incurred capex section of Table 2.13.2.
C12: TABLE 2.13.1 - CHANGES IN TOTAL PROVISIONS incl. RPM
D15: Historical ($0's, nominal)
A16: PRO2131 | D16: =PRCP_y4 -> 2009 | E16: =PRCP_y5 -> 2010 | F16: =CRCP -> 2011 | G16: 2012 | H16: 2013 | I16: 2014
A19: ED_PRO2131_00100 | C19: Provision name
C20: Provisions made for potential delinquent debtors
A21: ED_PRO2131_00003 | C21: Opening balance (the carrying amount at the beginning of the period) | E21: =D38 -> 0 | F21: =E38 -> 0 | G21: =F38 -> 0 | H21: =G38 -> 0 | I21: =H38 -> 0
C22: Additional provisions made in the period, including increases to existing provisions
A23: ED_PRO2131_00005 | C23: Opex component
A24: ED_PRO2131_00006 | C24: Capex component
A25: ED_PRO2131_00007 | C25: Other component
C26: Amounts used (that is, incurred and charged against the provision) during the period
A27: ED_PRO2131_00009 | C27: Opex component
A28: ED_PRO2131_00010 | C28: Capex component
A29: ED_PRO2131_00011 | C29: Other component
C30: Unused amounts reversed during the period
A31: ED_PRO2131_00013 | C31: Opex component
A32: ED_PRO2131_00014 | C32: Capex component
A33: ED_PRO2131_00015 | C33: Other component
C34: The increase during the period in the discounted amount arising from the passage of time and the effect of any change in the discount rate
A35: ED_PRO2131_00017 | C35: Opex component
A36: ED_PRO2131_00018 | C36: Capex component
A37: ED_PRO2131_00019 | C37: Other component
C38: Closing balance (carrying amount at the end of the period) | D38: =D21+SUM(D23:D37) -> 0 | E38: 0 | F38: 0 | G38: 0 | H38: 0 | I38: 0
A39: ED_PRO2131_00020 | C39: Provision name
C40: Brief description of provision
A41: ED_PRO2131_00003 | C41: Opening balance (the carrying amount at the beginning of the period) | E41: =D58 -> 0 | F41: =E58 -> 0 | G41: =F58 -> 0 | H41: =G58 -> 0 | I41: =H58 -> 0
C42: Additional provisions made in the period, including increases to existing provisions
A43: ED_PRO2131_00005 | C43: Opex component
A44: ED_PRO2131_00006 | C44: Capex component
A45: ED_PRO2131_00007 | C45: Other component
C46: Amounts used (that is, incurred and charged against the provision) during the period
A47: ED_PRO2131_00009 | C47: Opex component
A48: ED_PRO2131_00010 | C48: Capex component
A49: ED_PRO2131_00011 | C49: Other component
C50: Unused amounts reversed during the period
A51: ED_PRO2131_00013 | C51: Opex component
A52: ED_PRO2131_00014 | C52: Capex component
A53: ED_PRO2131_00015 | C53: Other component
C54: The increase during the period in the discounted amount arising from the passage of time and the effect of any change in the discount rate
A55: ED_PRO2131_00017 | C55: Opex component
A56: ED_PRO2131_00018 | C56: Capex component
A57: ED_PRO2131_00019 | C57: Other component
C58: Closing balance (carrying amount at the end of the period) | D58: =D41+SUM(D43:D57) -> 0 | E58: 0 | F58: 0 | G58: 0 | H58: 0 | I58: 0
A59: ED_PRO2131_00030 | C59: Provision name
C60: Brief description of provision
A61: ED_PRO2131_00003 | C61: Opening balance (the carrying amount at the beginning of the period) | E61: =D78 -> 0 | F61: =E78 -> 0 | G61: =F78 -> 0 | H61: =G78 -> 0 | I61: =H78 -> 0
C62: Additional provisions made in the period, including increases to existing provisions
A63: ED_PRO2131_00005 | C63: Opex component
A64: ED_PRO2131_00006 | C64: Capex component
A65: ED_PRO2131_00007 | C65: Other component
C66: Amounts used (that is, incurred and charged against the provision) during the period
A67: ED_PRO2131_00009 | C67: Opex component
A68: ED_PRO2131_00010 | C68: Capex component
A69: ED_PRO2131_00011 | C69: Other component
C70: Unused amounts reversed during the period
A71: ED_PRO2131_00013 | C71: Opex component
A72: ED_PRO2131_00014 | C72: Capex component
A73: ED_PRO2131_00015 | C73: Other component
C74: The increase during the period in the discounted amount arising from the passage of time and the effect of any change in the discount rate
A75: ED_PRO2131_00017 | C75: Opex component
A76: ED_PRO2131_00018 | C76: Capex component
A77: ED_PRO2131_00019 | C77: Other component
C78: Closing balance (carrying amount at the end of the period) | D78: =D61+SUM(D63:D77) -> 0 | E78: 0 | F78: 0 | G78: 0 | H78: 0 | I78: 0
A79: ED_PRO2131_00040 | C79: Provision name
C80: Brief description of provision
A81: ED_PRO2131_00003 | C81: Opening balance (the carrying amount at the beginning of the period) | E81: =D98 -> 0 | F81: =E98 -> 0 | G81: =F98 -> 0 | H81: =G98 -> 0 | I81: =H98 -> 0
C82: Additional provisions made in the period, including increases to existing provisions
A83: ED_PRO2131_00005 | C83: Opex component
A84: ED_PRO2131_00006 | C84: Capex component
A85: ED_PRO2131_00007 | C85: Other component
C86: Amounts used (that is, incurred and charged against the provision) during the period
A87: ED_PRO2131_00009 | C87: Opex component
A88: ED_PRO2131_00010 | C88: Capex component
A89: ED_PRO2131_00011 | C89: Other component
C90: Unused amounts reversed during the period
A91: ED_PRO2131_00013 | C91: Opex component
A92: ED_PRO2131_00014 | C92: Capex component
A93: ED_PRO2131_00015 | C93: Other component
C94: The increase during the period in the discounted amount arising from the passage of time and the effect of any change in the discount rate
A95: ED_PRO2131_00017 | C95: Opex component
A96: ED_PRO2131_00018 | C96: Capex component
A97: ED_PRO2131_00019 | C97: Other component
C98: Closing balance (carrying amount at the end of the period) | D98: =D81+SUM(D83:D97) -> 0 | E98: 0 | F98: 0 | G98: 0 | H98: 0 | I98: 0
A99: ED_PRO2131_00050 | C99: Provision name
C100: Brief description of provision
A101: ED_PRO2131_00003 | C101: Opening balance (the carrying amount at the beginning of the period) | E101: =D118 -> 0 | F101: =E118 -> 0 | G101: =F118 -> 0 | H101: =G118 -> 0 | I101: =H118 -> 0
C102: Additional provisions made in the period, including increases to existing provisions
A103: ED_PRO2131_00005 | C103: Opex component
A104: ED_PRO2131_00006 | C104: Capex component
A105: ED_PRO2131_00007 | C105: Other component
C106: Amounts used (that is, incurred and charged against the provision) during the period
A107: ED_PRO2131_00009 | C107: Opex component
A108: ED_PRO2131_00010 | C108: Capex component
A109: ED_PRO2131_00011 | C109: Other component
C110: Unused amounts reversed during the period
A111: ED_PRO2131_00013 | C111: Opex component
A112: ED_PRO2131_00014 | C112: Capex component
A113: ED_PRO2131_00015 | C113: Other component
C114: The increase during the period in the discounted amount arising from the passage of time and the effect of any change in the discount rate
A115: ED_PRO2131_00017 | C115: Opex component
A116: ED_PRO2131_00018 | C116: Capex component
A117: ED_PRO2131_00019 | C117: Other component
C118: Closing balance (carrying amount at the end of the period) | D118: =D101+SUM(D103:D117) -> 0 | E118: 0 | F118: 0 | G118: 0 | H118: 0 | I118: 0
A119: ED_PRO2131_00060 | C119: Provision name
C120: Brief description of provision
A121: ED_PRO2131_00003 | C121: Opening balance (the carrying amount at the beginning of the period) | E121: =D138 -> 0 | F121: =E138 -> 0 | G121: =F138 -> 0 | H121: =G138 -> 0 | I121: =H138 -> 0
C122: Additional provisions made in the period, including increases to existing provisions
A123: ED_PRO2131_00005 | C123: Opex component
A124: ED_PRO2131_00006 | C124: Capex component
A125: ED_PRO2131_00007 | C125: Other component
C126: Amounts used (that is, incurred and charged against the provision) during the period
A127: ED_PRO2131_00009 | C127: Opex component
A128: ED_PRO2131_00010 | C128: Capex component
A129: ED_PRO2131_00011 | C129: Other component
C130: Unused amounts reversed during the period
A131: ED_PRO2131_00013 | C131: Opex component
A132: ED_PRO2131_00014 | C132: Capex component
A133: ED_PRO2131_00015 | C133: Other component
C134: The increase during the period in the discounted amount arising from the passage of time and the effect of any change in the discount rate
A135: ED_PRO2131_00017 | C135: Opex component
A136: ED_PRO2131_00018 | C136: Capex component
A137: ED_PRO2131_00019 | C137: Other component
C138: Closing balance (carrying amount at the end of the period) | D138: =D121+SUM(D123:D137) -> 0 | E138: 0 | F138: 0 | G138: 0 | H138: 0 | I138: 0
A139: ED_PRO2131_00070 | C139: Provision name
C140: Brief description of provision
A141: ED_PRO2131_00003 | C141: Opening balance (the carrying amount at the beginning of the period) | E141: =D158 -> 0 | F141: =E158 -> 0 | G141: =F158 -> 0 | H141: =G158 -> 0 | I141: =H158 -> 0
C142: Additional provisions made in the period, including increases to existing provisions
A143: ED_PRO2131_00005 | C143: Opex component
A144: ED_PRO2131_00006 | C144: Capex component
A145: ED_PRO2131_00007 | C145: Other component
C146: Amounts used (that is, incurred and charged against the provision) during the period
A147: ED_PRO2131_00009 | C147: Opex component
A148: ED_PRO2131_00010 | C148: Capex component
A149: ED_PRO2131_00011 | C149: Other component
C150: Unused amounts reversed during the period
A151: ED_PRO2131_00013 | C151: Opex component
A152: ED_PRO2131_00014 | C152: Capex component
A153: ED_PRO2131_00015 | C153: Other component
C154: The increase during the period in the discounted amount arising from the passage of time and the effect of any change in the discount rate
A155: ED_PRO2131_00017 | C155: Opex component
A156: ED_PRO2131_00018 | C156: Capex component
A157: ED_PRO2131_00019 | C157: Other component
C158: Closing balance (carrying amount at the end of the period) | D158: =D141+SUM(D143:D157) -> 0 | E158: 0 | F158: 0 | G158: 0 | H158: 0 | I158: 0
A159: ED_PRO2131_00080 | C159: Provision name
C160: Brief description of provision
A161: ED_PRO2131_00003 | C161: Opening balance (the carrying amount at the beginning of the period) | E161: =D178 -> 0 | F161: =E178 -> 0 | G161: =F178 -> 0 | H161: =G178 -> 0 | I161: =H178 -> 0
C162: Additional provisions made in the period, including increases to existing provisions
A163: ED_PRO2131_00005 | C163: Opex component
A164: ED_PRO2131_00006 | C164: Capex component
A165: ED_PRO2131_00007 | C165: Other component
C166: Amounts used (that is, incurred and charged against the provision) during the period
A167: ED_PRO2131_00009 | C167: Opex component
A168: ED_PRO2131_00010 | C168: Capex component
A169: ED_PRO2131_00011 | C169: Other component
C170: Unused amounts reversed during the period
A171: ED_PRO2131_00013 | C171: Opex component
A172: ED_PRO2131_00014 | C172: Capex component
A173: ED_PRO2131_00015 | C173: Other component
C174: The increase during the period in the discounted amount arising from the passage of time and the effect of any change in the discount rate
A175: ED_PRO2131_00017 | C175: Opex component
A176: ED_PRO2131_00018 | C176: Capex component
A177: ED_PRO2131_00019 | C177: Other component
C178: Closing balance (carrying amount at the end of the period) | D178: =D161+SUM(D163:D177) -> 0 | E178: 0 | F178: 0 | G178: 0 | H178: 0 | I178: 0
A179: ED_PRO2131_00090 | C179: Provision name
C180: Brief description of provision
A181: ED_PRO2131_00003 | C181: Opening balance (the carrying amount at the beginning of the period) | E181: =D198 -> 0 | F181: =E198 -> 0 | G181: =F198 -> 0 | H181: =G198 -> 0 | I181: =H198 -> 0
C182: Additional provisions made in the period, including increases to existing provisions
A183: ED_PRO2131_00005 | C183: Opex component
A184: ED_PRO2131_00006 | C184: Capex component
A185: ED_PRO2131_00007 | C185: Other component
C186: Amounts used (that is, incurred and charged against the provision) during the period
A187: ED_PRO2131_00009 | C187: Opex component
A188: ED_PRO2131_00010 | C188: Capex component
A189: ED_PRO2131_00011 | C189: Other component
C190: Unused amounts reversed during the period
A191: ED_PRO2131_00013 | C191: Opex component
A192: ED_PRO2131_00014 | C192: Capex component
A193: ED_PRO2131_00015 | C193: Other component
C194: The increase during the period in the discounted amount arising from the passage of time and the effect of any change in the discount rate
A195: ED_PRO2131_00017 | C195: Opex component
A196: ED_PRO2131_00018 | C196: Capex component
A197: ED_PRO2131_00019 | C197: Other component
C198: Closing balance (carrying amount at the end of the period) | D198: =D181+SUM(D183:D197) -> 0 | E198: 0 | F198: 0 | G198: 0 | H198: 0 | I198: 0
A199: ED_PRO2131_00100 | C199: Provision name
C200: Brief description of provision
A201: ED_PRO2131_00003 | C201: Opening balance (the carrying amount at the beginning of the period) | E201: =D218 -> 0 | F201: =E218 -> 0 | G201: =F218 -> 0 | H201: =G218 -> 0 | I201: =H218 -> 0
C202: Additional provisions made in the period, including increases to existing provisions
A203: ED_PRO2131_00005 | C203: Opex component
A204: ED_PRO2131_00006 | C204: Capex component
A205: ED_PRO2131_00007 | C205: Other component
C206: Amounts used (that is, incurred and charged against the provision) during the period
A207: ED_PRO2131_00009 | C207: Opex component
A208: ED_PRO2131_00010 | C208: Capex component
A209: ED_PRO2131_00011 | C209: Other component
... 462 more rows

Sheet 2.14 Forecast price changes
C1: =SheetHeader -> REGULATORY REPORTING STATEMENT
C2: =dms_TradingName -> Victorian DNSP Reset
C3: =FRCP_span -> 2016 to 2020
C4: 2.14 FORECAST PRICE CHANGES
C6: Instructions
C7: The DNSP must provide all forecast price changes used to forecast opex and capex, including forecast changes in CPI. Forecast price changes must be expressed in real terms, except for CPI. If the same escalators are not used for capex and opex, report capex and opex escalators separately. Add additional rows as required. If price changes for a given year were not used to forecast either opex or capex enter '0' for that year.
C9: TABLE 2.14.1 - FORECAST LABOUR AND MATERIALS PRICE CHANGES
D11: Price changes (% YoY real) Current regulatory period | I11: Price changes (%YoY real) Forthcoming regulatory period
D12: Historical | H12: Forecast
D13: =CRCP -> 2011 | E13: 2012 | F13: 2013 | G13: 2014 | H13: 2015 | I13: =FRCP -> 2016 | J13: 2017 | K13: 2018 | L13: 2019 | M13: 2020
C14: Materials price changes
A15: ED_FOR21411_00001 | C15: Aluminium | D15: -0.05112866408 | E15: -0.1691218103 | F15: -0.05757244271 | G15: 0.01924137953 | H15: 0.09520163803 | I15: 0.07984691499 | J15: 0.08234162511 | K15: 0.05148094233 | L15: -0.0701393431 | M15: -0.05211510301
A16: ED_FOR21411_00002 | C16: Copper | D16: 0.006097385672 | E16: -0.1183270055 | F16: -0.03859220312 | G16: -0.02759787799 | H16: 0.004438388578 | I16: 0.03463395085 | J16: 0.07676878109 | K16: 0.02132896785 | L16: -0.09989708197 | M16: -0.06094804003
A17: ED_FOR21411_00003 | C17: Steel | D17: -0.0216527792 | E17: -0.1326097207 | F17: -0.04843626249 | G17: -0.01553347492 | H17: 0.04805131906 | I17: 0.04718870378 | J17: 0.02993675602 | K17: 0.02707786342 | L17: -0.1101122287 | M17: -0.03358230538
A18: ED_FOR21411_00004 | C18: Oil | D18: 0.03279218745 | E18: -0.03941296386 | F18: 0.1025054405 | G18: 0.06228071617 | H18: -0.01912651975 | I18: -0.01110430108 | J18: 0.04318123139 | K18: 0.02543762154 | L18: -0.07661255452 | M18: -0.04969903066
A19: ED_FOR21411_00005 | C19: Concrete | D19: 0.05215190747 | E19: 0.02890196189 | F19: -0.0555470732 | G19: -0.03768777237 | H19: -0.01121085595 | I19: -0.0095 | J19: -0.02 | K19: -0.049 | L19: -0.032 | M19: 0.013
A20: ED_FOR21411_00006 | C20: Wood | D20: 0.01770612061 | E20: 0.0149181302 | F20: 0.003970864475 | G20: 0.038 | H20: 0.025 | I20: 0.0215 | J20: 0.017 | K20: 0.009 | L20: 0.022 | M20: 0.039
A21: ED_FOR21411_00007 | C21: General | D21: 0.005994359652 | E21: -0.0692752347 | F21: -0.01561194609 | G21: 0.006450495072 | H21: 0.02372566166 | I21: 0.02709421143 | J21: 0.03820473227 | K21: 0.01422089919 | L21: -0.06112686805 | M21: -0.02405741318
A22: ED_FOR21411_00008 | C22: Other | D22: 0 | E22: 0 | F22: 0 | G22: 0 | H22: 0 | I22: 0 | J22: 0 | K22: 0 | L22: 0 | M22: 0
A23: ED_FOR21411_00009
A24: ED_FOR21411_00010
A25: ED_FOR21411_00011
A26: ED_FOR21411_00012
A27: ED_FOR21411_00013
A28: ED_FOR21411_00014
A29: ED_FOR21411_00015
A30: ED_FOR21411_00016
A31: ED_FOR21411_00017
A32: ED_FOR21411_00018
A33: ED_FOR21411_00019
A34: ED_FOR21411_00020
A35: ED_FOR21411_00021
A36: ED_FOR21411_00022
A37: ED_FOR21411_00023
A38: ED_FOR21411_00024
A39: ED_FOR21411_00025
A40: ED_FOR21411_00026
A41: ED_FOR21411_00027
A42: ED_FOR21411_00028
A43: ED_FOR21411_00029
A44: ED_FOR21411_00030
A45: ED_FOR21411_00031
A46: ED_FOR21411_00032
A47: ED_FOR21411_00033
A48: ED_FOR21411_00034
A49: ED_FOR21411_00035
A50: ED_FOR21411_00036
A51: ED_FOR21411_00037
A52: ED_FOR21411_00038
A53: ED_FOR21411_00039
A54: ED_FOR21411_00040
A55: ED_FOR21411_00041
A56: ED_FOR21411_00042
A57: ED_FOR21411_00043
A58: ED_FOR21411_00044
A59: ED_FOR21411_00045
A60: ED_FOR21411_00046
A61: ED_FOR21411_00047
A62: ED_FOR21411_00048
A63: ED_FOR21411_00049
A64: ED_FOR21411_00050
C65: Labour and Other price changes
A66: ED_FOR21412_00001 | C66: Internal | D66: 0.008102996656 | E66: 0.02120271466 | F66: 0.01903673364 | G66: 0.01341574041 | H66: 0.004766106207 | I66: 0.008816962507 | J66: 0.01347581205 | K66: 0.01755629708 | L66: 0.02110900407 | M66: 0.01811556059
A67: ED_FOR21412_00002 | C67: External | D67: 0.01104502512 | E67: 0.01370553177 | F67: 0.01751792031 | G67: 0.01662202812 | H67: 0.007811158929 | I67: 0.01187467435 | J67: 0.0162885771 | K67: 0.01488361865 | L67: 0.01606284787 | M67: 0.01915527012
A68: ED_FOR21412_00003
A69: ED_FOR21412_00004
A70: ED_FOR21412_00005
A71: ED_FOR21412_00006
A72: ED_FOR21412_00007
A73: ED_FOR21412_00008
A74: ED_FOR21412_00009
A75: ED_FOR21412_00010
A76: ED_FOR21412_00011
A77: ED_FOR21412_00012
A78: ED_FOR21412_00013
A79: ED_FOR21412_00014
A80: ED_FOR21412_00015
A81: ED_FOR21412_00016
A82: ED_FOR21412_00017
A83: ED_FOR21412_00018
A84: ED_FOR21412_00019
A85: ED_FOR21412_00020
A86: ED_FOR21412_00021
A87: ED_FOR21412_00022
A88: ED_FOR21412_00023
A89: ED_FOR21412_00024
A90: ED_FOR21412_00025
A91: ED_FOR21412_99999 | C91: CPI | D91: 0.02787663108 | E91: 0.03519907675 | F91: 0.02004008016 | G91: 0.02161100196 | H91: 0.02307692308 | I91: 0.02523941457 | J91: 0.02523941457 | K91: 0.02523941457 | L91: 0.02523941457 | M91: 0.02523941457

Sheet 2.15 Insurance & Self-insurance
C1: =SheetHeader -> REGULATORY REPORTING STATEMENT
C2: =dms_TradingName -> Victorian DNSP Reset
C3: =FRCP_span -> 2016 to 2020
C4: 2.15 COMMERCIAL INSURANCE AND SELF-INSURANCE
C7: TABLE 2.15.1 - FORECAST COMMERCIAL INSURANCE PREMIUMS BY RISK CATEGORY
C9: Instructions
C10: This table removed from final RIN.
C12: Risk class [drop down] | D12: Risk category | E12: Deductables | F12: Policy limit | G12: Premiums Historical ($0's, nominal) | I12: =CONCATENATE("Forecast Premiums ($0's, real ", dms_DollarReal,")") -> Forecast Premiums ($0's, real December 2015)
A13: INS2151 | G13: =CRCP_y4 -> 2014 | H13: =CRCP_y5 -> 2015 | I13: =FRCP -> 2016 | J13: 2017 | K13: 2018 | L13: 2019 | M13: 2020 | N13: Total
A14: ED_INS2151_00001 | N14: =SUM(G14:M14) -> 0
A15: ED_INS2151_00002 | N15: =SUM(G15:M15) -> 0
A16: ED_INS2151_00003 | N16: 0
A17: ED_INS2151_00004 | N17: 0
A18: ED_INS2151_00005 | N18: 0
A19: ED_INS2151_00006 | N19: 0
A20: ED_INS2151_00007 | N20: 0
A21: ED_INS2151_00008 | N21: 0
A22: ED_INS2151_00009 | N22: 0
A23: ED_INS2151_00010 | N23: 0
A24: ED_INS2151_00011 | N24: 0
A25: ED_INS2151_00012 | N25: 0
A26: ED_INS2151_00013 | N26: 0
A27: ED_INS2151_00014 | N27: 0
A28: ED_INS2151_00015 | N28: 0
A29: ED_INS2151_00016 | N29: 0
A30: ED_INS2151_00017 | N30: 0
A31: ED_INS2151_00018 | N31: 0
A32: ED_INS2151_00019 | N32: 0
A33: ED_INS2151_00020 | N33: 0
A34: ED_INS2151_00021 | N34: 0
A35: ED_INS2151_00022 | N35: 0
A36: ED_INS2151_00023 | N36: 0
A37: ED_INS2151_00024 | N37: 0
A38: ED_INS2151_00025 | N38: 0
A39: ED_INS2151_00026 | N39: 0
A40: ED_INS2151_00027 | N40: 0
A41: ED_INS2151_00028 | N41: 0
A42: ED_INS2151_00029 | N42: 0
A43: ED_INS2151_00030 | N43: =SUM(G43:M43) -> 0
A44: ED_INS2151_00031 | N44: 0
A45: ED_INS2151_00032 | N45: 0
A46: ED_INS2151_00033 | N46: 0
A47: ED_INS2151_00034 | N47: 0
A48: ED_INS2151_00035 | N48: 0
A49: ED_INS2151_00036 | N49: 0
A50: ED_INS2151_00037 | N50: 0
A51: ED_INS2151_00038 | N51: 0
A52: ED_INS2151_00039 | N52: 0
A53: ED_INS2151_00040 | N53: 0
A54: ED_INS2151_00041 | N54: 0
A55: ED_INS2151_00042 | N55: 0
A56: ED_INS2151_00043 | N56: 0
A57: ED_INS2151_00044 | N57: 0
A58: ED_INS2151_00045 | N58: 0
A59: ED_INS2151_00046 | N59: 0
A60: ED_INS2151_00047 | N60: 0
A61: ED_INS2151_00048 | N61: 0
A62: ED_INS2151_00049 | N62: 0
A63: ED_INS2151_00050 | N63: 0
C64: Total forecast premiums | G64: =SUM(G14:G63) -> 0 | H64: 0 | I64: 0 | J64: 0 | K64: 0 | L64: 0 | M64: 0 | N64: 0
C67: TABLE 2.15.2 - INSURANCE PREMIUM - TOTAL PROPERTY
C69: Instructions
C70: This table removed from final RIN.
D73: Historical ($0's, nominal) | I73: =CONCATENATE("Forecast ($0's, real ", dms_DollarReal,")") -> Forecast ($0's, real December 2015)
A74: INS2152 | D74: =CRCP -> 2011 | E74: 2012 | F74: 2013 | G74: 2014 | H74: 2015 | I74: =FRCP -> 2016 | J74: 2017 | K74: 2018 | L74: 2019 | M74: 2020
C75: Base premium
A76: ED_INS21521_00001 | C76: Value of insured assets
A77: ED_INS21521_00002 | C77: Premium rate (%) | I77: =I78/I76 ->  | J77: =J78/J76 ->  | K77: =K78/K76 ->  | L77: =L78/L76 ->  | M77: =M78/M76 -> 
A78: ED_INS21521_00003 | C78: Premium (exposure x unit rate)
C79: Statutory charges
A80: ED_INS21522_00001 | C80: Stamp duty ($nominal)
A81: ED_INS21522_00002 | C81: FSL
A82: ED_INS21522_00003 | C82: Insert additional items if any
A83: ED_INS21522_00004
A84: ED_INS21522_00005
A85: ED_INS21522_00006
A86: ED_INS21522_00007
C87: Total premium (excludes GST) | I87: =I78+SUM(I80:I86) -> 0 | J87: =J78+SUM(J80:J86) -> 0 | K87: =K78+SUM(K80:K86) -> 0 | L87: =L78+SUM(L80:L86) -> 0 | M87: =M78+SUM(M80:M86) -> 0
A89: ED_INS2152_A9999 | C89: Change to exposure (%) | H89: =(I76-H76)/H76 -> 
A90: ED_INS2152_B9999 | C90: Change to premium rates (%, real) | H90: =(I87-H87)/H87 -> 
C93: TABLE 2.15.3 - INSURANCE PREMIUM - TOTAL LIABILITY
C95: Instruction
C96: This table removed from final RIN.
D99: Historical ($0's, nominal) | I99: =CONCATENATE("Forecast ($0's, real ", dms_DollarReal,")") -> Forecast ($0's, real December 2015)
A100: INS2153 | D100: =CRCP -> 2011 | E100: 2012 | F100: 2013 | G100: 2014 | H100: 2015 | I100: =FRCP -> 2016 | J100: 2017 | K100: 2018 | L100: 2019 | M100: 2020
A101: ED_INS2153_00001 | C101: Change to premium rates (per cent, real) | E101: =(E114-D114)/D114 ->  | F101: =(F114-E114)/E114 -> 
C102: Base premium
A103: ED_INS21531_00001 | C103: Liability cap
A104: ED_INS21531_00002 | C104: Premium
C105: Statutory charges
A106: ED_INS21532_00001 | C106: Stamp duty
A107: ED_INS21532_00002 | C107: <Insert additional items if any>
A108: ED_INS21532_00003
A109: ED_INS21532_00004
A110: ED_INS21532_00005
A111: ED_INS21532_00006
A112: ED_INS21532_00007
A113: ED_INS21532_00008
C114: Total premium (excludes GST) | I114: =SUM(I106:I113)+I104 -> 0 | J114: =SUM(J106:J113)+J104 -> 0 | K114: =SUM(K106:K113)+K104 -> 0 | L114: =SUM(L106:L113)+L104 -> 0 | M114: =SUM(M106:M113)+M104 -> 0
C117: TABLE 2.15.4 - PROPOSED SELF-INSURANCE ALLOWANCES BY RISK CATEGORY
C119: Instruction
C120: The DNSP is required to provide a list of proposed self insurance allowances by risk category including a description of the risk and the proposed self-insurance allowance in table 2.15.4 below.
C122: Risk class [drop down] | D122: Risk category | E122: Commercially insured (Yes/No) | F122: Commercial insurance deductable ($0's) | G122: Commercial insurance limit ($0's) | H122: Self insurance limit ($0's) | I122: =CONCATENATE("Proposed self insurance allowance ($0's, real ", dms_DollarReal, ")") -> Proposed self insurance allowance ($0's, real December 2015)
A123: INS2154 | I123: =FRCP -> 2016 | J123: 2017 | K123: 2018 | L123: 2019 | M123: 2020 | N123: Total
A124: INS2154_00001 | N124: =+SUM(I124:M124) -> 0
A125: INS2154_00002 | N125: =+SUM(I125:M125) -> 0
A126: INS2154_00003 | N126: 0
A127: INS2154_00004 | N127: 0
A128: INS2154_00005 | N128: 0
A129: INS2154_00006 | N129: 0
A130: INS2154_00007 | N130: 0
A131: INS2154_00008 | N131: 0
A132: INS2154_00009 | N132: =+SUM(I132:M132) -> 0
A133: INS2154_00010 | N133: =+SUM(I133:M133) -> 0
A134: INS2154_00011 | N134: =+SUM(I134:M134) -> 0
A135: INS2154_00012 | N135: 0
A136: INS2154_00013 | N136: 0
A137: INS2154_00014 | N137: 0
A138: INS2154_00015 | N138: 0
C139: Total | I139: =+SUM(I124:I138) -> 0 | J139: 0 | K139: 0 | L139: 0 | M139: 0 | N139: 0

Sheet 2.16 Opex Summary
C1: =SheetHeader -> REGULATORY REPORTING STATEMENT
C2: =dms_TradingName -> Victorian DNSP Reset
C3: =FRCP_span -> 2016 to 2020
C4: 2.16 OPEX SUMMARY
C6: Instructions
C7: Complete the tables below in accordance with the regulatory information notice. The DNSP must input forecast opex by category in Table 2.16.2 and Table 2.16.4 if it did not forecast its total opex using a Base Year approach. Otherwise input '0'. The DNSP's total forecast opex must reconcile to Table 2.16.1 (and if the DNSP owns and dual function assets) Table 2.16.3. If the DNSP did not forecast its total opex using a Base Year approach, total forecast opex must, in addition, reconcile to Table 2.16.2 (and if the DNSP owns any dual function assets) Table 2.16.4. If the DNSP does not own any dual function assets,Table 2.16.3 and 2.16.4 may be left blank. The total step changes in Table 2.16.1 and Table 2.16.3 must reconcile (in each year) to the total step changes for each year in Table 2.17.1 and Table 2.17.3 of worksheet '2.17 Step Changes', respectively.
A9: NB: Codes in hidden column K | C9: TABLE 2.16.1 - STANDARD CONTROL SERVICES - OPEX BY DRIVER | L9: TABLE 2.16.2 - STANDARD CONTROL SERVICES - OPEX BY CATEGORY
D11: Current regulatory period | E11: Forthcoming regulatory period | M11: Current regulatory period | N11: Forthcoming regulatory period
D12: =CONCATENATE("Forecast ($0's, real ", dms_DollarReal,")") -> Forecast ($0's, real December 2015) | M12: =CONCATENATE("Forecast ($0's, real ", dms_DollarReal,")") -> Forecast ($0's, real December 2015)
D13: =CRCP_y5 -> 2015 | E13: =FRCP -> 2016 | F13: 2017 | G13: 2018 | H13: 2019 | I13: 2020 | M13: =CRCP_y5 -> 2015 | N13: =FRCP -> 2016 | O13: 2017 | P13: 2018 | Q13: 2019 | R13: 2020
C14: Driver | K14: ED_OPX2162_00001 | L14: Vegetation management | M14: 4081774.506 | N14: 5375159.968 | O14: 5392200.977 | P14: 5505858.655 | Q14: 5617266.097 | R14: 5730534.186
A15: ED_OPX2161_00001 | C15: Efficient historic opex | D15: 72304381.35 | E15: 72304381.35 | F15: 72304381.35 | G15: 72304381.35 | H15: 72304381.35 | I15: 72304381.35 | K15: ED_OPX2162_00002 | L15: Maintenance | M15: 7554554.34 | N15: 10090868.2 | O15: 10302421.46 | P15: 10519902.56 | Q15: 10734598.66 | R15: 10953872.9
A16: ED_OPX2161_00002 | C16: Real price changes | D16: 295388.0785 | E16: 780184.0038 | F16: 1509408.314 | G16: 2332924.25 | H16: 3085527.694 | I16: 3870888.937 | K16: ED_OPX2162_00003 | L16: Emergency response | M16: 3755095.524 | N16: 3841444.621 | O16: 3942739.872 | P16: 4047301.121 | Q16: 4149792.227 | R16: 4253995.067
A17: ED_OPX2161_00003 | C17: Output growth | D17: 1674483.521 | E17: 3542812.743 | F17: 5450892.332 | G17: 7280950.825 | H17: 9126962.463 | I17: 10947343.18 | K17: ED_OPX2162_00004 | L17: Non-network | M17: 10210274.25 | N17: 16623021.09 | O17: 17083972.65 | P17: 17572999.22 | Q17: 18083187.71 | R17: 18588903.5
A18: ED_OPX2161_00004 | C18: Productivity growth | D18: -609864.6479 | E18: -1269063.924 | F18: -1919240.569 | G18: -2521618.058 | H18: -3109646.562 | I18: -3671222.557 | K18: ED_OPX2162_00005 | L18: Network overheads | M18: 31808194.07 | N18: 37355371.85 | O18: 35965148.84 | P18: 37579721.42 | Q18: 40710008.62 | R18: 42578311.13
A19: ED_OPX2161_00005 | C19: Step changes | D19: 4059556.914 | E19: 20010867.75 | F19: 18011703.32 | G19: 19108871.88 | H19: 21770862.88 | I19: 23148309.06 | K19: ED_OPX2162_00006 | L19: Corporate overheads | M19: 20314052.52 | N19: 22083316.2 | O19: 22670660.95 | P19: 23279727.29 | Q19: 23883234.51 | R19: 24494083.19
C20: Total opex | D20: =SUM(D15:D19) -> 77723945.22 | E20: 95369181.92 | F20: 95357144.75 | G20: 98505510.25 | H20: 103178087.8 | I20: 106599700 | L20: Total opex | M20: =SUM(M14:M19) -> 77723945.22 | N20: 95369181.92 | O20: 95357144.75 | P20: 98505510.25 | Q20: 103178087.8 | R20: 106599700
C23: TABLE 2.16.3 - DUAL FUNCTION ASSETS - OPEX BY DRIVER | L23: TABLE 2.16.4 - DUAL FUNCTION ASSETS - OPEX BY CATEGORY
D25: Current regulatory period | E25: Forthcoming regulatory period | M25: Current regulatory period | N25: Forthcoming regulatory period
D26: =CONCATENATE("Forecast ($0's, real ", dms_DollarReal,")") -> Forecast ($0's, real December 2015) | M26: =CONCATENATE("Forecast ($0's, real ", dms_DollarReal,")") -> Forecast ($0's, real December 2015)
D27: =CRCP_y5 -> 2015 | E27: =FRCP -> 2016 | F27: 2017 | G27: 2018 | H27: 2019 | I27: 2020 | M27: =CRCP_y5 -> 2015 | N27: =FRCP -> 2016 | O27: 2017 | P27: 2018 | Q27: 2019 | R27: 2020
C28: Driver | K28: ED_OPX2164_00001 | L28: Vegetation management
A29: ED_OPX2163_00001 | C29: Efficent recurrent opex | K29: ED_OPX2164_00002 | L29: Maintenance
A30: ED_OPX2163_00002 | C30: Real price changes | K30: ED_OPX2164_00003 | L30: Emergency response
A31: ED_OPX2163_00003 | C31: Output growth | K31: ED_OPX2164_00004 | L31: Non-network
A32: ED_OPX2163_00004 | C32: Productivity growth | K32: ED_OPX2164_00005 | L32: Network overheads
A33: ED_OPX2163_00005 | C33: Step changes | K33: ED_OPX2164_00006 | L33: Corporate overheads
C34: Total opex | D34: =SUM(D29:D33) -> 0 | E34: 0 | F34: 0 | G34: 0 | H34: 0 | I34: 0 | L34: Total opex | M34: =SUM(M28:M33) -> 0 | N34: 0 | O34: 0 | P34: 0 | Q34: 0 | R34: 0

Sheet 2.17 Step Changes
C1: =SheetHeader -> REGULATORY REPORTING STATEMENT
C2: =dms_TradingName -> Victorian DNSP Reset
C3: =FRCP_span -> 2016 to 2020
C4: 2.17 STEP CHANGES
C7: Instructions
C8: Complete the Tables below in accordance with the regulatory information notice. If the DNSP does not own any dual function assets,Table 2.17.3 and 2.17.4 may be left blank. The total step changes in Table 2.17.1 and Table 2.17.3 must reconcile (in each year) to the total step changes for each year in Table 2.16.1 and Table 2.16.3 of worksheet '2.16 Opex Summary', respectively.
C12: TABLE 2.17.1 - FORECAST OPEX STEP CHANGES FOR STANDARD CONTROL SERVICES
E14: Current regulatory period | J14: Forthcoming regulatory period
E15: Historical ($0's, nominal) | I15: =CONCATENATE("Forecast ($0's, real ", dms_DollarReal, ")") -> Forecast ($0's, real December 2015)
A16: STE2171 | C16: Step change | D16: Description | E16: =CRCP -> 2011 | F16: 2012 | G16: 2013 | H16: 2014 | I16: 2015 | J16: =FRCP -> 2016 | K16: 2017 | L16: 2018 | M16: 2019 | N16: 2020
A17: ED_STE2171_00001 | C17: EDPR | D17: Costs incurred in preparing for the EDPR | E17: 0 | F17: 0 | G17: 0 | H17: 4030727.78 | I17: 3574371.205 | J17: 1197874.665 | K17: 0 | L17: 0 | M17: 2996262.029 | N17: 3837113.688
A18: ED_STE2171_00002 | C18: ESV levy step change | D18: Increase in ESV levy | E18: 0 | F18: 392756.1137 | G18: 417957.7454 | H18: 433871.9393 | I18: 0 | J18: 0 | K18: 0 | L18: 0 | M18: 0 | N18: 0
A19: ED_STE2171_00003 | C19: Enclosed substation inspection and rectification program (2015-2020 Inspection & Rectification) | D19: Inspection and rectification of enclosed substation defects | E19: 0 | F19: 0 | G19: 0 | H19: 0 | I19: 157550.6718 | J19: 156726.1574 | K19: 155759.0075 | L19: 154763.6457 | M19: 153794.3604 | N19: 152804.9182
A20: ED_STE2171_00004 | C20: Overhead Switch Inspection | D20: Inspection program for overhead air break switches | E20: 0 | F20: 0 | G20: 0 | H20: 0 | I20: 0 | J20: 434310.5306 | K20: 434310.5306 | L20: 434310.5306 | M20: 434310.5306 | N20: 434310.5306
A21: ED_STE2171_00005 | C21: Vegetation management—Electrical Safety (Electric Line Clearance) Regulations | D21: Expected changes in the Electrical Safety Regulations will incurr a higher level of vegetation management costs | E21: 0 | F21: 3840085.572 | G21: 3401988.412 | H21: 2965989.021 | I21: 0 | J21: 1199524.323 | K21: 1106457.78 | L21: 1106457.78 | M21: 1106457.78 | N21: 1106457.78
A22: ED_STE2171_00006 | C22: Assisting Vulnerable Customers | D22: Eangagement and assistance to vulnerable customers | E22: 0 | F22: 0 | G22: 0 | H22: 0 | I22: 0 | J22: 222325.6288 | K22: 196473.8115 | L22: 196473.8115 | M22: 196473.8115 | N22: 196473.8115
A23: ED_STE2171_00007 | C23: Customer Engagement | D23: Increased customer and stakeholder engagement activities | E23: 0 | F23: 0 | G23: 0 | H23: 0 | I23: 18613.30845 | J23: 522206.7094 | K23: 134429.4499 | L23: 134429.4499 | M23: 0 | N23: 134429.4499
A24: ED_STE2171_00008 | C24: Insurance premiums | D24: Change in JEN's cost associated with purchasing and renewing cyber risk insruance | E24: 0 | F24: 0 | G24: 0 | H24: 0 | I24: 35159.35481 | J24: 34882.77267 | K24: 34558.34365 | L24: 34224.451 | M24: 33899.30566 | N24: 33567.39875
A25: ED_STE2171_00009 | C25: ESV / VESI Code of practice changes | D25: Anticipated Energy Safe Victoria (ESV) review of the Code of Practice on electrical safety for work on or near HV electrical apparatus (the Blue Book). JEN will have to review and release the Electrical Safety Rules for the Victorian Distribution Networks (the Green Book) with the subsequent result being a review of all JEN work procedures, manuals and work instructions. | E25: 0 | F25: 0 | G25: 0 | H25: 0 | I25: 0 | J25: 0 | K25: 0 | L25: 827258.1535 | M25: 104441.3419 | N25: 0
A26: ED_STE2171_00010 | C26: Introduction of new tariff (KVA and demand based) structures | D26: Transition to KVA demand charges and the introduction of capacity based prices for Residential and Small Business customers in line with requirements of the Tariff Structure Statement (TSS) for cost reflective pricing | E26: 0 | F26: 0 | G26: 0 | H26: 0 | I26: 0 | J26: 1233881.388 | K26: 465849.7477 | L26: 253606.3277 | M26: 253606.3277 | N26: 253606.3277
A27: ED_STE2171_00011 | C27: Pole Top Early Detection System Trial | D27: A program to deploy a limited number of pole top fire detection systems | E27: 0 | F27: 0 | G27: 0 | H27: 0 | I27: 137531.668 | J27: 275063.3361 | K27: 275063.3361 | L27: 275063.3361 | M27: 275063.3361 | N27: 275063.3361
A28: ED_STE2171_00012 | C28: Service inspection and testing program | D28: Proactive inspection and testing program for service lines | E28: 0 | F28: 0 | G28: 0 | H28: 0 | I28: 0 | J28: 1230546.503 | K28: 1230546.503 | L28: 1230546.503 | M28: 1230546.503 | N28: 1230546.503
A29: ED_STE2171_00013 | C29: Demand management opex for capex | D29: A demand response (DR) program to mitigate emerging network constraints and limit potential risk of supply interruption to customers. | E29: 0 | F29: 0 | G29: 0 | H29: 0 | I29: 0 | J29: 108577.6327 | K29: 151491.6494 | L29: 151491.6494 | M29: 151491.6494 | N29: 151491.6494
A30: ED_STE2171_00014 | C30: Customer communications | D30: Marketing costs of a new connection portal targeted at registered electrical contractors and other trade professionals | E30: 0 | F30: 7798 | G30: 0 | H30: 0 | I30: 0 | J30: 0 | K30: 0 | L30: 0 | M30: 0 | N30: 0
A31: ED_STE2171_00015 | C31: Distribution substation cleaning, gardening & security (2012-2014 Rectification) | D31: Rectification of enclosed substation defects | E31: 0 | F31: 0 | G31: 267069.7 | H31: 112368.5 | I31: 0 | J31: 0 | K31: 0 | L31: 0 | M31: 0 | N31: 0
A32: ED_STE2171_00016 | C32: Electrical Safety (Management) Regulations | D32: Change in Electrical Safety Management Regulations resulting in higher incurred costs | E32: 0 | F32: 109152 | G32: 162877.98 | H32: 140453.21 | I32: 0 | J32: 0 | K32: 0 | L32: 0 | M32: 0 | N32: 0
A33: ED_STE2171_00017 | C33: HID access card maintenance | D33: Maintenance of HID facilities access assets | E33: 0 | F33: 0 | G33: 58827.06364 | H33: 47496.03636 | I33: 0 | J33: 0 | K33: 0 | L33: 0 | M33: 0 | N33: 0
A34: ED_STE2171_00018 | C34: IT opex—New data centre facilities | D34: Relocation of existing data centre facilities to new location | E34: 0 | F34: 1432916.294 | G34: 0 | H34: 0 | I34: 0 | J34: 0 | K34: 0 | L34: 0 | M34: 0 | N34: 0
A35: ED_STE2171_00019 | C35: Monitoring and compliance | D35: Auditing of RIN templates | E35: 0 | F35: 714740.26 | G35: 976228 | H35: 533000 | I35: 0 | J35: 0 | K35: 0 | L35: 0 | M35: 0 | N35: 0
A36: ED_STE2171_00020 | C36: Non pole Distribution Substation routine maintenance (2012-2014 Inspection) | D36: Inspection of enclosed substation defects | E36: 0 | F36: 94064 | G36: 147810 | H36: 0 | I36: 0 | J36: 0 | K36: 0 | L36: 0 | M36: 0 | N36: 0
A37: ED_STE2171_00021 | C37: Opex/capex balance—DP testing | D37: Testing of power transformer paper degree of polymerisation for development of health indexes | E37: 0 | F37: 32768 | G37: 0 | H37: 0 | I37: 0 | J37: 0 | K37: 0 | L37: 0 | M37: 0 | N37: 0
A38: ED_STE2171_00022 | C38: Opex/capex balance—ZA transformer dryouts (Trojan) | D38: Oil regeration for power transformers to increase dielectric strength | E38: 0 | F38: 0 | G38: 21017.05 | H38: 27083.51 | I38: 0 | J38: 0 | K38: 0 | L38: 0 | M38: 0 | N38: 0
A39: ED_STE2171_00023 | C39: Opex/capex balance—ZS pot VT/CT testing | D39: DLA and IR testing of Zone Substation instrument transformers driven from previous failures | E39: 0 | F39: 0 | G39: 23185.44 | H39: 0 | I39: 0 | J39: 0 | K39: 0 | L39: 0 | M39: 0 | N39: 0
A40: ED_STE2171_00024 | C40: Opex/capex balance—ZS TEV testing | D40: Partial discharge testing using transient earth voltage measurement | E40: 0 | F40: 0 | G40: 16626.2 | H40: 747 | I40: 0 | J40: 0 | K40: 0 | L40: 0 | M40: 0 | N40: 0
A41: ED_STE2171_00025 | C41: Public lighting switch wire removal | D41: Increase in the number of public lighting switch wires requiring removal | E41: 0 | F41: 306401.38 | G41: 467716.08 | H41: 384319.97
A42: ED_STE2171_00026 | C42: Rectification of earths in non-CMEN areas | D42: Refciticaion of HV earths in non-Common Multiple Earthed Neutral areas that are found to be above standarad resitance | E42: 0 | F42: 0 | G42: 24404.68 | H42: 46659.29
A43: ED_STE2171_00027
A44: ED_STE2171_00028
A45: ED_STE2171_00029
A46: ED_STE2171_00030
A47: ED_STE2171_00031
A48: ED_STE2171_00032 | C48: Line items below are not step changes, and are for reconciliation purposes (refer to the "check" formula on row 52)
A49: ED_STE2171_00033 | C49: Service reclassification | D49: These costs relate to metering services and supply abolishment (up to 100 amps) costs. | I49: 0 | J49: 11986795.48 | K49: 12348694.61 | L49: 12745781.81 | M49: 13193517.76 | N49: 13625718.12
A50: ED_STE2171_00034 | C50: Specific forecasts | D50: These costs are forecast using a 'zero-based' forecast methodology. | I50: 136330.7063 | J50: 1408152.622 | K50: 1478068.555 | L50: 1564464.432 | M50: 1640998.137 | N50: 1716725.544
C51: Total | E51: =SUM(E17:E50) -> 0 | F51: 6930681.62 | G51: 5985708.351 | H51: 8722716.256 | I51: 4059556.914 | J51: 20010867.75 | K51: 18011703.32 | L51: 19108871.88 | M51: 21770862.88 | N51: 23148309.06
C52: Check | J52: =IF(J$51-'2.16 Opex Summary'!E$19=0,"OK","Error") -> Error | K52: =IF(K$51-'2.16 Opex Summary'!F$19=0,"OK","Error") -> OK | L52: =IF(L$51-'2.16 Opex Summary'!G$19=0,"OK","Error") -> Error | M52: =IF(M$51-'2.16 Opex Summary'!H$19=0,"OK","Error") -> OK | N52: =IF(N$51-'2.16 Opex Summary'!I$19=0,"OK","Error") -> OK
C54: TABLE 2.17.2 - FORECAST CAPEX STEP CHANGES FOR STANDARD CONTROL SERVICES
E56: Current regulatory period | J56: Forthcoming regulatory period
E57: Historical ($0's, nominal) | I57: =CONCATENATE("Forecast ($0's, real ", dms_DollarReal, ")") -> Forecast ($0's, real December 2015)
A58: STE2172 | C58: Step change | D58: Description | E58: =CRCP -> 2011 | F58: 2012 | G58: 2013 | H58: 2014 | I58: 2015 | J58: =FRCP -> 2016 | K58: 2017 | L58: 2018 | M58: 2019 | N58: 2020
A59: ED_STE2172_00001
A60: ED_STE2172_00002
A61: ED_STE2172_00003
A62: ED_STE2172_00004
A63: ED_STE2172_00005
A64: ED_STE2172_00006
A65: ED_STE2172_00007
A66: ED_STE2172_00008
A67: ED_STE2172_00009
A68: ED_STE2172_00010
A69: ED_STE2172_00011
A70: ED_STE2172_00012
A71: ED_STE2172_00013
A72: ED_STE2172_00014
A73: ED_STE2172_00015
A74: ED_STE2172_00016
C75: Total | E75: =SUM(E59:E74) -> 0 | F75: 0 | G75: 0 | H75: 0 | I75: 0 | J75: 0 | K75: 0 | L75: 0 | M75: 0 | N75: 0
C77: TABLE 2.17.3 - FORECAST OPEX STEP CHANGES FOR DUAL FUNCTION ASSETS
E79: Current regulatory period | J79: Forthcoming regulatory period
E80: Historical ($0's, nominal) | I80: =CONCATENATE("Forecast ($0's, real ", dms_DollarReal, ")") -> Forecast ($0's, real December 2015)
A81: STE2173 | C81: Step change | D81: Description | E81: =CRCP -> 2011 | F81: 2012 | G81: 2013 | H81: 2014 | I81: 2015 | J81: =FRCP -> 2016 | K81: 2017 | L81: 2018 | M81: 2019 | N81: 2020
A82: ED_STE2173_00001
A83: ED_STE2173_00002
A84: ED_STE2173_00003
A85: ED_STE2173_00004
A86: ED_STE2173_00005
A87: ED_STE2173_00006
A88: ED_STE2173_00007
A89: ED_STE2173_00008
A90: ED_STE2173_00009
A91: ED_STE2173_00010
A92: ED_STE2173_00011
A93: ED_STE2173_00012
C94: Total | E94: =SUM(E82:E93) -> 0 | F94: 0 | G94: 0 | H94: 0 | I94: 0 | J94: 0 | K94: 0 | L94: 0 | M94: 0 | N94: 0
C95: Check | J95: =IF(J$51-'2.16 Opex Summary'!E$33=0,"OK","Error") -> Error | K95: =IF(K$51-'2.16 Opex Summary'!F$33=0,"OK","Error") -> Error | L95: =IF(L$51-'2.16 Opex Summary'!G$33=0,"OK","Error") -> Error | M95: =IF(M$51-'2.16 Opex Summary'!H$33=0,"OK","Error") -> Error | N95: =IF(N$51-'2.16 Opex Summary'!I$33=0,"OK","Error") -> Error
C97: TABLE 2.17.4 - FORECAST CAPEX STEP CHANGES FOR DUAL FUNCTION ASSETS
E99: Current regulatory period | J99: Forthcoming regulatory period
E100: Historical ($0's, nominal) | I100: =CONCATENATE("Forecast ($0's, real ", dms_DollarReal, ")") -> Forecast ($0's, real December 2015)
A101: STE2174 | C101: Step change | D101: Description | E101: =CRCP -> 2011 | F101: 2012 | G101: 2013 | H101: 2014 | I101: 2015 | J101: =FRCP -> 2016 | K101: 2017 | L101: 2018 | M101: 2019 | N101: 2020
A102: ED_STE2174_00001
A103: ED_STE2174_00002
A104: ED_STE2174_00003
A105: ED_STE2174_00004
A106: ED_STE2174_00005
A107: ED_STE2174_00006
A108: ED_STE2174_00007
A109: ED_STE2174_00008
A110: ED_STE2174_00009
A111: ED_STE2174_00010
A112: ED_STE2174_00011
A113: ED_STE2174_00012
C114: Total | E114: =SUM(E102:E113) -> 0 | F114: 0 | G114: 0 | H114: 0 | I114: 0 | J114: 0 | K114: 0 | L114: 0 | M114: 0 | N114: 0

Sheet 3.1 Revenue
C1: =SheetHeader -> REGULATORY REPORTING STATEMENT
C2: =dms_TradingName -> Victorian DNSP Reset
C3: =FRCP_span -> 2016 to 2020
C4: 3.1 REVENUE
E7: Standard control services | L7: Alternative control services
E8: =CONCATENATE("Forecast ($0's, real ", dms_DollarReal,")") -> Forecast ($0's, real December 2015) | L8: =CONCATENATE("Forecast ($0's, real ", dms_DollarReal,")") -> Forecast ($0's, real December 2015)
E9: =CRCP_y5 -> 2015 | F9: =FRCP -> 2016 | G9: 2017 | H9: 2018 | I9: 2019 | J9: 2020 | L9: =CRCP_y5 -> 2015 | M9: =FRCP -> 2016 | N9: 2017 | O9: 2018 | P9: 2019 | Q9: 2020
C11: TABLE 3.1.1 - REVENUE GROUPING BY CHARGEABLE QUANTITY
A12: ED_REV311_00001 | B12: DREV0101 | C12: Revenue from Fixed Customer Charges | E12: 13713715.09 | F12: 13953386.86 | G12: 14149696.19 | H12: 12065784.16 | I12: 11713927.76 | J12: 11351600.35 | L12: 0 | M12: 0 | N12: 0 | O12: 0 | P12: 0 | Q12: 0
A13: ED_REV311_00002 | B13: DREV0102 | C13: Revenue from Energy Delivery charges where time of use is not a determinant | E13: 111914810.1 | F13: 113761085.8 | G13: 115473028.4 | H13: 83762494.94 | I13: 80075060.2 | J13: 76221890.61 | L13: 0 | M13: 0 | N13: 0 | O13: 0 | P13: 0 | Q13: 0
A14: ED_REV311_00003 | B14: DREV0103 | C14: Revenue from On–Peak Energy Delivery charges | E14: 49050777.9 | F14: 50576195.01 | G14: 51767559.6 | H14: 40772017.46 | I14: 39060721.33 | J14: 37033236.79 | L14: 0 | M14: 0 | N14: 0 | O14: 0 | P14: 0 | Q14: 0
A15: ED_REV311_00004 | B15: DREV0104 | C15: Revenue from Shoulder period Energy Delivery Charges | E15: 92940.75995 | F15: 112631.0511 | G15: 131790.1572 | H15: 108194.8844 | I15: 119415.1999 | J15: 127501.955 | L15: 0 | M15: 0 | N15: 0 | O15: 0 | P15: 0 | Q15: 0
A16: ED_REV311_00005 | B16: DREV0105 | C16: Revenue from Off–Peak Energy Delivery charges | E16: 7973405.44 | F16: 8339624.594 | G16: 8673589.268 | H16: 8298653.334 | I16: 8215849.409 | J16: 8245366.039 | L16: 0 | M16: 0 | N16: 0 | O16: 0 | P16: 0 | Q16: 0
A17: ED_REV311_00006 | B17: DREV0106 | C17: Revenue from controlled load customer charges | E17: 847139.2431 | F17: 865530.7368 | G17: 883678.4844 | H17: 884939.6792 | I17: 882090.4138 | J17: 871675.0373 | L17: 0 | M17: 0 | N17: 0 | O17: 0 | P17: 0 | Q17: 0
A18: ED_REV311_00007 | B18: DREV0107 | C18: Revenue from unmetered supplies | E18: 2481345.18 | F18: 2564833.349 | G18: 2635381.366 | H18: 2653257.299 | I18: 2714747.833 | J18: 2795682.144 | L18: 0 | M18: 0 | N18: 0 | O18: 0 | P18: 0 | Q18: 0
A19: ED_REV311_00008 | B19: DREV0108 | C19: Revenue from Contracted Maximum Demand charges | E19: 0 | F19: 0 | G19: 0 | H19: 0 | I19: 0 | J19: 0 | L19: 0 | M19: 0 | N19: 0 | O19: 0 | P19: 0 | Q19: 0
A20: ED_REV311_00009 | B20: DREV0109 | C20: Revenue from Measured Maximum Demand charges | E20: 70117171.8 | F20: 66770956.72 | G20: 65964009.08 | H20: 110296804.5 | I20: 120360238.2 | J20: 130863765.7 | L20: 0 | M20: 0 | N20: 0 | O20: 0 | P20: 0 | Q20: 0
A21: ED_REV311_00010 | B21: DREV0110 | C21: Revenue from metering charges | E21: 75687556.36 | F21: 31167884.96 | G21: 31548603.58 | H21: 31935339.88 | I21: 32328166.79 | J21: 32727203.41 | L21: 0 | M21: 0 | N21: 0 | O21: 0 | P21: 0 | Q21: 0
A22: ED_REV311_00011 | B22: DREV0111 | C22: Revenue from connection charges | E22: 0 | F22: 0 | G22: 0 | H22: 0 | I22: 0 | J22: 0 | L22: 4122020.576 | M22: 4175405.776 | N22: 4240975.092 | O22: 4291883.319 | P22: 4294840.374 | Q22: 4326094.431
A23: ED_REV311_00012 | B23: DREV0112 | C23: Revenue from public lighting charges | E23: 0 | F23: 0 | G23: 0 | H23: 0 | I23: 0 | J23: 0 | L23: 2538674.553 | M23: 4652727.509 | N23: 4770946.718 | O23: 4873958.042 | P23: 4903549.521 | Q23: 4971645.231
A24: ED_REV311_00013 | B24: DREV0113 | C24: Revenue from other Sources | E24: 0 | F24: 0 | G24: 0 | H24: 0 | I24: 0 | J24: 0 | L24: 4926485.698 | M24: 4573771.761 | N24: 4573577.409 | O24: 4611651.208 | P24: 4599442.822 | Q24: 4637961.749
B25: DREV01 | C25: Total revenue by chargeable quantity | E25: =SUM(E12:E24) -> 331878861.8 | F25: 288112129.1 | G25: 291227336.1 | H25: 290777486.2 | I25: 295470217.2 | J25: 300237922 | L25: =SUM(L12:L24) -> 11587180.83 | M25: 13401905.05 | N25: 13585499.22 | O25: 13777492.57 | P25: 13797832.72 | Q25: 13935701.41
C27: TABLE 3.1.2 REVENUE GROUPING BY CUSTOMER TYPE OR CLASS
A28: ED_REV312_00001 | B28: DREV0201 | C28: Revenue from residential Customers | E28: 109913084.1 | F28: 111781586 | G28: 113598831.5 | H28: 113338638.8 | I28: 115319722 | J28: 117235730.9 | L28: 0 | M28: 0 | N28: 0 | O28: 0 | P28: 0 | Q28: 0
A29: ED_REV312_00002 | B29: DREV0202 | C29: Revenue from Non residential customers not on demand tariffs | E29: 46205581.02 | F29: 47472437.12 | G29: 48434832.5 | H29: 49879910.46 | I29: 51586453.84 | J29: 53367563.6 | L29: 0 | M29: 0 | N29: 0 | O29: 0 | P29: 0 | Q29: 0
A30: ED_REV312_00003 | B30: DREV0203 | C30: Revenue from Non-residential low voltage demand tariff customers | E30: 75718145.35 | F30: 73830489.3 | G30: 74926069.96 | H30: 73360154.5 | I30: 73893131.93 | J30: 74466305.03 | L30: 0 | M30: 0 | N30: 0 | O30: 0 | P30: 0 | Q30: 0
A31: ED_REV312_00004 | B31: DREV0204 | C31: Revenue from Non-residential high voltage demand tariff customers | E31: 21873149.77 | F31: 21294898.42 | G31: 20083617.26 | H31: 19610185.23 | I31: 19627994.75 | J31: 19645436.95 | L31: 0 | M31: 0 | N31: 0 | O31: 0 | P31: 0 | Q31: 0
A32: ED_REV312_00005 | B32: DREV0205 | C32: Revenue from unmetered supplies | E32: 2481345.18 | F32: 2564833.349 | G32: 2635381.366 | H32: 2653257.299 | I32: 2714747.833 | J32: 2795682.144 | L32: 0 | M32: 0 | N32: 0 | O32: 0 | P32: 0 | Q32: 0
A33: ED_REV312_00006 | B33: DREV0206 | C33: Revenue from Other Customers | E33: 75687556.36 | F33: 31167884.96 | G33: 31548603.58 | H33: 31935339.88 | I33: 32328166.79 | J33: 32727203.41 | L33: 11587180.83 | M33: 13401905.05 | N33: 13585499.22 | O33: 13777492.57 | P33: 13797832.72 | Q33: 13935701.41
B34: DREV02 | C34: Total revenue by customer class | E34: =SUM(E28:E33) -> 331878861.8 | F34: 288112129.1 | G34: 291227336.1 | H34: 290777486.2 | I34: 295470217.2 | J34: 300237922 | L34: =SUM(L28:L33) -> 11587180.83 | M34: 13401905.05 | N34: 13585499.22 | O34: 13777492.57 | P34: 13797832.72 | Q34: 13935701.41
C36: TABLE 3.1.3 REVENUE (penalties) ALLOWED (deducted) THROUGH INCENTIVE SCHEMES
A37: ED_REV313_00001 | B37: DREV0301 | C37: EBSS | E37: 0 | F37: 5292000 | G37: -5000 | H37: 10525000 | I37: 7241000 | J37: 0 | L37: 0 | M37: 0 | N37: 0 | O37: 0 | P37: 0 | Q37: 0
A38: ED_REV313_00002 | B38: DREV0302 | C38: STPIS | E38: 4770663.635 | F38: 8945081.809 | G38: 0 | H38: 0 | I38: 0 | J38: 0 | L38: 0 | M38: 0 | N38: 0 | O38: 0 | P38: 0 | Q38: 0
A39: ED_REV313_00003 | B39: DREV0303 | C39: F-Factor | E39: -855000 | F39: -680000 | G39: 0 | H39: 0 | I39: 0 | J39: 0 | L39: 0 | M39: 0 | N39: 0 | O39: 0 | P39: 0 | Q39: 0
A40: ED_REV313_00004 | B40: DREV0304 | C40: S-Factor True up | E40: 0 | F40: 3812000 | G40: 0 | H40: 0 | I40: 0 | J40: 0 | L40: 0 | M40: 0 | N40: 0 | O40: 0 | P40: 0 | Q40: 0
A41: ED_REV313_00005 | B41: DREV0305 | C41: Other | E41: 0 | F41: 0 | G41: 0 | H41: 0 | I41: 0 | J41: 0 | L41: 0 | M41: 0 | N41: 0 | O41: 0 | P41: 0 | Q41: 0
B42: DREV03 | C42: Total revenue of incentive schemes | E42: =SUM(E37:E41) -> 3915663.635 | F42: 17369081.81 | G42: -5000 | H42: 10525000 | I42: 7241000 | J42: 0 | L42: =SUM(L37:L41) -> 0 | M42: 0 | N42: 0 | O42: 0 | P42: 0 | Q42: 0

Sheet 3.2 Operating expenditure
C1: =SheetHeader -> REGULATORY REPORTING STATEMENT
C2: =dms_TradingName -> Victorian DNSP Reset
C3: =FRCP_span -> 2016 to 2020
C4: 3.2 OPERATING EXPENDITURE
C6: Instructions
C7: Forecasts for opex in table 3.2.1 are to be for the opex categories that the DNSP has reported in their response to their annual reporting RIN.
E11: Standard control services | L11: Alternative control services
E12: =CONCATENATE("Forecast ($0's, real ",dms_DollarReal,")") -> Forecast ($0's, real December 2015) | L12: =CONCATENATE("Forecast ($0's, real ",dms_DollarReal,")") -> Forecast ($0's, real December 2015)
E13: =CRCP_y5 -> 2015 | F13: =FRCP -> 2016 | G13: 2017 | H13: 2018 | I13: 2019 | J13: 2020 | L13: =CRCP_y5 -> 2015 | M13: =FRCP -> 2016 | N13: 2017 | O13: 2018 | P13: 2019 | Q13: 2020
C15: TABLE 3.2.1 - OPEX CATEGORIES
C16: Table 3.2.1.1 Current opex categories and cost allocations
A17: ED_OPX3211_00001 | B17: DOPEX0101 | C17: Maintenance | E17: 10845184.44 | F17: 12754981.02 | G17: 13042317.2 | H17: 13338920.75 | I17: 13629658.4 | J17: 13925247.77 | L17: 0 | M17: 0 | N17: 0 | O17: 0 | P17: 0 | Q17: 0
A18: ED_OPX3211_00002 | B18: DOPEX0102 | C18: Routine | E18: 3954356.502 | F18: 4747473.55 | G18: 4867127.13 | H18: 4989742.518 | I18: 5111444.724 | J18: 5236175.92 | L18: 0 | M18: 0 | N18: 0 | O18: 0 | P18: 0 | Q18: 0
A19: ED_OPX3211_00003 | B19: DOPEX0103 | C19: Condition based | E19: 4081774.506 | F19: 5375159.968 | G19: 5392200.977 | H19: 5505858.655 | I19: 5617266.097 | J19: 5730534.186 | L19: 0 | M19: 0 | N19: 0 | O19: 0 | P19: 0 | Q19: 0
A20: ED_OPX3211_00004 | B20: DOPEX0104 | C20: Vegetation Control | E20: 3755095.524 | F20: 3841444.621 | G20: 3942739.872 | H20: 4047301.121 | I20: 4149792.227 | J20: 4253995.067 | L20: 0 | M20: 0 | N20: 0 | O20: 0 | P20: 0 | Q20: 0
A21: ED_OPX3211_00005 | B21: DOPEX0105 | C21: Emergency - Fault | E21: 4021150.866 | F21: 4113617.954 | G21: 4222090.157 | H21: 4334059.76 | I21: 4443812.548 | J21: 4555398.349 | L21: 0 | M21: 0 | N21: 0 | O21: 0 | P21: 0 | Q21: 0
A22: ED_OPX3211_00006 | B22: DOPEX0106 | C22: Inspection | E22: 39548.38084 | F22: 40457.80298 | G22: 41524.63686 | H22: 42625.868 | I22: 43705.29654 | J22: 44802.75294 | L22: 0 | M22: 0 | N22: 0 | O22: 0 | P22: 0 | Q22: 0
A23: ED_OPX3211_00007 | B23: DOPEX0107 | C23: SCADA/Network Control | E23: 2681684.778 | F23: 2743350.602 | G23: 2815690.155 | H23: 2890362.106 | I23: 2963555.674 | J23: 3037971.669 | L23: 0 | M23: 0 | N23: 0 | O23: 0 | P23: 0 | Q23: 0
A24: ED_OPX3211_00008 | B24: DOPEX0108 | C24: Other - Standard Control Services | E24: 0 | F24: 0 | G24: 0 | H24: 0 | I24: 0 | J24: 0 | L24: 0 | M24: 0 | N24: 0 | O24: 0 | P24: 0 | Q24: 0
A25: ED_OPX3211_00009 | B25: DOPEX0109 | C25: Metering | E25: 0 | F25: 0 | G25: 0 | H25: 0 | I25: 0 | J25: 0 | L25: 4538788.795 | M25: 4655296.382 | N25: 4792156.704 | O25: 4926082.913 | P25: 5069773.567 | Q25: 5224033.17
A26: ED_OPX3211_00010 | B26: DOPEX0110 | C26: Public Lighting | E26: 0 | F26: 0 | G26: 0 | H26: 0 | I26: 0 | J26: 0 | L26: 3648237.449 | M26: 3741885.195 | N26: 3851892.285 | O26: 3959540.963 | P26: 4075038.213 | Q26: 4199030.689
A27: ED_OPX3211_00011 | B27: DOPEX0111 | C27: Alternative control -other | E27: 0 | F27: 0 | G27: 0 | H27: 0 | I27: 0 | J27: 0 | L27: 0 | M27: 0 | N27: 0 | O27: 0 | P27: 0 | Q27: 0
A28: ED_OPX3211_00012 | B28: DOPEX0112 | C28: Negotiated services | L28: 0 | M28: 0 | N28: 0 | O28: 0 | P28: 0 | Q28: 0
A29: ED_OPX3211_00013 | B29: DOPEX0113 | C29: Activities | E29: 13324041.2 | F29: 15096942.41 | G29: 15500697.9 | H29: 16747865.24 | I29: 16443963.95 | J29: 16762351.04 | L29: 0 | M29: 0 | N29: 0 | O29: 0 | P29: 0 | Q29: 0
A30: ED_OPX3211_00014 | B30: DOPEX0114 | C30: Network Operating Costs | E30: 1323998.658 | F30: 2588325.634 | G30: 1856009.404 | H30: 1680632.943 | I30: 1716769.996 | J30: 1753510.585 | L30: 0 | M30: 0 | N30: 0 | O30: 0 | P30: 0 | Q30: 0
A31: ED_OPX3211_00015 | B31: DOPEX0115 | C31: Billing & Revenue Collection | E31: 952458.2493 | F31: 974360.1982 | G31: 1000053.152 | H31: 1026574.508 | I31: 1052570.784 | J31: 1079001.231 | L31: 0 | M31: 0 | N31: 0 | O31: 0 | P31: 0 | Q31: 0
A32: ED_OPX3211_00016 | B32: DOPEX0116 | C32: Advertising/Marketing | E32: 1923645.798 | F32: 4908117.556 | G32: 4612831.28 | H32: 4739725.233 | I32: 4740731.997 | J32: 5008202.853 | L32: 0 | M32: 0 | N32: 0 | O32: 0 | P32: 0 | Q32: 0
A33: ED_OPX3211_00017 | B33: DOPEX0117 | C33: Customer Service | E33: 3703264.259 | F33: 1586268.462 | G33: 399626.0787 | H33: 411769.0346 | I33: 3421214.071 | J33: 4274929.513 | L33: 0 | M33: 0 | N33: 0 | O33: 0 | P33: 0 | Q33: 0
A34: ED_OPX3211_00018 | B34: DOPEX0118 | C34: Regulatory | E34: 4246464.621 | F34: 4344112.84 | G34: 4458662.974 | H34: 4576906.476 | I34: 4692808.949 | J34: 4810647.143 | L34: 0 | M34: 0 | N34: 0 | O34: 0 | P34: 0 | Q34: 0
A35: ED_OPX3211_00019 | B35: DOPEX0119 | C35: Regulatory Reset | E35: 5406763.861 | F35: 11709053.11 | G35: 12040428 | H35: 12395700.03 | I35: 12774782.12 | J35: 13147201.85 | L35: 613353.3567 | M35: 629097.7155 | N35: 647592.4597 | O35: 665690.7 | P35: 685108.4674 | Q35: 705954.4793
A36: ED_OPX3211_00020 | B36: DOPEX0120 | C36: IT | E36: 35685.51216 | F36: 36506.10694 | G36: 37468.73834 | H36: 38462.40727 | I36: 39436.40316 | J36: 40426.66604 | L36: 0 | M36: 0 | N36: 0 | O36: 0 | P36: 0 | Q36: 0
A37: ED_OPX3211_00021 | B37: DOPEX0121 | C37: Licence fee | E37: 70290.68794 | F37: 70290.68794 | G37: 70290.68794 | H37: 70290.68794 | I37: 70290.68794 | J37: 70290.68794 | L37: 0 | M37: 0 | N37: 0 | O37: 0 | P37: 0 | Q37: 0
A38: ED_OPX3211_00022 | B38: DOPEX0122 | C38: GSL payments | E38: 66040.0184 | F38: 174617.651 | G38: 217531.6678 | H38: 217531.6678 | I38: 217531.6678 | J38: 217531.6678 | L38: 0 | M38: 0 | N38: 0 | O38: 0 | P38: 0 | Q38: 0
A39: ED_OPX3211_00023 | B39: DOPEX0123 | C39: Non-network alternatives costs | E39: 0 | F39: 1271821.916 | G39: 1341737.849 | H39: 1428133.726 | I39: 1504667.43 | J39: 1580394.837 | L39: 0 | M39: 0 | N39: 0 | O39: 0 | P39: 0 | Q39: 0
A40: ED_OPX3211_00024 | B40: DOPEX0124 | C40: Debt raising costs | E40: 17292497.36 | F40: 18992279.83 | G40: 19498116.89 | H40: 20023047.53 | I40: 20544084.81 | J40: 21071086.18 | L40: 0 | M40: 0 | N40: 0 | O40: 0 | P40: 0 | Q40: 0
A41: ED_OPX3211_00025 | B41: DOPEX0125 | C41: Other - Standard Control Services | E41: 0 | F41: 0 | G41: 0 | H41: 0 | I41: 0 | J41: 0 | L41: 639894.744 | M41: 656265.7583 | N41: 676105.2609 | O41: 697987.6427 | P41: 722712.4358 | Q41: 746470.2877
A42: ED_OPX3211_00026 | B42: DOPEX0126 | C42: Metering | E42: 0 | F42: 0 | G42: 0 | H42: 0 | I42: 0 | J42: 0 | L42: 12427.35001 | M42: 12746.35153 | N42: 13121.0795 | O42: 13487.77378 | P42: 13881.20342 | Q42: 14303.57119
A43: ED_OPX3211_00027 | B43: DOPEX0127 | C43: Public Lighting | E43: 0 | F43: 0 | G43: 0 | H43: 0 | I43: 0 | J43: 0 | L43: 2668087.193 | M43: 2736575.156 | N43: 2817027.296 | O43: 2895754.644 | P43: 2980221.935 | Q43: 3070902.09
A44: ED_OPX3211_00028 | B44: DOPEX0128 | C44: Alternative control -other | E44: 0 | F44: 0 | G44: 0 | H44: 0 | I44: 0 | J44: 0 | L44: 0 | M44: 0 | N44: 0 | O44: 0 | P44: 0 | Q44: 0
A45: ED_OPX3211_00029 | B45: DOPEX0129 | C45: Negotiated services | L45: 0 | M45: 0 | N45: 0 | O45: 0 | P45: 0 | Q45: 0
A46: ED_OPX3211_00030 | B46: DOPEX0130
A47: ED_OPX3211_00031 | B47: DOPEX0131
A48: ED_OPX3211_00032 | B48: DOPEX0132
A49: ED_OPX3211_00033 | B49: DOPEX0133
A50: ED_OPX3211_00034 | B50: DOPEX0134
A51: ED_OPX3211_99999 | B51: DOPEX01 | C51: Total opex | E51: =SUM(E17:E50) -> 77723945.22 | F51: 95369181.92 | G51: 95357144.75 | H51: 98505510.25 | I51: 103178087.8 | J51: 106599700 | L51: =SUM(L17:L50) -> 12120788.89 | M51: 12431866.56 | N51: 12797895.09 | O51: 13158544.64 | P51: 13546735.82 | Q51: 13960694.29
C54: TABLE 3.2.2 - OPEX CONSISTENCY
C55: Table 3.2.2.1 Opex consistency - current cost allocation approach
A56: ED_OPX3221_00001 | B56: DOPEX0201 | C56: Opex for network services | E56: 66589821.05 | F56: 83950203.25 | G56: 83592960.1 | H56: 86360573.68 | I56: 90602941.56 | J56: 93611168.74 | L56: 6929677.999 | M56: 7107558.066 | N56: 7316512.041 | O56: 7520986.307 | P56: 7740368.616 | Q56: 7975887.259
A57: ED_OPX3221_00002 | B57: DOPEX0202 | C57: Opex for metering | E57: 11134124.17 | F57: 11418978.68 | G57: 11764184.65 | H57: 12144936.57 | I57: 12575146.26 | J57: 12988531.23 | L57: 639894.744 | M57: 656265.7583 | N57: 676105.2609 | O57: 697987.6427 | P57: 722712.4358 | Q57: 746470.2877
A58: ED_OPX3221_00003 | B58: DOPEX0203 | C58: Opex for connection services | E58: 0 | F58: 0 | G58: 0 | H58: 0 | I58: 0 | J58: 0 | L58: 0 | M58: 0 | N58: 0 | O58: 0 | P58: 0 | Q58: 0
A59: ED_OPX3221_00004 | B59: DOPEX0204 | C59: Opex for public lighting | E59: 0 | F59: 0 | G59: 0 | H59: 0 | I59: 0 | J59: 0 | L59: 4551216.145 | M59: 4668042.733 | N59: 4805277.783 | O59: 4939570.687 | P59: 5083654.771 | Q59: 5238336.741
A60: ED_OPX3221_00005 | B60: DOPEX0205 | C60: Opex for amounts payable for easement levy or similar direct charges on DNSP | E60: 0 | F60: 0 | G60: 0 | H60: 0 | I60: 0 | J60: 0 | L60: 0 | M60: 0 | N60: 0 | O60: 0 | P60: 0 | Q60: 0
A61: ED_OPX3221_00006 | B61: DOPEX0207 | C61: Opex for transmission connection point planning | E61: 0 | F61: 0 | G61: 0 | H61: 0 | I61: 0 | J61: 0 | L61: 0 | M61: 0 | N61: 0 | O61: 0 | P61: 0 | Q61: 0
C62: Total opex | E62: =SUM(E56:E61) -> 77723945.22 | F62: 95369181.92 | G62: 95357144.75 | H62: 98505510.25 | I62: 103178087.8 | J62: 106599700 | L62: =SUM(L56:L61) -> 12120788.89 | M62: 12431866.56 | N62: 12797895.09 | O62: 13158544.64 | P62: 13546735.82 | Q62: 13960694.29
C65: TABLE 3.2.4 - OPEX FOR HIGH VOLTAGE CUSTOMERS | F65: End user costs (not standard control services)
A66: ED_OPX324_00001 | B66: DOPEX0401 | C66: Opex for high voltage customers | E66: 95474.92644 | F66: 95474.92644 | G66: 95474.92644 | H66: 95474.92644 | I66: 95474.92644 | J66: 95474.92644

Sheet 3.3 Assets (RAB)
C1: =SheetHeader -> REGULATORY REPORTING STATEMENT
C2: =dms_TradingName -> Victorian DNSP Reset
C3: =FRCP_span -> 2016 to 2020
C4: 3.3 ASSETS
D6: Network services | K6: Standard control services | R6: Alternative control services
D7: =CONCATENATE("Forecast ($0's, real ", dms_DollarReal,")") -> Forecast ($0's, real December 2015) | K7: =CONCATENATE("Forecast ($0's, real ", dms_DollarReal,")") -> Forecast ($0's, real December 2015) | R7: =CONCATENATE("Forecast ($0's, real ", dms_DollarReal,")") -> Forecast ($0's, real December 2015)
D8: =CRCP_y5 -> 2015 | E8: =FRCP -> 2016 | F8: 2017 | G8: 2018 | H8: 2019 | I8: 2020 | K8: =CRCP_y5 -> 2015 | L8: =FRCP -> 2016 | M8: 2017 | N8: 2018 | O8: 2019 | P8: 2020 | R8: =CRCP_y5 -> 2015 | S8: =FRCP -> 2016 | T8: 2017 | U8: 2018 | V8: 2019 | W8: 2020
C10: TABLE 3.3.1 REGULATORY ASSET BASE VALUES
C11: For total asset base:
A12: ED_RAB331_00001 | B12: DRAB0101 | C12: Opening value | D12: =SUM(D22,D30,D38,D46,D54,D62,D70,D76,D84,D92) -> 956418752.2 | E12: =D18 -> 1038486960 | F12: =E18 -> 1125833471 | G12: =F18 -> 1232223127 | H12: =G18 -> 1336184185 | I12: =H18 -> 1439884698 | K12: =SUM(K22,K30,K38,K46,K54,K62,K70,K76,K84,K92) -> 1106306636 | L12: =K18 -> 1190844491 | M12: =L18 -> 1288017347 | N12: =M18 -> 1405556185 | O12: =N18 -> 1518256502 | P12: =O18 -> 1634916306 | R12: =SUM(R22,R30,R38,R46,R54,R62,R70,R76,R84,R92) -> 7807178.573 | S12: =R18 -> 3396750.312 | T12: =S18 -> 3480358.119 | U12: =T18 -> 3570078.716 | V12: =U18 -> 3660188.982 | W12: =V18 -> 3727199.199
A13: ED_RAB331_00002 | B13: DRAB0102 | C13: Inflation addition | D13: =SUM(D23,D31,D39,D47,D55,D63,D71,D77,D85,D93) -> 22071201.97 | E13: 26210802.9 | F13: 28415377.72 | G13: 31100590.34 | H13: 33724506.6 | I13: 36341846.81 | K13: 25530153.14 | L13: 30056217.79 | M13: 32508803.79 | N13: 35475415.25 | O13: 38319905.27 | P13: 41264330.44 | R13: 0 | S13: 0 | T13: 0 | U13: 0 | V13: 0 | W13: 0
A14: ED_RAB331_00003 | B14: DRAB0103 | C14: Straight line depreciation | D14: -64124844.78 | E14: -66383701.9 | F14: -76335190.01 | G14: -78743295.99 | H14: -72262835.35 | I14: -82599559.22 | K14: -74813006.21 | L14: -74213207.97 | M14: -84672691.79 | N14: -87635622.07 | O14: -81675135.96 | P14: -92644384.98 | R14: -486517.5878 | S14: -285254.8219 | T14: -304303.7078 | U14: -324495.0853 | V14: -345139.0099 | W14: -365958.8973
B15: DRAB0104 | C15: Regulatory depreciation | D15: =SUM(D14+D13) -> -42053642.81 | E15: =SUM(E14+E13) -> -40172899 | F15: -47919812.29 | G15: -47642705.66 | H15: -38538328.75 | I15: -46257712.4 | K15: =SUM(K14+K13) -> -49282853.06 | L15: =SUM(L14+L13) -> -44156990.19 | M15: -52163888.01 | N15: -52160206.83 | O15: -43355230.69 | P15: -51380054.53 | R15: =SUM(R14+R13) -> -486517.5878 | S15: =SUM(S14+S13) -> -285254.8219 | T15: -304303.7078 | U15: -324495.0853 | V15: -345139.0099 | W15: -365958.8973
A16: ED_RAB331_00005 | B16: DRAB0105 | C16: Actual additions (recognised in RAB) | D16: =SUM(D26,D34,D42,D50,D58,D66,D74,D80,D88,D96) -> 124181109.8 | E16: 127722697.7 | F16: 154484514.2 | G16: 151785709.2 | H16: 142530030.3 | I16: 128995988.6 | K16: =SUM(K26,K34,K42,K50,K58,K66,K74,K80,K88,K96) -> 133879967.1 | L16: 141533133.2 | M16: 169877772.6 | N16: 165042468.4 | O16: 160306224.9 | P16: 147060652.5 | R16: =SUM(R26,R34,R42,R50,R58,R66,R74,R80,R88,R96) -> -3923910.673 | S16: 368862.6281 | T16: 394024.3055 | U16: 414605.3513 | V16: 412149.2263 | W16: 421659.0248
A17: ED_RAB331_00006 | B17: DRAB0106 | C17: Disposals | D17: -59259.62932 | E17: -203286.7963 | F17: -175046.6244 | G17: -181944.7386 | H17: -291189.4442 | I17: -195688.4246 | K17: -59259.62932 | L17: -203286.7963 | M17: -175046.6244 | N17: -181944.7386 | O17: -291189.4442 | P17: -195688.4246 | R17: 0 | S17: 0 | T17: 0 | U17: 0 | V17: 0 | W17: 0
A18: ED_RAB331_00007 | B18: DRAB0107 | C18: Closing value for overhead distribution asset value | D18: =SUM(D12+D13+D14+D16+D17) -> 1038486960 | E18: =SUM(E12+E13+E14+E16+E17) -> 1125833471 | F18: 1232223127 | G18: 1336184185 | H18: 1439884698 | I18: 1522427285 | K18: =SUM(K12+K13+K14+K16+K17) -> 1190844491 | L18: =SUM(L12+L13+L14+L16+L17) -> 1288017347 | M18: 1405556185 | N18: 1518256502 | O18: 1634916306 | P18: 1730401216 | R18: =SUM(R12+R13+R14+R16+R17) -> 3396750.312 | S18: =SUM(S12+S13+S14+S16+S17) -> 3480358.119 | T18: 3570078.716 | U18: 3660188.982 | V18: 3727199.199 | W18: 3782899.326
C20: TABLE 3.3.2 ASSET VALUE ROLL FORWARD
C21: For overhead network assets less than 33kV:
A22: ED_RAB3321_00001 | B22: DRAB0201 | C22: Opening value | D22: 552644019 | E22: =D28 -> 576532854.1 | F22: =E28 -> 616607183.2 | G22: =F28 -> 661826938.6 | H22: =G28 -> 698391347.8 | I22: =H28 -> 750828540.8 | K22: 676919724.1 | L22: =K28 -> 706586345.4 | M22: =L28 -> 756437878.5 | N22: =M28 -> 812666001.3 | O22: =N28 -> 858157138 | P22: =O28 -> 923329581.9 | R22: 0 | S22: =R28 -> 0 | T22: =S28 -> 0 | U22: =T28 -> 0 | V22: =U28 -> 0 | W22: =V28 -> 0
A23: ED_RAB3321_00002 | B23: DRAB0202 | C23: Inflation addition | D23: 12753323.52 | E23: 14551351.72 | F23: 15562804.32 | G23: 16704124.48 | H23: 17626988.76 | I23: 18950472.81 | K23: 15621224.4 | L23: 17833825.7 | M23: 19092049.21 | N23: 20511214.11 | O23: 21659383.77 | P23: 23304298.1 | R23: 0 | S23: 0 | T23: 0 | U23: 0 | V23: 0 | W23: 0
A24: ED_RAB3321_00003 | B24: DRAB0203 | C24: Straight line depreciation | D24: -25231143.04 | E24: -25578649.22 | F24: -27301466.45 | G24: -29192619.17 | H24: -30965597.22 | I24: -33137749.9 | K24: -30904990.91 | L24: -31348645.86 | M24: -33492738.85 | N24: -35846000.98 | O24: -38049366.4 | P24: -40751067.78 | R24: 0 | S24: 0 | T24: 0 | U24: 0 | V24: 0 | W24: 0
B25: DRAB0204 | C25: Regulatory depreciation | D25: =SUM(D24+D23) -> -12477819.52 | E25: -11027297.5 | F25: -11738662.13 | G25: -12488494.69 | H25: -13338608.46 | I25: -14187277.09 | K25: =SUM(K24+K23) -> -15283766.51 | L25: -13514820.16 | M25: -14400689.64 | N25: -15334786.86 | O25: -16389982.63 | P25: -17446769.68 | R25: =SUM(R24+R23) -> 0 | S25: 0 | T25: 0 | U25: 0 | V25: 0 | W25: 0
A26: ED_RAB3321_00005 | B26: DRAB0205 | C26: Actual additions (recognised in RAB) | D26: 36366654.59 | E26: 51101626.65 | F26: 56958417.49 | G26: 49052903.88 | H26: 65775801.42 | I26: 66843200.95 | K26: 44950387.78 | L26: 63366353.27 | M26: 70628812.44 | N26: 60825923.55 | O26: 81562426.54 | P26: 82886008.97 | R26: 0 | S26: 0 | T26: 0 | U26: 0 | V26: 0 | W26: 0
A27: ED_RAB3321_00006 | B27: DRAB0206 | C27: Disposals | D27: 0 | E27: 0 | F27: 0 | G27: 0 | H27: 0 | I27: 0 | K27: 0 | L27: 0 | M27: 0 | N27: 0 | O27: 0 | P27: 0 | R27: 0 | S27: 0 | T27: 0 | U27: 0 | V27: 0 | W27: 0
A28: ED_RAB3321_00007 | B28: DRAB0207 | C28: Closing value for overhead distribution asset value | D28: =SUM(D22+D23+D24+D26+D27) -> 576532854.1 | E28: 616607183.2 | F28: 661826938.6 | G28: 698391347.8 | H28: 750828540.8 | I28: 803484464.6 | K28: =SUM(K22+K23+K24+K26+K27) -> 706586345.4 | L28: 756437878.5 | M28: 812666001.3 | N28: 858157138 | O28: 923329581.9 | P28: 988768821.2 | R28: =SUM(R22+R23+R24+R26+R27) -> 0 | S28: 0 | T28: 0 | U28: 0 | V28: 0 | W28: 0
C29: For underground network assets less than 33kV:
A30: ED_RAB3322_00001 | B30: DRAB0301 | C30: Opening value | D30: 39768770.14 | E30: =D36 -> 41487832.61 | F30: =E36 -> 44371618.07 | G30: =F36 -> 47625673.11 | H30: =G36 -> 50256881.51 | I30: =H36 -> 54030309.98 | K30: 48711763.79 | L30: =K36 -> 50846601.05 | M30: =L36 -> 54433963.06 | N30: =M36 -> 58480190.31 | O30: =N36 -> 61753774.21 | P30: =O36 -> 66443643 | R30: 0 | S30: =R36 -> 0 | T30: =S36 -> 0 | U30: =T36 -> 0 | V30: =U36 -> 0 | W30: =V36 -> 0
A31: ED_RAB3322_00002 | B31: DRAB0302 | C31: Inflation addition | D31: 917740.8495 | E31: 1047128.607 | F31: 1119913.664 | G31: 1202044.108 | H31: 1268454.267 | I31: 1363693.393 | K31: 1124117.626 | L31: 1283338.443 | M31: 1373881.36 | N31: 1476005.767 | O31: 1558629.108 | P31: 1676998.651 | R31: 0 | S31: 0 | T31: 0 | U31: 0 | V31: 0 | W31: 0
A32: ED_RAB3322_00003 | B32: DRAB0303 | C32: Straight line depreciation | D32: -1815656.179 | E32: -1840663.042 | F32: -1964638.549 | G32: -2100727.632 | H32: -2228312.758 | I32: -2384622.855 | K32: -2223951.472 | L32: -2255877.289 | M32: -2410168.186 | N32: -2579511.085 | O32: -2738067.281 | P32: -2932484.188 | R32: 0 | S32: 0 | T32: 0 | U32: 0 | V32: 0 | W32: 0
B33: DRAB0304 | C33: Regulatory depreciation | D33: =SUM(D32+D31) -> -897915.3295 | E33: -793534.4354 | F33: -844724.8858 | G33: -898683.5246 | H33: -959858.4905 | I33: -1020929.463 | K33: =SUM(K32+K31) -> -1099833.846 | L33: -972538.8461 | M33: -1036286.825 | N33: -1103505.318 | O33: -1179438.173 | P33: -1255485.537 | R33: =SUM(R32+R31) -> 0 | S33: 0 | T33: 0 | U33: 0 | V33: 0 | W33: 0
A34: ED_RAB3322_00005 | B34: DRAB0305 | C34: Actual additions (recognised in RAB) | D34: 2616977.797 | E34: 3677319.892 | F34: 4098779.928 | G34: 3529891.923 | H34: 4733286.958 | I34: 4810098.007 | K34: 3234671.105 | L34: 4559900.861 | M34: 5082514.079 | N34: 4377089.21 | O34: 5869306.971 | P34: 5964553.176 | R34: 0 | S34: 0 | T34: 0 | U34: 0 | V34: 0 | W34: 0
A35: ED_RAB3322_00006 | B35: DRAB0306 | C35: Disposals | D35: 0 | E35: 0 | F35: 0 | G35: 0 | H35: 0 | I35: 0 | K35: 0 | L35: 0 | M35: 0 | N35: 0 | O35: 0 | P35: 0 | R35: 0 | S35: 0 | T35: 0 | U35: 0 | V35: 0 | W35: 0
A36: ED_RAB3322_00007 | B36: DRAB0307 | C36: Closing value for underground asset value | D36: =SUM(D30+D31+D32+D34+D35) -> 41487832.61 | E36: 44371618.07 | F36: 47625673.11 | G36: 50256881.51 | H36: 54030309.98 | I36: 57819478.52 | K36: =SUM(K30+K31+K32+K34+K35) -> 50846601.05 | L36: 54433963.06 | M36: 58480190.31 | N36: 61753774.21 | O36: 66443643 | P36: 71152710.64 | R36: =SUM(R30+R31+R32+R34+R35) -> 0 | S36: 0 | T36: 0 | U36: 0 | V36: 0 | W36: 0
C37: For distribution substations and transformers:
A38: ED_RAB3323_00001 | B38: DRAB0401 | C38: Opening value | D38: 29880294.96 | E38: =D44 -> 31171913.82 | F38: =E44 -> 33338648.16 | G38: =F44 -> 35783584.83 | H38: =G44 -> 37760545.21 | I38: =H44 -> 40595713.49 | K38: 36599619.87 | L38: =K44 -> 38203631.43 | M38: =L44 -> 40898998.54 | N38: =M44 -> 43939134.39 | O38: =N44 -> 46398744.07 | P38: =O44 -> 49922480.47 | R38: 0 | S38: =R44 -> 0 | T38: =S44 -> 0 | U38: =T44 -> 0 | V38: =U44 -> 0 | W38: =V44 -> 0
A39: ED_RAB3323_00002 | B39: DRAB0402 | C39: Inflation addition | D39: 689545.2682 | E39: 786760.8557 | F39: 841447.9621 | G39: 903156.7323 | H39: 953054.055 | I39: 1024612.043 | K39: 844606.6123 | L39: 964237.2916 | M39: 1032266.78 | N39: 1108998.029 | O39: 1171077.137 | P39: 1260014.181 | R39: 0 | S39: 0 | T39: 0 | U39: 0 | V39: 0 | W39: 0
A40: ED_RAB3323_00003 | B40: DRAB0403 | C40: Straight line depreciation | D40: -1364194.617 | E40: -1382983.543 | F40: -1476132.632 | G40: -1578383.265 | H40: -1674244.444 | I40: -1791688.152 | K40: -1670967.589 | L40: -1694955.075 | M40: -1810881.655 | N40: -1938117.568 | O40: -2057248.883 | P40: -2203324.171 | R40: 0 | S40: 0 | T40: 0 | U40: 0 | V40: 0 | W40: 0
B41: DRAB0404 | C41: Regulatory depreciation | D41: =SUM(D40+D39) -> -674649.3491 | E41: -596222.6869 | F41: -634684.6697 | G41: -675226.533 | H41: -721190.389 | I41: -767076.1093 | K41: =SUM(K40+K39) -> -826360.9766 | L41: -730717.7837 | M41: -778614.8753 | N41: -829119.5395 | O41: -886171.7462 | P41: -943309.99 | R41: =SUM(R40+R39) -> 0 | S41: 0 | T41: 0 | U41: 0 | V41: 0 | W41: 0
A42: ED_RAB3323_00005 | B42: DRAB0405 | C42: Actual additions (recognised in RAB) | D42: 1966268.209 | E42: 2762957.029 | F42: 3079621.341 | G42: 2652186.916 | H42: 3556358.668 | I42: 3614070.706 | K42: 2430372.535 | L42: 3426084.895 | M42: 3818750.725 | N42: 3288729.226 | O42: 4409908.148 | P42: 4481471.455 | R42: 0 | S42: 0 | T42: 0 | U42: 0 | V42: 0 | W42: 0
A43: ED_RAB3323_00006 | B43: DRAB0406 | C43: Disposals | D43: 0 | E43: 0 | F43: 0 | G43: 0 | H43: 0 | I43: 0 | K43: 0 | L43: 0 | M43: 0 | N43: 0 | O43: 0 | P43: 0 | R43: 0 | S43: 0 | T43: 0 | U43: 0 | V43: 0 | W43: 0
A44: ED_RAB3323_00007 | B44: DRAB0407 | C44: Closing value for distribution substations and transformers asset value | D44: =SUM(D38+D39+D40+D42+D43) -> 31171913.82 | E44: 33338648.16 | F44: 35783584.83 | G44: 37760545.21 | H44: 40595713.49 | I44: 43442708.09 | K44: =SUM(K38+K39+K40+K42+K43) -> 38203631.43 | L44: 40898998.54 | M44: 43939134.39 | N44: 46398744.07 | O44: 49922480.47 | P44: 53460641.94 | R44: =SUM(R38+R39+R40+R42+R43) -> 0 | S44: 0 | T44: 0 | U44: 0 | V44: 0 | W44: 0
C45: For overhead network assets 33kV and above:
A46: ED_RAB3324_00001 | B46: DRAB0501 | C46: Opening value | D46: 110213316.1 | E46: =D52 -> 129163106.4 | F46: =E52 -> 136659663.1 | G46: =F52 -> 163030493 | H46: =G52 -> 194813263.8 | I46: =H52 -> 207663426.1 | K46: 110213316.1 | L46: =K52 -> 129163106.4 | M46: =L52 -> 136659663.1 | N46: =M52 -> 163030493 | O46: =N52 -> 194813263.8 | P46: =O52 -> 207663426.1 | R46: 0 | S46: =R52 -> 0 | T46: =S52 -> 0 | U46: =T52 -> 0 | V46: =U52 -> 0 | W46: =V52 -> 0
A47: ED_RAB3324_00002 | B47: DRAB0502 | C47: Inflation addition | D47: 2543384.219 | E47: 3260001.188 | F47: 3449209.893 | G47: 4114794.199 | H47: 4916972.728 | I47: 5241303.302 | K47: 2543384.219 | L47: 3260001.188 | M47: 3449209.893 | N47: 4114794.199 | O47: 4916972.728 | P47: 5241303.302 | R47: 0 | S47: 0 | T47: 0 | U47: 0 | V47: 0 | W47: 0
A48: ED_RAB3324_00003 | B48: DRAB0503 | C48: Straight line depreciation | D48: -3982233.748 | E48: -4232680.24 | F48: -4529089.828 | G48: -5257870.545 | H48: -6127603.22 | I48: -6597003.502 | K48: -3982233.748 | L48: -4232680.24 | M48: -4529089.828 | N48: -5257870.545 | O48: -6127603.22 | P48: -6597003.502 | R48: 0 | S48: 0 | T48: 0 | U48: 0 | V48: 0 | W48: 0
B49: DRAB0504 | C49: Regulatory depreciation | D49: =SUM(D48+D47) -> -1438849.529 | E49: -972679.0513 | F49: -1079879.935 | G49: -1143076.345 | H49: -1210630.491 | I49: -1355700.201 | K49: =SUM(K48+K47) -> -1438849.529 | L49: -972679.0513 | M49: -1079879.935 | N49: -1143076.345 | O49: -1210630.491 | P49: -1355700.201 | R49: =SUM(R48+R47) -> 0 | S49: 0 | T49: 0 | U49: 0 | V49: 0 | W49: 0
A50: ED_RAB3324_00005 | B50: DRAB0505 | C50: Actual additions (recognised in RAB) | D50: 20388639.74 | E50: 8469235.829 | F50: 27450709.77 | G50: 32925847.16 | H50: 14060792.79 | I50: 7803179.348 | K50: 20388639.74 | L50: 8469235.829 | M50: 27450709.77 | N50: 32925847.16 | O50: 14060792.79 | P50: 7803179.348 | R50: 0 | S50: 0 | T50: 0 | U50: 0 | V50: 0 | W50: 0
A51: ED_RAB3324_00006 | B51: DRAB0506 | C51: Disposals | D51: 0 | E51: 0 | F51: 0 | G51: 0 | H51: 0 | I51: 0 | K51: 0 | L51: 0 | M51: 0 | N51: 0 | O51: 0 | P51: 0 | R51: 0 | S51: 0 | T51: 0 | U51: 0 | V51: 0 | W51: 0
A52: ED_RAB3324_00007 | B52: DRAB0507 | C52: Closing value for overhead asset 33kV and above value | D52: =SUM(D46+D47+D48+D50+D51) -> 129163106.4 | E52: 136659663.1 | F52: 163030493 | G52: 194813263.8 | H52: 207663426.1 | I52: 214110905.2 | K52: =SUM(K46+K47+K48+K50+K51) -> 129163106.4 | L52: 136659663.1 | M52: 163030493 | N52: 194813263.8 | O52: 207663426.1 | P52: 214110905.2 | R52: =SUM(R46+R47+R48+R50+R51) -> 0 | S52: 0 | T52: 0 | U52: 0 | V52: 0 | W52: 0
C53: For underground network assets 33kV and above:
A54: ED_RAB3325_00001 | B54: DRAB0601 | C54: Opening value | D54: 4227571.991 | E54: =D60 -> 4954449.696 | F54: =E60 -> 5242003.274 | G54: =F60 -> 6253537.864 | H54: =G60 -> 7472664.159 | I54: =H60 -> 7965571.804 | K54: 4227571.991 | L54: =K60 -> 4954449.696 | M54: =L60 -> 5242003.274 | N54: =M60 -> 6253537.864 | O54: =N60 -> 7472664.159 | P54: =O60 -> 7965571.804 | R54: 0 | S54: =R60 -> 0 | T54: =S60 -> 0 | U54: =T60 -> 0 | V54: =U60 -> 0 | W54: =V60 -> 0
A55: ED_RAB3325_00002 | B55: DRAB0602 | C55: Inflation addition | D55: 97559.35363 | E55: 125047.4098 | F55: 132305.0938 | G55: 157835.6347 | H55: 188605.6686 | I55: 201046.3691 | K55: 97559.35363 | L55: 125047.4098 | M55: 132305.0938 | N55: 157835.6347 | O55: 188605.6686 | P55: 201046.3691 | R55: 0 | S55: 0 | T55: 0 | U55: 0 | V55: 0 | W55: 0
A56: ED_RAB3325_00003 | B56: DRAB0603 | C56: Straight line depreciation | D56: -152750.8693 | E56: -162357.5177 | F56: -173727.2225 | G56: -201681.8568 | H56: -235043.1386 | I56: -253048.4356 | K56: -152750.8693 | L56: -162357.5177 | M56: -173727.2225 | N56: -201681.8568 | O56: -235043.1386 | P56: -253048.4356 | R56: 0 | S56: 0 | T56: 0 | U56: 0 | V56: 0 | W56: 0
B57: DRAB0604 | C57: Regulatory depreciation | D57: =SUM(D56+D55) -> -55191.51569 | E57: -37310.10786 | F57: -41422.12872 | G57: -43846.22213 | H57: -46437.46995 | I57: -52002.06651 | K57: =SUM(K56+K55) -> -55191.51569 | L57: -37310.10786 | M57: -41422.12872 | N57: -43846.22213 | O57: -46437.46995 | P57: -52002.06651 | R57: =SUM(R56+R55) -> 0 | S57: 0 | T57: 0 | U57: 0 | V57: 0 | W57: 0
A58: ED_RAB3325_00005 | B58: DRAB0605 | C58: Actual additions (recognised in RAB) | D58: 782069.2209 | E58: 324863.6864 | F58: 1052956.719 | G58: 1262972.516 | H58: 539345.1157 | I58: 299315.0338 | K58: 782069.2209 | L58: 324863.6864 | M58: 1052956.719 | N58: 1262972.516 | O58: 539345.1157 | P58: 299315.0338 | R58: 0 | S58: 0 | T58: 0 | U58: 0 | V58: 0 | W58: 0
A59: ED_RAB3325_00006 | B59: DRAB0606 | C59: Disposals | D59: 0 | E59: 0 | F59: 0 | G59: 0 | H59: 0 | I59: 0 | K59: 0 | L59: 0 | M59: 0 | N59: 0 | O59: 0 | P59: 0 | R59: 0 | S59: 0 | T59: 0 | U59: 0 | V59: 0 | W59: 0
A60: ED_RAB3325_00007 | B60: DRAB0607 | C60: Closing value for underground asset 33kV and above value | D60: =SUM(D54+D55+D56+D58+D59) -> 4954449.696 | E60: 5242003.274 | F60: 6253537.864 | G60: 7472664.159 | H60: 7965571.804 | I60: 8212884.772 | K60: =SUM(K54+K55+K56+K58+K59) -> 4954449.696 | L60: 5242003.274 | M60: 6253537.864 | N60: 7472664.159 | O60: 7965571.804 | P60: 8212884.772 | R60: =SUM(R54+R55+R56+R58+R59) -> 0 | S60: 0 | T60: 0 | U60: 0 | V60: 0 | W60: 0
C61: Zone substations and transformers
A62: ED_RAB3326_00001 | B62: DRAB0701 | C62: Opening value | D62: 103534590.5 | E62: =D68 -> 121336058.1 | F62: =E68 -> 128378337.2 | G62: =F68 -> 153151142.9 | H62: =G68 -> 183007935.9 | I62: =H68 -> 195079401.9 | K62: 103534590.5 | L62: =K68 -> 121336058.1 | M62: =L68 -> 128378337.2 | N62: =M68 -> 153151142.9 | O62: =N68 -> 183007935.9 | P62: =O68 -> 195079401.9 | R62: 0 | S62: =R68 -> 0 | T62: =S68 -> 0 | U62: =T68 -> 0 | V62: =U68 -> 0 | W62: =V68 -> 0
A63: ED_RAB3326_00002 | B63: DRAB0702 | C63: Inflation addition | D63: 2389259.782 | E63: 3062451.072 | F63: 3240194.075 | G63: 3865445.189 | H63: 4619013.164 | I63: 4923689.897 | K63: 2389259.782 | L63: 3062451.072 | M63: 3240194.075 | N63: 3865445.189 | O63: 4619013.164 | P63: 4923689.897 | R63: 0 | S63: 0 | T63: 0 | U63: 0 | V63: 0 | W63: 0
A64: ED_RAB3326_00003 | B64: DRAB0703 | C64: Straight line depreciation | D64: -3740917.658 | E64: -3976187.55 | F64: -4254635.259 | G64: -4939253.196 | H64: -5756281.66 | I64: -6197237.143 | K64: -3740917.658 | L64: -3976187.55 | M64: -4254635.259 | N64: -4939253.196 | O64: -5756281.66 | P64: -6197237.143 | R64: 0 | S64: 0 | T64: 0 | U64: 0 | V64: 0 | W64: 0
B65: DRAB0704 | C65: Regulatory depreciation | D65: =SUM(D64+D63) -> -1351657.876 | E65: -913736.4779 | F65: -1014441.184 | G65: -1073808.007 | H65: -1137268.495 | I65: -1273547.245 | K65: =SUM(K64+K63) -> -1351657.876 | L65: -913736.4779 | M65: -1014441.184 | N65: -1073808.007 | O65: -1137268.495 | P65: -1273547.245 | R65: =SUM(R64+R63) -> 0 | S65: 0 | T65: 0 | U65: 0 | V65: 0 | W65: 0
A66: ED_RAB3326_00005 | B66: DRAB0705 | C66: Actual additions (recognised in RAB) | D66: 19153125.42 | E66: 7956015.61 | F66: 25787246.91 | G66: 30930600.98 | H66: 13208734.43 | I66: 7330320.936 | K66: 19153125.42 | L66: 7956015.61 | M66: 25787246.91 | N66: 30930600.98 | O66: 13208734.43 | P66: 7330320.936 | R66: 0 | S66: 0 | T66: 0 | U66: 0 | V66: 0 | W66: 0
A67: ED_RAB3326_00006 | B67: DRAB0706 | C67: Disposals | D67: 0 | E67: 0 | F67: 0 | G67: 0 | H67: 0 | I67: 0 | K67: 0 | L67: 0 | M67: 0 | N67: 0 | O67: 0 | P67: 0 | R67: 0 | S67: 0 | T67: 0 | U67: 0 | V67: 0 | W67: 0
A68: ED_RAB3326_00007 | B68: DRAB0707 | C68: Closing value for zone substations and transformers | D68: =SUM(D62+D63+D64+D66+D67) -> 121336058.1 | E68: 128378337.2 | F68: 153151142.9 | G68: 183007935.9 | H68: 195079401.9 | I68: 201136175.5 | K68: =SUM(K62+K63+K64+K66+K67) -> 121336058.1 | L68: 128378337.2 | M68: 153151142.9 | N68: 183007935.9 | O68: 195079401.9 | P68: 201136175.5 | R68: =SUM(R62+R63+R64+R66+R67) -> 0 | S68: 0 | T68: 0 | U68: 0 | V68: 0 | W68: 0
C69: For easements:
A70: ED_RAB3327_00001 | B70: DRAB0801 | C70: Opening value | D70: 0 | E70: =D74 -> 0 | F70: =E74 -> 0 | G70: =F74 -> 0 | H70: =G74 -> 0 | I70: =H74 -> 0 | K70: 0 | L70: =K74 -> 0 | M70: =L74 -> 0 | N70: =M74 -> 0 | O70: =N74 -> 0 | P70: =O74 -> 0 | R70: 0 | S70: =R74 -> 0 | T70: =S74 -> 0 | U70: =T74 -> 0 | V70: =U74 -> 0 | W70: =V74 -> 0
A71: ED_RAB3327_00002 | B71: DRAB0802 | C71: Inflation addition | D71: 0 | E71: 0 | F71: 0 | G71: 0 | H71: 0 | I71: 0 | K71: 0 | L71: 0 | M71: 0 | N71: 0 | O71: 0 | P71: 0 | R71: 0 | S71: 0 | T71: 0 | U71: 0 | V71: 0 | W71: 0
A72: ED_RAB3327_00003 | B72: DRAB0803 | C72: Actual additions (recognised in RAB) | D72: 0 | E72: 0 | F72: 0 | G72: 0 | H72: 0 | I72: 0 | K72: 0 | L72: 0 | M72: 0 | N72: 0 | O72: 0 | P72: 0 | R72: 0 | S72: 0 | T72: 0 | U72: 0 | V72: 0 | W72: 0
A73: ED_RAB3327_00004 | B73: DRAB0804 | C73: Disposals | D73: 0 | E73: 0 | F73: 0 | G73: 0 | H73: 0 | I73: 0 | K73: 0 | L73: 0 | M73: 0 | N73: 0 | O73: 0 | P73: 0 | R73: 0 | S73: 0 | T73: 0 | U73: 0 | V73: 0 | W73: 0
A74: ED_RAB3327_00005 | B74: DRAB0805 | C74: Closing value for easements asset value | D74: =SUM(D70+D71+D72+D73) -> 0 | E74: =SUM(E70+E71+E72+E73) -> 0 | F74: 0 | G74: 0 | H74: 0 | I74: 0 | K74: =SUM(K70+K71+K72+K73) -> 0 | L74: =SUM(L70+L71+L72+L73) -> 0 | M74: 0 | N74: 0 | O74: 0 | P74: 0 | R74: =SUM(R70+R71+R72+R73) -> 0 | S74: =SUM(S70+S71+S72+S73) -> 0 | T74: 0 | U74: 0 | V74: 0 | W74: 0
C75: For meters:
A76: ED_RAB3328_00001 | B76: DRAB0901 | C76: Opening value | D76: 0 | E76: =D82 -> 0 | F76: =E82 -> 0 | G76: =F82 -> 0 | H76: =G82 -> 0 | I76: =H82 -> 0 | K76: 1531659.823 | L76: =K82 -> -1272171.449 | M76: =L82 -> -1173852.281 | N76: =M82 -> -1069759.667 | O76: =N82 -> -959664.8027 | P76: =O82 -> -843331.0118 | R76: 0 | S76: =R82 -> 0 | T76: =S82 -> 0 | U76: =T82 -> 0 | V76: =U82 -> 0 | W76: =V82 -> 0
A77: ED_RAB3328_00002 | B77: DRAB0902 | C77: Inflation addition | D77: 0 | E77: 0 | F77: 0 | G77: 0 | H77: 0 | I77: 0 | K77: 35345.99592 | L77: -32108.86261 | M77: -29627.34436 | N77: -27000.10772 | O77: -24221.3778 | P77: -21285.18103 | R77: 0 | S77: 0 | T77: 0 | U77: 0 | V77: 0 | W77: 0
A78: ED_RAB3328_00003 | B78: DRAB0903 | C78: Straight line depreciation | D78: 0 | E78: 0 | F78: 0 | G78: 0 | H78: 0 | I78: 0 | K78: -2872503.731 | L78: 130428.0312 | M78: 133719.9583 | N78: 137094.9718 | O78: 140555.1686 | P78: 144102.6988 | R78: 0 | S78: 0 | T78: 0 | U78: 0 | V78: 0 | W78: 0
B79: DRAB0904 | C79: Regulatory depreciation | D79: =SUM(D78+D77) -> 0 | E79: 0 | F79: 0 | G79: 0 | H79: 0 | I79: 0 | K79: =SUM(K78+K77) -> -2837157.735 | L79: 98319.16858 | M79: 104092.614 | N79: 110094.8641 | O79: 116333.7908 | P79: 122817.5178 | R79: =SUM(R78+R77) -> 0 | S79: 0 | T79: 0 | U79: 0 | V79: 0 | W79: 0
A80: ED_RAB3328_00005 | B80: DRAB0905 | C80: Actual additions (recognised in RAB) | D80: 0 | E80: 0 | F80: 0 | G80: 0 | H80: 0 | I80: 0 | K80: 33326.46238 | L80: 0 | M80: 0 | N80: 0 | O80: 0 | P80: 0 | R80: 0 | S80: 0 | T80: 0 | U80: 0 | V80: 0 | W80: 0
A81: ED_RAB3328_00006 | B81: DRAB0906 | C81: Disposals | D81: 0 | E81: 0 | F81: 0 | G81: 0 | H81: 0 | I81: 0 | K81: 0 | L81: 0 | M81: 0 | N81: 0 | O81: 0 | P81: 0 | R81: 0 | S81: 0 | T81: 0 | U81: 0 | V81: 0 | W81: 0
A82: ED_RAB3328_00007 | B82: DRAB0907 | C82: Closing value for meters asset value | D82: =SUM(D76+D77+D78+D80+D81) -> 0 | E82: 0 | F82: 0 | G82: 0 | H82: 0 | I82: 0 | K82: =SUM(K76+K77+K78+K80+K81) -> -1272171.449 | L82: -1173852.281 | M82: -1069759.667 | N82: -959664.8027 | O82: -843331.0118 | P82: -720513.494 | R82: =SUM(R76+R77+R78+R80+R81) -> 0 | S82: 0 | T82: 0 | U82: 0 | V82: 0 | W82: 0
C83: For “other” asset items with long lives:
A84: ED_RAB3329_00001 | B84: DRAB1001 | C84: Opening value | D84: 4180468.651 | E84: =D90 -> 5037793.744 | F84: =E90 -> 9367670.774 | G84: =F90 -> 9340918.874 | H84: =G90 -> 9297915.805 | I84: =H90 -> 9372006.336 | K84: 12598669.25 | L84: =K90 -> 12223518.95 | M84: =L90 -> 15272007.79 | N84: =M90 -> 13894607.22 | O84: =N90 -> 12429015.09 | P84: =O90 -> 11005805.1 | R84: 7807178.573 | S84: =R90 -> 3396750.312 | T84: =S90 -> 3480358.119 | U84: =T90 -> 3570078.716 | V84: =U90 -> 3660188.982 | W84: =V90 -> 3727199.199
A85: ED_RAB3329_00002 | B85: DRAB1002 | C85: Inflation addition | D85: 96472.35348 | E85: 127150.9648 | F85: 236434.5262 | G85: 235759.3239 | H85: 234673.9516 | I85: 236543.9533 | K85: 290738.5211 | L85: 308514.4622 | M85: 385456.536 | N85: 350691.7519 | O85: 313701.0646 | P85: 277780.0776 | R85: 0 | S85: 0 | T85: 0 | U85: 0 | V85: 0 | W85: 0
A86: ED_RAB3329_00003 | B86: DRAB1003 | C86: Straight line depreciation | D86: -381104.8083 | E86: -409354.024 | F86: -551210.1098 | G86: -577322.6447 | H86: -604540.5602 | I86: -638604.2659 | K86: -1807846.37 | L86: -1872105.708 | M86: -2050880.79 | N86: -2114844.135 | O86: -2180868.192 | P86: -2254717.485 | R86: -486517.5878 | S86: -285254.8219 | T86: -304303.7078 | U86: -324495.0853 | V86: -345139.0099 | W86: -365958.8973
B87: DRAB1004 | C87: Regulatory depreciation | D87: =SUM(D86+D85) -> -284632.4549 | E87: -282203.0592 | F87: -314775.5836 | G87: -341563.3207 | H87: -369866.6085 | I87: -402060.3127 | K87: =SUM(K86+K85) -> -1517107.849 | L87: -1563591.245 | M87: -1665424.254 | N87: -1764152.383 | O87: -1867167.128 | P87: -1976937.407 | R87: =SUM(R86+R85) -> -486517.5878 | S87: -285254.8219 | T87: -304303.7078 | U87: -324495.0853 | V87: -345139.0099 | W87: -365958.8973
A88: ED_RAB3329_00005 | B88: DRAB1005 | C88: Actual additions (recognised in RAB) | D88: 1146066.19 | E88: 4626174.553 | F88: 300160.1738 | G88: 311175.0079 | H88: 464146.1483 | I88: 333242.4957 | K88: 1146066.19 | L88: 4626174.553 | M88: 300160.1738 | N88: 311175.0079 | O88: 464146.1483 | P88: 333242.4957 | R88: -3923910.673 | S88: 368862.6281 | T88: 394024.3055 | U88: 414605.3513 | V88: 412149.2263 | W88: 421659.0248
A89: ED_RAB3329_00006 | B89: DRAB1006 | C89: Disposals | D89: -4108.641998 | E89: -14094.46327 | F89: -12136.49024 | G89: -12614.7565 | H89: -20189.00884 | I89: -13567.64612 | K89: -4108.641998 | L89: -14094.46327 | M89: -12136.49024 | N89: -12614.7565 | O89: -20189.00884 | P89: -13567.64612 | R89: 0 | S89: 0 | T89: 0 | U89: 0 | V89: 0 | W89: 0
A90: ED_RAB3329_00007 | B90: DRAB1007 | C90: Closing value for “other” asset (long life) value | D90: =SUM(D84+D85+D86+D88+D89) -> 5037793.744 | E90: 9367670.774 | F90: 9340918.874 | G90: 9297915.805 | H90: 9372006.336 | I90: 9289620.873 | K90: =SUM(K84+K85+K86+K88+K89) -> 12223518.95 | L90: 15272007.79 | M90: 13894607.22 | N90: 12429015.09 | O90: 11005805.1 | P90: 9348542.545 | R90: =SUM(R84+R85+R86+R88+R89) -> 3396750.312 | S90: 3480358.119 | T90: 3570078.716 | U90: 3660188.982 | V90: 3727199.199 | W90: 3782899.326
C91: For “other” asset items with short lives:
A92: ED_RAB33210_00001 | B92: DRAB1101 | C92: Opening value | D92: 111969720.7 | E92: =D98 -> 128802951.1 | F92: =E98 -> 151868347.5 | G92: =F98 -> 155210837.5 | H92: =G98 -> 155183631.3 | I92: =H98 -> 174349727.3 | K92: 111969720.7 | L92: =K98 -> 128802951.1 | M92: =L98 -> 151868347.5 | N92: =M98 -> 155210837.5 | O92: =N98 -> 155183631.3 | P92: =O98 -> 174349727.3 | R92: 0 | S92: =R98 -> 0 | T92: =S98 -> 0 | U92: =T98 -> 0 | V92: =U98 -> 0 | W92: =V98 -> 0
A93: ED_RAB33210_00002 | B93: DRAB1102 | C93: Inflation addition | D93: 2583916.632 | E93: 3250911.081 | F93: 3833068.184 | G93: 3917430.672 | H93: 3916744.004 | I93: 4400485.047 | K93: 2583916.632 | L93: 3250911.081 | M93: 3833068.184 | N93: 3917430.672 | O93: 3916744.004 | P93: 4400485.047 | R93: 0 | S93: 0 | T93: 0 | U93: 0 | V93: 0 | W93: 0
A94: ED_RAB33210_00003 | B94: DRAB1103 | C94: Straight line depreciation | D94: -27456843.86 | E94: -28800826.76 | F94: -36084289.96 | G94: -34895437.68 | H94: -24671212.35 | I94: -31599604.97 | K94: -27456843.86 | L94: -28800826.76 | M94: -36084289.96 | N94: -34895437.68 | O94: -24671212.35 | P94: -31599604.97 | R94: 0 | S94: 0 | T94: 0 | U94: 0 | V94: 0 | W94: 0
B95: DRAB1104 | C95: Regulatory depreciation | D95: =SUM(D94+D93) -> -24872927.23 | E95: -25549915.68 | F95: -32251221.78 | G95: -30978007.01 | H95: -20754468.34 | I95: -27199119.92 | K95: =SUM(K94+K93) -> -24872927.23 | L95: -25549915.68 | M95: -32251221.78 | N95: -30978007.01 | O95: -20754468.34 | P95: -27199119.92 | R95: =SUM(R94+R93) -> 0 | S95: 0 | T95: 0 | U95: 0 | V95: 0 | W95: 0
A96: ED_RAB33210_00005 | B96: DRAB1105 | C96: Actual additions (recognised in RAB) | D96: 41761308.61 | E96: 48804504.45 | F96: 35756621.83 | G96: 31120130.79 | H96: 40191564.79 | I96: 37962561.1 | K96: 41761308.61 | L96: 48804504.45 | M96: 35756621.83 | N96: 31120130.79 | O96: 40191564.79 | P96: 37962561.1 | R96: 0 | S96: 0 | T96: 0 | U96: 0 | V96: 0 | W96: 0
A97: ED_RAB33210_00006 | B97: DRAB1106 | C97: Disposals | D97: -55150.98732 | E97: -189192.3331 | F97: -162910.1342 | G97: -169329.9821 | H97: -271000.4354 | I97: -182120.7784 | K97: -55150.98732 | L97: -189192.3331 | M97: -162910.1342 | N97: -169329.9821 | O97: -271000.4354 | P97: -182120.7784 | R97: 0 | S97: 0 | T97: 0 | U97: 0 | V97: 0 | W97: 0
A98: ED_RAB33210_00007 | B98: DRAB1107 | C98: Closing value for “other” asset (short life) value | D98: =SUM(D92+D93+D94+D96+D97) -> 128802951.1 | E98: 151868347.5 | F98: 155210837.5 | G98: 155183631.3 | H98: 174349727.3 | I98: 184931047.7 | K98: =SUM(K92+K93+K94+K96+K97) -> 128802951.1 | L98: 151868347.5 | M98: 155210837.5 | N98: 155183631.3 | O98: 174349727.3 | P98: 184931047.7 | R98: =SUM(R92+R93+R94+R96+R97) -> 0 | S98: 0 | T98: 0 | U98: 0 | V98: 0 | W98: 0
C100: TABE 3.3.3 TOTAL DISAGGREGATED RAB ASSET VALUES
A101: ED_RAB333_00001 | B101: DRAB1201 | C101: Distribution substations including transformers | D101: =AVERAGE(D22,D28) -> 564588436.6 | E101: 596570018.7 | F101: 639217060.9 | G101: 680109143.2 | H101: 724609944.3 | I101: 777156502.7 | K101: =AVERAGE(K22,K28) -> 691753034.7 | L101: 731512111.9 | M101: 784551939.9 | N101: 835411569.6 | O101: 890743359.9 | P101: 956049201.5 | R101: =AVERAGE(R22,R28) -> 0 | S101: 0 | T101: 0 | U101: 0 | V101: 0 | W101: 0
A102: ED_RAB333_00002 | B102: DRAB1202 | C102: Underground distribution assets (cables, ducts etc) | D102: =AVERAGE(D30,D36) -> 40628301.38 | E102: 42929725.34 | F102: 45998645.59 | G102: 48941277.31 | H102: 52143595.74 | I102: 55924894.25 | K102: =AVERAGE(K30,K36) -> 49779182.42 | L102: 52640282.05 | M102: 56457076.69 | N102: 60116982.26 | O102: 64098708.61 | P102: 68798176.82 | R102: =AVERAGE(R30,R36) -> 0 | S102: 0 | T102: 0 | U102: 0 | V102: 0 | W102: 0
A103: ED_RAB333_00003 | B103: DRAB1203 | C103: Distribution substations including transformers | D103: =AVERAGE(D38,D44) -> 30526104.39 | E103: 32255280.99 | F103: 34561116.49 | G103: 36772065.02 | H103: 39178129.35 | I103: 42019210.79 | K103: =AVERAGE(K38,K44) -> 37401625.65 | L103: 39551314.98 | M103: 42419066.46 | N103: 45168939.23 | O103: 48160612.27 | P103: 51691561.21 | R103: =AVERAGE(R38,R44) -> 0 | S103: 0 | T103: 0 | U103: 0 | V103: 0 | W103: 0
A104: ED_RAB333_00004 | B104: DRAB1204 | C104: Overhead assets 33kV and above (wires and towers / poles etc) | D104: =AVERAGE(D46,D52) -> 119688211.2 | E104: 132911384.7 | F104: 149845078 | G104: 178921878.4 | H104: 201238344.9 | I104: 210887165.7 | K104: =AVERAGE(K46,K52) -> 119688211.2 | L104: 132911384.7 | M104: 149845078 | N104: 178921878.4 | O104: 201238344.9 | P104: 210887165.7 | R104: =AVERAGE(R46,R52) -> 0 | S104: 0 | T104: 0 | U104: 0 | V104: 0 | W104: 0
A105: ED_RAB333_00005 | B105: DRAB1205 | C105: Underground assets 33kV and above (cables, ducts etc) | D105: =AVERAGE(D54,D60) -> 4591010.843 | E105: 5098226.485 | F105: 5747770.569 | G105: 6863101.012 | H105: 7719117.982 | I105: 8089228.288 | K105: =AVERAGE(K54,K60) -> 4591010.843 | L105: 5098226.485 | M105: 5747770.569 | N105: 6863101.012 | O105: 7719117.982 | P105: 8089228.288 | R105: =AVERAGE(R54,R60) -> 0 | S105: 0 | T105: 0 | U105: 0 | V105: 0 | W105: 0
A106: ED_RAB333_00006 | B106: DRAB1206 | C106: Zone substations | D106: =AVERAGE(D62,D68) -> 112435324.3 | E106: 124857197.6 | F106: 140764740.1 | G106: 168079539.4 | H106: 189043668.9 | I106: 198107788.7 | K106: =AVERAGE(K62,K68) -> 112435324.3 | L106: 124857197.6 | M106: 140764740.1 | N106: 168079539.4 | O106: 189043668.9 | P106: 198107788.7 | R106: =AVERAGE(R62,R68) -> 0 | S106: 0 | T106: 0 | U106: 0 | V106: 0 | W106: 0
A107: ED_RAB333_00007 | B107: DRAB1207 | C107: Easements | D107: =AVERAGE(D70,D74) -> 0 | E107: 0 | F107: 0 | G107: 0 | H107: 0 | I107: 0 | K107: =AVERAGE(K70,K74) -> 0 | L107: 0 | M107: 0 | N107: 0 | O107: 0 | P107: 0 | R107: =AVERAGE(R70,R74) -> 0 | S107: 0 | T107: 0 | U107: 0 | V107: 0 | W107: 0
A108: ED_RAB333_00008 | B108: DRAB1208 | C108: Meters | D108: =AVERAGE(D76,D82) -> 0 | E108: 0 | F108: 0 | G108: 0 | H108: 0 | I108: 0 | K108: =AVERAGE(K76,K82) -> 129744.1869 | L108: -1223011.865 | M108: -1121805.974 | N108: -1014712.235 | O108: -901497.9072 | P108: -781922.2529 | R108: =AVERAGE(R76,R82) -> 0 | S108: 0 | T108: 0 | U108: 0 | V108: 0 | W108: 0
A109: ED_RAB333_00009 | B109: DRAB1209 | C109: Other assets with long lives (please specify) | D109: =AVERAGE(D84,D90) -> 4609131.197 | E109: 7202732.259 | F109: 9354294.824 | G109: 9319417.34 | H109: 9334961.07 | I109: 9330813.604 | K109: =AVERAGE(K84,K90) -> 12411094.1 | L109: 13747763.37 | M109: 14583307.51 | N109: 13161811.16 | O109: 11717410.1 | P109: 10177173.82 | R109: =AVERAGE(R84,R90) -> 5601964.443 | S109: 3438554.215 | T109: 3525218.417 | U109: 3615133.849 | V109: 3693694.091 | W109: 3755049.262
A110: ED_RAB333_00010 | B110: DRAB1210 | C110: Other assets with short lives (please specify) | D110: =AVERAGE(D92,D98) -> 120386335.9 | E110: 140335649.3 | F110: 153539592.5 | G110: 155197234.4 | H110: 164766679.3 | I110: 179640387.5 | K110: =AVERAGE(K92,K98) -> 120386335.9 | L110: 140335649.3 | M110: 153539592.5 | N110: 155197234.4 | O110: 164766679.3 | P110: 179640387.5 | R110: =AVERAGE(R92,R98) -> 0 | S110: 0 | T110: 0 | U110: 0 | V110: 0 | W110: 0
C112: Capital Contributions
A113: ED_RAB333_00011 | B113: DRAB13 | C113: Value of Capital Contributions or Contributed Assets | D113: 13254594.9 | E113: 22438656.35 | F113: 22476950.88 | G113: 24900919.68 | H113: 23410542.59 | I113: 25768574.68 | K113: 16276590.91 | L113: 27724713.33 | M113: 27487655.02 | N113: 30125068.26 | O113: 29029226.85 | P113: 31953202.15 | R113: 0 | S113: 0 | T113: 0 | U113: 0 | V113: 0 | W113: 0
C115: TABLE 3.3.4 - ASSET LIVES | D115: Forecast ( years ) | K115: Forecast ( years ) | R115: Forecast ( years )
C116: Table 3.3.4.1 - Asset Lives – estimated service life of new assets | D116: =CRCP_y5 -> 2015 | E116: =FRCP -> 2016 | F116: 2017 | G116: 2018 | H116: 2019 | I116: 2020 | K116: =CRCP_y5 -> 2015 | L116: =FRCP -> 2016 | M116: 2017 | N116: 2018 | O116: 2019 | P116: 2020 | R116: =CRCP_y5 -> 2015 | S116: =FRCP -> 2016 | T116: 2017 | U116: 2018 | V116: 2019 | W116: 2020
A117: ED_RAB3341_00001 | B117: DRAB1401 | C117: Overhead network assets less than 33kV (wires and poles) | D117: 54.45 | E117: 52.67 | F117: 53.42 | G117: 53.64 | H117: 54.22 | I117: 61.35 | K117: 55.72450002 | L117: 54.15386886 | M117: 54.91463788 | N117: 55.00866432 | O117: 55.73575824 | P117: 61.10357639 | R117: 0 | S117: 0 | T117: 0 | U117: 0 | V117: 0 | W117: 0
A118: ED_RAB3341_00002 | B118: DRAB1402 | C118: Underground network assets less than 33kV (cables) | D118: 49.83 | E118: 41.83 | F118: 41.87 | G118: 41.86 | H118: 41.87 | I118: 41.85 | K118: 41.60634479 | L118: 41.36183686 | M118: 41.41232819 | N118: 41.40608291 | O118: 41.41423785 | P118: 41.4023689 | R118: 0 | S118: 0 | T118: 0 | U118: 0 | V118: 0 | W118: 0
A119: ED_RAB3341_00003 | B119: DRAB1403 | C119: Distribution substations including transformers | D119: 41.97 | E119: 44.18 | F119: 45.03 | G119: 44 | H119: 42.11 | I119: 42.08 | K119: 41.97 | L119: 44.18 | M119: 45.03 | N119: 44 | O119: 42.11 | P119: 42.08 | R119: 0 | S119: 0 | T119: 0 | U119: 0 | V119: 0 | W119: 0
A120: ED_RAB3341_00004 | B120: DRAB1404 | C120: Overhead network assets 33kV and above (wires and towers / poles etc) | D120: 62.68 | E120: 55.47 | F120: 58.12 | G120: 58.18 | H120: 61.52 | I120: 63.47 | K120: 62.68 | L120: 55.47 | M120: 58.12 | N120: 58.18 | O120: 61.52 | P120: 63.47 | R120: 0 | S120: 0 | T120: 0 | U120: 0 | V120: 0 | W120: 0
A121: ED_RAB3341_00005 | B121: DRAB1405 | C121: Underground network assets 33kV and above(cables, ducts etc) | D121: 0 | E121: 0 | F121: 0 | G121: 0 | H121: 0 | I121: 0 | K121: 0 | L121: 0 | M121: 0 | N121: 0 | O121: 0 | P121: 0 | R121: 0 | S121: 0 | T121: 0 | U121: 0 | V121: 0 | W121: 0
A122: ED_RAB3341_00006 | B122: DRAB1406 | C122: Zone substations and transformers | D122: 37.92 | E122: 37.84 | F122: 40.85 | G122: 51.49 | H122: 40.96 | I122: 37.67 | K122: 37.92 | L122: 37.84 | M122: 40.85 | N122: 51.49 | O122: 40.96 | P122: 37.67 | R122: 0 | S122: 0 | T122: 0 | U122: 0 | V122: 0 | W122: 0
A123: ED_RAB3341_00007 | B123: DRAB1407 | C123: Meters | D123: 0 | E123: 0 | F123: 0 | G123: 0 | H123: 0 | I123: 0 | K123: 10 | L123: 10 | M123: 10 | N123: 10 | O123: 10 | P123: 10 | R123: 0 | S123: 0 | T123: 0 | U123: 0 | V123: 0 | W123: 0
A124: ED_RAB3341_00008 | B124: DRAB1408 | C124: “Other” assets with long lives | D124: 50 | E124: 50 | F124: 50 | G124: 50 | H124: 50 | I124: 50 | K124: 50 | L124: 50 | M124: 50 | N124: 50 | O124: 50 | P124: 50 | R124: 30 | S124: 30 | T124: 30 | U124: 30 | V124: 30 | W124: 30
A125: ED_RAB3341_00009 | B125: DRAB1409 | C125: “Other” assets with short lives | D125: 10 | E125: 10 | F125: 10 | G125: 10 | H125: 10 | I125: 10 | K125: 10 | L125: 10 | M125: 10 | N125: 10 | O125: 10 | P125: 10 | R125: 0 | S125: 0 | T125: 0 | U125: 0 | V125: 0 | W125: 0
C127: Table 3.3.4.2 - Asset Lives – estimated residual service life
A128: ED_RAB3342_00001 | B128: DRAB1501 | C128: Overhead network assets less than 33kV (wires and poles) | D128: 31.01375 | E128: 31.01375 | F128: 31.01375 | G128: 31.01375 | H128: 31.01375 | I128: 31.01375 | K128: 30.72625 | L128: 30.72625 | M128: 30.72625 | N128: 30.72625 | O128: 30.72625 | P128: 30.72625 | R128: 0 | S128: 0 | T128: 0 | U128: 0 | V128: 0 | W128: 0
A129: ED_RAB3342_00002 | B129: DRAB1502 | C129: Underground network assets less than 33kV (cables) | D129: 34.34875 | E129: 34.34875 | F129: 34.34875 | G129: 34.34875 | H129: 34.34875 | I129: 34.34875 | K129: 34.49375 | L129: 34.49375 | M129: 34.49375 | N129: 34.49375 | O129: 34.49375 | P129: 34.49375 | R129: 0 | S129: 0 | T129: 0 | U129: 0 | V129: 0 | W129: 0
A130: ED_RAB3342_00003 | B130: DRAB1503 | C130: Distribution substations including transformers | D130: 26.97625 | E130: 26.97625 | F130: 26.97625 | G130: 26.97625 | H130: 26.97625 | I130: 26.97625 | K130: 26.97625 | L130: 26.97625 | M130: 26.97625 | N130: 26.97625 | O130: 26.97625 | P130: 26.97625 | R130: 0 | S130: 0 | T130: 0 | U130: 0 | V130: 0 | W130: 0
A131: ED_RAB3342_00004 | B131: DRAB1504 | C131: Overhead network assets 33kV and above (wires and towers / poles etc) | D131: 39.60625 | E131: 39.60625 | F131: 39.60625 | G131: 39.60625 | H131: 39.60625 | I131: 39.60625 | K131: 39.60625 | L131: 39.60625 | M131: 39.60625 | N131: 39.60625 | O131: 39.60625 | P131: 39.60625 | R131: 0 | S131: 0 | T131: 0 | U131: 0 | V131: 0 | W131: 0
A132: ED_RAB3342_00005 | B132: DRAB1505 | C132: Underground network assets 33kV and above (cables, ducts etc) | D132: 30 | E132: 30 | F132: 30 | G132: 30 | H132: 30 | I132: 30 | K132: 30 | L132: 30 | M132: 30 | N132: 30 | O132: 30 | P132: 30 | R132: 0 | S132: 0 | T132: 0 | U132: 0 | V132: 0 | W132: 0
A133: ED_RAB3342_00006 | B133: DRAB1506 | C133: Zone substations and transformers | D133: 18.1875 | E133: 18.1875 | F133: 18.1875 | G133: 18.1875 | H133: 18.1875 | I133: 18.1875 | K133: 18.1875 | L133: 18.1875 | M133: 18.1875 | N133: 18.1875 | O133: 18.1875 | P133: 18.1875 | R133: 0 | S133: 0 | T133: 0 | U133: 0 | V133: 0 | W133: 0
A134: ED_RAB3342_00007 | B134: DRAB1507 | C134: Meters | D134: 0 | E134: 0 | F134: 0 | G134: 0 | H134: 0 | I134: 0 | K134: 4.96 | L134: 4.96 | M134: 4.96 | N134: 4.96 | O134: 4.96 | P134: 4.96 | R134: 0 | S134: 0 | T134: 0 | U134: 0 | V134: 0 | W134: 0
A135: ED_RAB3342_00008 | B135: DRAB1508 | C135: “Other” assets with long lives | D135: 38.0675 | E135: 38.0675 | F135: 38.0675 | G135: 38.0675 | H135: 38.0675 | I135: 38.0675 | K135: 38.0675 | L135: 38.0675 | M135: 38.0675 | N135: 38.0675 | O135: 38.0675 | P135: 38.0675 | R135: 17.66625 | S135: 17.66625 | T135: 17.66625 | U135: 17.66625 | V135: 17.66625 | W135: 17.66625
A136: ED_RAB3342_00009 | B136: DRAB1509 | C136: “Other” assets with short lives | D136: 6.6075 | E136: 6.6075 | F136: 6.6075 | G136: 6.6075 | H136: 6.6075 | I136: 6.6075 | K136: 6.6075 | L136: 6.6075 | M136: 6.6075 | N136: 6.6075 | O136: 6.6075 | P136: 6.6075 | R136: 0 | S136: 0 | T136: 0 | U136: 0 | V136: 0 | W136: 0

Sheet 3.4 Operational data
C1: =SheetHeader -> REGULATORY REPORTING STATEMENT
C2: =dms_TradingName -> Victorian DNSP Reset
C3: =FRCP_span -> 2016 to 2020
C4: 3.4 OPERATIONAL DATA
E6: Standard control services
D7: Unit of measure | E7: Forecast
E8: =CRCP_y5 -> 2015 | F8: =FRCP -> 2016 | G8: 2017 | H8: 2018 | I8: 2019 | J8: 2020
C10: TABLE 3.4.1 - ENERGY DELIVERY
A11: ED_OPD3410_00001 | B11: DOPED01 | C11: Total energy delivered | D11: GWh | E11: 4273.825805 | F11: 4325.894748 | G11: 4343.794407 | H11: 4406.003123 | I11: 4471.050805 | J11: 4537.363823
C14: Table 3.4.1.1 Energy grouping - delivery by chargeable quantity
A15: ED_OPD3411_00001 | B15: DOPED0201 | C15: Energy Delivery where time of use is not a determinant | D15: GWh | E15: 1331.49058 | F15: 1353.564421 | G15: 1269.660354 | H15: 1291.265951 | I15: 1314.438672 | J15: 1336.935149
A16: ED_OPD3411_00002 | B16: DOPED0202 | C16: Energy Delivery at On-peak times | D16: GWh | E16: 1623.211765 | F16: 1632.458276 | G16: 1725.784952 | H16: 1740.87614 | I16: 1756.25718 | J16: 1772.434027
A17: ED_OPD3411_00003 | B17: DOPED0203 | C17: Energy Delivery at Shoulder times | D17: GWh | E17: 1.047928289 | F17: 1.26991964 | G17: 1.48585996 | H17: 1.707111568 | I17: 1.93170179 | J17: 2.162055566
A18: ED_OPD3411_00004 | B18: DOPED0204 | C18: Energy Delivery at Off-peak times | D18: GWh | E18: 1216.351317 | F18: 1234.063319 | G18: 1239.802299 | H18: 1262.393847 | I18: 1285.828448 | J18: 1310.29531
A19: ED_OPD3411_00005 | B19: DOPED0205 | C19: Controlled load energy deliveries | D19: GWh | E19: 49.0526487 | F19: 50.10594161 | G19: 51.14804337 | H19: 52.22624206 | I19: 53.3720034 | J19: 54.49076255
A20: ED_OPD3411_00006 | B20: DOPED0206 | C20: Energy Delivery to unmetered supplies | D20: GWh | E20: 52.67156638 | F20: 54.43287108 | G20: 55.91289938 | H20: 57.53383155 | I20: 59.22279988 | J20: 61.04651932
C22: Table 3.4.1.2 Energy - received from TNSP and other DNSPs by time of receipt
A23: ED_OPD3412_00001 | B23: DOPED0301 | C23: Energy into DNSP network at On-peak times | D23: GWh | E23: 0 | F23: 0 | G23: 0 | H23: 0 | I23: 0 | J23: 0
A24: ED_OPD3412_00002 | B24: DOPED0302 | C24: Energy into DNSP network at Shoulder times | D24: GWh | E24: 0 | F24: 0 | G24: 0 | H24: 0 | I24: 0 | J24: 0
A25: ED_OPD3412_00003 | B25: DOPED0303 | C25: Energy into DNSP network at Off-peak times | D25: GWh | E25: 0 | F25: 0 | G25: 0 | H25: 0 | I25: 0 | J25: 0
A26: ED_OPD3412_00004 | B26: DOPED0304 | C26: Energy received from TNSP and other DNSPs not included in the above categories | D26: GWh | E26: 0 | F26: 0 | G26: 0 | H26: 0 | I26: 0 | J26: 0
C28: Table 3.4.1.3 Energy - received into DNSP system from embedded generation by time of receipt
A29: ED_OPD3413_00001 | B29: DOPED0401 | C29: Energy into DNSP network at On-peak times from non-residential embedded generation | D29: GWh | E29: 0 | F29: 0 | G29: 0 | H29: 0 | I29: 0 | J29: 0
A30: ED_OPD3413_00002 | B30: DOPED0402 | C30: Energy into DNSP network at Shoulder times from non-residential embedded generation | D30: GWh | E30: 0 | F30: 0 | G30: 0 | H30: 0 | I30: 0 | J30: 0
A31: ED_OPD3413_00003 | B31: DOPED0403 | C31: Energy into DNSP network at Off-peak times from non-residential embedded generation | D31: GWh | E31: 0 | F31: 0 | G31: 0 | H31: 0 | I31: 0 | J31: 0
A32: ED_OPD3413_00004 | B32: DOPED0404 | C32: Energy received from embedded generation not included in above categories from non-residential embedded generation | D32: GWh | E32: 46.7466 | F32: 46.7466 | G32: 46.7466 | H32: 46.7466 | I32: 46.7466 | J32: 46.7466
A33: ED_OPD3413_00005 | B33: DOPED0405 | C33: Energy into DNSP network at On-peak times from residential embedded generation | D33: GWh | E33: 0 | F33: 0 | G33: 0 | H33: 0 | I33: 0 | J33: 0
A34: ED_OPD3413_00006 | B34: DOPED0406 | C34: Energy into DNSP network at Shoulder times from residential embedded generation | D34: GWh | E34: 0 | F34: 0 | G34: 0 | H34: 0 | I34: 0 | J34: 0
A35: ED_OPD3413_00007 | B35: DOPED0407 | C35: Energy into DNSP network at Off-peak times from residential embedded generation | D35: GWh | E35: 0 | F35: 0 | G35: 0 | H35: 0 | I35: 0 | J35: 0
A36: ED_OPD3413_00008 | B36: DOPED0408 | C36: Energy received from embedded generation not included in above categories from residential embedded generation | D36: GWh | E36: 0 | F36: 0 | G36: 0 | H36: 0 | I36: 0 | J36: 0
C38: Table 3.4.1.4 Energy grouping - customer type or class
A39: ED_OPD3414_00001 | B39: DOPED0501 | C39: Residential customers energy deliveries | D39: GWh | E39: 0 | F39: 0 | G39: 0 | H39: 0 | I39: 0 | J39: 0
A40: ED_OPD3414_00002 | B40: DOPED0502 | C40: Non residential customers not on demand tariffs energy deliveries | D40: GWh | E40: 0 | F40: 0 | G40: 0 | H40: 0 | I40: 0 | J40: 0
A41: ED_OPD3414_00003 | B41: DOPED0503 | C41: Non-residential low voltage demand tariff customers energy deliveries | D41: GWh | E41: 0 | F41: 0 | G41: 0 | H41: 0 | I41: 0 | J41: 0
A42: ED_OPD3414_00004 | B42: DOPED0504 | C42: Non-residential high voltage demand tariff customers energy deliveries | D42: GWh | E42: 0 | F42: 0 | G42: 0 | H42: 0 | I42: 0 | J42: 0
A43: ED_OPD3414_00005 | B43: DOPED0505 | C43: Other Customer Class Energy Deliveries | D43: GWh | E43: 0 | F43: 0 | G43: 0 | H43: 0 | I43: 0 | J43: 0
C45: TABLE 3.4.2 - CUSTOMER NUMBERS
C46: Table 3.4.2.1 Distribution customer numbers by customer type or class
A47: ED_OPD3421_00001 | B47: DOPCN0101 | C47: Residential customer numbers | D47: number | E47: 289437.2026 | F47: 293543.0924 | G47: 297225.3837 | H47: 300967.2607 | I47: 304769.4187 | J47: 308632.7894
A48: ED_OPD3421_00002 | B48: DOPCN0102 | C48: Non residential customers not on demand tariff customer numbers | D48: number | E48: 25612.95044 | F48: 25879.99464 | G48: 26149.24426 | H48: 0 | I48: 0 | J48: 0
A49: ED_OPD3421_00003 | B49: DOPCN0103 | C49: Low voltage demand tariff customer numbers | D49: number | E49: 2021.839437 | F49: 2082.1387 | G49: 2144.32672 | H49: 28629.68195 | I49: 28970.51208 | J49: 29316.12975
A50: ED_OPD3421_00004 | B50: DOPCN0104 | C50: High voltage demand tariff customer numbers | D50: number | E50: 80.00755265 | F50: 79.77423237 | G50: 79.04534775 | H50: 79.05736053 | I50: 79.06920544 | J50: 79.08081414
A51: ED_OPD3421_00005 | B51: DOPCN0105 | C51: Unmetered Customer Numbers | D51: number | E51: 5617 | F51: 5617 | G51: 5617 | H51: 5617 | I51: 5617 | J51: 5617
A52: ED_OPD3421_00006 | B52: DOPCN0106 | C52: Other Customer Numbers | D52: number | E52: 0 | F52: 0 | G52: 0 | H52: 0 | I52: 0 | J52: 0
B53: DOPCN01 | C53: Total customer numbers | D53: number | E53: 322769 | F53: 327202 | G53: 331215 | H53: 335293 | I53: 339436 | J53: 343645
C55: Table 3.4.2.2 Distribution customer numbers by location on the network
A56: ED_OPD3422_00001 | B56: DOPCN0201 | C56: Customers on CBD network | D56: number | E56: 0 | F56: 0 | G56: 0 | H56: 0 | I56: 0 | J56: 0
A57: ED_OPD3422_00002 | B57: DOPCN0202 | C57: Customers on Urban network | D57: number | E57: 306631 | F57: 310842 | G57: 314654 | H57: 318528 | I57: 322464 | J57: 326463
A58: ED_OPD3422_00003 | B58: DOPCN0203 | C58: Customers on Short rural network | D58: number | E58: 16138 | F58: 16360 | G58: 16561 | H58: 16765 | I58: 16972 | J58: 17182
A59: ED_OPD3422_00004 | B59: DOPCN0204 | C59: Customers on Long rural network | D59: number | E59: 0 | F59: 0 | G59: 0 | H59: 0 | I59: 0 | J59: 0
B60: DOPCN02 | C60: Total customer numbers | D60: number | E60: 322769 | F60: 327202 | G60: 331215 | H60: 335293 | I60: 339436 | J60: 343645
C62: Table 3.4.2.3 Distribution customer numbers by Aurora Feeder categories
A63: ED_OPD3423_00001 | C63: Critical Infrastructure | D63: number
A64: ED_OPD3423_00002 | C64: High Density Commercial | D64: number
A65: ED_OPD3423_00003 | C65: Urban | D65: number
A66: ED_OPD3423_00004 | C66: High Density Rural | D66: number
A67: ED_OPD3423_00005 | C67: Low Density Rural | D67: number
A68: ED_OPD3423_99999 | C68: Total customer numbers | D68: number
C70: Table 3.4.2.4 Unmetered Supply
A71: ED_OPD3424_00001 | C71: Number of unmetered connections reported in customer numbers in the economic benchmarking RIN | D71: number
A72: ED_OPD3424_00002 | C72: Unmetered connections not reported in customer numbers in the economic benchmarking RIN | D72: number
A73: ED_OPD3424_99999 | C73: Total unmetered connections | D73: number
C75: TABLE 3.4.3 - SYSTEM DEMAND
C76: Table 3.4.3.1 Annual system maximum demand characteristics at the zone substation level – MW measure
A77: ED_OPD3431_00002 | B77: DOPSD0102 | C77: Non–coincident Summated Weather Adjusted System Annual Maximum Demand 10% POE | D77: MW | E77: 0 | F77: 0 | G77: 0 | H77: 0 | I77: 0 | J77: 0
A78: ED_OPD3431_00003 | B78: DOPSD0103 | C78: Non–coincident Summated Weather Adjusted System Annual Maximum Demand 50% POE | D78: MW | E78: 1061.915314 | F78: 1072.711691 | G78: 1082.121528 | H78: 1095.116041 | I78: 1107.076759 | J78: 1124.33821
A79: ED_OPD3431_00005 | B79: DOPSD0105 | C79: Coincident Weather Adjusted System Annual Maximum Demand 10% POE | D79: MW | E79: 975.311976 | F79: 983.0392182 | G79: 992.0502681 | H79: 1002.342585 | I79: 1012.526923 | J79: 1027.37032
A80: ED_OPD3431_00006 | B80: DOPSD0106 | C80: Coincident Weather Adjusted System Annual Maximum Demand 50% POE | D80: MW | E80: 0 | F80: 0 | G80: 0 | H80: 0 | I80: 0 | J80: 0
C82: Table 3.4.3.2 Annual system maximum demand characteristics at the transmission connection point – MW measure
A83: ED_OPD3432_00002 | B83: DOPSD0108 | C83: Non–coincident Summated Weather Adjusted System Annual Maximum Demand 10% POE | D83: MW | E83: 0 | F83: 0 | G83: 0 | H83: 0 | I83: 0 | J83: 0
A84: ED_OPD3432_00003 | B84: DOPSD0109 | C84: Non–coincident Summated Weather Adjusted System Annual Maximum Demand 50% POE | D84: MW | E84: 0 | F84: 0 | G84: 0 | H84: 0 | I84: 0 | J84: 0
A85: ED_OPD3432_00005 | B85: DOPSD0111 | C85: Coincident Weather Adjusted System Annual Maximum Demand 10% POE | D85: MW | E85: 0 | F85: 0 | G85: 0 | H85: 0 | I85: 0 | J85: 0
A86: ED_OPD3432_00006 | B86: DOPSD0112 | C86: Coincident Weather Adjusted System Annual Maximum Demand 50% POE | D86: MW | E86: 1052.449474 | F86: 1066.317577 | G86: 1080.313296 | H86: 1096.985293 | I86: 1112.014265 | J86: 1131.25928
C88: Table 3.4.3.3 Annual system maximum demand characteristics at the zone substation level – MVA measure
A89: ED_OPD3433_00002 | B89: DOPSD0202 | C89: Non–coincident Summated Weather Adjusted System Annual Maximum Demand 10% POE | D89: MVA | E89: 1019.186943 | F89: 1032.807272 | G89: 1046.320012 | H89: 1062.585316 | I89: 1077.085085 | J89: 1095.667273
A90: ED_OPD3433_00003 | B90: DOPSD0203 | C90: Non–coincident Summated Weather Adjusted System Annual Maximum Demand 50% POE | D90: MVA | E90: 936.1601207 | F90: 946.5762444 | G90: 959.4989636 | H90: 972.9523916 | I90: 985.5434064 | J90: 1001.700978
A91: ED_OPD3433_00005 | B91: DOPSD0205 | C91: Coincident Weather Adjusted System Annual Maximum Demand 10% POE | D91: MVA | E91: 0 | F91: 0 | G91: 0 | H91: 0 | I91: 0 | J91: 0
A92: ED_OPD3433_00006 | B92: DOPSD0206 | C92: Coincident Weather Adjusted System Annual Maximum Demand 50% POE | D92: MVA | E92: 0 | F92: 0 | G92: 0 | H92: 0 | I92: 0 | J92: 0
C94: Table 3.4.3.4 Annual system maximum demand characteristics at the transmission connection point – MVA measure
A95: ED_OPD3434_00002 | B95: DOPSD0208 | C95: Non–coincident Summated Weather Adjusted System Annual Maximum Demand 10% POE | D95: MVA | E95: 991.5964563 | F95: 997.691062 | G95: 1005.744874 | H95: 1016.529089 | I95: 1027.193634 | J95: 1042.83835
A96: ED_OPD3434_00003 | B96: DOPSD0209 | C96: Non–coincident Summated Weather Adjusted System Annual Maximum Demand 50% POE | D96: MVA | E96: 0 | F96: 0 | G96: 0 | H96: 0 | I96: 0 | J96: 0
A97: ED_OPD3434_00005 | B97: DOPSD0211 | C97: Coincident Weather Adjusted System Annual Maximum Demand 10% POE | D97: MVA | E97: 965.8926984 | F97: 974.9350172 | G97: 983.6709365 | H97: 996.570462 | I97: 1008.572426 | J97: 1026.003025
A98: ED_OPD3434_00006 | B98: DOPSD0212 | C98: Coincident Weather Adjusted System Annual Maximum Demand 50% POE | D98: MVA | E98: 882.8896994 | F98: 889.0618927 | G98: 897.178884 | H98: 907.6716957 | I98: 918.0113374 | J98: 932.5558286
C100: Table 3.4.3.5 Power factor conversion between MVA and MW
A101: ED_OPD3435_00001 | B101: DOPSD0301 | C101: Average overall network power factor conversion between MVA and MW | D101: Factor | E101: 0 | F101: 0 | G101: 0 | H101: 0 | I101: 0 | J101: 0
A102: ED_OPD3435_00002 | B102: DOPSD0302 | C102: Average power factor conversion for low voltage distribution lines | D102: Factor | E102: 1132.151102 | F102: 1147.02531 | G102: 1161.846829 | H102: 1179.821717 | I102: 1196.071129 | J102: 1216.775405
A103: ED_OPD3435_00003 | B103: DOPSD0303 | C103: Average power factor conversion for 3.3 kV lines | D103: Factor | E103: 1039.98044 | F103: 1051.324655 | G103: 1065.501357 | H103: 1080.361401 | I103: 1094.474601 | J103: 1112.475094
A104: ED_OPD3435_00004 | B104: DOPSD0304 | C104: Average power factor conversion for 6.6 kV lines | D104: Factor | E104: 0 | F104: 0 | G104: 0 | H104: 0 | I104: 0 | J104: 0
A105: ED_OPD3435_00005 | B105: DOPSD0305 | C105: Average power factor conversion for 7.6 kV lines | D105: Factor | E105: 1096.065268 | F105: 1110.672132 | G105: 1124.975338 | H105: 1142.5104 | I105: 1158.185846 | J105: 1178.176668
A106: ED_OPD3435_00006 | B106: DOPSD0306 | C106: Average power factor conversion for 11 kV lines | D106: Factor | E106: 1006.932826 | F106: 1018.10172 | G106: 1031.790639 | H106: 1046.302613 | I106: 1059.922363 | J106: 1077.308907
A107: ED_OPD3435_00007 | B107: DOPSD0307 | C107: Average power factor conversion for SWER lines | D107: Factor | E107: 0 | F107: 0 | G107: 0 | H107: 0 | I107: 0 | J107: 0
A108: ED_OPD3435_00008 | B108: DOPSD0308 | C108: Average power factor conversion for 22 kV lines | D108: Factor | E108: 0 | F108: 0 | G108: 0 | H108: 0 | I108: 0 | J108: 0
A109: ED_OPD3435_00009 | B109: DOPSD0309 | C109: Average power factor conversion for 33 kV lines | D109: Factor | E109: 0.9577 | F109: 0.9577 | G109: 0.9577 | H109: 0.9577 | I109: 0.9577 | J109: 0.9577
A110: ED_OPD3435_00010 | B110: DOPSD0310 | C110: Average power factor conversion for 44 kV lines | D110: Factor | E110: 0.8899 | F110: 0.8899 | G110: 0.8899 | H110: 0.8899 | I110: 0.8899 | J110: 0.8899
A111: ED_OPD3435_00011 | B111: DOPSD0311 | C111: Average power factor conversion for 66 kV lines | D111: Factor | E111: 0 | F111: 0 | G111: 0 | H111: 0 | I111: 0 | J111: 0
A112: ED_OPD3435_00012 | B112: DOPSD0312 | C112: Average power factor conversion for 110 kV lines | D112: Factor | E112: 0.8839 | F112: 0.8839 | G112: 0.8839 | H112: 0.8839 | I112: 0.8839 | J112: 0.8839
A113: ED_OPD3435_00013 | B113: DOPSD0313 | C113: Average power factor conversion for 132 kV lines | D113: Factor | E113: 0 | F113: 0 | G113: 0 | H113: 0 | I113: 0 | J113: 0
A114: ED_OPD3435_00013 | B114: DOPSD0314 | C114: Average power factor conversion for 220 kV lines | D114: Factor | E114: 0.9187 | F114: 0.9187 | G114: 0.9187 | H114: 0.9187 | I114: 0.9187 | J114: 0.9187
C116: Table 3.4.3.6 Demand supplied (for customers charged on this basis) – MW measure
A117: ED_OPD3436_00001 | B117: DOPSD0401 | C117: Summated Chargeable Contracted Maximum Demand | D117: MW | E117: 0 | F117: 0 | G117: 0 | H117: 0 | I117: 0 | J117: 0
A118: ED_OPD3436_00002 | B118: DOPSD0402 | C118: Summated Chargeable Measured Maximum Demand | D118: MW | E118: 0 | F118: 0 | G118: 0 | H118: 0 | I118: 0 | J118: 0
C119: Table 3.4.3.7 Demand supplied (for customers charged on this basis) – MVA measure
A120: ED_OPD3437_00001 | B120: DOPSD0403 | C120: Summated Chargeable Contracted Maximum Demand | D120: MVA | E120: 0 | F120: 0 | G120: 0 | H120: 0 | I120: 0 | J120: 0
A121: ED_OPD3437_00002 | B121: DOPSD0404 | C121: Summated Chargeable Measured Maximum Demand | D121: MVA | E121: 0 | F121: 0 | G121: 0 | H121: 0 | I121: 0 | J121: 0

Sheet 3.5 Physical assets
C1: =SheetHeader -> REGULATORY REPORTING STATEMENT
C2: =dms_TradingName -> Victorian DNSP Reset
C3: =FRCP_span -> 2016 to 2020
C4: 3.5 PHYSICAL ASSETS DATA
D7: Unit of measure | E7: Forecast
E8: =CRCP_y5 -> 2015 | F8: =FRCP -> 2016 | G8: 2017 | H8: 2018 | I8: 2019 | J8: 2020
C10: TABLE 3.5.1 - NETWORK CAPACITIES VARIABLES
C11: Circuit length
C12: Table 3.5.1.1 Overhead network length of circuit at each voltage
A13: ED_PHA3511_00001 | B13: DPA0101 | C13: Overhead low voltage distribution | D13: km | E13: 2449.854626 | F13: 2458.923422 | G13: 2467.738883 | H13: 2476.489666 | I13: 2485.351878 | J13: 2494.318269
A14: ED_PHA3511_00002 | B14: DPA0102 | C14: Overhead 2.2 kV | D14: km | E14: 0 | F14: 0 | G14: 0 | H14: 0 | I14: 0 | J14: 0
A15: ED_PHA3511_00003 | B15: DPA0103 | C15: Overhead 7.6 kV | D15: km | E15: 0 | F15: 0 | G15: 0 | H15: 0 | I15: 0 | J15: 0
A16: ED_PHA3511_00004 | B16: DPA0104 | C16: Overhead 11 kV | D16: km | E16: 205.919397 | F16: 209.0742433 | G16: 211.0496828 | H16: 213.0311358 | I16: 215.0349739 | J16: 217.0537419
A17: ED_PHA3511_00005 | B17: DPA0105 | C17: Overhead SWER | D17: km | E17: 0 | F17: 0 | G17: 0 | H17: 0 | I17: 0 | J17: 0
A18: ED_PHA3511_00006 | B18: DPA0106 | C18: Overhead 22 kV | D18: km | E18: 1441.634062 | F18: 1456.795921 | G18: 1476.152705 | H18: 1491.460824 | I18: 1517.285975 | J18: 1532.169196
A19: ED_PHA3511_00007 | B19: DPA0107 | C19: Overhead 33 kV | D19: km | E19: 0 | F19: 0 | G19: 0 | H19: 0 | I19: 0 | J19: 0
A20: ED_PHA3511_00008 | B20: DPA0108 | C20: Overhead 44 kV | D20: km | E20: 0 | F20: 0 | G20: 0 | H20: 0 | I20: 0 | J20: 0
A21: ED_PHA3511_00009 | B21: DPA0109 | C21: Overhead 66 kV | D21: km | E21: 294.0138031 | F21: 294.0138031 | G21: 327.5138031 | H21: 337.7138031 | I21: 347.7138031 | J21: 347.7138031
A22: ED_PHA3511_00010 | B22: DPA0110 | C22: Overhead 132 kV | D22: km | E22: 0 | F22: 0 | G22: 0 | H22: 0 | I22: 0 | J22: 0
A23: ED_PHA3511_00011 | B23: DPA0111 | C23: Overhead 6.6kv | D23: km | E23: 74.70528 | F23: 74.70528 | G23: 69.91228 | H23: 69.91228 | I23: 61.53228 | J23: 61.53228
A24: ED_PHA3511_00012 | B24: DPA0112 | C24: Overhead 110kV | D24: km | E24: 0 | F24: 0 | G24: 0 | H24: 0 | I24: 0 | J24: 0
A25: ED_PHA3511_00013 | B25: DPA0113 | C25: Overhead 220kV | D25: km | E25: 0 | F25: 0 | G25: 0 | H25: 0 | I25: 0 | J25: 0
A26: ED_PHA3511_00014 | B26: DPA0114 | C26: Other | D26: km | E26: 0 | F26: 0 | G26: 0 | H26: 0 | I26: 0 | J26: 0
B27: DPA01 | C27: Total overhead circuit km | D27: km | E27: =SUM(E13:E26) -> 4466.127168 | F27: 4493.512669 | G27: 4552.367355 | H27: 4588.607709 | I27: 4626.91891 | J27: 4652.78729
C29: Table 3.5.1.2 Underground network circuit length at each voltage
A30: ED_PHA3512_00001 | B30: DPA0201 | C30: Underground low voltage distribution | D30: km | E30: 1147.235724 | F30: 1235.528651 | G30: 1320.419084 | H30: 1404.301669 | I30: 1489.366847 | J30: 1575.622805
A31: ED_PHA3512_00002 | B31: DPA0202 | C31: Underground 5 kV | D31: km | E31: 0 | F31: 0 | G31: 0 | H31: 0 | I31: 0 | J31: 0
A32: ED_PHA3512_00003 | B32: DPA0203 | C32: Underground 6.6 Kv | D32: km | E32: 14.85012573 | F32: 14.03012573 | G32: 11.67012573 | H32: 11.67012573 | I32: 10.57012573 | J32: 11.44112573
A33: ED_PHA3512_00004 | B33: DPA0204 | C33: Underground 7.6 kV | D33: km | E33: 0 | F33: 0 | G33: 0 | H33: 0 | I33: 0 | J33: 0
A34: ED_PHA3512_00005 | B34: DPA0205 | C34: Underground 11 kV | D34: km | E34: 63.95346937 | F34: 65.95059893 | G34: 72.67191932 | H34: 73.26503979 | I34: 73.86486092 | J34: 74.4691511
A35: ED_PHA3512_00006 | B35: DPA0206 | C35: Underground SWER | D35: km | E35: 0 | F35: 0 | G35: 0 | H35: 0 | I35: 0 | J35: 0
A36: ED_PHA3512_00007 | B36: DPA0207 | C36: Underground 22 kV | D36: km | E36: 586.6509929 | F36: 596.5794815 | G36: 607.2663164 | H36: 615.0707065 | I36: 625.1404445 | J36: 631.9337669
A37: ED_PHA3512_00008 | B37: DPA0208 | C37: Underground 33 kV | D37: km | E37: 0 | F37: 0 | G37: 0 | H37: 0 | I37: 0 | J37: 0
A38: ED_PHA3512_00009 | B38: DPA0209 | C38: Underground 66 kV | D38: km | E38: 12.736076 | F38: 12.736076 | G38: 12.736076 | H38: 15.336076 | I38: 15.446076 | J38: 15.446076
A39: ED_PHA3512_00010 | B39: DPA0210 | C39: Underground 110 kV | D39: km | E39: 0 | F39: 0 | G39: 0 | H39: 0 | I39: 0 | J39: 0
A40: ED_PHA3512_00010 | B40: DPA0211 | C40: Underground 132 kV | D40: km | E40: 0 | F40: 0 | G40: 0 | H40: 0 | I40: 0 | J40: 0
A41: ED_PHA3512_00011 | B41: DPA0212 | C41: Other | D41: km | E41: 0 | F41: 0 | G41: 0 | H41: 0 | I41: 0 | J41: 0
B42: DPA02 | C42: Total underground circuit km | D42: km | E42: =SUM(E30:E41) -> 1825.426388 | F42: 1924.824934 | G42: 2024.763521 | H42: 2119.643617 | I42: 2214.388354 | J42: 2308.912925
C44: Circuit Capacity MVA
C45: Table 3.5.1.3 Estimated overhead network weighted average MVA capacity by voltage class
A46: ED_PHA3513_00001 | B46: DPA0301 | C46: Overhead low voltage distribution | D46: MVA | E46: 0.1593486743 | F46: 0.1593486743 | G46: 0.1593486743 | H46: 0.1593486743 | I46: 0.1593486743 | J46: 0.1593486743
A47: ED_PHA3513_00002 | B47: DPA0302 | C47: Overhead 6.6 kV | D47: MVA | E47: 3.57705377 | F47: 3.57705377 | G47: 3.578065534 | H47: 3.578065534 | I47: 3.492938086 | J47: 3.492938086
A48: ED_PHA3513_00003 | B48: DPA0303 | C48: Overhead 7.6 kV | D48: MVA | E48: 0 | F48: 0 | G48: 0 | H48: 0 | I48: 0 | J48: 0
A49: ED_PHA3513_00004 | B49: DPA0304 | C49: Overhead 11 kV | D49: MVA | E49: 5.35723974 | F49: 5.390112492 | G49: 5.434543531 | H49: 5.450450191 | I49: 5.466238421 | J49: 5.481849503
A50: ED_PHA3513_00005 | B50: DPA0305 | C50: Overhead SWER | D50: MVA | E50: 0 | F50: 0 | G50: 0 | H50: 0 | I50: 0 | J50: 0
A51: ED_PHA3513_00006 | B51: DPA0306 | C51: Overhead 22 kV | D51: MVA | E51: 8.948139402 | F51: 9.014133838 | G51: 9.129411404 | H51: 9.196949809 | I51: 9.277955436 | J51: 9.328625512
A52: ED_PHA3513_00007 | B52: DPA0307 | C52: Overhead 33 kV | D52: MVA | E52: 0 | F52: 0 | G52: 0 | H52: 0 | I52: 0 | J52: 0
A53: ED_PHA3513_00008 | B53: DPA0308 | C53: Overhead 44 kV | D53: MVA | E53: 0 | F53: 0 | G53: 0 | H53: 0 | I53: 0 | J53: 0
A54: ED_PHA3513_00009 | B54: DPA0309 | C54: Overhead 66 kV | D54: MVA | E54: 100.3365485 | F54: 100.3365485 | G54: 99.70300224 | H54: 100.2351292 | I54: 100.7310407 | J54: 100.7310407
A55: ED_PHA3513_00010 | B55: DPA0310 | C55: Overhead 110 kV | D55: MVA | E55: 0 | F55: 0 | G55: 0 | H55: 0 | I55: 0 | J55: 0
A56: ED_PHA3513_00011 | B56: DPA0311 | C56: Overhead 132 kV | D56: MVA | E56: 0 | F56: 0 | G56: 0 | H56: 0 | I56: 0 | J56: 0
A57: ED_PHA3513_00012 | B57: DPA0312 | C57: Overhead 220 kV | D57: MVA | E57: 0 | F57: 0 | G57: 0 | H57: 0 | I57: 0 | J57: 0
A58: ED_PHA3513_00013 | B58: DPA0313 | C58: Other | D58: MVA | E58: 0 | F58: 0 | G58: 0 | H58: 0 | I58: 0 | J58: 0
C60: Table 3.5.1.4 Estimated underground network weighted average MVA capacity by voltage class
A61: ED_PHA3514_00001 | B61: DPA0401 | C61: Underground low voltage distribution | D61: MVA | E61: 0.2667358244 | F61: 0.2667358244 | G61: 0.2667358244 | H61: 0.2667358244 | I61: 0.2667358244 | J61: 0.2667358244
A62: ED_PHA3514_00002 | B62: DPA0402 | C62: Underground 5 kV | D62: MVA | E62: 0 | F62: 0 | G62: 0 | H62: 0 | I62: 0 | J62: 0
A63: ED_PHA3514_00003 | B63: DPA0403 | C63: Underground 6.6 kV | D63: MVA | E63: 4.484654157 | F63: 4.49621637 | G63: 4.538560547 | H63: 4.538560547 | I63: 4.564757802 | J63: 4.543599148
A64: ED_PHA3514_00004 | B64: DPA0404 | C64: Underground 7.6 kV | D64: MVA | E64: 0 | F64: 0 | G64: 0 | H64: 0 | I64: 0 | J64: 0
A65: ED_PHA3514_00005 | B65: DPA0405 | C65: Underground 11 kV | D65: MVA | E65: 7.426345952 | F65: 7.417817381 | G65: 7.392558037 | H65: 7.390551569 | I65: 7.388555204 | J65: 7.386576485
A66: ED_PHA3514_00006 | B66: DPA0406 | C66: Underground SWER | D66: MVA | E66: 0 | F66: 0 | G66: 0 | H66: 0 | I66: 0 | J66: 0
A67: ED_PHA3514_00007 | B67: DPA0407 | C67: Underground 12.7 kV | D67: MVA | E67: 0 | F67: 0 | G67: 0 | H67: 0 | I67: 0 | J67: 0
A68: ED_PHA3514_00008 | B68: DPA0408 | C68: Underground 22 kV | D68: MVA | E68: 14.19354211 | F68: 14.19513773 | G68: 14.17091312 | H68: 14.17986657 | I68: 14.17660249 | J68: 14.16283092
A69: ED_PHA3514_00009 | B69: DPA0409 | C69: Underground 33 kV | D69: MVA | E69: 0 | F69: 0 | G69: 0 | H69: 0 | I69: 0 | J69: 0
A70: ED_PHA3514_00010 | B70: DPA0410 | C70: Underground 66 kV | D70: MVA | E70: 100.9721679 | F70: 100.9721679 | G70: 100.9721679 | H70: 102.7533222 | I70: 102.8672758 | J70: 102.8672758
A71: ED_PHA3514_00011 | B71: DPA0411 | C71: Underground 110 kV | D71: MVA | E71: 0 | F71: 0 | G71: 0 | H71: 0 | I71: 0 | J71: 0
A72: ED_PHA3514_00011 | B72: DPA0412 | C72: Underground 132 kV | D72: MVA | E72: 0 | F72: 0 | G72: 0 | H72: 0 | I72: 0 | J72: 0
A73: ED_PHA3514_00012 | B73: DPA0413 | C73: Other | D73: MVA | E73: 0 | F73: 0 | G73: 0 | H73: 0 | I73: 0 | J73: 0
C75: TABLE 3.5.2 - TRANSFORMER CAPACITIES VARIABLES
C76: Table 3.5.2.1 Distribution transformer total installed capacity
A77: ED_PHA3521_00001 | B77: DPA0501 | C77: Distribution transformer capacity owned by utility | D77: MVA | E77: 2617.430807 | F77: 2710.023994 | G77: 2801.593826 | H77: 2893.465097 | I77: 2985.910156 | J77: 3078.677711
A78: ED_PHA3521_00002 | B78: DPA0502 | C78: Distribution transformer capacity owned by High Voltage Customers | D78: MVA | E78: 199.5910741 | F78: 200.734747 | G78: 201.8784198 | H78: 203.0220926 | I78: 204.1657654 | J78: 205.3094382
A79: ED_PHA3521_00003 | B79: DPA0503 | C79: Cold spare capacity included in DPA0501 | D79: MVA | E79: 28.13 | F79: 28.13 | G79: 28.13 | H79: 28.13 | I79: 28.13 | J79: 28.13
C81: Table 3.5.2.2 Zone substation transformer capacity
A82: ED_PHA3522_00001 | B82: DPA0601 | C82: Total installed capacity for first step transformation where there are two steps to reach distribution voltage | D82: MVA | E82: 0 | F82: 0 | G82: 0 | H82: 0 | I82: 0 | J82: 0
A83: ED_PHA3522_00002 | B83: DPA0602 | C83: Total installed capacity for second step transformation where there are two steps to reach distribution voltage | D83: MVA | E83: 0 | F83: 0 | G83: 0 | H83: 0 | I83: 0 | J83: 0
A84: ED_PHA3522_00003 | B84: DPA0603 | C84: Total zone substation transformer capacity where there is only a single step transformation to reach distribution voltage | D84: MVA | E84: 1809.3 | F84: 1809.3 | G84: 1835 | H84: 1907.5 | I84: 1973.5 | J84: 1973.5
A85: ED_PHA3522_00004 | B85: DPA0604 | C85: Total zone substation transformer capacity | D85: MVA | E85: 1809.3 | F85: 1809.3 | G85: 1835 | H85: 1907.5 | I85: 1973.5 | J85: 1973.5
A86: ED_PHA3522_00005 | B86: DPA0605 | C86: Cold spare capacity of zone substation transformers included in DPA0604 | D86: MVA | E86: 0 | F86: 0 | G86: 0 | H86: 0 | I86: 0 | J86: 0
C88: Table 3.5.2.3 Distribution - other transformer capacity
A89: ED_PHA3523_00001 | C89: Distribution other - transformer capacity owned by utility | D89: MVA
C91: TABLE 3.5.3 - PUBLIC LIGHTING
A92: ED_PHA353_00001 | B92: DPA0701 | C92: Public lighting luminaires | D92: 0's | E92: 71399 | F92: 72073 | G92: 72747 | H92: 73421 | I92: 74095 | J92: 74769
A93: ED_PHA353_00002 | B93: DPA0702 | C93: Public lighting poles | D93: 0's | E93: 23705 | F93: 24318 | G93: 24931 | H93: 25544 | I93: 26157 | J93: 26770

Sheet 3.6 Quality of service
C1: =SheetHeader -> REGULATORY REPORTING STATEMENT
C2: =dms_TradingName -> Victorian DNSP Reset
C3: =FRCP_span -> 2016 to 2020
C4: 3.6 QUALITY OF SERVICE DATA
D7: Unit of measure | E7: Forecast
E8: =CRCP_y5 -> 2015 | F8: =FRCP -> 2016 | G8: 2017 | H8: 2018 | I8: 2019 | J8: 2020
C10: TABLE 3.6.2 - ENERGY NOT SUPPLIED
A11: ED_QOS362_00001 | B11: DQS0201 | C11: Energy Not Supplied (planned) | D11: GWh | E11: 0.064214 | F11: 0.0888058 | G11: 0.1317861 | H11: 0.0854766 | I11: 0.1266283 | J11: 0.1054928
A12: ED_QOS362_00002 | B12: DQS0202 | C12: Energy Not Supplied (unplanned) | D12: GWh | E12: 0.557935 | F12: 0.4518221099 | G12: 0.4106762905 | H12: 0.4518226894 | I12: 0.4106762842 | J12: 0.4518219468
B13: DQS02 | C13: Total | D13: GWh | E13: =SUM(E11:E12) -> 0.622149 | F13: 0.5406279099 | G13: 0.5424623905 | H13: 0.5372992894 | I13: 0.5373045842 | J13: 0.5573147468
C15: TABLE 3.6.3 - SYSTEM LOSSES
A16: ED_QOS363_00001 | B16: DQS03 | C16: System losses | D16: % | E16: 0.04288259256 | F16: 0.04335643897 | G16: 0.04240174988 | H16: 0.04145534062 | I16: 0.04050842961 | J16: 0.04003477112
C18: TABLE 3.6.4 - CAPACITY UTILISATION
A19: ED_QOS364_00001 | C19: Overall utilisation | D19: % | E19: 0.5480553011 | F19: 0.5514237893 | G19: 0.5480898496 | H19: 0.532911711 | I19: 0.5204933539 | J19: 0.5284207498

Sheet 3.7 Operating Environment
C1: =SheetHeader -> REGULATORY REPORTING STATEMENT
C2: =dms_TradingName -> Victorian DNSP Reset
C3: =FRCP_span -> 2016 to 2020
C4: 3.7 OPERATING ENVIRONMENT FACTORS
D7: Unit of measure | E7: Forecast
E8: =CRCP_y5 -> 2015 | F8: =FRCP -> 2016 | G8: 2017 | H8: 2018 | I8: 2019 | J8: 2020
B10: DOEF01 | C10: TABLE 3.7.1 - DENSITY FACTORS
A11: ED_OEF371_00001 | B11: DOEF0101 | C11: Customer density | D11: Customer / km | E11: 71.61837036 | F11: 72.09798972 | G11: 72.47559524 | H11: 72.85860787 | I11: 73.24683629 | J11: 73.64030654
A12: ED_OEF371_00002 | B12: DOEF0102 | C12: Energy density | D12: MWh/customer | E12: 13.2411285 | F12: 13.22086891 | G12: 13.11472731 | H12: 13.14075487 | I12: 13.17199945 | J12: 13.20363696
A13: ED_OEF371_00003 | B13: DOEF0103 | C13: Demand density | D13: kVA / customer | E13: 3.072155183 | F13: 3.049159424 | G13: 3.036531781 | H13: 3.031763529 | I13: 3.026177642 | J13: 3.034638507
B15: DOEF02 | C15: TABLE 3.7.2 - TERRAIN FACTORS
A16: ED_OEF372_00001 | B16: DOEF0201 | C16: Rural proportion | D16: % | E16: 0.25 | F16: 0.2493 | G16: 0.249 | H16: 0.2487 | I16: 0.2483 | J16: 0.2484
A17: ED_OEF372_00002 | B17: DOEF0202 | C17: Urban and CBD vegetation maintenance spans | D17: 0's | E17: 8431.309924 | F17: 8586.421915 | G17: 8744.387523 | H17: 8905.259246 | I17: 9069.09055 | J17: 9235.93588
A18: ED_OEF372_00003 | B18: DOEF0203 | C18: Rural vegetation maintenance spans | D18: 0's | E18: 1714.007867 | F18: 1737.32878 | G18: 1760.966999 | H18: 1784.926842 | I18: 1809.212684 | J18: 1833.828961
A19: ED_OEF372_00004 | B19: DOEF0204 | C19: Total vegetation maintenance spans | D19: 0's | E19: 10150.39741 | F19: 10334.05893 | G19: 10521.04363 | H19: 10711.41163 | I19: 10905.22415 | J19: 11102.54353
A20: ED_OEF372_00005 | B20: DOEF0205 | C20: Total number of spans | D20: 0's | E20: 105272.1151 | F20: 106830.9769 | G20: 108412.9222 | H20: 110018.2928 | I20: 111647.4356 | J20: 113300.7027
A21: ED_OEF372_00006 | B21: DOEF0206 | C21: Average urban and CBD vegetation maintenance span cycle | D21: Years | E21: 2 | F21: 2 | G21: 2 | H21: 2 | I21: 2 | J21: 2
A22: ED_OEF372_00007 | B22: DOEF0207 | C22: Average rural vegetation maintenance span cycle | D22: Years | E22: 1 | F22: 1 | G22: 1 | H22: 1 | I22: 1 | J22: 1
A23: ED_OEF372_00008 | B23: DOEF0208 | C23: Average number of trees per urban and CBD vegetation maintenance span | D23: Trees | E23: 3.855 | F23: 3.855 | G23: 3.855 | H23: 3.855 | I23: 3.855 | J23: 3.855
A24: ED_OEF372_00009 | B24: DOEF0209 | C24: Average number of trees per rural vegetation maintenance span | D24: Trees | E24: 10.53 | F24: 10.53 | G24: 10.53 | H24: 10.53 | I24: 10.53 | J24: 10.53
A25: ED_OEF372_00010 | B25: DOEF0210 | C25: Average number of defects per urban and CBD vegetation maintenance span | D25: Defects | E25: 0.1231022152 | F25: 0.1231022152 | G25: 0.1231022152 | H25: 0.1231022152 | I25: 0.1231022152 | J25: 0.1231022152
A26: ED_OEF372_00011 | B26: DOEF0211 | C26: Average number of defects per rural vegetation maintenance span | D26: Defects | E26: 0.2903739743 | F26: 0.2903739743 | G26: 0.2903739743 | H26: 0.2903739743 | I26: 0.2903739743 | J26: 0.2903739743
A27: ED_OEF372_00012 | B27: DOEF0212 | C27: Tropical proportion | D27: Spans | E27: 0 | F27: 0 | G27: 0 | H27: 0 | I27: 0 | J27: 0
A28: ED_OEF372_00013 | B28: DOEF0213 | C28: Standard vehicle access | D28: km | E28: 4380.302909 | F28: 4410.662856 | G28: 4441.233229 | H28: 4472.015485 | I28: 4503.011094 | J28: 4534.221533
A29: ED_OEF372_00014 | B29: DOEF0214 | C29: Bushfire risk | D29: Spans | E29: 1691 | F29: 1691 | G29: 1691 | H29: 1691 | I29: 1691 | J29: 1691
B31: DOEF03 | C31: TABLE 3.7.3 - SERVICE AREA FACTORS
A32: ED_OEF373_00001 | B32: DOEF0301 | C32: Route Line length | D32: km | E32: 4506.790624 | F32: 4538.295746 | G32: 4570.021107 | H32: 4601.968248 | I32: 4634.138718 | J32: 4666.534078

Sheet 4.1 Public lighting
C1: =SheetHeader -> REGULATORY REPORTING STATEMENT
C2: =dms_TradingName -> Victorian DNSP Reset
C3: =FRCP_span -> 2016 to 2020
C4: 4.1 PUBLIC LIGHTING
C8: TABLE 4.1.2 - DESCRIPTOR METRICS ANNUALLY
C9: <<<GROUP-ROW>>>
E11: Unit of Measure | F11: VOLUMES & EXPENDITURE
A12: PUB412 | C12: SERVICE/SERVICE QUALITY | D12: DESCRIPTOR METRIC | F12: =CRCP_y5 -> 2015 | G12: =FRCP -> 2016 | H12: 2017 | I12: 2018 | J12: 2019 | K12: 2020
A13: ED_PUB412_00001 | C13: LIGHT INSTALLATION | D13: Number of lights installed | E13: 0's | F13: 0 | G13: 0 | H13: 0 | I13: 0 | J13: 0 | K13: 0
A14: ED_PUB412_00002 | D14: Number of poles installed | E14: 0's | F14: 0 | G14: 0 | H14: 0 | I14: 0 | J14: 0 | K14: 0
A15: ED_PUB412_00003 | D15: Total expenditure | E15: $0's | F15: 0 | G15: 0 | H15: 0 | I15: 0 | J15: 0 | K15: 0
A16: ED_PUB412_00004 | C16: LIGHT REPLACEMENT | D16: Number of lights replaced | E16: 0's | F16: 836 | G16: 847 | H16: 854 | I16: 862 | J16: 870 | K16: 878
A17: ED_PUB412_00005 | D17: Number of poles replaced | E17: 0's | F17: 0 | G17: 0 | H17: 0 | I17: 0 | J17: 0 | K17: 0
A18: ED_PUB412_00006 | D18: Total expenditure | E18: $0's | F18: 354202.2012 | G18: 367356.1519 | H18: 382395.7515 | I18: 392165.3572 | J18: 380359.6529 | K18: 379394.9485
A19: ED_PUB412_00007 | C19: LIGHT MAINTENANCE | D19: Number of lights maintained | E19: 0's | F19: 10678 | G19: 10793 | H19: 10891 | I19: 10991 | J19: 11090 | K19: 11190
A20: ED_PUB412_00008 | D20: Number of poles maintained | E20: 0's | F20: 0 | G20: 0 | H20: 0 | I20: 0 | J20: 0 | K20: 0
A21: ED_PUB412_00009 | D21: Total expenditure | E21: $0's | F21: 4012357.226 | G21: 4196356.721 | H21: 4414693.485 | I21: 4624537.551 | J21: 4762562.65 | K21: 4950466.742
A22: ED_PUB412_00010 | C22: QUALITY OF SUPPLY | D22: Mean days to rectify/replace public lighting assets | E22: days | F22: 4 | G22: 4 | H22: 4 | I22: 4 | J22: 4 | K22: 4
A23: ED_PUB412_00011 | D23: GSO breaches | E23: 0's | F23: 10 | G23: 10 | H23: 10 | I23: 10 | J23: 10 | K23: 10
A24: ED_PUB412_00012 | D24: GSL payments | E24: $0's | F24: 100 | G24: 100 | H24: 100 | I24: 100 | J24: 100 | K24: 100
A25: ED_PUB412_00013 | D25: Customer complaints | E25: 0's | F25: 59 | G25: 59 | H25: 59 | I25: 59 | J25: 59 | K25: 59
C31: TABLE 4.1.3 - COST METRICS
C32: <<<GROUP-ROW>>>
F34: =CONCATENATE("AVERAGE UNIT COST ($0's, real ",dms_DollarReal, ")") -> AVERAGE UNIT COST ($0's, real December 2015)
A35: PUB413 | D35: LIGHT TYPE | F35: =CRCP_y5 -> 2015 | G35: =FRCP -> 2016 | H35: 2017 | I35: 2018 | J35: 2019 | K35: 2020
A36: ED_PUB413_00001 | C36: LIGHT INSTALLATION | D36: Mercury Vapour 80 watt | F36: 0 | G36: 0 | H36: 0 | I36: 0 | J36: 0 | K36: 0
A37: ED_PUB413_00002 | D37: Sodium High Pressure 150 watt | F37: 0 | G37: 0 | H37: 0 | I37: 0 | J37: 0 | K37: 0
A38: ED_PUB413_00003 | D38: Sodium High Pressure 250 watt | F38: 0 | G38: 0 | H38: 0 | I38: 0 | J38: 0 | K38: 0
A39: ED_PUB413_00004 | D39: T5 (2X14W) | F39: 0 | G39: 0 | H39: 0 | I39: 0 | J39: 0 | K39: 0
A40: ED_PUB413_00005 | D40: LED 18W | F40: 0 | G40: 0 | H40: 0 | I40: 0 | J40: 0 | K40: 0
A41: ED_PUB413_00006
A42: ED_PUB413_00007
A43: ED_PUB413_00008
A44: ED_PUB413_00009
A45: ED_PUB413_00010
A46: ED_PUB413_00011
A47: ED_PUB413_00012
A48: ED_PUB413_00013
A49: ED_PUB413_00014
A50: ED_PUB413_00015
A51: ED_PUB413_00016
A52: ED_PUB413_00017
A53: ED_PUB413_00006
A54: ED_PUB413_00007
A55: ED_PUB413_00008
A56: ED_PUB413_00009
A57: ED_PUB413_00010
A58: ED_PUB413_00011
A59: ED_PUB413_00012
A60: ED_PUB413_00013
A61: ED_PUB413_00014
A62: ED_PUB413_00015
A63: ED_PUB413_00016
A64: ED_PUB413_00017
A65: ED_PUB413_00018
A66: ED_PUB413_00019
A67: ED_PUB413_00020
A68: ED_PUB413_00021
A69: ED_PUB413_00022
A70: ED_PUB413_00023
A71: ED_PUB413_00024
A72: ED_PUB413_00025
A73: ED_PUB413_00026
A74: ED_PUB413_00027
A75: ED_PUB413_00028
A76: ED_PUB413_00029 | C76: LIGHT REPLACEMENT | D76: Mercury Vapour 80 watt
A77: ED_PUB413_00030 | D77: Sodium High Pressure 150 watt
A78: ED_PUB413_00031 | D78: Sodium High Pressure 250 watt
A79: ED_PUB413_00032 | D79: T5 (2X14W)
A80: ED_PUB413_00033 | D80: LED18W
A81: ED_PUB413_00034
A82: ED_PUB413_00035
A83: ED_PUB413_00036
A84: ED_PUB413_00037
A85: ED_PUB413_00038
A86: ED_PUB413_00039
A87: ED_PUB413_00040
A88: ED_PUB413_00041
A89: ED_PUB413_00042
A90: ED_PUB413_00031
A91: ED_PUB413_00032
A92: ED_PUB413_00033
A93: ED_PUB413_00034
A94: ED_PUB413_00035
A95: ED_PUB413_00036
A96: ED_PUB413_00037
A97: ED_PUB413_00038
A98: ED_PUB413_00039
A99: ED_PUB413_00040
A100: ED_PUB413_00041
A101: ED_PUB413_00042
A102: ED_PUB413_00043
A103: ED_PUB413_00044
A104: ED_PUB413_00045
A105: ED_PUB413_00046
A106: ED_PUB413_00047
A107: ED_PUB413_00048
A108: ED_PUB413_00049
A109: ED_PUB413_00050
A110: ED_PUB413_00051
A111: ED_PUB413_00052
A112: ED_PUB413_00053
A113: ED_PUB413_00054
A114: ED_PUB413_00055
A115: ED_PUB413_00056
A116: ED_PUB413_00069 | C116: LIGHT MAINTENANCE | D116: Mercury Vapour 80 watt
A117: ED_PUB413_00070 | D117: Sodium High Pressure 150 watt
A118: ED_PUB413_00071 | D118: Sodium High Pressure 250 watt
A119: ED_PUB413_00072 | D119: 55W Ind
A120: ED_PUB413_00073 | D120: Fluorescent 20 watt
A121: ED_PUB413_00074 | D121: Fluorescent 40 watt
A122: ED_PUB413_00075 | D122: Fluorescent 80 watt
A123: ED_PUB413_00076 | D123: Mercury Vapour 50 watt
A124: ED_PUB413_00077 | D124: Mercury Vapour 125 watt
A125: ED_PUB413_00078 | D125: Mercury Vapour 250 watt
A126: ED_PUB413_00079 | D126: Mercury Vapour 400 watt
A127: ED_PUB413_00080 | D127: Sodium High Pressure 50 watt
A128: ED_PUB413_00081 | D128: Sodium Low Pressure 90 watt
A129: ED_PUB413_00082 | D129: Sodium High Pressure 100 watt
A130: ED_PUB413_00083 | D130: Sodium High Pressure 400 watt
A131: ED_PUB413_00084 | D131: Metal Halide 70 watt
A132: ED_PUB413_00085 | D132: Metal Halide 150 watt
A133: ED_PUB413_00086 | D133: Metal Halide 250 watt
A134: ED_PUB413_00087 | D134: Incandescent 100 watt
A135: ED_PUB413_00088 | D135: Incandescent 150 watt
A136: ED_PUB413_00089 | D136: Sodium High Pressure 250 watt (24 hrs)
A137: ED_PUB413_00090 | D137: Metal Halide 100 watt
A138: ED_PUB413_00091 | D138: T5 (2X14W)
A139: ED_PUB413_00092 | D139: T5 (2x24W)
A140: ED_PUB413_00093 | D140: LED 18W
A141: ED_PUB413_00094 | D141: Compact Fluoro 32W
A142: ED_PUB413_00095 | D142: Compact Fluoro 42W
A143: ED_PUB413_00096
A144: ED_PUB413_00097
A145: ED_PUB413_00098
A146: ED_PUB413_00099
A147: ED_PUB413_00100
A148: ED_PUB413_00101
A149: ED_PUB413_00102
A150: ED_PUB413_00103
A151: ED_PUB413_00104
A152: ED_PUB413_00105
A153: ED_PUB413_00106
A154: ED_PUB413_00107
A155: ED_PUB413_00108

Sheet 4.2 Metering
C1: =SheetHeader -> REGULATORY REPORTING STATEMENT
C2: =dms_TradingName -> Victorian DNSP Reset
C3: =FRCP_span -> 2016 to 2020
C4: 4.2 METERING
C7: TABLE 4.2.1 - METERING DESCRIPTOR METRIC | M7: TABLE 4.2.2 - COST METRICS
C8: <<<GROUP-ROW>>>
A10: NB: Codes in hidden column L | E10: VOLUMES (0's) | O10: =CONCATENATE("EXPENDITURE ($0's, real ",dms_DollarReal,")") -> EXPENDITURE ($0's, real December 2015) | U10: VOLUMES (0's)
C11: ASSET CATEGORY | D11: ASSET SUBCATEGORY | E11: =CRCP_y5 -> 2015 | F11: =FRCP -> 2016 | G11: 2017 | H11: 2018 | I11: 2019 | J11: 2020 | M11: SERVICE SUBCATEGORY | N11: METER TYPE | O11: =CRCP_y5 -> 2015 | P11: =FRCP -> 2016 | Q11: 2017 | R11: 2018 | S11: 2019 | T11: 2020 | U11: =CRCP_y5 -> 2015 | V11: =FRCP -> 2016 | W11: 2017 | X11: 2018 | Y11: 2019 | Z11: 2020
A12: ED_MET421_00001 | C12: Meter Type 4 | D12: Single phase meter population | E12: 284658.96 | F12: 289420.0663 | G12: 293657.3223 | H12: 297686.0808 | I12: 301719.6194 | J12: 305764.2302 | L12: ED_MET422_00001 | M12: Meter purchase | N12: Meter Type 4 | U12: 1263.12 | V12: 5490.34 | W12: 4962.02 | X12: 7179.19 | Y12: 7701.74 | Z12: 7793.48
A13: ED_MET421_00002 | D13: Multi phase meter population | E13: 41818 | F13: 42765.41375 | G13: 43512.00767 | H13: 44213.5992 | I13: 44903.12057 | J13: 45583.00977 | L13: ED_MET422_00002 | N13: Meter Type 5 | U13: 0 | V13: 0 | W13: 0 | X13: 0 | Y13: 0 | Z13: 0
A14: ED_MET421_00003 | D14: Current transformer connected meter population | E14: 2126.175 | F14: 2171.5 | G14: 2201.65 | H14: 2229.55 | I14: 2256.85 | J14: 2283.7 | L14: ED_MET422_00003 | N14: Meter Type 6 | U14: 0 | V14: 0 | W14: 0 | X14: 0 | Y14: 0 | Z14: 0
A15: ED_MET421_00004 | D15: Direct connect meter population | E15: 324350.785 | F15: 330013.98 | G15: 334967.68 | H15: 339670.13 | I15: 344365.89 | J15: 349063.54 | L15: ED_MET422_00004 | M15: Meter testing | N15: Meter Type 4 | U15: 665 | V15: 665 | W15: 665 | X15: 665 | Y15: 665 | Z15: 665
A16: ED_MET421_00005 | C16: Meter Type 5 | D16: Single phase meter population | E16: 632 | F16: 508 | G16: 442 | H16: 383.5 | I16: 332.5 | J16: 289 | L16: ED_MET422_00005 | N16: Meter Type 5 | U16: 0 | V16: 0 | W16: 0 | X16: 0 | Y16: 0 | Z16: 0
A17: ED_MET421_00006 | D17: Multi phase meter population | E17: 0 | F17: 0 | G17: 0 | H17: 0 | I17: 0 | J17: 0 | L17: ED_MET422_00006 | N17: Meter Type 6 | U17: 0 | V17: 0 | W17: 0 | X17: 0 | Y17: 0 | Z17: 0
A18: ED_MET421_00007 | D18: Current transformer connected meter population | E18: 0 | F18: 0 | G18: 0 | H18: 0 | I18: 0 | J18: 0 | L18: ED_MET422_00007 | M18: Meter investigation | N18: Meter Type 4 | U18: 1374 | V18: 1374 | W18: 1374 | X18: 1374 | Y18: 1374 | Z18: 1374
A19: ED_MET421_00008 | D19: Direct connect meter population | E19: 632 | F19: 508 | G19: 442 | H19: 383.5 | I19: 332.5 | J19: 289 | L19: ED_MET422_00008 | N19: Meter Type 5 | U19: 0 | V19: 0 | W19: 0 | X19: 0 | Y19: 0 | Z19: 0
A20: ED_MET421_00009 | C20: Meter Type 6 | D20: Single phase meter population | E20: 5359 | F20: 4308 | G20: 3747 | H20: 3260 | I20: 2836.5 | J20: 2467.5 | L20: ED_MET422_00009 | N20: Meter Type 6 | U20: 0 | V20: 0 | W20: 0 | X20: 0 | Y20: 0 | Z20: 0
A21: ED_MET421_00010 | D21: Multi phase meter population | E21: 0 | F21: 0 | G21: 0 | H21: 0 | I21: 0 | J21: 0 | L21: ED_MET422_00010 | M21: Scheduled meter reading | N21: Meter Type 4 | U21: 0 | V21: 0 | W21: 0 | X21: 0 | Y21: 0 | Z21: 0
A22: ED_MET421_00011 | D22: Current transformer connected meter population | E22: 0 | F22: 0 | G22: 0 | H22: 0 | I22: 0 | J22: 0 | L22: ED_MET422_00011 | N22: Meter Type 5 | U22: 7584 | V22: 0 | W22: 0 | X22: 0 | Y22: 0 | Z22: 0
A23: ED_MET421_00012 | D23: Direct connect meter population | E23: 5359 | F23: 4308 | G23: 3747 | H23: 3260 | I23: 2836.5 | J23: 2467.5 | L23: ED_MET422_00012 | N23: Meter Type 6 | U23: 64308 | V23: 0 | W23: 0 | X23: 0 | Y23: 0 | Z23: 0
L24: ED_MET422_00013 | M24: Special meter reading | N24: Meter Type 4 | U24: 0 | V24: 0 | W24: 0 | X24: 0 | Y24: 0 | Z24: 0
L25: ED_MET422_00014 | N25: Meter Type 5 | U25: 0 | V25: 0 | W25: 0 | X25: 0 | Y25: 0 | Z25: 0
L26: ED_MET422_00015 | N26: Meter Type 6 | U26: 0 | V26: 0 | W26: 0 | X26: 0 | Y26: 0 | Z26: 0
L27: ED_MET422_00016 | M27: New meter installation | N27: Meter Type 4 | U27: 6427 | V27: 0 | W27: 0 | X27: 0 | Y27: 0 | Z27: 0
L28: ED_MET422_00017 | N28: Meter Type 5 | U28: 0 | V28: 0 | W28: 0 | X28: 0 | Y28: 0 | Z28: 0
L29: ED_MET422_00018 | N29: Meter Type 6 | U29: 0 | V29: 0 | W29: 0 | X29: 0 | Y29: 0 | Z29: 0
L30: ED_MET422_00019 | M30: Meter replacement | N30: Meter Type 4 | U30: 2141.92 | V30: 1122.12 | W30: 1048.58 | X30: 849.12 | Y30: 759 | Z30: 707
L31: ED_MET422_00020 | N31: Meter Type 5 | U31: 0 | V31: 0 | W31: 0 | X31: 0 | Y31: 0 | Z31: 0
L32: ED_MET422_00021 | N32: Meter Type 6 | U32: 0 | V32: 0 | W32: 0 | X32: 0 | Y32: 0 | Z32: 0
L33: ED_MET422_00022 | M33: Meter maintenance | N33: Meter Type 4 | U33: 7166 | V33: 7166 | W33: 7166 | X33: 7166 | Y33: 7166 | Z33: 7166
L34: ED_MET422_00023 | N34: Meter Type 5 | U34: 0 | V34: 0 | W34: 0 | X34: 0 | Y34: 0 | Z34: 0
L35: ED_MET422_00024 | N35: Meter Type 6 | U35: 0 | V35: 0 | W35: 0 | X35: 0 | Y35: 0 | Z35: 0
L36: ED_MET422_00025 | M36: Remote meter reading | N36: Meter Type 4 | U36: 3790703.76 | V36: 3951974.64 | W36: 4016128.86 | X36: 4074414.06 | Y36: 4131134.52 | Z36: 4187819.88
L37: ED_MET422_00026 | M37: Remote meter re-configuration | N37: Meter Type 4 | U37: 29244.30787 | V37: 29755.65089 | W37: 30202.0813 | X37: 30625.80435 | Y37: 31048.87439 | Z37: 31472.07342
L38: ED_MET422_00027 | M38: Other metering | N38: Meter Type 4
L39: ED_MET422_00028 | N39: Meter Type 5
L40: ED_MET422_00029 | N40: Meter Type 6
L41: ED_MET422_00030 | N41: Meter Type 7
L42: ED_MET422_00031 | M42: IT infrastructure capex | N42: Meter Type 4
L43: ED_MET422_00032 | M43: IT infrastructure opex | N43: Meter Type 4
L44: ED_MET422_00033 | M44: Communications infrastructure capex | N44: Meter Type 4
L45: ED_MET422_00034 | M45: Communications infrastructure opex | N45: Meter Type 4

Sheet 4.3 Fee-based services
C1: =SheetHeader -> REGULATORY REPORTING STATEMENT
C2: =dms_TradingName -> Victorian DNSP Reset
C3: =FRCP_span -> 2016 to 2020
C4: 4.3 ANCILLARY SERVICES - FEE BASED SERVICES
C6: TABLE 4.3.1 - COST METRICS FOR FEE-BASED SERVICES
C9: SERVICE | D9: SERVICE SUBCATEGORY | E9: =CONCATENATE("EXPENDITURE ($0's, real ", dms_DollarReal, ")") -> EXPENDITURE ($0's, real December 2015) | K9: VOLUMES (0's)
E10: =CRCP_y5 -> 2015 | F10: =FRCP -> 2016 | G10: 2017 | H10: 2018 | I10: 2019 | J10: 2020 | K10: =CRCP_y5 -> 2015 | L10: =FRCP -> 2016 | M10: 2017 | N10: 2018 | O10: 2019 | P10: 2020
A11: ED_FEE431_00001 | C11: Common Fee-Based Services | D11: Energisation | K11: 0 | L11: 0 | M11: 0 | N11: 0 | O11: 0 | P11: 0
A12: ED_FEE431_00002 | C12: Common Fee-Based Services | D12: De-energisation | K12: 8660 | L12: 4789 | M12: 3831 | N12: 3065 | O12: 2452 | P12: 1961
A13: ED_FEE431_00003 | C13: Common Fee-Based Services | D13: Re-energisation | K13: 13672 | L13: 5925 | M13: 4719 | N13: 3776 | O13: 3041 | P13: 2419
A14: ED_FEE431_00004 | C14: Miscellaneous Fee-Based Services | D14: Connection - single phase service connection to new premises - (JEN responsible) | K14: 4948 | L14: 4454 | M14: 4454 | N14: 4454 | O14: 4454 | P14: 4454
A15: ED_FEE431_00005 | C15: Miscellaneous Fee-Based Services | D15: Connection - three phase service connection to new premises (less than 100amps) - (JEN responsible) | K15: 624 | L15: 561 | M15: 561 | N15: 561 | O15: 561 | P15: 561
A16: ED_FEE431_00006 | C16: Miscellaneous Fee-Based Services | D16: Connection - single phase service connection to new premises - (JEN not responsible) | K16: 0 | L16: 494 | M16: 494 | N16: 494 | O16: 494 | P16: 494
A17: ED_FEE431_00007 | C17: Miscellaneous Fee-Based Services | D17: Connection - three phase service connection to new premises (less than 100amps) - (JEN not responsible) | K17: 0 | L17: 63 | M17: 63 | N17: 63 | O17: 63 | P17: 63
A18: ED_FEE431_00008 | C18: Miscellaneous Fee-Based Services | D18: Temporary supply services | K18: 727 | L18: 725 | M18: 725 | N18: 725 | O18: 725 | P18: 725
A19: ED_FEE431_00009 | C19: Miscellaneous Fee-Based Services | D19: Temporary disconnect/reconnect services | K19: 632 | L19: 632 | M19: 632 | N19: 632 | O19: 632 | P19: 632
A20: ED_FEE431_00010 | C20: Miscellaneous Fee-Based Services | D20: Remote de-energisation | K20: 20755 | L20: 30103 | M20: 31061 | N20: 31827 | O20: 32440 | P20: 32931
A21: ED_FEE431_00011 | C21: Miscellaneous Fee-Based Services | D21: Remote re-energisation | K21: 28350 | L21: 29031 | M21: 30202 | N21: 31138 | O21: 31887 | P21: 32487
A22: ED_FEE431_00012 | C22: Miscellaneous Fee-Based Services | D22: Special meter reading | K22: 2995 | L22: 2505 | M22: 2000 | N22: 1603 | O22: 1282 | P22: 1026
A23: ED_FEE431_00013 | C23: Miscellaneous Fee-Based Services | D23: Re-test types 5, 6 and AMI smart metering installations less than 160 MWh | K23: 125 | L23: 125 | M23: 125 | N23: 125 | O23: 125 | P23: 125
A24: ED_FEE431_00014 | C24: Miscellaneous Fee-Based Services | D24: Re-test types 5, 6 and AMI smart metering installations greater than 160 MWh | K24: 0 | L24: 0 | M24: 0 | N24: 0 | O24: 0 | P24: 0
A25: ED_FEE431_00015 | C25: Miscellaneous Fee-Based Services | D25: Remote meter re-configuration | K25: 4512 | L25: 5000 | M25: 6000 | N25: 7000 | O25: 8000 | P25: 9000
A26: ED_FEE431_00016 | C26: Miscellaneous Fee-Based Services | D26: Type 7 metering (meter data service) | K26: 70403.47945 | L26: 70403.47945 | M26: 70403.47945 | N26: 70403.47945 | O26: 70403.47945 | P26: 70403.47945
A27: ED_FEE431_00017 | C27: Miscellaneous Fee-Based Services | D27: Fault response - not DNSP fault | K27: 556 | L27: 556 | M27: 556 | N27: 556 | O27: 556 | P27: 556
A28: ED_FEE431_00018 | C28: Miscellaneous Fee-Based Services | D28: Wasted attendance - not DNSP fault | K28: 874 | L28: 874 | M28: 874 | N28: 874 | O28: 874 | P28: 874
A29: ED_FEE431_00019 | C29: Miscellaneous Fee-Based Services | D29: Service truck visits | K29: 2398 | L29: 2398 | M29: 2398 | N29: 2398 | O29: 2398 | P29: 2398
A30: ED_FEE431_00020 | C30: Miscellaneous Fee-Based Services | D30: Reserve feeder per KW | K30: 54914.77 | L30: 54914.77 | M30: 54914.77 | N30: 54914.77 | O30: 54914.77 | P30: 54914.77
A31: ED_FEE431_00021 | C31: Miscellaneous Fee-Based Services
A32: ED_FEE431_00022 | C32: Miscellaneous Fee-Based Services
A33: ED_FEE431_00023 | C33: Miscellaneous Fee-Based Services
A34: ED_FEE431_00024 | C34: Miscellaneous Fee-Based Services
A35: ED_FEE431_00025 | C35: Miscellaneous Fee-Based Services
A36: ED_FEE431_00026 | C36: Miscellaneous Fee-Based Services
A37: ED_FEE431_00027 | C37: Miscellaneous Fee-Based Services
A38: ED_FEE431_00028 | C38: Miscellaneous Fee-Based Services
A39: ED_FEE431_00029 | C39: Miscellaneous Fee-Based Services
A40: ED_FEE431_00030 | C40: Miscellaneous Fee-Based Services
A41: ED_FEE431_00031 | C41: Miscellaneous Fee-Based Services
A42: ED_FEE431_00032 | C42: Miscellaneous Fee-Based Services
A43: ED_FEE431_00033 | C43: Miscellaneous Fee-Based Services
A44: ED_FEE431_00034 | C44: Miscellaneous Fee-Based Services
A45: ED_FEE431_00035 | C45: Miscellaneous Fee-Based Services
A46: ED_FEE431_00036 | C46: Miscellaneous Fee-Based Services
A47: ED_FEE431_00037 | C47: Miscellaneous Fee-Based Services
A48: ED_FEE431_00038 | C48: Miscellaneous Fee-Based Services
A49: ED_FEE431_00039 | C49: Miscellaneous Fee-Based Services
A50: ED_FEE431_00040 | C50: Miscellaneous Fee-Based Services
A51: ED_FEE431_00041 | C51: Miscellaneous Fee-Based Services
A52: ED_FEE431_00042 | C52: Miscellaneous Fee-Based Services
A53: ED_FEE431_00043 | C53: Miscellaneous Fee-Based Services
A54: ED_FEE431_00044 | C54: Miscellaneous Fee-Based Services
A55: ED_FEE431_00045 | C55: Miscellaneous Fee-Based Services
A56: ED_FEE431_00046 | C56: Miscellaneous Fee-Based Services
A57: ED_FEE431_00047 | C57: Miscellaneous Fee-Based Services
A58: ED_FEE431_00048 | C58: Miscellaneous Fee-Based Services
A59: ED_FEE431_00049 | C59: Miscellaneous Fee-Based Services
A60: ED_FEE431_00050 | C60: Miscellaneous Fee-Based Services
A61: ED_FEE431_00051 | C61: Miscellaneous Fee-Based Services
A62: ED_FEE431_00052 | C62: Miscellaneous Fee-Based Services
A63: ED_FEE431_00053 | C63: Miscellaneous Fee-Based Services
A64: ED_FEE431_00054 | C64: Miscellaneous Fee-Based Services
A65: ED_FEE431_00055 | C65: Miscellaneous Fee-Based Services
A66: ED_FEE431_00056 | C66: Miscellaneous Fee-Based Services
A67: ED_FEE431_00057 | C67: Miscellaneous Fee-Based Services
A68: ED_FEE431_00058 | C68: Miscellaneous Fee-Based Services
A69: ED_FEE431_00059 | C69: Miscellaneous Fee-Based Services
A70: ED_FEE431_00060 | C70: Miscellaneous Fee-Based Services
A71: ED_FEE431_00061 | C71: Miscellaneous Fee-Based Services
A72: ED_FEE431_00062 | C72: Miscellaneous Fee-Based Services
A73: ED_FEE431_00063 | C73: Miscellaneous Fee-Based Services
A74: ED_FEE431_00064 | C74: Miscellaneous Fee-Based Services
A75: ED_FEE431_00065 | C75: Miscellaneous Fee-Based Services
A76: ED_FEE431_00066 | C76: Miscellaneous Fee-Based Services
A77: ED_FEE431_00067 | C77: Miscellaneous Fee-Based Services
A78: ED_FEE431_00068 | C78: Miscellaneous Fee-Based Services
A79: ED_FEE431_00069 | C79: Miscellaneous Fee-Based Services
A80: ED_FEE431_00070 | C80: Miscellaneous Fee-Based Services
A81: ED_FEE431_00071 | C81: Miscellaneous Fee-Based Services
A82: ED_FEE431_00072 | C82: Miscellaneous Fee-Based Services
A83: ED_FEE431_00073 | C83: Miscellaneous Fee-Based Services
A84: ED_FEE431_00074 | C84: Miscellaneous Fee-Based Services
A85: ED_FEE431_00075 | C85: Miscellaneous Fee-Based Services
A86: ED_FEE431_00076 | C86: Miscellaneous Fee-Based Services
A87: ED_FEE431_00077 | C87: Miscellaneous Fee-Based Services
A88: ED_FEE431_00078 | C88: Miscellaneous Fee-Based Services
A89: ED_FEE431_00079 | C89: Miscellaneous Fee-Based Services
A90: ED_FEE431_00080 | C90: Miscellaneous Fee-Based Services
A91: ED_FEE431_00081 | C91: Miscellaneous Fee-Based Services
A92: ED_FEE431_00082 | C92: Miscellaneous Fee-Based Services
A93: ED_FEE431_00083 | C93: Miscellaneous Fee-Based Services
A94: ED_FEE431_00084 | C94: Miscellaneous Fee-Based Services
A95: ED_FEE431_00085 | C95: Miscellaneous Fee-Based Services
A96: ED_FEE431_00086 | C96: Miscellaneous Fee-Based Services
A97: ED_FEE431_00087 | C97: Miscellaneous Fee-Based Services
A98: ED_FEE431_00088 | C98: Miscellaneous Fee-Based Services
A99: ED_FEE431_00089 | C99: Miscellaneous Fee-Based Services
A100: ED_FEE431_00090 | C100: Miscellaneous Fee-Based Services
A101: ED_FEE431_00091 | C101: Miscellaneous Fee-Based Services
A102: ED_FEE431_00092 | C102: Miscellaneous Fee-Based Services
A103: ED_FEE431_00093 | C103: Miscellaneous Fee-Based Services
A104: ED_FEE431_00094 | C104: Miscellaneous Fee-Based Services
A105: ED_FEE431_00095 | C105: Miscellaneous Fee-Based Services
A106: ED_FEE431_00096 | C106: Miscellaneous Fee-Based Services
A107: ED_FEE431_00097 | C107: Miscellaneous Fee-Based Services
A108: ED_FEE431_00098 | C108: Miscellaneous Fee-Based Services
A109: ED_FEE431_00099 | C109: Miscellaneous Fee-Based Services
A110: ED_FEE431_00100 | C110: Miscellaneous Fee-Based Services
A111: ED_FEE431_00101 | C111: Miscellaneous Fee-Based Services
A112: ED_FEE431_00102 | C112: Miscellaneous Fee-Based Services
A113: ED_FEE431_00103 | C113: Miscellaneous Fee-Based Services
A114: ED_FEE431_00104 | C114: Miscellaneous Fee-Based Services
A115: ED_FEE431_00105 | C115: Miscellaneous Fee-Based Services
A116: ED_FEE431_00106 | C116: Miscellaneous Fee-Based Services
A117: ED_FEE431_00107 | C117: Miscellaneous Fee-Based Services
A118: ED_FEE431_00108 | C118: Miscellaneous Fee-Based Services
A119: ED_FEE431_00109 | C119: Miscellaneous Fee-Based Services
A120: ED_FEE431_00110 | C120: Miscellaneous Fee-Based Services
A121: ED_FEE431_00111 | C121: Miscellaneous Fee-Based Services
A122: ED_FEE431_00112 | C122: Miscellaneous Fee-Based Services
A123: ED_FEE431_00113 | C123: Miscellaneous Fee-Based Services
A124: ED_FEE431_00114 | C124: Miscellaneous Fee-Based Services
A125: ED_FEE431_00115 | C125: Miscellaneous Fee-Based Services
A126: ED_FEE431_00116 | C126: Miscellaneous Fee-Based Services
A127: ED_FEE431_00117 | C127: Miscellaneous Fee-Based Services
A128: ED_FEE431_00118 | C128: Miscellaneous Fee-Based Services
A129: ED_FEE431_00119 | C129: Miscellaneous Fee-Based Services
A130: ED_FEE431_00120 | C130: Miscellaneous Fee-Based Services
A131: ED_FEE431_00121 | C131: Miscellaneous Fee-Based Services
A132: ED_FEE431_00122 | C132: Miscellaneous Fee-Based Services
A133: ED_FEE431_00123 | C133: Miscellaneous Fee-Based Services
A134: ED_FEE431_00124 | C134: Miscellaneous Fee-Based Services
A135: ED_FEE431_00125 | C135: Miscellaneous Fee-Based Services
A136: ED_FEE431_00126 | C136: Miscellaneous Fee-Based Services
A137: ED_FEE431_00127 | C137: Miscellaneous Fee-Based Services
A138: ED_FEE431_00128 | C138: Miscellaneous Fee-Based Services
A139: ED_FEE431_00129 | C139: Miscellaneous Fee-Based Services
A140: ED_FEE431_00130 | C140: Miscellaneous Fee-Based Services
A141: ED_FEE431_00131 | C141: Miscellaneous Fee-Based Services
A142: ED_FEE431_00132 | C142: Miscellaneous Fee-Based Services
A143: ED_FEE431_00133 | C143: Miscellaneous Fee-Based Services
A144: ED_FEE431_00134 | C144: Miscellaneous Fee-Based Services
A145: ED_FEE431_00135 | C145: Miscellaneous Fee-Based Services
A146: ED_FEE431_00136 | C146: Miscellaneous Fee-Based Services
A147: ED_FEE431_00137 | C147: Miscellaneous Fee-Based Services
A148: ED_FEE431_00138 | C148: Miscellaneous Fee-Based Services
A149: ED_FEE431_00139 | C149: Miscellaneous Fee-Based Services
A150: ED_FEE431_00140 | C150: Miscellaneous Fee-Based Services
A151: ED_FEE431_00141 | C151: Miscellaneous Fee-Based Services
A152: ED_FEE431_00142 | C152: Miscellaneous Fee-Based Services
A153: ED_FEE431_00143 | C153: Miscellaneous Fee-Based Services
A154: ED_FEE431_00144 | C154: Miscellaneous Fee-Based Services
A155: ED_FEE431_00145 | C155: Miscellaneous Fee-Based Services
A156: ED_FEE431_00146 | C156: Miscellaneous Fee-Based Services
A157: ED_FEE431_00147 | C157: Miscellaneous Fee-Based Services
A158: ED_FEE431_00148 | C158: Miscellaneous Fee-Based Services
A159: ED_FEE431_00149 | C159: Miscellaneous Fee-Based Services
A160: ED_FEE431_00150 | C160: Miscellaneous Fee-Based Services
A161: ED_FEE431_00151 | C161: Miscellaneous Fee-Based Services
A162: ED_FEE431_00152 | C162: Miscellaneous Fee-Based Services
A163: ED_FEE431_00153 | C163: Miscellaneous Fee-Based Services
A164: ED_FEE431_00154 | C164: Miscellaneous Fee-Based Services
A165: ED_FEE431_00155 | C165: Miscellaneous Fee-Based Services
A166: ED_FEE431_00156 | C166: Miscellaneous Fee-Based Services
A167: ED_FEE431_00157 | C167: Miscellaneous Fee-Based Services
A168: ED_FEE431_00158 | C168: Miscellaneous Fee-Based Services
A169: ED_FEE431_00159 | C169: Miscellaneous Fee-Based Services
A170: ED_FEE431_00160 | C170: Miscellaneous Fee-Based Services
A171: ED_FEE431_00161 | C171: Miscellaneous Fee-Based Services
A172: ED_FEE431_00162 | C172: Miscellaneous Fee-Based Services
A173: ED_FEE431_00163 | C173: Miscellaneous Fee-Based Services
A174: ED_FEE431_00164 | C174: Miscellaneous Fee-Based Services
A175: ED_FEE431_00165 | C175: Miscellaneous Fee-Based Services
A176: ED_FEE431_00166 | C176: Miscellaneous Fee-Based Services
A177: ED_FEE431_00167 | C177: Miscellaneous Fee-Based Services
A178: ED_FEE431_00168 | C178: Miscellaneous Fee-Based Services
A179: ED_FEE431_00169 | C179: Miscellaneous Fee-Based Services
A180: ED_FEE431_00170 | C180: Miscellaneous Fee-Based Services
A181: ED_FEE431_00171 | C181: Miscellaneous Fee-Based Services
A182: ED_FEE431_00172 | C182: Miscellaneous Fee-Based Services
A183: ED_FEE431_00173 | C183: Miscellaneous Fee-Based Services
A184: ED_FEE431_00174 | C184: Miscellaneous Fee-Based Services
A185: ED_FEE431_00175 | C185: Miscellaneous Fee-Based Services
A186: ED_FEE431_00176 | C186: Miscellaneous Fee-Based Services
A187: ED_FEE431_00177 | C187: Miscellaneous Fee-Based Services
A188: ED_FEE431_00178 | C188: Miscellaneous Fee-Based Services
A189: ED_FEE431_00179 | C189: Miscellaneous Fee-Based Services
A190: ED_FEE431_00180 | C190: Miscellaneous Fee-Based Services
A191: ED_FEE431_00181 | C191: Miscellaneous Fee-Based Services
A192: ED_FEE431_00182 | C192: Miscellaneous Fee-Based Services
A193: ED_FEE431_00183 | C193: Miscellaneous Fee-Based Services
A194: ED_FEE431_00184 | C194: Miscellaneous Fee-Based Services
A195: ED_FEE431_00185 | C195: Miscellaneous Fee-Based Services
A196: ED_FEE431_00186 | C196: Miscellaneous Fee-Based Services
A197: ED_FEE431_00187 | C197: Miscellaneous Fee-Based Services
A198: ED_FEE431_00188 | C198: Miscellaneous Fee-Based Services
A199: ED_FEE431_00189 | C199: Miscellaneous Fee-Based Services
A200: ED_FEE431_00190 | C200: Miscellaneous Fee-Based Services
A201: ED_FEE431_00191 | C201: Miscellaneous Fee-Based Services
A202: ED_FEE431_00192 | C202: Miscellaneous Fee-Based Services
A203: ED_FEE431_00193 | C203: Miscellaneous Fee-Based Services
... 278 more rows

Sheet 4.4 Quoted services.
C1: =SheetHeader -> REGULATORY REPORTING STATEMENT
C2: =dms_TradingName -> Victorian DNSP Reset
C3: =FRCP_span -> 2016 to 2020
C4: 4.4 ANCILLARY SERVICES - QUOTED SERVICES
C6: TABLE 4.4.1 - COST METRICS FOR QUOTED SERVICES
C10: SERVICE | D10: SERVICE SUBCATEGORY | E10: =CONCATENATE("EXPENDITURE ($0's, real ", dms_DollarReal, ")") -> EXPENDITURE ($0's, real December 2015) | K10: VOLUMES (0's)
E11: =CRCP_y5 -> 2015 | F11: =FRCP -> 2016 | G11: 2017 | H11: 2018 | I11: 2019 | J11: 2020 | K11: =CRCP_y5 -> 2015 | L11: =FRCP -> 2016 | M11: 2017 | N11: 2018 | O11: 2019 | P11: 2020
A12: ED_QUO441_00001 | C12: Quoted Services | D12: Elective underground service | K12: 334 | L12: 334 | M12: 334 | N12: 334 | O12: 334 | P12: 334
A13: ED_QUO441_00002 | C13: Quoted Services | D13: After hours truck by appointment | K13: 27 | L13: 27 | M13: 27 | N13: 27 | O13: 27 | P13: 27
A14: ED_QUO441_00003 | C14: Quoted Services | D14: Recoverable works | K14: 2 | L14: 0 | M14: 0 | N14: 0 | O14: 0 | P14: 0
A15: ED_QUO441_00004 | C15: Quoted Services | D15: Routine Connections -customers >100 amps | K15: 105 | L15: 105 | M15: 105 | N15: 105 | O15: 105 | P15: 105
A16: ED_QUO441_00005 | C16: Quoted Services | D16: Temporary covering of low voltage mains and service lines | K16: 78 | L16: 78 | M16: 78 | N16: 78 | O16: 78 | P16: 78
A17: ED_QUO441_00006 | C17: Quoted Services | D17: Supply abolishment | K17: 2102 | L17: 0 | M17: 0 | N17: 0 | O17: 0 | P17: 0
A18: ED_QUO441_00007 | C18: Quoted Services | D18: Supply abolishment > 100 amps | K18: 0 | L18: 0 | M18: 0 | N18: 0 | O18: 0 | P18: 0
A19: ED_QUO441_00008 | C19: Quoted Services | D19: Restoration of overhead service cables pulled down by transport vehicles transporting high loads | K19: 0 | L19: 0 | M19: 0 | N19: 0 | O19: 0 | P19: 0
A20: ED_QUO441_00009 | C20: Quoted Services | D20: High load escorts--lifting of overhead lines | K20: 0 | L20: 0 | M20: 0 | N20: 0 | O20: 0 | P20: 0
A21: ED_QUO441_00010 | C21: Quoted Services | D21: Re-arrangement of network assets at customer request, excluding alteration and relocation of existing public lighting services | K21: 0 | L21: 0 | M21: 0 | N21: 0 | O21: 0 | P21: 0
A22: ED_QUO441_00011 | C22: Quoted Services | D22: Auditing design and construction | K22: 0 | L22: 0 | M22: 0 | N22: 0 | O22: 0 | P22: 0
A23: ED_QUO441_00012 | C23: Quoted Services | D23: Specification and design enquiry | K23: 0 | L23: 0 | M23: 0 | N23: 0 | O23: 0 | P23: 0
A24: ED_QUO441_00013 | C24: Quoted Services
A25: ED_QUO441_00014 | C25: Quoted Services
A26: ED_QUO441_00015 | C26: Quoted Services
A27: ED_QUO441_00016 | C27: Quoted Services
A28: ED_QUO441_00017 | C28: Quoted Services
A29: ED_QUO441_00018 | C29: Quoted Services
A30: ED_QUO441_00019 | C30: Quoted Services
A31: ED_QUO441_00020 | C31: Quoted Services
A32: ED_QUO441_00021 | C32: Quoted Services
A33: ED_QUO441_00022 | C33: Quoted Services
A34: ED_QUO441_00023 | C34: Quoted Services
A35: ED_QUO441_00024 | C35: Quoted Services
A36: ED_QUO441_00025 | C36: Quoted Services
A37: ED_QUO441_00026 | C37: Quoted Services
A38: ED_QUO441_00027 | C38: Quoted Services
A39: ED_QUO441_00028 | C39: Quoted Services
A40: ED_QUO441_00029 | C40: Quoted Services
A41: ED_QUO441_00030 | C41: Quoted Services
A42: ED_QUO441_00031 | C42: Quoted Services
A43: ED_QUO441_00032 | C43: Quoted Services
A44: ED_QUO441_00033 | C44: Quoted Services
A45: ED_QUO441_00034 | C45: Quoted Services
A46: ED_QUO441_00035 | C46: Quoted Services
A47: ED_QUO441_00036 | C47: Quoted Services
A48: ED_QUO441_00037 | C48: Quoted Services
A49: ED_QUO441_00038 | C49: Quoted Services
A50: ED_QUO441_00039 | C50: Quoted Services
A51: ED_QUO441_00040 | C51: Quoted Services
A52: ED_QUO441_00041 | C52: Quoted Services
A53: ED_QUO441_00042 | C53: Quoted Services
A54: ED_QUO441_00043 | C54: Quoted Services
A55: ED_QUO441_00044 | C55: Quoted Services
A56: ED_QUO441_00045 | C56: Quoted Services
A57: ED_QUO441_00046 | C57: Quoted Services
A58: ED_QUO441_00047 | C58: Quoted Services
A59: ED_QUO441_00048 | C59: Quoted Services
A60: ED_QUO441_00049 | C60: Quoted Services
A61: ED_QUO441_00050 | C61: Quoted Services
A62: ED_QUO441_00051 | C62: Quoted Services
A63: ED_QUO441_00052 | C63: Quoted Services
A64: ED_QUO441_00053 | C64: Quoted Services
A65: ED_QUO441_00054 | C65: Quoted Services
A66: ED_QUO441_00055 | C66: Quoted Services
A67: ED_QUO441_00056 | C67: Quoted Services
A68: ED_QUO441_00057 | C68: Quoted Services
A69: ED_QUO441_00058 | C69: Quoted Services
A70: ED_QUO441_00059 | C70: Quoted Services
A71: ED_QUO441_00060 | C71: Quoted Services
A72: ED_QUO441_00061 | C72: Quoted Services
A73: ED_QUO441_00062 | C73: Quoted Services
A74: ED_QUO441_00063 | C74: Quoted Services
A75: ED_QUO441_00064 | C75: Quoted Services
A76: ED_QUO441_00065 | C76: Quoted Services
A77: ED_QUO441_00066 | C77: Quoted Services
A78: ED_QUO441_00067 | C78: Quoted Services
A79: ED_QUO441_00068 | C79: Quoted Services
A80: ED_QUO441_00069 | C80: Quoted Services
A81: ED_QUO441_00070 | C81: Quoted Services
A82: ED_QUO441_00071 | C82: Quoted Services
A83: ED_QUO441_00072 | C83: Quoted Services
A84: ED_QUO441_00073 | C84: Quoted Services
A85: ED_QUO441_00074 | C85: Quoted Services
A86: ED_QUO441_00075 | C86: Quoted Services
A87: ED_QUO441_00076 | C87: Quoted Services
A88: ED_QUO441_00077 | C88: Quoted Services
A89: ED_QUO441_00078 | C89: Quoted Services
A90: ED_QUO441_00079 | C90: Quoted Services
A91: ED_QUO441_00080 | C91: Quoted Services
A92: ED_QUO441_00081 | C92: Quoted Services
A93: ED_QUO441_00082 | C93: Quoted Services
A94: ED_QUO441_00083 | C94: Quoted Services
A95: ED_QUO441_00084 | C95: Quoted Services
A96: ED_QUO441_00085 | C96: Quoted Services
A97: ED_QUO441_00086 | C97: Quoted Services
A98: ED_QUO441_00087 | C98: Quoted Services
A99: ED_QUO441_00088 | C99: Quoted Services
A100: ED_QUO441_00089 | C100: Quoted Services
